Workbook

Sheet PFP
A1: PROPOSTA FINANCEIRA DO PROJETO | J1: CODIGO:
J2: PFP
A3: NOME DA CONSULTORA:
A5: PROJETO: | F5: CONTRATANTE: | J5: BASE:
A6: Estudo de Viabilidade Técnica, Econômica e Ambiental e Anteprojeto da Ponte da Baía de São Marcos, no município de São Luís/MA | F6: Codevasf (Sede) | J6: maio/2022
A7: Base | B7: Cod1 | C7: Cod2 | D7: Categoria / Insumo | E7: Uni | F7: Qde | G7: CUD | H7: PU | I7: FatorK | J7: CT | K7: PT
A8: DNIT | B8: MO | C8: P8061 | D8: Engenheiro Sênior (Coordenador) | E8: mês | F8: ='CRO1_Ins-Pro'!D4 -> 8 | G8: =M8 -> 16871.01 | H8: =ROUND(I8*G8,2) -> 39451.17 | I8: =PFP2.1_FatorKa!$E$40 -> 2.3384 | J8: =ROUND(F8*G8,2) -> 134968.08 | K8: =ROUND(F8*H8,2) -> 315609.36 | L8: P8061 | M8: 16871.01
A9: DNIT | B9: MO | C9: P8060 | D9: Consultor | E9: mês | F9: ='CRO1_Ins-Pro'!D5 -> 1 | G9: =M9 -> 20245.21 | H9: =ROUND(I9*G9,2) -> 34321.7 | I9: =PFP2.2_FatorKb!$E$40 -> 1.6953 | J9: =ROUND(F9*G9,2) -> 20245.21 | K9: =ROUND(F9*H9,2) -> 34321.7 | L9: P8060 | M9: 20245.21
A10: DNIT | B10: MO | C10: P8067 | D10: Engenheiro Sênior | E10: mês | F10: ='CRO1_Ins-Pro'!D6 -> 12 | G10: 14169.06 | H10: =ROUND(I10*G10,2) -> 33132.93 | I10: =PFP2.1_FatorKa!$E$40 -> 2.3384 | J10: =ROUND(F10*G10,2) -> 170028.72 | K10: =ROUND(F10*H10,2) -> 397595.16 | L10: P8067 | M10: 14169.06
A11: DNIT | B11: MO | C11: P8066 | D11: Engenheiro Pleno | E11: mês | F11: ='CRO1_Ins-Pro'!D7 -> 12 | G11: 10767.48 | H11: 25178.68 | I11: =PFP2.1_FatorKa!$E$40 -> 2.3384 | J11: 129209.76 | K11: 302144.16 | L11: P8066 | M11: 10767.48
A12: DNIT | B12: MO | C12: P8065 | D12: Engenheiro Júnior | E12: mês | F12: ='CRO1_Ins-Pro'!D8 -> 3 | G12: 10302 | H12: 24090.2 | I12: =PFP2.1_FatorKa!$E$40 -> 2.3384 | J12: 30906 | K12: 72270.6 | L12: P8065 | M12: 10302
A13: DNIT | B13: MO | C13: P8151 | D13: Técnico Sênior | E13: mês | F13: ='CRO1_Ins-Pro'!D9 -> 9 | G13: 4012.52 | H13: 9382.88 | I13: =PFP2.1_FatorKa!$E$40 -> 2.3384 | J13: 36112.68 | K13: 84445.92 | L13: P8151 | M13: 4012.52
A14: DNIT | B14: MO | C14: P8147 | D14: Técnico Pleno | E14: mês | F14: ='CRO1_Ins-Pro'!D10 -> 9 | G14: 2930.24 | H14: 6852.07 | I14: =PFP2.1_FatorKa!$E$40 -> 2.3384 | J14: 26372.16 | K14: 61668.63 | L14: P8147 | M14: 2930.24
A15: DNIT | B15: MO | C15: P8155 | D15: Técnico Junior | E15: mês | F15: ='CRO1_Ins-Pro'!D11 -> 9 | G15: 2260.39 | H15: 5285.7 | I15: =PFP2.1_FatorKa!$E$40 -> 2.3384 | J15: 20343.51 | K15: 47571.3 | L15: P8155 | M15: 2260.39
A16: SICRO | B16: MO | C16: P9867 | D16: Técnico Especializado | E16: mês | F16: ='CRO1_Ins-Pro'!D12 -> 0 | G16: 3134.86 | H16: 7330.56 | I16: =PFP2.1_FatorKa!$E$40 -> 2.3384 | J16: 0 | K16: 0
A17: CODE | B17: DP | C17: V1 | D17: Diárias | E17: dia | F17: ='CRO1_Ins-Pro'!D13 -> 40 | G17: 132 | H17: 165.77 | I17: =PFP3_FatorKc!$E$19 -> 1.2558 | J17: 5280 | K17: 6630.8
A18: CODE | B18: DP | C18: V2 | D18: Aluguel Hatch 1.6 flex s/ Motorista | E18: mês | F18: ='CRO1_Ins-Pro'!D14 -> 2 | G18: 3259.34 | H18: 4093.08 | I18: =PFP3_FatorKc!$E$19 -> 1.2558 | J18: 6518.68 | K18: 8186.16
A19: CODE | B19: DP | C19: V4 | D19: Passagens Aéreas (ida e volta) | E19: un | F19: ='CRO1_Ins-Pro'!D15 -> 8 | G19: 469 | H19: 588.97 | I19: =PFP3_FatorKc!$E$19 -> 1.2558 | J19: 3752 | K19: 4711.76
A20: PROP | B20: EM | C20: M1 | D20: Pen Drive 16 Gb | E20: un | F20: ='CRO1_Ins-Pro'!D16 -> 2 | G20: 21.9 | H20: 27.5 | I20: =PFP3_FatorKc!$E$19 -> 1.2558 | J20: 43.8 | K20: =ROUND(F20*H20,2) -> 55
A21: PROP | B21: EM | C21: M2 | D21: HD Externo 2 Tb | E21: un | F21: ='CRO1_Ins-Pro'!D17 -> 2 | G21: 262.92 | H21: 330.17 | I21: =PFP3_FatorKc!$E$19 -> 1.2558 | J21: 525.84 | K21: =ROUND(F21*H21,2) -> 660.34
A22: CODE | B22: EM | C22: M3 | D22: Relatório Impresso Parcial | E22: un | F22: ='CRO1_Ins-Pro'!D18 -> 25 | G22: 33.35 | H22: 41.88 | I22: =PFP3_FatorKc!$E$19 -> 1.2558 | J22: 833.75 | K22: 1047
A23: CODE | B23: EM | C23: M4 | D23: Relatório Impresso Final | E23: un | F23: ='CRO1_Ins-Pro'!D19 -> 2 | G23: 1478.8 | H23: 1857.08 | I23: =PFP3_FatorKc!$E$19 -> 1.2558 | J23: 2957.6 | K23: =ROUND(F23*H23,2) -> 3714.16
A24: CODE | B24: SG | C24: TP | D24: Total Serviços Cartográficos | E24: un | F24: ='CRO1_Ins-Pro'!D20 -> 1 | G24: - | H24: =PFP1.1_Topo!G22 -> 357748.68 | I24: - | J24: - | K24: =ROUND(F24*H24,2) -> 357748.68
A25: CODE | B25: SG | C25: GT | D25: Total Serviços Geotécnicos | E25: un | F25: ='CRO1_Ins-Pro'!D21 -> 1 | G25: - | H25: =PFP1.2_Geo!G49 -> 908858.53 | I25: - | J25: - | K25: 908858.53
A26: TOTAL DOS CUSTOS DIRETOS | H26: =SUM(J8:J25) -> 588097.79
A27: TOTAL DOS ENCARGOS E DISPESAS DIVERSAS | H27: =H28-H26 -> 752534.26
A28: TOTAL DA PROPOSTA A PREÇO GLOBAL | H28: =SUM(K8:K23) -> 1340632.05
A29: TOTAL DA PROPOSTA A PREÇO UNITÁRIO | H29: =SUM(K24:K25) -> 1266607.21
A30: TOTAL DA PROPOSTA | H30: =H28+H29 -> 2607239.26
A31: NOME DO INFORMANTE: | J31: QUALIFICAÇÃO
A33: ASSINATURA: | J33: DATA:
A35: OBSERVAÇÃO:
A36: Alocar os Insumos MO, com respectivo FatorK, dentro da categoria de vínculo contratual (com ou sem) de cada tipo de profissional
A37: Uni - unidade de medição do insumo;
A38: Qde - Quantidade do Insumo (não pode ocorrer alteração pela Licitante)
A39: CUD - Custo Unitário Direto do Insumo (sem encargos, taxas e impostos, valor não pode ser maior que o Orçado pela Codevasf)
A40: CT - Custo Total (sem encargos, taxas e impostos) - CT = Qde x CUD
A41: FatorK - Taxa de Ressarcimento de Despesas e Encargos (detalhar composição nas Planilhas "PFP2.1", "PFP2.2", "PFP3")
A42: PU - Preço Unitário do Insumo (incluído encargos, taxas e impostos) - PU = CUD x FatorK
A43: PT - Preço Total do Insumo (incluído encargos, taxas e impostos) - PT = Qde x PU
A44: P - Profissionais nível superior nas áreas de Engenharia, Química, Arquitetura, Agronomia e Veterinária, conforme disposições da Lei 4.950-A/66
A45: S - Profissionais de nível superior nas demais áreas de atuação, incluindo Arqueólogo, Biólogo, Geógrafo e Socioólogo
A46: T - Profissionais de nível médio técnico nas diversas áreas de atuação
A47: A - Profissionais de nível médio de apoio técnico-administrativo

Sheet PFP1.1_Topo
A1: SERVIÇOS TOPOGRÁFICOS/CARTOGRÁFICOS | G1: CODIGO:
G2: PFP-1.1
A3: NOME DA EMPRESA:
A5: PROJETO: | E5: CONTRATANTE: | G5: =PFP!J5 -> BASE:
A6: =PFP!A6 -> Estudo de Viabilidade Técnica, Econômica e Ambiental e Anteprojeto da Ponte da Baía de São Marcos, no município de São Luís/MA | E6: =PFP!F6 -> Codevasf (Sede) | G6: =PFP!J6 -> maio/2022 | J6: 2022-05-01
A7: Cod. | B7: Base | C7: Insumos | D7: Uni | E7: Qde | F7: Preço Unitário (PU) | G7: Preço Total (PT)
A8: TP01 | B8: CODE | C8: Pontos GPS de dupla frequencia (L1/L2) | D8: un | E8: 6 | F8: 900.98 | G8: =ROUND(F8*E8,2) -> 5405.88
A9: TP02 | B9: CODE | C9: Poligonal eletrônica classe IIP e implantação do eixo selecionado | D9: km | E9: 5 | F9: 1637.53 | G9: 8187.65
A10: TP03 | B10: CODE | C10: Nivelamento Geométrico classe IIN | D10: km | E10: 10 | F10: 725.69 | G10: 7256.9
A11: TP04 | B11: CODE | C11: Levantamento Planialtimetrico com RPA (VANT) | D11: ha | E11: 85 | F11: 1157.19 | G11: =ROUND(F11*E11,2) -> 98361.15
A12: TP05 | B12: CODE | C12: Cadastro Físico (Faixa ADA- eixo estudado) | D12: ha | E12: 40 | F12: 16.9 | G12: 676
A13: TP06 | B13: CODE | C13: Cadastro Agrícola (Faixa ADA- eixo estudado) | D13: ha | E13: 40 | F13: 5.63 | G13: 225.2
A14: TP07 | B14: CODE | C14: Cadastro Jurídico (Faixa ADA- eixo estudado) | D14: ha | E14: 40 | F14: 11.27 | G14: 450.8
A15: TP08 | B15: CODE | C15: Cadastro Sócioeconomico (Faixa ADA-eixo) | D15: ha | E15: 40 | F15: 3.76 | G15: 150.4
A16: TP09 | B16: CODE | C16: Levantamentos Topobatimétricos | D16: km | E16: 50 | F16: 1170.1 | G16: 58505
A17: TP10 | B17: CODE | C17: Levantamentos Ecobatimétricos | D17: ha | E17: 220 | F17: 802.9 | G17: 176638
A18: TP11 | B18: CODE | C18: Marco de Concreto (12x18x60cm) | D18: un | E18: 6 | F18: 47.49 | G18: 284.94
A19: TP12 | B19: 924/ORSE | C19: Estacas Testemunhas (2x4x70cm) | D19: un | E19: 30 | F19: 8 | G19: 240
A20: TP13 | B20: CODE | C20: Piquetes de Madeira (2x2x20cm) | D20: un | E20: 300 | F20: 2.41 | G20: 723
A21: TP14 | B21: CODE | C21: Picada Manual | D21: km | E21: 4 | F21: 160.94 | G21: 643.76
A22: TOTAL SERVIÇOS TOPOGRÁFICOS | G22: =SUM(G8:G21) -> 357748.68
A23: NOME DO INFORMANTE: | F23: QUALIFICAÇÃO:
A25: ASSINATURA: | F25: DATA:
A27: OBSERVAÇÃO:
A28: Uni - unidade de medição do insumo;
A29: Qde - Quantidade do Insumo (não pode ocorrer alteração pela Licitante)
A30: PU - Preço Unitário (composições padrão da Codevasf, já incluso o FatorK)
A31: PT - Preço Total (incluído encargos, taxas e impostos) - PT = Qde x PU

Sheet PFP1.2_Geo
A1: SERVIÇOS GEOLÓGICOS/GEOTÉCNICOS | G1: CODIGO:
G2: PFP-1.2
A3: NOME DA EMPRESA:
A5: PROJETO: | E5: CONTRATANTE: | G5: =PFP!J5 -> BASE:
A6: =PFP!A6 -> Estudo de Viabilidade Técnica, Econômica e Ambiental e Anteprojeto da Ponte da Baía de São Marcos, no município de São Luís/MA | E6: =PFP!F6 -> Codevasf (Sede) | G6: =PFP!J6 -> maio/2022 | J6: 2022-05-01
A7: Cod. | B7: Base | C7: Insumos | D7: Uni | E7: Qde | F7: Preço Unitário (PU) | G7: Preço Total (PT)
A8: GT01 | B8: CODE | C8: Sondagem Rotativa: (Des)Mobilização | D8: un | E8: 10 | F8: 3476.27 | G8: =ROUND(F8*E8,2) -> 34762.7
A9: GT02 | B9: CODE | C9: Sondagem Rotativa: Ø N em rochas | D9: m | E9: 500 | F9: 695.99 | G9: =ROUND(F9*E9,2) -> 347995
A10: GT03 | B10: CODE | C10: Sondagem Rotativa: Ø B em solo | D10: m | E10: 100 | F10: 251.94 | G10: 25194
A11: GT04 | B11: CODE | C11: Sondagem Rotativa: Desloc/Instalação 0-200 m | D11: un | E11: 20 | F11: 925.52 | G11: 18510.4
A12: GT05 | B12: CODE | C12: Sondagem Rotativa: Desloc/Instalação 201-500 m | D12: un | E12: 10 | F12: 1337.9 | G12: 13379
A13: GT06 | B13: CODE | C13: Sondagem Rotativa: Desloc/Instalação >500 m | D13: un | E13: 15 | F13: 1750.28 | G13: 26254.2
A14: GT07 | B14: CODE | C14: Sondagem Percussão: (Des)Mobilização | D14: un | E14: 18 | F14: 915.66 | G14: 16481.88
A15: GT08 | B15: CODE | C15: Sondagem Percursão: com SPT | D15: m | E15: 920 | F15: 80.3 | G15: 73876
A16: GT09 | B16: CODE | C16: Sondagem Percursão: Desloc/Instalação 0-200 m | D16: un | E16: 35 | F16: 729.07 | G16: 25517.45
A17: GT10 | B17: CODE | C17: Sondagem Percursão: Desloc/Instalação 201-500 m | D17: un | E17: 15 | F17: 1051.55 | G17: 15773.25
A18: GT11 | B18: CODE | C18: Sondagem Percursão: Desloc/Instalação >500 m | D18: un | E18: 25 | F18: 1374.03 | G18: 34350.75
A19: GT12 | B19: CODE | C19: Sondagem Sismica de Refração | D19: km | E19: 0.4 | F19: 15383.74 | G19: 6153.5
A20: GT13 | B20: CODE | C20: Sondagem Trado 4'' | D20: m | E20: 100 | F20: 66.07 | G20: 6607
A21: GT14 | B21: CODE | C21: Poços de Inspeção | D21: m | E21: 200 | F21: 186.25 | G21: 37250
A22: GT15 | B22: CODE | C22: Ensaio: Umidade Natural | D22: un | E22: 50 | F22: 76.89 | G22: 3844.5
A23: GT16 | B23: CODE | C23: Ensaio: Densidade Natural | D23: un | E23: 50 | F23: 76.89 | G23: 3844.5
A24: GT17 | B24: CODE | C24: Ensaio: Limite de Liquidez | D24: un | E24: 50 | F24: 105.99 | G24: 5299.5
A25: GT18 | B25: CODE | C25: Ensaio: Limite de Plasticidade | D25: un | E25: 50 | F25: 105.99 | G25: 5299.5
A26: GT19 | B26: CODE | C26: Ensaio: Granulometria por Peneiramento | D26: un | E26: 50 | F26: 117.06 | G26: 5853
A27: GT20 | B27: CODE | C27: Ensaio: Granulometria por Sedimentação | D27: un | E27: 50 | F27: 358.11 | G27: 17905.5
A28: GT21 | B28: CODE | C28: Ensaio: Compactação Proctor Normal | D28: un | E28: 40 | F28: 150.84 | G28: 6033.6
A29: GT22 | B29: CODE | C29: Ensaio: Massa Especifica Real dos Grãos | D29: un | E29: 50 | F29: 99.89 | G29: 4994.5
A30: GT23 | B30: CODE | C30: Ensaio: Adensamento Oedométrico | D30: un | E30: 20 | F30: 267.81 | G30: 5356.2
A31: GT24 | B31: CODE | C31: Ensaio: Triaxial UU não consolidado não drenado | D31: un | E31: 20 | F31: 774.7 | G31: 15494
A32: GT25 | B32: CODE | C32: Ensaio: Triaxial CU conslidado não drenado | D32: un | E32: 20 | F32: 1068.65 | G32: 21373
A33: GT26 | B33: CODE | C33: Ensaio: Colapsividade em Anéis de Adensamento | D33: un | E33: 20 | F33: 359.82 | G33: 7196.4
A34: GT27 | B34: CODE | C34: Ensaio: Expansão amostra indeformada com pressão de expansão | D34: un | E34: 20 | F34: 282.87 | G34: 5657.4
A35: GT28 | B35: CODE | C35: Ensaio: Dispersão Granulometria Comparativa | D35: un | E35: 20 | F35: 214.7 | G35: 4294
A36: GT29 | B36: CODE | C36: Ensaio: Dispersão Crumb Test | D36: un | E36: 20 | F36: 79.56 | G36: 1591.2
A37: GT30 | B37: CODE | C37: Ensaio: Infiltração | D37: un | E37: 20 | F37: 214.7 | G37: 4294
A38: GT31 | B38: CODE | C38: Ensaio: Perda de Água 5 estágios | D38: un | E38: 20 | F38: 339.22 | G38: 6784.4
A39: GT32 | B39: CODE | C39: Ensaio: Análise Quimica da Areia | D39: un | E39: 20 | F39: 413.81 | G39: 8276.2
A40: GT33 | B40: CODE | C40: Ensaio: Mineralogia da Areia | D40: un | E40: 20 | F40: 496.8 | G40: 9936
A41: GT34 | B41: CODE | C41: Ensaio: Impureza Orgânica da Areia | D41: un | E41: 20 | F41: 90.55 | G41: 1811
A42: GT35 | B42: CODE | C42: Ensaio: Material Pulverulento da Areia | D42: un | E42: 20 | F42: 181.15 | G42: 3623
A43: GT36 | B43: CODE | C43: Ensaio: Análise Petrográfica/Mineralogia | D43: un | E43: 20 | F43: 474.87 | G43: 9497.4
A44: GT37 | B44: CODE | C44: Ensaio: Reatividade Potencial | D44: un | E44: 20 | F44: 1297.16 | G44: 25943.2
A45: GT38 | B45: CODE | C45: Ensaio: Permeabilidade Vertical de Carga Variável | D45: un | E45: 20 | F45: 610.22 | G45: 12204.4
A46: GT39 | B46: CODE | C46: Ensaio: Abrasão "Los Angeles" | D46: um | E46: 20 | F46: 388.82 | G46: 7776.4
A47: GT40 | B47: CODE | C47: Ensaio: Permeabilidade "in situ" | D47: un | E47: 20 | F47: 479.95 | G47: 9599
A48: GT41 | B48: CODE | C48: Ensaio: Retirada de Amostra Indeformada | D48: un | E48: 20 | F48: 648.58 | G48: 12971.6
A49: TOTAL SERVIÇOS GEOTÉCNICOS | G49: =SUM(G8:G48) -> 908858.53
A50: NOME DO INFORMANTE: | F50: QUALIFICAÇÃO:
A52: ASSINATURA: | F52: DATA:
A54: LEGENDA:
A55: Uni - unidade de medição do insumo;
A56: Qde - Quantidade do Insumo (não pode ocorrer alteração pela Licitante)
A57: PU - Preço Unitário (composições padrão da Codevasf, já incluso o FatorK)
A58: PT - Preço Total (incluído encargos, taxas e impostos) - PT = Qde x PU

Sheet PFP2.1_FatorKa
A1: DETALHAMENTO DOS ENCARGOS SOCIAIS: Ka | F1: CODIGO:
F2: PFP-2.1
A3: NOME DA CONSULTORA:
A5: PROJETO: | C5: CONTRATANTE: | F5: =PFP!J5 -> BASE:
A6: =PFP1.2_Geo!A6 -> Estudo de Viabilidade Técnica, Econômica e Ambiental e Anteprojeto da Ponte da Baía de São Marcos, no município de São Luís/MA | C6: =PFP1.2_Geo!E6 -> Codevasf (Sede) | F6: =PFP!J6 -> maio/2022 | J6: 2022-05-01
A7: DISCRIMINAÇÃO | E7: VALORES
E8: % | F8: R$
A9: A | B9: ENCARGOS SOCIAIS BÁSICOS | E9: =ROUND(SUM(E10:E18),4) -> 0.378 | F9: =ROUND(E9*PFP!H26,2) -> 222300.96
A10: A1 | B10: INSS | E10: 0.2 | F10: =ROUND(E10*PFP!$H$26,2) -> 117619.56
A11: A2 | B11: SESI | E11: 0.015 | F11: =ROUND(E11*PFP!$H$26,2) -> 8821.47
A12: A3 | B12: SENAI | E12: 0.01 | F12: =ROUND(E12*PFP!$H$26,2) -> 5880.98
A13: A4 | B13: INCRA | E13: 0.002 | F13: =ROUND(E13*PFP!$H$26,2) -> 1176.2
A14: A5 | B14: SEBRAE | E14: 0.006 | F14: =ROUND(E14*PFP!$H$26,2) -> 3528.59
A15: A6 | B15: Salário Educação | E15: 0.025 | F15: =ROUND(E15*PFP!$H$26,2) -> 14702.44
A16: A7 | B16: Seguro Contra Acidente de Trabalho | E16: 0.03 | F16: =ROUND(E16*PFP!$H$26,2) -> 17642.93
A17: A8 | B17: FGTS | E17: 0.08 | F17: =ROUND(E17*PFP!$H$26,2) -> 47047.82
A18: A9 | B18: SECONCI | E18: 0.01 | F18: =ROUND(E18*PFP!$H$26,2) -> 5880.98
A19: B | B19: ENCARGOS SOCIAIS QUE RECEBEM INCIDÊNCIA DE "A" | E19: =ROUND(SUM(E20:E29),4) -> 0.1552 | F19: =ROUND(E19*PFP!$H$26,2) -> 91272.78
A20: B1 | B20: Repouso Semanal Remunerado | F20: =ROUND(E20*PFP!$H$26,2) -> 0
A21: B2 | B21: Feriádos | F21: =ROUND(E21*PFP!$H$26,2) -> 0
A22: B3 | B22: Auxílio - Enfermidade | E22: 0.0069 | F22: =ROUND(E22*PFP!$H$26,2) -> 4057.87
A23: B4 | B23: 13º Salário | E23: 0.0833 | F23: =ROUND(E23*PFP!$H$26,2) -> 48988.55
A24: B5 | B24: Licença Paternidade | E24: 0.0006 | F24: =ROUND(E24*PFP!$H$26,2) -> 352.86
A25: B6 | B25: Faltas Justificadas | E25: 0.0056 | F25: =ROUND(E25*PFP!$H$26,2) -> 3293.35
A26: B7 | B26: Dias de Chuvas | F26: =ROUND(E26*PFP!$H$26,2) -> 0
A27: B8 | B27: Auxílio Acidente de Trabalho | E27: 0.0009 | F27: =ROUND(E27*PFP!$H$26,2) -> 529.29
A28: B9 | B28: Férias Gozadas | E28: 0.0576 | F28: =ROUND(E28*PFP!$H$26,2) -> 33874.43
A29: B10 | B29: Salário Maternidade | E29: 0.0003 | F29: =ROUND(E29*PFP!$H$26,2) -> 176.43
A30: C | B30: ENCARGOS SOCIAIS QUE NÃO RECEBEM INCIDÊNCIA DE "A" | E30: =ROUND(SUM(E31:E35),4) -> 0.1169 | F30: =ROUND(E30*PFP!H26,2) -> 68748.63
A31: C1 | B31: Aviso Prévio Indenizado | E31: 0.0367 | F31: =ROUND(E31*PFP!$H$26,2) -> 21583.19
A32: C2 | B32: Aviso Prévio Trabalhado | E32: 0.0009 | F32: =ROUND(E32*PFP!$H$26,2) -> 529.29
A33: C3 | B33: Férias Indenizadas | E33: 0.0453 | F33: =ROUND(E33*PFP!$H$26,2) -> 26640.83
A34: C4 | B34: Depósito Rescisão Sem Justa Causa | E34: 0.0309 | F34: =ROUND(E34*PFP!$H$26,2) -> 18172.22
A35: C5 | B35: Indenização Adicional | E35: 0.0031 | F35: =ROUND(E35*PFP!$H$26,2) -> 1823.1
A36: D | B36: REINCIDÊNCIAS | E36: =ROUND(SUM(E37:E38),4) -> 0.062 | F36: =ROUND(E36*PFP!H26,2) -> 36462.06
A37: D1 | B37: Reincidência de "A" sobre "B" | E37: =ROUND(E9*E19,4) -> 0.0587 | F37: =ROUND(E37*PFP!$H$26,2) -> 34521.34
A38: D2 | B38: Reincidência de "A" sobre Aviso Prévio Trabalhado e reincidência do FGTS sobre Aviso Prévio Indenizado | E38: =ROUND((E9*E32)+(E31*E17),4) -> 0.0033 | F38: =ROUND(E38*PFP!$H$26,2) -> 1940.72
A39: K1 | B39: ENCARGOS SOCIAIS | E39: =ROUND(E9+E19+E30+E36,4) -> 0.7121 | F39: =ROUND(E39*PFP!H26,2) -> 418784.44
A40: Ka | B40: TAXA DE RESSARCIMENTO DE DESPESAS E ENCARGOS SOBRE MO CV | E40: =ROUND((1+E39+PFP3_FatorKc!E15)*(1+PFP3_FatorKc!E14)*(1+PFP3_FatorKc!E10),4) -> 2.3384
A41: NOME DO INFORMANTE: | E41: QUALIFICAÇÃO
A43: ASSINATURA: | E43: DATA:
A45: OBSERVAÇÃO:
A46: 1 - DISCRIMINAR OS ENCARGOS SOCIAIS COM SEUS RESPECTIVOS PERCENTUAS TOTALIZANDO OS MESMOS.
A47: 2 - APLICAR O % TOTAL P/ CALCULAR OS E. SOCIAIS INCIDENTES NA MÃO-DE-OBRA COM VÍNCULO PERMANENTE
A48: Ka - Taxa de Ressarcimento de Despesas e Encargos sobre a Mão de Obra COM VINCULO (incide apenas no Insumo Codigo M.O.)
A49: Ka = (1 + K1 + K2) x (1 + K3) x (1 + K4)

Sheet PFP2.2_FatorKb
A1: DETALHAMENTO DOS ENCARGOS SOCIAIS: Kb | F1: CODIGO:
F2: PFP-2.2
A3: NOME DA CONSULTORA:
A5: PROJETO: | C5: CONTRATANTE: | F5: =PFP2.1_FatorKa!F5 -> BASE:
A6: =PFP!A6 -> Estudo de Viabilidade Técnica, Econômica e Ambiental e Anteprojeto da Ponte da Baía de São Marcos, no município de São Luís/MA | C6: =PFP!F6 -> Codevasf (Sede) | F6: =PFP!J6 -> maio/2022 | J6: 2022-05-01
A7: DISCRIMINAÇÃO | E7: VALORES
E8: % | F8: R$
A9: A | B9: ENCARGOS SOCIAIS BÁSICOS | E9: =ROUND(SUM(E10:E18),4) -> 0.2 | F9: =ROUND(E9*PFP!$H$26,2) -> 117619.56
A10: A1 | B10: INSS | E10: 0.2 | F10: =ROUND(E10*PFP!$H$26,2) -> 117619.56
A11: A2 | B11: SESI | E11: 0 | F11: =ROUND(E11*PFP!$H$26,2) -> 0
A12: A3 | B12: SENAI | E12: 0 | F12: =ROUND(E12*PFP!$H$26,2) -> 0
A13: A4 | B13: INCRA | E13: 0 | F13: =ROUND(E13*PFP!$H$26,2) -> 0
A14: A5 | B14: SEBRAI | E14: 0 | F14: =ROUND(E14*PFP!$H$26,2) -> 0
A15: A6 | B15: Salário Educação | E15: 0 | F15: =ROUND(E15*PFP!$H$26,2) -> 0
A16: A7 | B16: Seguro contra acidentes de Trabalho | E16: 0 | F16: =ROUND(E16*PFP!$H$26,2) -> 0
A17: A8 | B17: FGTS | E17: 0 | F17: =ROUND(E17*PFP!$H$26,2) -> 0
A18: A9 | B18: SECONCI | E18: 0 | F18: =ROUND(E18*PFP!$H$26,2) -> 0
A19: B | B19: ENCARGOS SOCIAIS QUE RECEBEM INCIDÊNCIA DE "A" | E19: =ROUND(SUM(E20:E29),4) -> 0 | F19: =ROUND(E19*PFP!$H$26,2) -> 0
A20: B1 | B20: Repouso Semanal Remunerado | E20: 0 | F20: =ROUND(E20*PFP!$H$26,2) -> 0
A21: B2 | B21: Feriádos | E21: 0 | F21: =ROUND(E21*PFP!$H$26,2) -> 0
A22: B3 | B22: Auxílio - Enfermidade | E22: 0 | F22: =ROUND(E22*PFP!$H$26,2) -> 0
A23: B4 | B23: 13º Salário | E23: 0 | F23: =ROUND(E23*PFP!$H$26,2) -> 0
A24: B5 | B24: Licença Paternidade | E24: 0 | F24: =ROUND(E24*PFP!$H$26,2) -> 0
A25: B6 | B25: Faltas Justificadas | E25: 0 | F25: =ROUND(E25*PFP!$H$26,2) -> 0
A26: B7 | B26: Dias de Chuvas | E26: 0 | F26: =ROUND(E26*PFP!$H$26,2) -> 0
A27: B8 | B27: Auxílio Acidente de Trabalho | E27: 0 | F27: =ROUND(E27*PFP!$H$26,2) -> 0
A28: B9 | B28: Férias Gozadas | E28: 0 | F28: =ROUND(E28*PFP!$H$26,2) -> 0
A29: B10 | B29: Salário Maternidade | E29: 0 | F29: =ROUND(E29*PFP!$H$26,2) -> 0
A30: C | B30: ENCARGOS SOCIAIS QUE NÃO RECEBEM INCIDÊNCIA DE "A" | E30: =ROUND(SUM(E31:E35),4) -> 0 | F30: =ROUND(E30*PFP!$H$26,2) -> 0
A31: C1 | B31: Aviso Prévio Indenizado | E31: 0 | F31: =ROUND(E31*PFP!$H$26,2) -> 0
A32: C2 | B32: Aviso Prévio Trabalhado | E32: 0 | F32: =ROUND(E32*PFP!$H$26,2) -> 0
A33: C3 | B33: Férias Indenizadas | E33: 0 | F33: =ROUND(E33*PFP!$H$26,2) -> 0
A34: C4 | B34: Depósito Rescisão Sem Justa Causa | E34: 0 | F34: =ROUND(E34*PFP!$H$26,2) -> 0
A35: C5 | B35: Indenização Adicional | E35: 0 | F35: =ROUND(E35*PFP!$H$26,2) -> 0
A36: D | B36: REINCIDÊNCIAS | E36: =ROUND(SUM(E37:E38),4) -> 0 | F36: =ROUND(E36*PFP!$H$26,2) -> 0
A37: D1 | B37: Reincidência de "A" sobre "B" | E37: =ROUND(E9*E19,4) -> 0 | F37: =ROUND(E37*PFP!$H$26,2) -> 0
A38: D2 | B38: Reincidência de "A" sobre Aviso Prévio Trabalhado e reincidência do FGTS sobre Aviso Prévio Indenizado | E38: =ROUND(E10*E20,4) -> 0 | F38: =ROUND(E38*PFP!$H$26,2) -> 0
A39: K1 | B39: ENCARGOS SOCIAIS | E39: =ROUND(E9+E19+E30+E36,4) -> 0.2 | F39: =ROUND(E39*PFP!$H$26,2) -> 117619.56
A40: Kb | B40: TAXA DE RESSARCIMENTO DE DESPESAS E ENCARGOS SOBRE MO SV | E40: =ROUND((1+E39+PFP3_FatorKc!E15)*(1+PFP3_FatorKc!E14)*(1+PFP3_FatorKc!E10),4) -> 1.6953
A41: NOME DO INFORMANTE: | E41: QUALIFICAÇÃO
A43: ASSINATURA: | E43: DATA:
A45: OBSERVAÇÃO:
A46: 1 - DISCRIMINAR OS ENCARGOS SOCIAIS COM SEUS RESPECTIVOS PERCENTUAS TOTALIZANDO OS MESMOS.
A47: 2 - APLICAR O % TOTAL P/ CALCULAR OS E. SOCIAIS INCIDENTES NA MÃO-DE-OBRA SEM VÍNCULO PERMANENTE
A48: Kb - Taxa de Ressarcimento de Despesas e Encargos sobre a Mão de Obra SEM VINCULO (incide apenas no Insumo Codigo M.O.)
A49: Kb = (1 + K1 + K2) x (1 + K3) x (1 + K4)

Sheet PFP3_FatorKc
A1: DESPESAS FISCAIS E CUSTOS DIVERSOS: Kc | F1: CODIGO:
F2: PFP-3
A3: NOME DA CONSULTORA:
A5: PROJETO: | C5: CONTRATANTE: | F5: =PFP!J5 -> BASE:
A6: =PFP!A6 -> Estudo de Viabilidade Técnica, Econômica e Ambiental e Anteprojeto da Ponte da Baía de São Marcos, no município de São Luís/MA | C6: =PFP!F6 -> Codevasf (Sede) | F6: =PFP!J6 -> maio/2022 | J6: 2022-05-01
A7: DISCRIMINAÇÃO 1 | D7: VALORES
D8: % preço | E8: % custo | F8: R$
A9: K4 | B9: DESPESAS FISCAIS | D9: K' (%)2 | E9: K (%)3
D10: =ROUND(D11+D12+D13,4) -> 0.124 | E10: =ROUND(E11+E12+E13,4) -> 0.1416 | F10: =E10*SUM((PFP!$J$11+PFP!$J$12+PFP!$J$15+PFP!$J$16)*(1+PFP2.1_FatorKa!$E$39)+((PFP!$J$8+PFP!$J$10)*(1+PFP2.2_FatorKb!$E$39))+(PFP!$J$17+PFP!$J$18+PFP!$J$19+PFP!$J$20+PFP!$J$21+PFP!$J$22+PFP!$J$23)+PFP3_FatorKc!$F$15) -> 110885.0932
A11: 1 | B11: ISS | D11: 0.05 | E11: =ROUND((1/(1-$D$10))*D11,4) -> 0.0571 | F11: =E11*SUM((PFP!$J$11+PFP!$J$12+PFP!$J$15+PFP!$J$16)*(1+PFP2.1_FatorKa!$E$39)+((PFP!$J$8+PFP!$J$10)*(1+PFP2.2_FatorKb!$E$39))+(PFP!$J$17+PFP!$J$18+PFP!$J$19+PFP!$J$20+PFP!$J$21+PFP!$J$22+PFP!$J$23)+PFP3_FatorKc!$F$15) -> 44714.2572
A12: 2 | B12: PIS - aliquota efetiva com percentual-desconto de 20% | D12: 0.0132 | E12: =ROUND((1/(1-$D$10))*D12,4) -> 0.0151 | F12: =E12*SUM((PFP!$J$11+PFP!$J$12+PFP!$J$15+PFP!$J$16)*(1+PFP2.1_FatorKa!$E$39)+((PFP!$J$8+PFP!$J$10)*(1+PFP2.2_FatorKb!$E$39))+(PFP!$J$17+PFP!$J$18+PFP!$J$19+PFP!$J$20+PFP!$J$21+PFP!$J$22+PFP!$J$23)+PFP3_FatorKc!$F$15) -> 11824.61092
A13: 3 | B13: COFINS - aliquota efetiva com percentual-desconto de 20% | D13: 0.0608 | E13: =ROUND((1/(1-$D$10))*D13,4) -> 0.0694 | F13: =E13*SUM((PFP!$J$11+PFP!$J$12+PFP!$J$15+PFP!$J$16)*(1+PFP2.1_FatorKa!$E$39)+((PFP!$J$8+PFP!$J$10)*(1+PFP2.2_FatorKb!$E$39))+(PFP!$J$17+PFP!$J$18+PFP!$J$19+PFP!$J$20+PFP!$J$21+PFP!$J$22+PFP!$J$23)+PFP3_FatorKc!$F$15) -> 54346.22504
A14: K3 | B14: REMUNERAÇÃO DA EMPRESA (LUCRO) | E14: 0.1 | F14: =E14*SUM((PFP!$J$11+PFP!$J$12+PFP!$J$15+PFP!$J$16)*(1+PFP2.1_FatorKa!$E$39)+((PFP!$J$8+PFP!$J$10)*(1+PFP2.2_FatorKb!$E$39))+(PFP!$J$17+PFP!$J$18+PFP!$J$19+PFP!$J$20+PFP!$J$21+PFP!$J$22+PFP!$J$23)+PFP3_FatorKc!$F$15) -> 78308.68162
A15: K2 | B15: CUSTOS DA ADMINISTRAÇÃO CENTRAL | E15: =ROUND(SUM(E16:E18),4) -> 0.15 | F15: =ROUND(E15*(PFP!$H$26),2) -> 88214.67
A16: 4 | B16: Custos da administração central da empresa (diretoria, pessoal técnico de apoio e pessoal administrativo não diretamente vinculado à prestação dos serviços) | E16: 0.1 | F16: =ROUND(E16*(PFP!$H$26),2) -> 58809.78
A17: 5 | B17: Outras despesas que afetam o custo de produção como treinamento, biblioteca, programa de qualidade, programa de benefícios, auditoria interna e externa | E17: 0.03 | F17: =ROUND(E17*(PFP!$H$26),2) -> 17642.93
A18: 6 | B18: Despesas fixas e variaveis com patrimônio, aluguéis, comunicação, manutenção e transporte não diretamente relacionados com o custo direto dos serviços | E18: 0.02 | F18: =ROUND(E18*(PFP!$H$26),2) -> 11761.96
A19: Kc | B19: TAXA RESSARCIMENTO DE DESPESAS SOBRE CUSTOS DIVERSOS | E19: =ROUND((1+E14)*(1+E10),4) -> 1.2558
A20: NOME DO INFORMANTE: | E20: QUALIFICAÇÃO:
A22: ASSINATURA: | E22: DATA:
A24: Observação:
A25: 1 - RELACIONAR OS CUSTOS DE ADMINISTRAÇÃO COM RESPECTIVOS PERCENTUAIS INCIDENTES NA MÃO -DE-OBRA
A26: 1 - DISCRIMINAR OS TRIBUTOS QUE INCIDEM SOBRE OS CUSTOS DA PRESTAÇÃO DOS SERVIÇOS
A27: 2 - K4 = INDICAR % DE CADA TRIBUTO E A SOMA DOS MESMOS
A28: 3 - PIS e COFINS, Regime de Incidencia Acumulativa ou em Regime de Incidencia Não Acumulativa de acordo com a forma de apuração do lucro no IRPJ. APRESENTAR COMPROVANTES de aproveitamento de créditos tributários dos últimos 12 meses em caso de aplicação de "percentual de desconto".
A29: 4 - AS DESPESAS FISCAIS (K4) INCIDEM SOBRE O TOTAL DA FATURA E NÃO SOBRE OS CUSTOS INCORRIDOS,
A30: DEVENDO SER CALCULADO O K4' APLICANDO-SE A SEGUINTE FÓRMULA:
A31: K4' = { [ 1 / ( 1 - K4) ] - 1 } x 100
A32: =CONCATENATE(" K4' = { [ 1 / ( 1 - ",D10," ) ] - 1 } x 100") -> K4' = { [ 1 / ( 1 - 0,124 ) ] - 1 } x 100
A33: Kc - Taxa de Ressarcimento de Despesas sobre Custos Diversos (incide sobre os Insumos Codigo DP e ME)
A34: Kc = (1 + K3) x (1 + K4)
A35: K2 - Incide sobre o Custo Total (CT) da Mão de Obra (MO)
A36: K3 - Incide sobre o Custo Total (CT) Mão de Obra com encargos (MO x Ka ou Kb), demais Custos (DP e EQ), e Custos da Administração Central (K2)
A37: K4 - Incide sobre o Custo Total (CT) Mão de Obra com encargos (MO x Ka ou Kb), demais Custos (DP e EQ), e Custos da Administração Central (K2) e Lucro (K3)

Sheet CRO1_Ins-Pro
A1: INSUMOS POR ETAPA/PRODUTO | G1: CODIGO:
G2: CRO-1
A3: Cod. | B3: Categoria / Insumo | C3: Uni | D3: Qde | E3: CUD | F3: PU | G3: FatorK | H3: 1. EVTEA | I3: 2. Anteprojeto | J3: Rel. Final
A4: P0 | B4: Engenheiro Sênior (Coordenador) | C4: mês | D4: =SUM(H4:I4) -> 8 | E4: =PFP!G8 -> 16871.01 | F4: =ROUND(E4*G4,2) -> 39451.17 | G4: =PFP!I8 -> 2.3384 | H4: ='CRO2_Ins-Mes'!E25 -> 5 | I4: ='CRO2_Ins-Mes'!E42 -> 3
A5: C | B5: Consultor | C5: mês | D5: =SUM(H5:I5) -> 1 | E5: =PFP!G9 -> 20245.21 | F5: 34321.7 | G5: =PFP!I9 -> 1.6953 | H5: ='CRO2_Ins-Mes'!E26 -> 1 | I5: ='CRO2_Ins-Mes'!E43 -> 0
A6: P1 | B6: Engenheiro Sênior | C6: mês | D6: 12 | E6: =PFP!G10 -> 14169.06 | F6: 33132.93 | G6: =PFP!I10 -> 2.3384 | H6: ='CRO2_Ins-Mes'!E27 -> 7 | I6: ='CRO2_Ins-Mes'!E44 -> 5
A7: P2 | B7: Engenheiro Pleno | C7: mês | D7: 12 | E7: =PFP!G11 -> 10767.48 | F7: 25178.68 | G7: =PFP!I11 -> 2.3384 | H7: ='CRO2_Ins-Mes'!E28 -> 8 | I7: ='CRO2_Ins-Mes'!E45 -> 4
A8: P3 | B8: Engenheiro Júnior | C8: mês | D8: 3 | E8: =PFP!G12 -> 10302 | F8: 24090.2 | G8: =PFP!I12 -> 2.3384 | H8: ='CRO2_Ins-Mes'!E29 -> 2 | I8: ='CRO2_Ins-Mes'!E46 -> 1
A9: T1 | B9: Técnico Sênior | C9: mês | D9: 9 | E9: =PFP!G13 -> 4012.52 | F9: =ROUND(E9*G9,2) -> 9382.88 | G9: =PFP!I13 -> 2.3384 | H9: ='CRO2_Ins-Mes'!E30 -> 5 | I9: ='CRO2_Ins-Mes'!E47 -> 4
A10: T2 | B10: Técnico Pleno | C10: mês | D10: 9 | E10: =PFP!G14 -> 2930.24 | F10: 6852.07 | G10: =PFP!I14 -> 2.3384 | H10: ='CRO2_Ins-Mes'!E31 -> 5 | I10: ='CRO2_Ins-Mes'!E48 -> 4
A11: T3 | B11: Técnico Junior | C11: mês | D11: 9 | E11: =PFP!G15 -> 2260.39 | F11: 5285.7 | G11: =PFP!I15 -> 2.3384 | H11: ='CRO2_Ins-Mes'!E32 -> 5 | I11: ='CRO2_Ins-Mes'!E49 -> 4
A12: A1 | B12: Administrativo (Secretariado) | C12: dia | D12: 0 | E12: =PFP!G16 -> 3134.86 | F12: 7330.56 | G12: =PFP!I16 -> 2.3384 | H12: ='CRO2_Ins-Mes'!E33 -> 0 | I12: ='CRO2_Ins-Mes'!E50 -> 0
A13: V1 | B13: Diárias | C13: dia | D13: 40 | E13: =PFP!G17 -> 132 | F13: 165.77 | G13: =PFP!I17 -> 1.2558 | H13: ='CRO2_Ins-Mes'!E34 -> 27 | I13: ='CRO2_Ins-Mes'!E51 -> 13
A14: V2 | B14: Aluguel Hatch 1.6 flex s/ Motorista | C14: un | D14: 2 | E14: =PFP!G18 -> 3259.34 | F14: 4093.08 | G14: =PFP!I18 -> 1.2558 | H14: ='CRO2_Ins-Mes'!E35 -> 1 | I14: ='CRO2_Ins-Mes'!E52 -> 1
A15: V4 | B15: Passagens Aéreas (ida e volta) | C15: un | D15: 8 | E15: =PFP!G19 -> 469 | F15: 588.97 | G15: =PFP!I19 -> 1.2558 | H15: ='CRO2_Ins-Mes'!E36 -> 6 | I15: ='CRO2_Ins-Mes'!E53 -> 2
A16: M1 | B16: Pen Drive 16 Gb | C16: un | D16: 2 | E16: =PFP!G20 -> 21.9 | F16: 27.5 | G16: =PFP!I20 -> 1.2558 | H16: ='CRO2_Ins-Mes'!E37 -> 1 | I16: ='CRO2_Ins-Mes'!E54 -> 1
A17: M2 | B17: HD Externo 2 Tb | C17: un | D17: 2 | E17: =PFP!G21 -> 262.92 | F17: 330.17 | G17: =PFP!I21 -> 1.2558 | H17: ='CRO2_Ins-Mes'!E38 -> 1 | I17: ='CRO2_Ins-Mes'!E55 -> 1
A18: M3 | B18: Relatório Parcial | C18: un | D18: 25 | E18: =PFP!G22 -> 33.35 | F18: 41.88 | G18: =PFP!I22 -> 1.2558 | H18: ='CRO2_Ins-Mes'!E39 -> 15 | I18: ='CRO2_Ins-Mes'!E56 -> 10
A19: M4 | B19: Relatório Final | C19: un | D19: 2 | E19: =PFP!G23 -> 1478.8 | F19: 1857.08 | G19: =PFP!I23 -> 1.2558 | H19: ='CRO2_Ins-Mes'!E40 -> 1 | I19: ='CRO2_Ins-Mes'!E57 -> 1
A20: TP | B20: Total Serviços Cartográficos | C20: un | D20: 1 | E20: =PFP!G24 -> - | F20: =PFP!H24 -> 357748.68 | G20: =PFP!I24 -> - | H20: 0 | I20: 1
A21: GT | B21: Total Serviços Geotécnicos | C21: um | D21: 1 | E21: =PFP!G25 -> - | F21: =PFP!H25 -> 908858.53 | G21: =PFP!I25 -> - | H21: 0 | I21: 1
A22: TOTAL | B22: VALOR POR PRODUTO | C22: R$ | D22: =SUM(H22:J22) -> 2607239.26 | H22: =SUMPRODUCT(H4:H21,$F$4:$F$21)*0.8 -> 668533.432 | I22: =SUMPRODUCT(I4:I21,$F$4:$F$21)*0.8 -> 1417257.976 | J22: =(H22/0.8+I22/0.8)*0.2 -> 521447.852
C23: % | D23: =SUM(H23:J23) -> 1 | H23: =ROUND(H22/$D$22,5) -> 0.25641 | I23: =ROUND(I22/$D$22,5) -> 0.54359 | J23: =ROUND(J22/$D$22,5) -> 0.2
A24: OBSERVAÇÃO:
A25: P - Profissionais nível superior nas áreas de Engenharia, Química, Arquitetura, Agronomia e Veterinária, conforme disposições da Lei 4.950-A/66
A26: S - Profissionais de nível superior nas demais áreas de atuação, incluindo Arqueólogo, Biólogo, Geógrafo e Socioólogo
A27: T - Profissionais de nível médio técnico nas diversas áreas de atuação
A28: A - Profissionais de nível médio de apoio técnico-administrativo

Sheet CRO2_Ins-Mes
A1: CRONOGRAMA SIMPLIFICADO
A3: Cod1 | B3: Cod2 | C3: Produtos | D3: Uni | E3: Qde | F3: 1 | G3: 2 | H3: 3 | I3: 4 | J3: 5 | K3: 6 | L3: 7 | M3: 8 | N3: 9 | O3: 10 | P3: 11 | Q3: 12 | R3: 11 | S3: 11 | T3: 11 | U3: 11 | V3: 11 | W3: 11 | X3: 11 | Y3: 11 | Z3: 11 | AA3: 11 | AB3: 11 | AC3: 11 | AD3: 11 | AE3: 11 | AF3: 11 | AG3: 11 | AH3: 11 | AI3: 11 | AJ3: 11 | AK3: 11 | AL3: 11 | AM3: 11 | AN3: 11 | AO3: 11 | AP3: 11 | AQ3: 11 | AR3: 11 | AS3: 11 | AT3: 11 | AU3: 11 | AV3: 11 | AW3: 11 | AX3: 11 | AY3: 11 | AZ3: 11 | BA3: 11 | BB3: 11 | BC3: 11 | BD3: 11 | BE3: 11 | BF3: 11 | BG3: 11 | BH3: 11 | BI3: 11 | BJ3: 11 | BK3: 11 | BL3: 11 | BM3: 11 | BN3: 11 | BO3: 11 | BP3: 11 | BQ3: 11 | BR3: 11 | BS3: 11 | BT3: 11 | BU3: 11 | BV3: 11 | BW3: 11 | BX3: 11 | BY3: 11 | BZ3: 11 | CA3: 11 | CB3: 11 | CC3: 11 | CD3: 11 | CE3: 11 | CF3: 11 | CG3: 11 | CH3: 11 | CI3: 11 | CJ3: 11 | CK3: 11 | CL3: 11 | CM3: 11 | CN3: 11 | CO3: 11 | CP3: 11 | CQ3: 11 | CR3: 11 | CS3: 11 | CT3: 11 | CU3: 11 | CV3: 11 | CW3: 11 | CX3: 11 | CY3: 11 | CZ3: 11 | DA3: 11 | DB3: 11 | DC3: 11 | DD3: 11 | DE3: 11 | DF3: 11 | DG3: 11 | DH3: 11 | DI3: 11 | DJ3: 11 | DK3: 11 | DL3: 11 | DM3: 11 | DN3: 11 | DO3: 11 | DP3: 11 | DQ3: 11 | DR3: 11 | DS3: 11 | DT3: 11 | DU3: 11 | DV3: 11 | DW3: 11 | DX3: 11 | DY3: 11 | DZ3: 11 | EA3: 11 | EB3: 11 | EC3: 11 | ED3: 11 | EE3: 11 | EF3: 11 | EG3: 11 | EH3: 11 | EI3: 11 | EJ3: 11 | EK3: 11 | EL3: 11 | EM3: 11 | EN3: 11 | EO3: 11 | EP3: 11 | EQ3: 11 | ER3: 11 | ES3: 11 | ET3: 11 | EU3: 11 | EV3: 11 | EW3: 11 | EX3: 11 | EY3: 11 | EZ3: 11 | FA3: 11 | FB3: 11 | FC3: 11 | FD3: 11 | FE3: 11 | FF3: 11 | FG3: 11 | FH3: 11 | FI3: 11 | FJ3: 11 | FK3: 11 | FL3: 11 | FM3: 11 | FN3: 11 | FO3: 11 | FP3: 11 | FQ3: 11 | FR3: 11 | FS3: 11 | FT3: 11 | FU3: 11 | FV3: 11 | FW3: 11 | FX3: 11 | FY3: 11 | FZ3: 11 | GA3: 11 | GB3: 11 | GC3: 11 | GD3: 11 | GE3: 11 | GF3: 11 | GG3: 11 | GH3: 11 | GI3: 11 | GJ3: 11 | GK3: 11 | GL3: 11 | GM3: 11 | GN3: 11 | GO3: 11 | GP3: 11 | GQ3: 11 | GR3: 11 | GS3: 11 | GT3: 11 | GU3: 11 | GV3: 11 | GW3: 11 | GX3: 11 | GY3: 11 | GZ3: 11 | HA3: 11 | HB3: 11 | HC3: 11 | HD3: 11 | HE3: 11 | HF3: 11 | HG3: 11 | HH3: 11 | HI3: 11 | HJ3: 11 | HK3: 11 | HL3: 11 | HM3: 11 | HN3: 11 | HO3: 11 | HP3: 11 | HQ3: 11 | HR3: 11 | HS3: 11 | HT3: 11 | HU3: 11 | HV3: 11 | HW3: 11 | HX3: 11 | HY3: 11 | HZ3: 11 | IA3: 11 | IB3: 11 | IC3: 11 | ID3: 11 | IE3: 11 | IF3: 11 | IG3: 11 | IH3: 11 | II3: 11 | IJ3: 11 | IK3: 11 | IL3: 11 | IM3: 11 | IN3: 11 | IO3: 11 | IP3: 11 | IQ3: 11 | IR3: 11 | IS3: 11 | IT3: 11 | IU3: 11 | IV3: 11 | IW3: 11 | IX3: 11 | IY3: 11 | IZ3: 11 | JA3: 11 | JB3: 11 | JC3: 11 | JD3: 11 | JE3: 11 | JF3: 11 | JG3: 11 | JH3: 11 | JI3: 11 | JJ3: 11 | JK3: 11 | JL3: 11 | JM3: 11 | JN3: 11 | JO3: 11 | JP3: 11 | JQ3: 11 | JR3: 11 | JS3: 11 | JT3: 11 | JU3: 11 | JV3: 11 | JW3: 11 | JX3: 11 | JY3: 11 | JZ3: 11 | KA3: 11 | KB3: 11 | KC3: 11 | KD3: 11 | KE3: 11 | KF3: 11 | KG3: 11 | KH3: 11 | KI3: 11 | KJ3: 11 | KK3: 11 | KL3: 11 | KM3: 11 | KN3: 11 | KO3: 11 | KP3: 11 | KQ3: 11 | KR3: 11 | KS3: 11 | KT3: 11 | KU3: 11 | KV3: 11 | KW3: 11 | KX3: 11 | KY3: 11 | KZ3: 11 | LA3: 11 | LB3: 11 | LC3: 11 | LD3: 11 | LE3: 11 | LF3: 11 | LG3: 11 | LH3: 11 | LI3: 11 | LJ3: 11 | LK3: 11 | LL3: 11 | LM3: 11 | LN3: 11 | LO3: 11 | LP3: 11 | LQ3: 11 | LR3: 11 | LS3: 11 | LT3: 11 | LU3: 11 | LV3: 11 | LW3: 11 | LX3: 11 | LY3: 11 | LZ3: 11 | MA3: 11 | MB3: 11 | MC3: 11 | MD3: 11 | ME3: 11 | MF3: 11 | MG3: 11 | MH3: 11 | MI3: 11 | MJ3: 11 | MK3: 11 | ML3: 11 | MM3: 11 | MN3: 11 | MO3: 11 | MP3: 11 | MQ3: 11 | MR3: 11 | MS3: 11 | MT3: 11 | MU3: 11 | MV3: 11 | MW3: 11 | MX3: 11 | MY3: 11 | MZ3: 11 | NA3: 11 | NB3: 11 | NC3: 11 | ND3: 11 | NE3: 11 | NF3: 11 | NG3: 11 | NH3: 11 | NI3: 11 | NJ3: 11 | NK3: 11 | NL3: 11 | NM3: 11 | NN3: 11 | NO3: 11 | NP3: 11 | NQ3: 11 | NR3: 11 | NS3: 11 | NT3: 11 | NU3: 11 | NV3: 11 | NW3: 11 | NX3: 11 | NY3: 11 | NZ3: 11 | OA3: 11 | OB3: 11 | OC3: 11 | OD3: 11 | OE3: 11 | OF3: 11 | OG3: 11 | OH3: 11 | OI3: 11 | OJ3: 11 | OK3: 11 | OL3: 11 | OM3: 11 | ON3: 11 | OO3: 11 | OP3: 11 | OQ3: 11 | OR3: 11 | OS3: 11 | OT3: 11 | OU3: 11 | OV3: 11 | OW3: 11 | OX3: 11 | OY3: 11 | OZ3: 11 | PA3: 11 | PB3: 11 | PC3: 11 | PD3: 11 | PE3: 11 | PF3: 11 | PG3: 11 | PH3: 11 | PI3: 11 | PJ3: 11 | PK3: 11 | PL3: 11 | PM3: 11 | PN3: 11 | PO3: 11 | PP3: 11 | PQ3: 11 | PR3: 11 | PS3: 11 | PT3: 11 | PU3: 11 | PV3: 11 | PW3: 11 | PX3: 11 | PY3: 11 | PZ3: 11 | QA3: 11 | QB3: 11 | QC3: 11 | QD3: 11 | QE3: 11 | QF3: 11 | QG3: 11 | QH3: 11 | QI3: 11 | QJ3: 11 | QK3: 11 | QL3: 11 | QM3: 11 | QN3: 11 | QO3: 11 | QP3: 11 | QQ3: 11 | QR3: 11 | QS3: 11 | QT3: 11 | QU3: 11 | QV3: 11 | QW3: 11 | QX3: 11 | QY3: 11 | QZ3: 11 | RA3: 11 | RB3: 11 | RC3: 11 | RD3: 11 | RE3: 11 | RF3: 11 | RG3: 11 | RH3: 11 | RI3: 11 | RJ3: 11 | RK3: 11 | RL3: 11 | RM3: 11 | RN3: 11 | RO3: 11 | RP3: 11 | RQ3: 11 | RR3: 11 | RS3: 11 | RT3: 11 | RU3: 11 | RV3: 11 | RW3: 11 | RX3: 11 | RY3: 11 | RZ3: 11 | SA3: 11 | SB3: 11 | SC3: 11 | SD3: 11 | SE3: 11 | SF3: 11 | SG3: 11 | SH3: 11 | SI3: 11 | SJ3: 11 | SK3: 11 | SL3: 11 | SM3: 11 | SN3: 11 | SO3: 11 | SP3: 11 | SQ3: 11 | SR3: 11 | SS3: 11 | ST3: 11 | SU3: 11 | SV3: 11 | SW3: 11 | SX3: 11 | SY3: 11 | SZ3: 11 | TA3: 11 | TB3: 11 | TC3: 11 | TD3: 11 | TE3: 11 | TF3: 11 | TG3: 11 | TH3: 11 | TI3: 11 | TJ3: 11 | TK3: 11 | TL3: 11 | TM3: 11 | TN3: 11 | TO3: 11 | TP3: 11 | TQ3: 11 | TR3: 11 | TS3: 11 | TT3: 11 | TU3: 11 | TV3: 11 | TW3: 11 | TX3: 11 | TY3: 11 | TZ3: 11 | UA3: 11 | UB3: 11 | UC3: 11 | UD3: 11 | UE3: 11 | UF3: 11 | UG3: 11 | UH3: 11 | UI3: 11 | UJ3: 11 | UK3: 11 | UL3: 11 | UM3: 11 | UN3: 11 | UO3: 11 | UP3: 11 | UQ3: 11 | UR3: 11 | US3: 11 | UT3: 11 | UU3: 11 | UV3: 11 | UW3: 11 | UX3: 11 | UY3: 11 | UZ3: 11 | VA3: 11 | VB3: 11 | VC3: 11 | VD3: 11 | VE3: 11 | VF3: 11 | VG3: 11 | VH3: 11 | VI3: 11 | VJ3: 11 | VK3: 11 | VL3: 11 | VM3: 11 | VN3: 11 | VO3: 11 | VP3: 11 | VQ3: 11 | VR3: 11 | VS3: 11 | VT3: 11 | VU3: 11 | VV3: 11 | VW3: 11 | VX3: 11 | VY3: 11 | VZ3: 11 | WA3: 11 | WB3: 11 | WC3: 11 | WD3: 11 | WE3: 11 | WF3: 11 | WG3: 11 | WH3: 11 | WI3: 11 | WJ3: 11 | WK3: 11 | WL3: 11 | WM3: 11 | WN3: 11 | WO3: 11 | WP3: 11 | WQ3: 11 | WR3: 11 | WS3: 11 | WT3: 11 | WU3: 11 | WV3: 11 | WW3: 11 | WX3: 11 | WY3: 11 | WZ3: 11 | XA3: 11 | XB3: 11 | XC3: 11 | XD3: 11 | XE3: 11 | XF3: 11 | XG3: 11 | XH3: 11 | XI3: 11 | XJ3: 11 | XK3: 11 | XL3: 11 | XM3: 11 | XN3: 11 | XO3: 11 | XP3: 11 | XQ3: 11 | XR3: 11 | XS3: 11 | XT3: 11 | XU3: 11 | XV3: 11 | XW3: 11 | XX3: 11 | XY3: 11 | XZ3: 11 | YA3: 11 | YB3: 11 | YC3: 11 | YD3: 11 | YE3: 11 | YF3: 11 | YG3: 11 | YH3: 11 | YI3: 11 | YJ3: 11 | YK3: 11 | YL3: 11 | YM3: 11 | YN3: 11 | YO3: 11 | YP3: 11 | YQ3: 11 | YR3: 11 | YS3: 11 | YT3: 11 | YU3: 11 | YV3: 11 | YW3: 11 | YX3: 11 | YY3: 11 | YZ3: 11 | ZA3: 11 | ZB3: 11 | ZC3: 11 | ZD3: 11 | ZE3: 11 | ZF3: 11 | ZG3: 11 | ZH3: 11 | ZI3: 11 | ZJ3: 11 | ZK3: 11 | ZL3: 11 | ZM3: 11 | ZN3: 11 | ZO3: 11 | ZP3: 11 | ZQ3: 11 | ZR3: 11 | ZS3: 11 | ZT3: 11 | ZU3: 11 | ZV3: 11 | ZW3: 11 | ZX3: 11 | ZY3: 11 | ZZ3: 11 | AAA3: 11 | AAB3: 11 | AAC3: 11 | AAD3: 11 | AAE3: 11 | AAF3: 11 | AAG3: 11 | AAH3: 11 | AAI3: 11 | AAJ3: 11 | AAK3: 11 | AAL3: 11 | AAM3: 11 | AAN3: 11 | AAO3: 11 | AAP3: 11 | AAQ3: 11 | AAR3: 11 | AAS3: 11 | AAT3: 11 | AAU3: 11 | AAV3: 11 | AAW3: 11 | AAX3: 11 | AAY3: 11 | AAZ3: 11 | ABA3: 11 | ABB3: 11 | ABC3: 11 | ABD3: 11 | ABE3: 11 | ABF3: 11 | ABG3: 11 | ABH3: 11 | ABI3: 11 | ABJ3: 11 | ABK3: 11 | ABL3: 11 | ABM3: 11 | ABN3: 11 | ABO3: 11 | ABP3: 11 | ABQ3: 11 | ABR3: 11 | ABS3: 11 | ABT3: 11 | ABU3: 11 | ABV3: 11 | ABW3: 11 | ABX3: 11 | ABY3: 11 | ABZ3: 11 | ACA3: 11 | ACB3: 11 | ACC3: 11 | ACD3: 11 | ACE3: 11 | ACF3: 11 | ACG3: 11 | ACH3: 11 | ACI3: 11 | ACJ3: 11 | ACK3: 11 | ACL3: 11 | ACM3: 11 | ACN3: 11 | ACO3: 11 | ACP3: 11 | ACQ3: 11 | ACR3: 11 | ACS3: 11 | ACT3: 11 | ACU3: 11 | ACV3: 11 | ACW3: 11 | ACX3: 11 | ACY3: 11 | ACZ3: 11 | ADA3: 11 | ADB3: 11 | ADC3: 11 | ADD3: 11 | ADE3: 11 | ADF3: 11 | ADG3: 11 | ADH3: 11 | ADI3: 11 | ADJ3: 11 | ADK3: 11 | ADL3: 11 | ADM3: 11 | ADN3: 11 | ADO3: 11 | ADP3: 11 | ADQ3: 11 | ADR3: 11 | ADS3: 11 | ADT3: 11 | ADU3: 11 | ADV3: 11 | ADW3: 11 | ADX3: 11 | ADY3: 11 | ADZ3: 11 | AEA3: 11 | AEB3: 11 | AEC3: 11 | AED3: 11 | AEE3: 11 | AEF3: 11 | AEG3: 11 | AEH3: 11 | AEI3: 11 | AEJ3: 11 | AEK3: 11 | AEL3: 11 | AEM3: 11 | AEN3: 11 | AEO3: 11 | AEP3: 11 | AEQ3: 11 | AER3: 11 | AES3: 11 | AET3: 11 | AEU3: 11 | AEV3: 11 | AEW3: 11 | AEX3: 11 | AEY3: 11 | AEZ3: 11 | AFA3: 11 | AFB3: 11 | AFC3: 11 | AFD3: 11 | AFE3: 11 | AFF3: 11 | AFG3: 11 | AFH3: 11 | AFI3: 11 | AFJ3: 11 | AFK3: 11 | AFL3: 11 | AFM3: 11 | AFN3: 11 | AFO3: 11 | AFP3: 11 | AFQ3: 11 | AFR3: 11 | AFS3: 11 | AFT3: 11 | AFU3: 11 | AFV3: 11 | AFW3: 11 | AFX3: 11 | AFY3: 11 | AFZ3: 11 | AGA3: 11 | AGB3: 11 | AGC3: 11 | AGD3: 11 | AGE3: 11 | AGF3: 11 | AGG3: 11 | AGH3: 11 | AGI3: 11 | AGJ3: 11 | AGK3: 11 | AGL3: 11 | AGM3: 11 | AGN3: 11 | AGO3: 11 | AGP3: 11 | AGQ3: 11 | AGR3: 11 | AGS3: 11 | AGT3: 11 | AGU3: 11 | AGV3: 11 | AGW3: 11 | AGX3: 11 | AGY3: 11 | AGZ3: 11 | AHA3: 11 | AHB3: 11 | AHC3: 11 | AHD3: 11 | AHE3: 11 | AHF3: 11 | AHG3: 11 | AHH3: 11 | AHI3: 11 | AHJ3: 11 | AHK3: 11 | AHL3: 11 | AHM3: 11 | AHN3: 11 | AHO3: 11 | AHP3: 11 | AHQ3: 11 | AHR3: 11 | AHS3: 11 | AHT3: 11 | AHU3: 11 | AHV3: 11 | AHW3: 11 | AHX3: 11 | AHY3: 11 | AHZ3: 11 | AIA3: 11 | AIB3: 11 | AIC3: 11 | AID3: 11 | AIE3: 11 | AIF3: 11 | AIG3: 11 | AIH3: 11 | AII3: 11 | AIJ3: 11 | AIK3: 11 | AIL3: 11 | AIM3: 11 | AIN3: 11 | AIO3: 11 | AIP3: 11 | AIQ3: 11 | AIR3: 11 | AIS3: 11 | AIT3: 11 | AIU3: 11 | AIV3: 11 | AIW3: 11 | AIX3: 11 | AIY3: 11 | AIZ3: 11 | AJA3: 11 | AJB3: 11 | AJC3: 11 | AJD3: 11 | AJE3: 11 | AJF3: 11 | AJG3: 11 | AJH3: 11 | AJI3: 11 | AJJ3: 11 | AJK3: 11 | AJL3: 11 | AJM3: 11 | AJN3: 11 | AJO3: 11 | AJP3: 11 | AJQ3: 11 | AJR3: 11 | AJS3: 11 | AJT3: 11 | AJU3: 11 | AJV3: 11 | AJW3: 11 | AJX3: 11 | AJY3: 11 | AJZ3: 11 | AKA3: 11 | AKB3: 11 | AKC3: 11 | AKD3: 11 | AKE3: 11 | AKF3: 11 | AKG3: 11 | AKH3: 11 | AKI3: 11 | AKJ3: 11 | AKK3: 11 | AKL3: 11 | AKM3: 11 | AKN3: 11 | AKO3: 11 | AKP3: 11 | AKQ3: 11 | AKR3: 11 | AKS3: 11 | AKT3: 11 | AKU3: 11 | AKV3: 11 | AKW3: 11 | AKX3: 11 | AKY3: 11 | AKZ3: 11 | ALA3: 11 | ALB3: 11 | ALC3: 11 | ALD3: 11 | ALE3: 11 | ALF3: 11 | ALG3: 11 | ALH3: 11 | ALI3: 11 | ALJ3: 11 | ALK3: 11 | ALL3: 11 | ALM3: 11 | ALN3: 11 | ALO3: 11 | ALP3: 11 | ALQ3: 11 | ALR3: 11 | ALS3: 11 | ALT3: 11 | ALU3: 11 | ALV3: 11 | ALW3: 11 | ALX3: 11 | ALY3: 11 | ALZ3: 11 | AMA3: 11 | AMB3: 11 | AMC3: 11 | AMD3: 11 | AME3: 11 | AMF3: 11 | AMG3: 11 | AMH3: 11 | AMI3: 11 | AMJ3: 11 | AMK3: 11 | AML3: 11 | AMM3: 11 | AMN3: 11 | AMO3: 11 | AMP3: 11 | AMQ3: 11 | AMR3: 11 | AMS3: 11 | AMT3: 11 | AMU3: 11 | AMV3: 11 | AMW3: 11 | AMX3: 11 | AMY3: 11 | AMZ3: 11 | ANA3: 11 | ANB3: 11 | ANC3: 11 | AND3: 11 | ANE3: 11 | ANF3: 11 | ANG3: 11 | ANH3: 11 | ANI3: 11 | ANJ3: 11 | ANK3: 11 | ANL3: 11 | ANM3: 11 | ANN3: 11 | ANO3: 11 | ANP3: 11 | ANQ3: 11 | ANR3: 11 | ANS3: 11 | ANT3: 11 | ANU3: 11 | ANV3: 11 | ANW3: 11 | ANX3: 11 | ANY3: 11 | ANZ3: 11 | AOA3: 11 | AOB3: 11 | AOC3: 11 | AOD3: 11 | AOE3: 11 | AOF3: 11 | AOG3: 11 | AOH3: 11 | AOI3: 11 | AOJ3: 11 | AOK3: 11 | AOL3: 11 | AOM3: 11 | AON3: 11 | AOO3: 11 | AOP3: 11 | AOQ3: 11 | AOR3: 11 | AOS3: 11 | AOT3: 11 | AOU3: 11 | AOV3: 11 | AOW3: 11 | AOX3: 11 | AOY3: 11 | AOZ3: 11 | APA3: 11 | APB3: 11 | APC3: 11 | APD3: 11 | APE3: 11 | APF3: 11 | APG3: 11 | APH3: 11 | API3: 11 | APJ3: 11 | APK3: 11 | APL3: 11 | APM3: 11 | APN3: 11 | APO3: 11 | APP3: 11 | APQ3: 11 | APR3: 11 | APS3: 11 | APT3: 11 | APU3: 11 | APV3: 11 | APW3: 11 | APX3: 11 | APY3: 11 | APZ3: 11 | AQA3: 11 | AQB3: 11 | AQC3: 11 | AQD3: 11 | AQE3: 11 | AQF3: 11 | AQG3: 11 | AQH3: 11 | AQI3: 11 | AQJ3: 11 | AQK3: 11 | AQL3: 11 | AQM3: 11 | AQN3: 11 | AQO3: 11 | AQP3: 11 | AQQ3: 11 | AQR3: 11 | AQS3: 11 | AQT3: 11 | AQU3: 11 | AQV3: 11 | AQW3: 11 | AQX3: 11 | AQY3: 11 | AQZ3: 11 | ARA3: 11 | ARB3: 11 | ARC3: 11 | ARD3: 11 | ARE3: 11 | ARF3: 11 | ARG3: 11 | ARH3: 11 | ARI3: 11 | ARJ3: 11 | ARK3: 11 | ARL3: 11 | ARM3: 11 | ARN3: 11 | ARO3: 11 | ARP3: 11 | ARQ3: 11 | ARR3: 11 | ARS3: 11 | ART3: 11 | ARU3: 11 | ARV3: 11 | ARW3: 11 | ARX3: 11 | ARY3: 11 | ARZ3: 11 | ASA3: 11 | ASB3: 11 | ASC3: 11 | ASD3: 11 | ASE3: 11 | ASF3: 11 | ASG3: 11 | ASH3: 11 | ASI3: 11 | ASJ3: 11 | ASK3: 11 | ASL3: 11 | ASM3: 11 | ASN3: 11 | ASO3: 11 | ASP3: 11 | ASQ3: 11 | ASR3: 11 | ASS3: 11 | AST3: 11 | ASU3: 11 | ASV3: 11 | ASW3: 11 | ASX3: 11 | ASY3: 11 | ASZ3: 11 | ATA3: 11 | ATB3: 11 | ATC3: 11 | ATD3: 11 | ATE3: 11 | ATF3: 11 | ATG3: 11 | ATH3: 11 | ATI3: 11 | ATJ3: 11 | ATK3: 11 | ATL3: 11 | ATM3: 11 | ATN3: 11 | ATO3: 11 | ATP3: 11 | ATQ3: 11 | ATR3: 11 | ATS3: 11 | ATT3: 11 | ATU3: 11 | ATV3: 11 | ATW3: 11 | ATX3: 11 | ATY3: 11 | ATZ3: 11 | AUA3: 11 | AUB3: 11 | AUC3: 11 | AUD3: 11 | AUE3: 11 | AUF3: 11 | AUG3: 11 | AUH3: 11 | AUI3: 11 | AUJ3: 11 | AUK3: 11 | AUL3: 11 | AUM3: 11 | AUN3: 11 | AUO3: 11 | AUP3: 11 | AUQ3: 11 | AUR3: 11 | AUS3: 11 | AUT3: 11 | AUU3: 11 | AUV3: 11 | AUW3: 11 | AUX3: 11 | AUY3: 11 | AUZ3: 11 | AVA3: 11 | AVB3: 11 | AVC3: 11 | AVD3: 11 | AVE3: 11 | AVF3: 11 | AVG3: 11 | AVH3: 11 | AVI3: 11 | AVJ3: 11 | AVK3: 11 | AVL3: 11 | AVM3: 11 | AVN3: 11 | AVO3: 11 | AVP3: 11 | AVQ3: 11 | AVR3: 11 | AVS3: 11 | AVT3: 11 | AVU3: 11 | AVV3: 11 | AVW3: 11 | AVX3: 11 | AVY3: 11 | AVZ3: 11 | AWA3: 11 | AWB3: 11 | AWC3: 11 | AWD3: 11 | AWE3: 11 | AWF3: 11 | AWG3: 11 | AWH3: 11 | AWI3: 11 | AWJ3: 11 | AWK3: 11 | AWL3: 11 | AWM3: 11 | AWN3: 11 | AWO3: 11 | AWP3: 11 | AWQ3: 11 | AWR3: 11 | AWS3: 11 | AWT3: 11 | AWU3: 11 | AWV3: 11 | AWW3: 11 | AWX3: 11 | AWY3: 11 | AWZ3: 11 | AXA3: 11 | AXB3: 11 | AXC3: 11 | AXD3: 11 | AXE3: 11 | AXF3: 11 | AXG3: 11 | AXH3: 11 | AXI3: 11 | AXJ3: 11 | AXK3: 11 | AXL3: 11 | AXM3: 11 | AXN3: 11 | AXO3: 11 | AXP3: 11 | AXQ3: 11 | AXR3: 11 | AXS3: 11 | AXT3: 11 | AXU3: 11 | AXV3: 11 | AXW3: 11 | AXX3: 11 | AXY3: 11 | AXZ3: 11 | AYA3: 11 | AYB3: 11 | AYC3: 11 | AYD3: 11 | AYE3: 11 | AYF3: 11 | AYG3: 11 | AYH3: 11 | AYI3: 11 | AYJ3: 11 | AYK3: 11 | AYL3: 11 | AYM3: 11 | AYN3: 11 | AYO3: 11 | AYP3: 11 | AYQ3: 11 | AYR3: 11 | AYS3: 11 | AYT3: 11 | AYU3: 11 | AYV3: 11 | AYW3: 11 | AYX3: 11 | AYY3: 11 | AYZ3: 11 | AZA3: 11 | AZB3: 11 | AZC3: 11 | AZD3: 11 | AZE3: 11 | AZF3: 11 | AZG3: 11 | AZH3: 11 | AZI3: 11 | AZJ3: 11 | AZK3: 11 | AZL3: 11 | AZM3: 11 | AZN3: 11 | AZO3: 11 | AZP3: 11 | AZQ3: 11 | AZR3: 11 | AZS3: 11 | AZT3: 11 | AZU3: 11 | AZV3: 11 | AZW3: 11 | AZX3: 11 | AZY3: 11 | AZZ3: 11 | BAA3: 11 | BAB3: 11 | BAC3: 11 | BAD3: 11 | BAE3: 11 | BAF3: 11 | BAG3: 11 | BAH3: 11 | BAI3: 11 | BAJ3: 11 | BAK3: 11 | BAL3: 11 | BAM3: 11 | BAN3: 11 | BAO3: 11 | BAP3: 11 | BAQ3: 11 | BAR3: 11 | BAS3: 11 | BAT3: 11 | BAU3: 11 | BAV3: 11 | BAW3: 11 | BAX3: 11 | BAY3: 11 | BAZ3: 11 | BBA3: 11 | BBB3: 11 | BBC3: 11 | BBD3: 11 | BBE3: 11 | BBF3: 11 | BBG3: 11 | BBH3: 11 | BBI3: 11 | BBJ3: 11 | BBK3: 11 | BBL3: 11 | BBM3: 11 | BBN3: 11 | BBO3: 11 | BBP3: 11 | BBQ3: 11 | BBR3: 11 | BBS3: 11 | BBT3: 11 | BBU3: 11 | BBV3: 11 | BBW3: 11 | BBX3: 11 | BBY3: 11 | BBZ3: 11 | BCA3: 11 | BCB3: 11 | BCC3: 11 | BCD3: 11 | BCE3: 11 | BCF3: 11 | BCG3: 11 | BCH3: 11 | BCI3: 11 | BCJ3: 11 | BCK3: 11 | BCL3: 11 | BCM3: 11 | BCN3: 11 | BCO3: 11 | BCP3: 11 | BCQ3: 11 | BCR3: 11 | BCS3: 11 | BCT3: 11 | BCU3: 11 | BCV3: 11 | BCW3: 11 | BCX3: 11 | BCY3: 11 | BCZ3: 11 | BDA3: 11 | BDB3: 11 | BDC3: 11 | BDD3: 11 | BDE3: 11 | BDF3: 11 | BDG3: 11 | BDH3: 11 | BDI3: 11 | BDJ3: 11 | BDK3: 11 | BDL3: 11 | BDM3: 11 | BDN3: 11 | BDO3: 11 | BDP3: 11 | BDQ3: 11 | BDR3: 11 | BDS3: 11 | BDT3: 11 | BDU3: 11 | BDV3: 11 | BDW3: 11 | BDX3: 11 | BDY3: 11 | BDZ3: 11 | BEA3: 11 | BEB3: 11 | BEC3: 11 | BED3: 11 | BEE3: 11 | BEF3: 11 | BEG3: 11 | BEH3: 11 | BEI3: 11 | BEJ3: 11 | BEK3: 11 | BEL3: 11 | BEM3: 11 | BEN3: 11 | BEO3: 11 | BEP3: 11 | BEQ3: 11 | BER3: 11 | BES3: 11 | BET3: 11 | BEU3: 11 | BEV3: 11 | BEW3: 11 | BEX3: 11 | BEY3: 11 | BEZ3: 11 | BFA3: 11 | BFB3: 11 | BFC3: 11 | BFD3: 11 | BFE3: 11 | BFF3: 11 | BFG3: 11 | BFH3: 11 | BFI3: 11 | BFJ3: 11 | BFK3: 11 | BFL3: 11 | BFM3: 11 | BFN3: 11 | BFO3: 11 | BFP3: 11 | BFQ3: 11 | BFR3: 11 | BFS3: 11 | BFT3: 11 | BFU3: 11 | BFV3: 11 | BFW3: 11 | BFX3: 11 | BFY3: 11 | BFZ3: 11 | BGA3: 11 | BGB3: 11 | BGC3: 11 | BGD3: 11 | BGE3: 11 | BGF3: 11 | BGG3: 11 | BGH3: 11 | BGI3: 11 | BGJ3: 11 | BGK3: 11 | BGL3: 11 | BGM3: 11 | BGN3: 11 | BGO3: 11 | BGP3: 11 | BGQ3: 11 | BGR3: 11 | BGS3: 11 | BGT3: 11 | BGU3: 11 | BGV3: 11 | BGW3: 11 | BGX3: 11 | BGY3: 11 | BGZ3: 11 | BHA3: 11 | BHB3: 11 | BHC3: 11 | BHD3: 11 | BHE3: 11 | BHF3: 11 | BHG3: 11 | BHH3: 11 | BHI3: 11 | BHJ3: 11 | BHK3: 11 | BHL3: 11 | BHM3: 11 | BHN3: 11 | BHO3: 11 | BHP3: 11 | BHQ3: 11 | BHR3: 11 | BHS3: 11 | BHT3: 11 | BHU3: 11 | BHV3: 11 | BHW3: 11 | BHX3: 11 | BHY3: 11 | BHZ3: 11 | BIA3: 11 | BIB3: 11 | BIC3: 11 | BID3: 11 | BIE3: 11 | BIF3: 11 | BIG3: 11 | BIH3: 11 | BII3: 11 | BIJ3: 11 | BIK3: 11 | BIL3: 11 | BIM3: 11 | BIN3: 11 | BIO3: 11 | BIP3: 11 | BIQ3: 11 | BIR3: 11 | BIS3: 11 | BIT3: 11 | BIU3: 11 | BIV3: 11 | BIW3: 11 | BIX3: 11 | BIY3: 11 | BIZ3: 11 | BJA3: 11 | BJB3: 11 | BJC3: 11 | BJD3: 11 | BJE3: 11 | BJF3: 11 | BJG3: 11 | BJH3: 11 | BJI3: 11 | BJJ3: 11 | BJK3: 11 | BJL3: 11 | BJM3: 11 | BJN3: 11 | BJO3: 11 | BJP3: 11 | BJQ3: 11 | BJR3: 11 | BJS3: 11 | BJT3: 11 | BJU3: 11 | BJV3: 11 | BJW3: 11 | BJX3: 11 | BJY3: 11 | BJZ3: 11 | BKA3: 11 | BKB3: 11 | BKC3: 11 | BKD3: 11 | BKE3: 11 | BKF3: 11 | BKG3: 11 | BKH3: 11 | BKI3: 11 | BKJ3: 11 | BKK3: 11 | BKL3: 11 | BKM3: 11 | BKN3: 11 | BKO3: 11 | BKP3: 11 | BKQ3: 11 | BKR3: 11 | BKS3: 11 | BKT3: 11 | BKU3: 11 | BKV3: 11 | BKW3: 11 | BKX3: 11 | BKY3: 11 | BKZ3: 11 | BLA3: 11 | BLB3: 11 | BLC3: 11 | BLD3: 11 | BLE3: 11 | BLF3: 11 | BLG3: 11 | BLH3: 11 | BLI3: 11 | BLJ3: 11 | BLK3: 11 | BLL3: 11 | BLM3: 11 | BLN3: 11 | BLO3: 11 | BLP3: 11 | BLQ3: 11 | BLR3: 11 | BLS3: 11 | BLT3: 11 | BLU3: 11 | BLV3: 11 | BLW3: 11 | BLX3: 11 | BLY3: 11 | BLZ3: 11 | BMA3: 11 | BMB3: 11 | BMC3: 11 | BMD3: 11 | BME3: 11 | BMF3: 11 | BMG3: 11 | BMH3: 11 | BMI3: 11 | BMJ3: 11 | BMK3: 11 | BML3: 11 | BMM3: 11 | BMN3: 11 | BMO3: 11 | BMP3: 11 | BMQ3: 11 | BMR3: 11 | BMS3: 11 | BMT3: 11 | BMU3: 11 | BMV3: 11 | BMW3: 11 | BMX3: 11 | BMY3: 11 | BMZ3: 11 | BNA3: 11 | BNB3: 11 | BNC3: 11 | BND3: 11 | BNE3: 11 | BNF3: 11 | BNG3: 11 | BNH3: 11 | BNI3: 11 | BNJ3: 11 | BNK3: 11 | BNL3: 11 | BNM3: 11 | BNN3: 11 | BNO3: 11 | BNP3: 11 | BNQ3: 11 | BNR3: 11 | BNS3: 11 | BNT3: 11 | BNU3: 11 | BNV3: 11 | BNW3: 11 | BNX3: 11 | BNY3: 11 | BNZ3: 11 | BOA3: 11 | BOB3: 11 | BOC3: 11 | BOD3: 11 | BOE3: 11 | BOF3: 11 | BOG3: 11 | BOH3: 11 | BOI3: 11 | BOJ3: 11 | BOK3: 11 | BOL3: 11 | BOM3: 11 | BON3: 11 | BOO3: 11 | BOP3: 11 | BOQ3: 11 | BOR3: 11 | BOS3: 11 | BOT3: 11 | BOU3: 11 | BOV3: 11 | BOW3: 11 | BOX3: 11 | BOY3: 11 | BOZ3: 11 | BPA3: 11 | BPB3: 11 | BPC3: 11 | BPD3: 11 | BPE3: 11 | BPF3: 11 | BPG3: 11 | BPH3: 11 | BPI3: 11 | BPJ3: 11 | BPK3: 11 | BPL3: 11 | BPM3: 11 | BPN3: 11 | BPO3: 11 | BPP3: 11 | BPQ3: 11 | BPR3: 11 | BPS3: 11 | BPT3: 11 | BPU3: 11 | BPV3: 11 | BPW3: 11 | BPX3: 11 | BPY3: 11 | BPZ3: 11 | BQA3: 11 | BQB3: 11 | BQC3: 11 | BQD3: 11 | BQE3: 11 | BQF3: 11 | BQG3: 11 | BQH3: 11 | BQI3: 11 | BQJ3: 11 | BQK3: 11 | BQL3: 11 | BQM3: 11 | BQN3: 11 | BQO3: 11 | BQP3: 11 | BQQ3: 11 | BQR3: 11 | BQS3: 11 | BQT3: 11 | BQU3: 11 | BQV3: 11 | BQW3: 11 | BQX3: 11 | BQY3: 11 | BQZ3: 11 | BRA3: 11 | BRB3: 11 | BRC3: 11 | BRD3: 11 | BRE3: 11 | BRF3: 11 | BRG3: 11 | BRH3: 11 | BRI3: 11 | BRJ3: 11 | BRK3: 11 | BRL3: 11 | BRM3: 11 | BRN3: 11 | BRO3: 11 | BRP3: 11 | BRQ3: 11 | BRR3: 11 | BRS3: 11 | BRT3: 11 | BRU3: 11 | BRV3: 11 | BRW3: 11 | BRX3: 11 | BRY3: 11 | BRZ3: 11 | BSA3: 11 | BSB3: 11 | BSC3: 11 | BSD3: 11 | BSE3: 11 | BSF3: 11 | BSG3: 11 | BSH3: 11 | BSI3: 11 | BSJ3: 11 | BSK3: 11 | BSL3: 11 | BSM3: 11 | BSN3: 11 | BSO3: 11 | BSP3: 11 | BSQ3: 11 | BSR3: 11 | BSS3: 11 | BST3: 11 | BSU3: 11 | BSV3: 11 | BSW3: 11 | BSX3: 11 | BSY3: 11 | BSZ3: 11 | BTA3: 11 | BTB3: 11 | BTC3: 11 | BTD3: 11 | BTE3: 11 | BTF3: 11 | BTG3: 11 | BTH3: 11 | BTI3: 11 | BTJ3: 11 | BTK3: 11 | BTL3: 11 | BTM3: 11 | BTN3: 11 | BTO3: 11 | BTP3: 11 | BTQ3: 11 | BTR3: 11 | BTS3: 11 | BTT3: 11 | BTU3: 11 | BTV3: 11 | BTW3: 11 | BTX3: 11 | BTY3: 11 | BTZ3: 11 | BUA3: 11 | BUB3: 11 | BUC3: 11 | BUD3: 11 | BUE3: 11 | BUF3: 11 | BUG3: 11 | BUH3: 11 | BUI3: 11 | BUJ3: 11 | BUK3: 11 | BUL3: 11 | BUM3: 11 | BUN3: 11 | BUO3: 11 | BUP3: 11 | BUQ3: 11 | BUR3: 11 | BUS3: 11 | BUT3: 11 | BUU3: 11 | BUV3: 11 | BUW3: 11 | BUX3: 11 | BUY3: 11 | BUZ3: 11 | BVA3: 11 | BVB3: 11 | BVC3: 11 | BVD3: 11 | BVE3: 11 | BVF3: 11 | BVG3: 11 | BVH3: 11 | BVI3: 11 | BVJ3: 11 | BVK3: 11 | BVL3: 11 | BVM3: 11 | BVN3: 11 | BVO3: 11 | BVP3: 11 | BVQ3: 11 | BVR3: 11 | BVS3: 11 | BVT3: 11 | BVU3: 11 | BVV3: 11 | BVW3: 11 | BVX3: 11 | BVY3: 11 | BVZ3: 11 | BWA3: 11 | BWB3: 11 | BWC3: 11 | BWD3: 11 | BWE3: 11 | BWF3: 11 | BWG3: 11 | BWH3: 11 | BWI3: 11 | BWJ3: 11 | BWK3: 11 | BWL3: 11 | BWM3: 11 | BWN3: 11 | BWO3: 11 | BWP3: 11 | BWQ3: 11 | BWR3: 11 | BWS3: 11 | BWT3: 11 | BWU3: 11 | BWV3: 11 | BWW3: 11 | BWX3: 11 | BWY3: 11 | BWZ3: 11 | BXA3: 11 | BXB3: 11 | BXC3: 11 | BXD3: 11 | BXE3: 11 | BXF3: 11 | BXG3: 11 | BXH3: 11 | BXI3: 11 | BXJ3: 11 | BXK3: 11 | BXL3: 11 | BXM3: 11 | BXN3: 11 | BXO3: 11 | BXP3: 11 | BXQ3: 11 | BXR3: 11 | BXS3: 11 | BXT3: 11 | BXU3: 11 | BXV3: 11 | BXW3: 11 | BXX3: 11 | BXY3: 11 | BXZ3: 11 | BYA3: 11 | BYB3: 11 | BYC3: 11 | BYD3: 11 | BYE3: 11 | BYF3: 11 | BYG3: 11 | BYH3: 11 | BYI3: 11 | BYJ3: 11 | BYK3: 11 | BYL3: 11 | BYM3: 11 | BYN3: 11 | BYO3: 11 | BYP3: 11 | BYQ3: 11 | BYR3: 11 | BYS3: 11 | BYT3: 11 | BYU3: 11 | BYV3: 11 | BYW3: 11 | BYX3: 11 | BYY3: 11 | BYZ3: 11 | BZA3: 11 | BZB3: 11 | BZC3: 11 | BZD3: 11 | BZE3: 11 | BZF3: 11 | BZG3: 11 | BZH3: 11 | BZI3: 11 | BZJ3: 11 | BZK3: 11 | BZL3: 11 | BZM3: 11 | BZN3: 11 | BZO3: 11 | BZP3: 11 | BZQ3: 11 | BZR3: 11 | BZS3: 11 | BZT3: 11 | BZU3: 11 | BZV3: 11 | BZW3: 11 | BZX3: 11 | BZY3: 11 | BZZ3: 11 | CAA3: 11 | CAB3: 11 | CAC3: 11 | CAD3: 11 | CAE3: 11 | CAF3: 11 | CAG3: 11 | CAH3: 11 | CAI3: 11 | CAJ3: 11 | CAK3: 11 | CAL3: 11 | CAM3: 11 | CAN3: 11 | CAO3: 11 | CAP3: 11 | CAQ3: 11 | CAR3: 11 | CAS3: 11 | CAT3: 11 | CAU3: 11 | CAV3: 11 | CAW3: 11 | CAX3: 11 | CAY3: 11 | CAZ3: 11 | CBA3: 11 | CBB3: 11 | CBC3: 11 | CBD3: 11 | CBE3: 11 | CBF3: 11 | CBG3: 11 | CBH3: 11 | CBI3: 11 | CBJ3: 11 | CBK3: 11 | CBL3: 11 | CBM3: 11 | CBN3: 11 | CBO3: 11 | CBP3: 11 | CBQ3: 11 | CBR3: 11 | CBS3: 11 | CBT3: 11 | CBU3: 11 | CBV3: 11 | CBW3: 11 | CBX3: 11 | CBY3: 11 | CBZ3: 11 | CCA3: 11 | CCB3: 11 | CCC3: 11 | CCD3: 11 | CCE3: 11 | CCF3: 11 | CCG3: 11 | CCH3: 11 | CCI3: 11 | CCJ3: 11 | CCK3: 11 | CCL3: 11 | CCM3: 11 | CCN3: 11 | CCO3: 11 | CCP3: 11 | CCQ3: 11 | CCR3: 11 | CCS3: 11 | CCT3: 11 | CCU3: 11 | CCV3: 11 | CCW3: 11 | CCX3: 11 | CCY3: 11 | CCZ3: 11 | CDA3: 11 | CDB3: 11 | CDC3: 11 | CDD3: 11 | CDE3: 11 | CDF3: 11 | CDG3: 11 | CDH3: 11 | CDI3: 11 | CDJ3: 11 | CDK3: 11 | CDL3: 11 | CDM3: 11 | CDN3: 11 | CDO3: 11 | CDP3: 11 | CDQ3: 11 | CDR3: 11 | CDS3: 11 | CDT3: 11 | CDU3: 11 | CDV3: 11 | CDW3: 11 | CDX3: 11 | CDY3: 11 | CDZ3: 11 | CEA3: 11 | CEB3: 11 | CEC3: 11 | CED3: 11 | CEE3: 11 | CEF3: 11 | CEG3: 11 | CEH3: 11 | CEI3: 11 | CEJ3: 11 | CEK3: 11 | CEL3: 11 | CEM3: 11 | CEN3: 11 | CEO3: 11 | CEP3: 11 | CEQ3: 11 | CER3: 11 | CES3: 11 | CET3: 11 | CEU3: 11 | CEV3: 11 | CEW3: 11 | CEX3: 11 | CEY3: 11 | CEZ3: 11 | CFA3: 11 | CFB3: 11 | CFC3: 11 | CFD3: 11 | CFE3: 11 | CFF3: 11 | CFG3: 11 | CFH3: 11 | CFI3: 11 | CFJ3: 11 | CFK3: 11 | CFL3: 11 | CFM3: 11 | CFN3: 11 | CFO3: 11 | CFP3: 11 | CFQ3: 11 | CFR3: 11 | CFS3: 11 | CFT3: 11 | CFU3: 11 | CFV3: 11 | CFW3: 11 | CFX3: 11 | CFY3: 11 | CFZ3: 11 | CGA3: 11 | CGB3: 11 | CGC3: 11 | CGD3: 11 | CGE3: 11 | CGF3: 11 | CGG3: 11 | CGH3: 11 | CGI3: 11 | CGJ3: 11 | CGK3: 11 | CGL3: 11 | CGM3: 11 | CGN3: 11 | CGO3: 11 | CGP3: 11 | CGQ3: 11 | CGR3: 11 | CGS3: 11 | CGT3: 11 | CGU3: 11 | CGV3: 11 | CGW3: 11 | CGX3: 11 | CGY3: 11 | CGZ3: 11 | CHA3: 11 | CHB3: 11 | CHC3: 11 | CHD3: 11 | CHE3: 11 | CHF3: 11 | CHG3: 11 | CHH3: 11 | CHI3: 11 | CHJ3: 11 | CHK3: 11 | CHL3: 11 | CHM3: 11 | CHN3: 11 | CHO3: 11 | CHP3: 11 | CHQ3: 11 | CHR3: 11 | CHS3: 11 | CHT3: 11 | CHU3: 11 | CHV3: 11 | CHW3: 11 | CHX3: 11 | CHY3: 11 | CHZ3: 11 | CIA3: 11 | CIB3: 11 | CIC3: 11 | CID3: 11 | CIE3: 11 | CIF3: 11 | CIG3: 11 | CIH3: 11 | CII3: 11 | CIJ3: 11 | CIK3: 11 | CIL3: 11 | CIM3: 11 | CIN3: 11 | CIO3: 11 | CIP3: 11 | CIQ3: 11 | CIR3: 11 | CIS3: 11 | CIT3: 11 | CIU3: 11 | CIV3: 11 | CIW3: 11 | CIX3: 11 | CIY3: 11 | CIZ3: 11 | CJA3: 11 | CJB3: 11 | CJC3: 11 | CJD3: 11 | CJE3: 11 | CJF3: 11 | CJG3: 11 | CJH3: 11 | CJI3: 11 | CJJ3: 11 | CJK3: 11 | CJL3: 11 | CJM3: 11 | CJN3: 11 | CJO3: 11 | CJP3: 11 | CJQ3: 11 | CJR3: 11 | CJS3: 11 | CJT3: 11 | CJU3: 11 | CJV3: 11 | CJW3: 11 | CJX3: 11 | CJY3: 11 | CJZ3: 11 | CKA3: 11 | CKB3: 11 | CKC3: 11 | CKD3: 11 | CKE3: 11 | CKF3: 11 | CKG3: 11 | CKH3: 11 | CKI3: 11 | CKJ3: 11 | CKK3: 11 | CKL3: 11 | CKM3: 11 | CKN3: 11 | CKO3: 11 | CKP3: 11 | CKQ3: 11 | CKR3: 11 | CKS3: 11 | CKT3: 11 | CKU3: 11 | CKV3: 11 | CKW3: 11 | CKX3: 11 | CKY3: 11 | CKZ3: 11 | CLA3: 11 | CLB3: 11 | CLC3: 11 | CLD3: 11 | CLE3: 11 | CLF3: 11 | CLG3: 11 | CLH3: 11 | CLI3: 11 | CLJ3: 11 | CLK3: 11 | CLL3: 11 | CLM3: 11 | CLN3: 11 | CLO3: 11 | CLP3: 11 | CLQ3: 11 | CLR3: 11 | CLS3: 11 | CLT3: 11 | CLU3: 11 | CLV3: 11 | CLW3: 11 | CLX3: 11 | CLY3: 11 | CLZ3: 11 | CMA3: 11 | CMB3: 11 | CMC3: 11 | CMD3: 11 | CME3: 11 | CMF3: 11 | CMG3: 11 | CMH3: 11 | CMI3: 11 | CMJ3: 11 | CMK3: 11 | CML3: 11 | CMM3: 11 | CMN3: 11 | CMO3: 11 | CMP3: 11 | CMQ3: 11 | CMR3: 11 | CMS3: 11 | CMT3: 11 | CMU3: 11 | CMV3: 11 | CMW3: 11 | CMX3: 11 | CMY3: 11 | CMZ3: 11 | CNA3: 11 | CNB3: 11 | CNC3: 11 | CND3: 11 | CNE3: 11 | CNF3: 11 | CNG3: 11 | CNH3: 11 | CNI3: 11 | CNJ3: 11 | CNK3: 11 | CNL3: 11 | CNM3: 11 | CNN3: 11 | CNO3: 11 | CNP3: 11 | CNQ3: 11 | CNR3: 11 | CNS3: 11 | CNT3: 11 | CNU3: 11 | CNV3: 11 | CNW3: 11 | CNX3: 11 | CNY3: 11 | CNZ3: 11 | COA3: 11 | COB3: 11 | COC3: 11 | COD3: 11 | COE3: 11 | COF3: 11 | COG3: 11 | COH3: 11 | COI3: 11 | COJ3: 11 | COK3: 11 | COL3: 11 | COM3: 11 | CON3: 11 | COO3: 11 | COP3: 11 | COQ3: 11 | COR3: 11 | COS3: 11 | COT3: 11 | COU3: 11 | COV3: 11 | COW3: 11 | COX3: 11 | COY3: 11 | COZ3: 11 | CPA3: 11 | CPB3: 11 | CPC3: 11 | CPD3: 11 | CPE3: 11 | CPF3: 11 | CPG3: 11 | CPH3: 11 | CPI3: 11 | CPJ3: 11 | CPK3: 11 | CPL3: 11 | CPM3: 11 | CPN3: 11 | CPO3: 11 | CPP3: 11 | CPQ3: 11 | CPR3: 11 | CPS3: 11 | CPT3: 11 | CPU3: 11 | CPV3: 11 | CPW3: 11 | CPX3: 11 | CPY3: 11 | CPZ3: 11 | CQA3: 11 | CQB3: 11 | CQC3: 11 | CQD3: 11 | CQE3: 11 | CQF3: 11 | CQG3: 11 | CQH3: 11 | CQI3: 11 | CQJ3: 11 | CQK3: 11 | CQL3: 11 | CQM3: 11 | CQN3: 11 | CQO3: 11 | CQP3: 11 | CQQ3: 11 | CQR3: 11 | CQS3: 11 | CQT3: 11 | CQU3: 11 | CQV3: 11 | CQW3: 11 | CQX3: 11 | CQY3: 11 | CQZ3: 11 | CRA3: 11 | CRB3: 11 | CRC3: 11 | CRD3: 11 | CRE3: 11 | CRF3: 11 | CRG3: 11 | CRH3: 11 | CRI3: 11 | CRJ3: 11 | CRK3: 11 | CRL3: 11 | CRM3: 11 | CRN3: 11 | CRO3: 11 | CRP3: 11 | CRQ3: 11 | CRR3: 11 | CRS3: 11 | CRT3: 11 | CRU3: 11 | CRV3: 11 | CRW3: 11 | CRX3: 11 | CRY3: 11 | CRZ3: 11 | CSA3: 11 | CSB3: 11 | CSC3: 11 | CSD3: 11 | CSE3: 11 | CSF3: 11 | CSG3: 11 | CSH3: 11 | CSI3: 11 | CSJ3: 11 | CSK3: 11 | CSL3: 11 | CSM3: 11 | CSN3: 11 | CSO3: 11 | CSP3: 11 | CSQ3: 11 | CSR3: 11 | CSS3: 11 | CST3: 11 | CSU3: 11 | CSV3: 11 | CSW3: 11 | CSX3: 11 | CSY3: 11 | CSZ3: 11 | CTA3: 11 | CTB3: 11 | CTC3: 11 | CTD3: 11 | CTE3: 11 | CTF3: 11 | CTG3: 11 | CTH3: 11 | CTI3: 11 | CTJ3: 11 | CTK3: 11 | CTL3: 11 | CTM3: 11 | CTN3: 11 | CTO3: 11 | CTP3: 11 | CTQ3: 11 | CTR3: 11 | CTS3: 11 | CTT3: 11 | CTU3: 11 | CTV3: 11 | CTW3: 11 | CTX3: 11 | CTY3: 11 | CTZ3: 11 | CUA3: 11 | CUB3: 11 | CUC3: 11 | CUD3: 11 | CUE3: 11 | CUF3: 11 | CUG3: 11 | CUH3: 11 | CUI3: 11 | CUJ3: 11 | CUK3: 11 | CUL3: 11 | CUM3: 11 | CUN3: 11 | CUO3: 11 | CUP3: 11 | CUQ3: 11 | CUR3: 11 | CUS3: 11 | CUT3: 11 | CUU3: 11 | CUV3: 11 | CUW3: 11 | CUX3: 11 | CUY3: 11 | CUZ3: 11 | CVA3: 11 | CVB3: 11 | CVC3: 11 | CVD3: 11 | CVE3: 11 | CVF3: 11 | CVG3: 11 | CVH3: 11 | CVI3: 11 | CVJ3: 11 | CVK3: 11 | CVL3: 11 | CVM3: 11 | CVN3: 11 | CVO3: 11 | CVP3: 11 | CVQ3: 11 | CVR3: 11 | CVS3: 11 | CVT3: 11 | CVU3: 11 | CVV3: 11 | CVW3: 11 | CVX3: 11 | CVY3: 11 | CVZ3: 11 | CWA3: 11 | CWB3: 11 | CWC3: 11 | CWD3: 11 | CWE3: 11 | CWF3: 11 | CWG3: 11 | CWH3: 11 | CWI3: 11 | CWJ3: 11 | CWK3: 11 | CWL3: 11 | CWM3: 11 | CWN3: 11 | CWO3: 11 | CWP3: 11 | CWQ3: 11 | CWR3: 11 | CWS3: 11 | CWT3: 11 | CWU3: 11 | CWV3: 11 | CWW3: 11 | CWX3: 11 | CWY3: 11 | CWZ3: 11 | CXA3: 11 | CXB3: 11 | CXC3: 11 | CXD3: 11 | CXE3: 11 | CXF3: 11 | CXG3: 11 | CXH3: 11 | CXI3: 11 | CXJ3: 11 | CXK3: 11 | CXL3: 11 | CXM3: 11 | CXN3: 11 | CXO3: 11 | CXP3: 11 | CXQ3: 11 | CXR3: 11 | CXS3: 11 | CXT3: 11 | CXU3: 11 | CXV3: 11 | CXW3: 11 | CXX3: 11 | CXY3: 11 | CXZ3: 11 | CYA3: 11 | CYB3: 11 | CYC3: 11 | CYD3: 11 | CYE3: 11 | CYF3: 11 | CYG3: 11 | CYH3: 11 | CYI3: 11 | CYJ3: 11 | CYK3: 11 | CYL3: 11 | CYM3: 11 | CYN3: 11 | CYO3: 11 | CYP3: 11 | CYQ3: 11 | CYR3: 11 | CYS3: 11 | CYT3: 11 | CYU3: 11 | CYV3: 11 | CYW3: 11 | CYX3: 11 | CYY3: 11 | CYZ3: 11 | CZA3: 11 | CZB3: 11 | CZC3: 11 | CZD3: 11 | CZE3: 11 | CZF3: 11 | CZG3: 11 | CZH3: 11 | CZI3: 11 | CZJ3: 11 | CZK3: 11 | CZL3: 11 | CZM3: 11 | CZN3: 11 | CZO3: 11 | CZP3: 11 | CZQ3: 11 | CZR3: 11 | CZS3: 11 | CZT3: 11 | CZU3: 11 | CZV3: 11 | CZW3: 11 | CZX3: 11 | CZY3: 11 | CZZ3: 11 | DAA3: 11 | DAB3: 11 | DAC3: 11 | DAD3: 11 | DAE3: 11 | DAF3: 11 | DAG3: 11 | DAH3: 11 | DAI3: 11 | DAJ3: 11 | DAK3: 11 | DAL3: 11 | DAM3: 11 | DAN3: 11 | DAO3: 11 | DAP3: 11 | DAQ3: 11 | DAR3: 11 | DAS3: 11 | DAT3: 11 | DAU3: 11 | DAV3: 11 | DAW3: 11 | DAX3: 11 | DAY3: 11 | DAZ3: 11 | DBA3: 11 | DBB3: 11 | DBC3: 11 | DBD3: 11 | DBE3: 11 | DBF3: 11 | DBG3: 11 | DBH3: 11 | DBI3: 11 | DBJ3: 11 | DBK3: 11 | DBL3: 11 | DBM3: 11 | DBN3: 11 | DBO3: 11 | DBP3: 11 | DBQ3: 11 | DBR3: 11 | DBS3: 11 | DBT3: 11 | DBU3: 11 | DBV3: 11 | DBW3: 11 | DBX3: 11 | DBY3: 11 | DBZ3: 11 | DCA3: 11 | DCB3: 11 | DCC3: 11 | DCD3: 11 | DCE3: 11 | DCF3: 11 | DCG3: 11 | DCH3: 11 | DCI3: 11 | DCJ3: 11 | DCK3: 11 | DCL3: 11 | DCM3: 11 | DCN3: 11 | DCO3: 11 | DCP3: 11 | DCQ3: 11 | DCR3: 11 | DCS3: 11 | DCT3: 11 | DCU3: 11 | DCV3: 11 | DCW3: 11 | DCX3: 11 | DCY3: 11 | DCZ3: 11 | DDA3: 11 | DDB3: 11 | DDC3: 11 | DDD3: 11 | DDE3: 11 | DDF3: 11 | DDG3: 11 | DDH3: 11 | DDI3: 11 | DDJ3: 11 | DDK3: 11 | DDL3: 11 | DDM3: 11 | DDN3: 11 | DDO3: 11 | DDP3: 11 | DDQ3: 11 | DDR3: 11 | DDS3: 11 | DDT3: 11 | DDU3: 11 | DDV3: 11 | DDW3: 11 | DDX3: 11 | DDY3: 11 | DDZ3: 11 | DEA3: 11 | DEB3: 11 | DEC3: 11 | DED3: 11 | DEE3: 11 | DEF3: 11 | DEG3: 11 | DEH3: 11 | DEI3: 11 | DEJ3: 11 | DEK3: 11 | DEL3: 11 | DEM3: 11 | DEN3: 11 | DEO3: 11 | DEP3: 11 | DEQ3: 11 | DER3: 11 | DES3: 11 | DET3: 11 | DEU3: 11 | DEV3: 11 | DEW3: 11 | DEX3: 11 | DEY3: 11 | DEZ3: 11 | DFA3: 11 | DFB3: 11 | DFC3: 11 | DFD3: 11 | DFE3: 11 | DFF3: 11 | DFG3: 11 | DFH3: 11 | DFI3: 11 | DFJ3: 11 | DFK3: 11 | DFL3: 11 | DFM3: 11 | DFN3: 11 | DFO3: 11 | DFP3: 11 | DFQ3: 11 | DFR3: 11 | DFS3: 11 | DFT3: 11 | DFU3: 11 | DFV3: 11 | DFW3: 11 | DFX3: 11 | DFY3: 11 | DFZ3: 11 | DGA3: 11 | DGB3: 11 | DGC3: 11 | DGD3: 11 | DGE3: 11 | DGF3: 11 | DGG3: 11 | DGH3: 11 | DGI3: 11 | DGJ3: 11 | DGK3: 11 | DGL3: 11 | DGM3: 11 | DGN3: 11 | DGO3: 11 | DGP3: 11 | DGQ3: 11 | DGR3: 11 | DGS3: 11 | DGT3: 11 | DGU3: 11 | DGV3: 11 | DGW3: 11 | DGX3: 11 | DGY3: 11 | DGZ3: 11 | DHA3: 11 | DHB3: 11 | DHC3: 11 | DHD3: 11 | DHE3: 11 | DHF3: 11 | DHG3: 11 | DHH3: 11 | DHI3: 11 | DHJ3: 11 | DHK3: 11 | DHL3: 11 | DHM3: 11 | DHN3: 11 | DHO3: 11 | DHP3: 11 | DHQ3: 11 | DHR3: 11 | DHS3: 11 | DHT3: 11 | DHU3: 11 | DHV3: 11 | DHW3: 11 | DHX3: 11 | DHY3: 11 | DHZ3: 11 | DIA3: 11 | DIB3: 11 | DIC3: 11 | DID3: 11 | DIE3: 11 | DIF3: 11 | DIG3: 11 | DIH3: 11 | DII3: 11 | DIJ3: 11 | DIK3: 11 | DIL3: 11 | DIM3: 11 | DIN3: 11 | DIO3: 11 | DIP3: 11 | DIQ3: 11 | DIR3: 11 | DIS3: 11 | DIT3: 11 | DIU3: 11 | DIV3: 11 | DIW3: 11 | DIX3: 11 | DIY3: 11 | DIZ3: 11 | DJA3: 11 | DJB3: 11 | DJC3: 11 | DJD3: 11 | DJE3: 11 | DJF3: 11 | DJG3: 11 | DJH3: 11 | DJI3: 11 | DJJ3: 11 | DJK3: 11 | DJL3: 11 | DJM3: 11 | DJN3: 11 | DJO3: 11 | DJP3: 11 | DJQ3: 11 | DJR3: 11 | DJS3: 11 | DJT3: 11 | DJU3: 11 | DJV3: 11 | DJW3: 11 | DJX3: 11 | DJY3: 11 | DJZ3: 11 | DKA3: 11 | DKB3: 11 | DKC3: 11 | DKD3: 11 | DKE3: 11 | DKF3: 11 | DKG3: 11 | DKH3: 11 | DKI3: 11 | DKJ3: 11 | DKK3: 11 | DKL3: 11 | DKM3: 11 | DKN3: 11 | DKO3: 11 | DKP3: 11 | DKQ3: 11 | DKR3: 11 | DKS3: 11 | DKT3: 11 | DKU3: 11 | DKV3: 11 | DKW3: 11 | DKX3: 11 | DKY3: 11 | DKZ3: 11 | DLA3: 11 | DLB3: 11 | DLC3: 11 | DLD3: 11 | DLE3: 11 | DLF3: 11 | DLG3: 11 | DLH3: 11 | DLI3: 11 | DLJ3: 11 | DLK3: 11 | DLL3: 11 | DLM3: 11 | DLN3: 11 | DLO3: 11 | DLP3: 11 | DLQ3: 11 | DLR3: 11 | DLS3: 11 | DLT3: 11 | DLU3: 11 | DLV3: 11 | DLW3: 11 | DLX3: 11 | DLY3: 11 | DLZ3: 11 | DMA3: 11 | DMB3: 11 | DMC3: 11 | DMD3: 11 | DME3: 11 | DMF3: 11 | DMG3: 11 | DMH3: 11 | DMI3: 11 | DMJ3: 11 | DMK3: 11 | DML3: 11 | DMM3: 11 | DMN3: 11 | DMO3: 11 | DMP3: 11 | DMQ3: 11 | DMR3: 11 | DMS3: 11 | DMT3: 11 | DMU3: 11 | DMV3: 11 | DMW3: 11 | DMX3: 11 | DMY3: 11 | DMZ3: 11 | DNA3: 11 | DNB3: 11 | DNC3: 11 | DND3: 11 | DNE3: 11 | DNF3: 11 | DNG3: 11 | DNH3: 11 | DNI3: 11 | DNJ3: 11 | DNK3: 11 | DNL3: 11 | DNM3: 11 | DNN3: 11 | DNO3: 11 | DNP3: 11 | DNQ3: 11 | DNR3: 11 | DNS3: 11 | DNT3: 11 | DNU3: 11 | DNV3: 11 | DNW3: 11 | DNX3: 11 | DNY3: 11 | DNZ3: 11 | DOA3: 11 | DOB3: 11 | DOC3: 11 | DOD3: 11 | DOE3: 11 | DOF3: 11 | DOG3: 11 | DOH3: 11 | DOI3: 11 | DOJ3: 11 | DOK3: 11 | DOL3: 11 | DOM3: 11 | DON3: 11 | DOO3: 11 | DOP3: 11 | DOQ3: 11 | DOR3: 11 | DOS3: 11 | DOT3: 11 | DOU3: 11 | DOV3: 11 | DOW3: 11 | DOX3: 11 | DOY3: 11 | DOZ3: 11 | DPA3: 11 | DPB3: 11 | DPC3: 11 | DPD3: 11 | DPE3: 11 | DPF3: 11 | DPG3: 11 | DPH3: 11 | DPI3: 11 | DPJ3: 11 | DPK3: 11 | DPL3: 11 | DPM3: 11 | DPN3: 11 | DPO3: 11 | DPP3: 11 | DPQ3: 11 | DPR3: 11 | DPS3: 11 | DPT3: 11 | DPU3: 11 | DPV3: 11 | DPW3: 11 | DPX3: 11 | DPY3: 11 | DPZ3: 11 | DQA3: 11 | DQB3: 11 | DQC3: 11 | DQD3: 11 | DQE3: 11 | DQF3: 11 | DQG3: 11 | DQH3: 11 | DQI3: 11 | DQJ3: 11 | DQK3: 11 | DQL3: 11 | DQM3: 11 | DQN3: 11 | DQO3: 11 | DQP3: 11 | DQQ3: 11 | DQR3: 11 | DQS3: 11 | DQT3: 11 | DQU3: 11 | DQV3: 11 | DQW3: 11 | DQX3: 11 | DQY3: 11 | DQZ3: 11 | DRA3: 11 | DRB3: 11 | DRC3: 11 | DRD3: 11 | DRE3: 11 | DRF3: 11 | DRG3: 11 | DRH3: 11 | DRI3: 11 | DRJ3: 11 | DRK3: 11 | DRL3: 11 | DRM3: 11 | DRN3: 11 | DRO3: 11 | DRP3: 11 | DRQ3: 11 | DRR3: 11 | DRS3: 11 | DRT3: 11 | DRU3: 11 | DRV3: 11 | DRW3: 11 | DRX3: 11 | DRY3: 11 | DRZ3: 11 | DSA3: 11 | DSB3: 11 | DSC3: 11 | DSD3: 11 | DSE3: 11 | DSF3: 11 | DSG3: 11 | DSH3: 11 | DSI3: 11 | DSJ3: 11 | DSK3: 11 | DSL3: 11 | DSM3: 11 | DSN3: 11 | DSO3: 11 | DSP3: 11 | DSQ3: 11 | DSR3: 11 | DSS3: 11 | DST3: 11 | DSU3: 11 | DSV3: 11 | DSW3: 11 | DSX3: 11 | DSY3: 11 | DSZ3: 11 | DTA3: 11 | DTB3: 11 | DTC3: 11 | DTD3: 11 | DTE3: 11 | DTF3: 11 | DTG3: 11 | DTH3: 11 | DTI3: 11 | DTJ3: 11 | DTK3: 11 | DTL3: 11 | DTM3: 11 | DTN3: 11 | DTO3: 11 | DTP3: 11 | DTQ3: 11 | DTR3: 11 | DTS3: 11 | DTT3: 11 | DTU3: 11 | DTV3: 11 | DTW3: 11 | DTX3: 11 | DTY3: 11 | DTZ3: 11 | DUA3: 11 | DUB3: 11 | DUC3: 11 | DUD3: 11 | DUE3: 11 | DUF3: 11 | DUG3: 11 | DUH3: 11 | DUI3: 11 | DUJ3: 11 | DUK3: 11 | DUL3: 11 | DUM3: 11 | DUN3: 11 | DUO3: 11 | DUP3: 11 | DUQ3: 11 | DUR3: 11 | DUS3: 11 | DUT3: 11 | DUU3: 11 | DUV3: 11 | DUW3: 11 | DUX3: 11 | DUY3: 11 | DUZ3: 11 | DVA3: 11 | DVB3: 11 | DVC3: 11 | DVD3: 11 | DVE3: 11 | DVF3: 11 | DVG3: 11 | DVH3: 11 | DVI3: 11 | DVJ3: 11 | DVK3: 11 | DVL3: 11 | DVM3: 11 | DVN3: 11 | DVO3: 11 | DVP3: 11 | DVQ3: 11 | DVR3: 11 | DVS3: 11 | DVT3: 11 | DVU3: 11 | DVV3: 11 | DVW3: 11 | DVX3: 11 | DVY3: 11 | DVZ3: 11 | DWA3: 11 | DWB3: 11 | DWC3: 11 | DWD3: 11 | DWE3: 11 | DWF3: 11 | DWG3: 11 | DWH3: 11 | DWI3: 11 | DWJ3: 11 | DWK3: 11 | DWL3: 11 | DWM3: 11 | DWN3: 11 | DWO3: 11 | DWP3: 11 | DWQ3: 11 | DWR3: 11 | DWS3: 11 | DWT3: 11 | DWU3: 11 | DWV3: 11 | DWW3: 11 | DWX3: 11 | DWY3: 11 | DWZ3: 11 | DXA3: 11 | DXB3: 11 | DXC3: 11 | DXD3: 11 | DXE3: 11 | DXF3: 11 | DXG3: 11 | DXH3: 11 | DXI3: 11 | DXJ3: 11 | DXK3: 11 | DXL3: 11 | DXM3: 11 | DXN3: 11 | DXO3: 11 | DXP3: 11 | DXQ3: 11 | DXR3: 11 | DXS3: 11 | DXT3: 11 | DXU3: 11 | DXV3: 11 | DXW3: 11 | DXX3: 11 | DXY3: 11 | DXZ3: 11 | DYA3: 11 | DYB3: 11 | DYC3: 11 | DYD3: 11 | DYE3: 11 | DYF3: 11 | DYG3: 11 | DYH3: 11 | DYI3: 11 | DYJ3: 11 | DYK3: 11 | DYL3: 11 | DYM3: 11 | DYN3: 11 | DYO3: 11 | DYP3: 11 | DYQ3: 11 | DYR3: 11 | DYS3: 11 | DYT3: 11 | DYU3: 11 | DYV3: 11 | DYW3: 11 | DYX3: 11 | DYY3: 11 | DYZ3: 11 | DZA3: 11 | DZB3: 11 | DZC3: 11 | DZD3: 11 | DZE3: 11 | DZF3: 11 | DZG3: 11 | DZH3: 11 | DZI3: 11 | DZJ3: 11 | DZK3: 11 | DZL3: 11 | DZM3: 11 | DZN3: 11 | DZO3: 11 | DZP3: 11 | DZQ3: 11 | DZR3: 11 | DZS3: 11 | DZT3: 11 | DZU3: 11 | DZV3: 11 | DZW3: 11 | DZX3: 11 | DZY3: 11 | DZZ3: 11 | EAA3: 11 | EAB3: 11 | EAC3: 11 | EAD3: 11 | EAE3: 11 | EAF3: 11 | EAG3: 11 | EAH3: 11 | EAI3: 11 | EAJ3: 11 | EAK3: 11 | EAL3: 11 | EAM3: 11 | EAN3: 11 | EAO3: 11 | EAP3: 11 | EAQ3: 11 | EAR3: 11 | EAS3: 11 | EAT3: 11 | EAU3: 11 | EAV3: 11 | EAW3: 11 | EAX3: 11 | EAY3: 11 | EAZ3: 11 | EBA3: 11 | EBB3: 11 | EBC3: 11 | EBD3: 11 | EBE3: 11 | EBF3: 11 | EBG3: 11 | EBH3: 11 | EBI3: 11 | EBJ3: 11 | EBK3: 11 | EBL3: 11 | EBM3: 11 | EBN3: 11 | EBO3: 11 | EBP3: 11 | EBQ3: 11 | EBR3: 11 | EBS3: 11 | EBT3: 11 | EBU3: 11 | EBV3: 11 | EBW3: 11 | EBX3: 11 | EBY3: 11 | EBZ3: 11 | ECA3: 11 | ECB3: 11 | ECC3: 11 | ECD3: 11 | ECE3: 11 | ECF3: 11 | ECG3: 11 | ECH3: 11 | ECI3: 11 | ECJ3: 11 | ECK3: 11 | ECL3: 11 | ECM3: 11 | ECN3: 11 | ECO3: 11 | ECP3: 11 | ECQ3: 11 | ECR3: 11 | ECS3: 11 | ECT3: 11 | ECU3: 11 | ECV3: 11 | ECW3: 11 | ECX3: 11 | ECY3: 11 | ECZ3: 11 | EDA3: 11 | EDB3: 11 | EDC3: 11 | EDD3: 11 | EDE3: 11 | EDF3: 11 | EDG3: 11 | EDH3: 11 | EDI3: 11 | EDJ3: 11 | EDK3: 11 | EDL3: 11 | EDM3: 11 | EDN3: 11 | EDO3: 11 | EDP3: 11 | EDQ3: 11 | EDR3: 11 | EDS3: 11 | EDT3: 11 | EDU3: 11 | EDV3: 11 | EDW3: 11 | EDX3: 11 | EDY3: 11 | EDZ3: 11 | EEA3: 11 | EEB3: 11 | EEC3: 11 | EED3: 11 | EEE3: 11 | EEF3: 11 | EEG3: 11 | EEH3: 11 | EEI3: 11 | EEJ3: 11 | EEK3: 11 | EEL3: 11 | EEM3: 11 | EEN3: 11 | EEO3: 11 | EEP3: 11 | EEQ3: 11 | EER3: 11 | EES3: 11 | EET3: 11 | EEU3: 11 | EEV3: 11 | EEW3: 11 | EEX3: 11 | EEY3: 11 | EEZ3: 11 | EFA3: 11 | EFB3: 11 | EFC3: 11 | EFD3: 11 | EFE3: 11 | EFF3: 11 | EFG3: 11 | EFH3: 11 | EFI3: 11 | EFJ3: 11 | EFK3: 11 | EFL3: 11 | EFM3: 11 | EFN3: 11 | EFO3: 11 | EFP3: 11 | EFQ3: 11 | EFR3: 11 | EFS3: 11 | EFT3: 11 | EFU3: 11 | EFV3: 11 | EFW3: 11 | EFX3: 11 | EFY3: 11 | EFZ3: 11 | EGA3: 11 | EGB3: 11 | EGC3: 11 | EGD3: 11 | EGE3: 11 | EGF3: 11 | EGG3: 11 | EGH3: 11 | EGI3: 11 | EGJ3: 11 | EGK3: 11 | EGL3: 11 | EGM3: 11 | EGN3: 11 | EGO3: 11 | EGP3: 11 | EGQ3: 11 | EGR3: 11 | EGS3: 11 | EGT3: 11 | EGU3: 11 | EGV3: 11 | EGW3: 11 | EGX3: 11 | EGY3: 11 | EGZ3: 11 | EHA3: 11 | EHB3: 11 | EHC3: 11 | EHD3: 11 | EHE3: 11 | EHF3: 11 | EHG3: 11 | EHH3: 11 | EHI3: 11 | EHJ3: 11 | EHK3: 11 | EHL3: 11 | EHM3: 11 | EHN3: 11 | EHO3: 11 | EHP3: 11 | EHQ3: 11 | EHR3: 11 | EHS3: 11 | EHT3: 11 | EHU3: 11 | EHV3: 11 | EHW3: 11 | EHX3: 11 | EHY3: 11 | EHZ3: 11 | EIA3: 11 | EIB3: 11 | EIC3: 11 | EID3: 11 | EIE3: 11 | EIF3: 11 | EIG3: 11 | EIH3: 11 | EII3: 11 | EIJ3: 11 | EIK3: 11 | EIL3: 11 | EIM3: 11 | EIN3: 11 | EIO3: 11 | EIP3: 11 | EIQ3: 11 | EIR3: 11 | EIS3: 11 | EIT3: 11 | EIU3: 11 | EIV3: 11 | EIW3: 11 | EIX3: 11 | EIY3: 11 | EIZ3: 11 | EJA3: 11 | EJB3: 11 | EJC3: 11 | EJD3: 11 | EJE3: 11 | EJF3: 11 | EJG3: 11 | EJH3: 11 | EJI3: 11 | EJJ3: 11 | EJK3: 11 | EJL3: 11 | EJM3: 11 | EJN3: 11 | EJO3: 11 | EJP3: 11 | EJQ3: 11 | EJR3: 11 | EJS3: 11 | EJT3: 11 | EJU3: 11 | EJV3: 11 | EJW3: 11 | EJX3: 11 | EJY3: 11 | EJZ3: 11 | EKA3: 11 | EKB3: 11 | EKC3: 11 | EKD3: 11 | EKE3: 11 | EKF3: 11 | EKG3: 11 | EKH3: 11 | EKI3: 11 | EKJ3: 11 | EKK3: 11 | EKL3: 11 | EKM3: 11 | EKN3: 11 | EKO3: 11 | EKP3: 11 | EKQ3: 11 | EKR3: 11 | EKS3: 11 | EKT3: 11 | EKU3: 11 | EKV3: 11 | EKW3: 11 | EKX3: 11 | EKY3: 11 | EKZ3: 11 | ELA3: 11 | ELB3: 11 | ELC3: 11 | ELD3: 11 | ELE3: 11 | ELF3: 11 | ELG3: 11 | ELH3: 11 | ELI3: 11 | ELJ3: 11 | ELK3: 11 | ELL3: 11 | ELM3: 11 | ELN3: 11 | ELO3: 11 | ELP3: 11 | ELQ3: 11 | ELR3: 11 | ELS3: 11 | ELT3: 11 | ELU3: 11 | ELV3: 11 | ELW3: 11 | ELX3: 11 | ELY3: 11 | ELZ3: 11 | EMA3: 11 | EMB3: 11 | EMC3: 11 | EMD3: 11 | EME3: 11 | EMF3: 11 | EMG3: 11 | EMH3: 11 | EMI3: 11 | EMJ3: 11 | EMK3: 11 | EML3: 11 | EMM3: 11 | EMN3: 11 | EMO3: 11 | EMP3: 11 | EMQ3: 11 | EMR3: 11 | EMS3: 11 | EMT3: 11 | EMU3: 11 | EMV3: 11 | EMW3: 11 | EMX3: 11 | EMY3: 11 | EMZ3: 11 | ENA3: 11 | ENB3: 11 | ENC3: 11 | END3: 11 | ENE3: 11 | ENF3: 11 | ENG3: 11 | ENH3: 11 | ENI3: 11 | ENJ3: 11 | ENK3: 11 | ENL3: 11 | ENM3: 11 | ENN3: 11 | ENO3: 11 | ENP3: 11 | ENQ3: 11 | ENR3: 11 | ENS3: 11 | ENT3: 11 | ENU3: 11 | ENV3: 11 | ENW3: 11 | ENX3: 11 | ENY3: 11 | ENZ3: 11 | EOA3: 11 | EOB3: 11 | EOC3: 11 | EOD3: 11 | EOE3: 11 | EOF3: 11 | EOG3: 11 | EOH3: 11 | EOI3: 11 | EOJ3: 11 | EOK3: 11 | EOL3: 11 | EOM3: 11 | EON3: 11 | EOO3: 11 | EOP3: 11 | EOQ3: 11 | EOR3: 11 | EOS3: 11 | EOT3: 11 | EOU3: 11 | EOV3: 11 | EOW3: 11 | EOX3: 11 | EOY3: 11 | EOZ3: 11 | EPA3: 11 | EPB3: 11 | EPC3: 11 | EPD3: 11 | EPE3: 11 | EPF3: 11 | EPG3: 11 | EPH3: 11 | EPI3: 11 | EPJ3: 11 | EPK3: 11 | EPL3: 11 | EPM3: 11 | EPN3: 11 | EPO3: 11 | EPP3: 11 | EPQ3: 11 | EPR3: 11 | EPS3: 11 | EPT3: 11 | EPU3: 11 | EPV3: 11 | EPW3: 11 | EPX3: 11 | EPY3: 11 | EPZ3: 11 | EQA3: 11 | EQB3: 11 | EQC3: 11 | EQD3: 11 | EQE3: 11 | EQF3: 11 | EQG3: 11 | EQH3: 11 | EQI3: 11 | EQJ3: 11 | EQK3: 11 | EQL3: 11 | EQM3: 11 | EQN3: 11 | EQO3: 11 | EQP3: 11 | EQQ3: 11 | EQR3: 11 | EQS3: 11 | EQT3: 11 | EQU3: 11 | EQV3: 11 | EQW3: 11 | EQX3: 11 | EQY3: 11 | EQZ3: 11 | ERA3: 11 | ERB3: 11 | ERC3: 11 | ERD3: 11 | ERE3: 11 | ERF3: 11 | ERG3: 11 | ERH3: 11 | ERI3: 11 | ERJ3: 11 | ERK3: 11 | ERL3: 11 | ERM3: 11 | ERN3: 11 | ERO3: 11 | ERP3: 11 | ERQ3: 11 | ERR3: 11 | ERS3: 11 | ERT3: 11 | ERU3: 11 | ERV3: 11 | ERW3: 11 | ERX3: 11 | ERY3: 11 | ERZ3: 11 | ESA3: 11 | ESB3: 11 | ESC3: 11 | ESD3: 11 | ESE3: 11 | ESF3: 11 | ESG3: 11 | ESH3: 11 | ESI3: 11 | ESJ3: 11 | ESK3: 11 | ESL3: 11 | ESM3: 11 | ESN3: 11 | ESO3: 11 | ESP3: 11 | ESQ3: 11 | ESR3: 11 | ESS3: 11 | EST3: 11 | ESU3: 11 | ESV3: 11 | ESW3: 11 | ESX3: 11 | ESY3: 11 | ESZ3: 11 | ETA3: 11 | ETB3: 11 | ETC3: 11 | ETD3: 11 | ETE3: 11 | ETF3: 11 | ETG3: 11 | ETH3: 11 | ETI3: 11 | ETJ3: 11 | ETK3: 11 | ETL3: 11 | ETM3: 11 | ETN3: 11 | ETO3: 11 | ETP3: 11 | ETQ3: 11 | ETR3: 11 | ETS3: 11 | ETT3: 11 | ETU3: 11 | ETV3: 11 | ETW3: 11 | ETX3: 11 | ETY3: 11 | ETZ3: 11 | EUA3: 11 | EUB3: 11 | EUC3: 11 | EUD3: 11 | EUE3: 11 | EUF3: 11 | EUG3: 11 | EUH3: 11 | EUI3: 11 | EUJ3: 11 | EUK3: 11 | EUL3: 11 | EUM3: 11 | EUN3: 11 | EUO3: 11 | EUP3: 11 | EUQ3: 11 | EUR3: 11 | EUS3: 11 | EUT3: 11 | EUU3: 11 | EUV3: 11 | EUW3: 11 | EUX3: 11 | EUY3: 11 | EUZ3: 11 | EVA3: 11 | EVB3: 11 | EVC3: 11 | EVD3: 11 | EVE3: 11 | EVF3: 11 | EVG3: 11 | EVH3: 11 | EVI3: 11 | EVJ3: 11 | EVK3: 11 | EVL3: 11 | EVM3: 11 | EVN3: 11 | EVO3: 11 | EVP3: 11 | EVQ3: 11 | EVR3: 11 | EVS3: 11 | EVT3: 11 | EVU3: 11 | EVV3: 11 | EVW3: 11 | EVX3: 11 | EVY3: 11 | EVZ3: 11 | EWA3: 11 | EWB3: 11 | EWC3: 11 | EWD3: 11 | EWE3: 11 | EWF3: 11 | EWG3: 11 | EWH3: 11 | EWI3: 11 | EWJ3: 11 | EWK3: 11 | EWL3: 11 | EWM3: 11 | EWN3: 11 | EWO3: 11 | EWP3: 11 | EWQ3: 11 | EWR3: 11 | EWS3: 11 | EWT3: 11 | EWU3: 11 | EWV3: 11 | EWW3: 11 | EWX3: 11 | EWY3: 11 | EWZ3: 11 | EXA3: 11 | EXB3: 11 | EXC3: 11 | EXD3: 11 | EXE3: 11 | EXF3: 11 | EXG3: 11 | EXH3: 11 | EXI3: 11 | EXJ3: 11 | EXK3: 11 | EXL3: 11 | EXM3: 11 | EXN3: 11 | EXO3: 11 | EXP3: 11 | EXQ3: 11 | EXR3: 11 | EXS3: 11 | EXT3: 11 | EXU3: 11 | EXV3: 11 | EXW3: 11 | EXX3: 11 | EXY3: 11 | EXZ3: 11 | EYA3: 11 | EYB3: 11 | EYC3: 11 | EYD3: 11 | EYE3: 11 | EYF3: 11 | EYG3: 11 | EYH3: 11 | EYI3: 11 | EYJ3: 11 | EYK3: 11 | EYL3: 11 | EYM3: 11 | EYN3: 11 | EYO3: 11 | EYP3: 11 | EYQ3: 11 | EYR3: 11 | EYS3: 11 | EYT3: 11 | EYU3: 11 | EYV3: 11 | EYW3: 11 | EYX3: 11 | EYY3: 11 | EYZ3: 11 | EZA3: 11 | EZB3: 11 | EZC3: 11 | EZD3: 11 | EZE3: 11 | EZF3: 11 | EZG3: 11 | EZH3: 11 | EZI3: 11 | EZJ3: 11 | EZK3: 11 | EZL3: 11 | EZM3: 11 | EZN3: 11 | EZO3: 11 | EZP3: 11 | EZQ3: 11 | EZR3: 11 | EZS3: 11 | EZT3: 11 | EZU3: 11 | EZV3: 11 | EZW3: 11 | EZX3: 11 | EZY3: 11 | EZZ3: 11 | FAA3: 11 | FAB3: 11 | FAC3: 11 | FAD3: 11 | FAE3: 11 | FAF3: 11 | FAG3: 11 | FAH3: 11 | FAI3: 11 | FAJ3: 11 | FAK3: 11 | FAL3: 11 | FAM3: 11 | FAN3: 11 | FAO3: 11 | FAP3: 11 | FAQ3: 11 | FAR3: 11 | FAS3: 11 | FAT3: 11 | FAU3: 11 | FAV3: 11 | FAW3: 11 | FAX3: 11 | FAY3: 11 | FAZ3: 11 | FBA3: 11 | FBB3: 11 | FBC3: 11 | FBD3: 11 | FBE3: 11 | FBF3: 11 | FBG3: 11 | FBH3: 11 | FBI3: 11 | FBJ3: 11 | FBK3: 11 | FBL3: 11 | FBM3: 11 | FBN3: 11 | FBO3: 11 | FBP3: 11 | FBQ3: 11 | FBR3: 11 | FBS3: 11 | FBT3: 11 | FBU3: 11 | FBV3: 11 | FBW3: 11 | FBX3: 11 | FBY3: 11 | FBZ3: 11 | FCA3: 11 | FCB3: 11 | FCC3: 11 | FCD3: 11 | FCE3: 11 | FCF3: 11 | FCG3: 11 | FCH3: 11 | FCI3: 11 | FCJ3: 11 | FCK3: 11 | FCL3: 11 | FCM3: 11 | FCN3: 11 | FCO3: 11 | FCP3: 11 | FCQ3: 11 | FCR3: 11 | FCS3: 11 | FCT3: 11 | FCU3: 11 | FCV3: 11 | FCW3: 11 | FCX3: 11 | FCY3: 11 | FCZ3: 11 | FDA3: 11 | FDB3: 11 | FDC3: 11 | FDD3: 11 | FDE3: 11 | FDF3: 11 | FDG3: 11 | FDH3: 11 | FDI3: 11 | FDJ3: 11 | FDK3: 11 | FDL3: 11 | FDM3: 11 | FDN3: 11 | FDO3: 11 | FDP3: 11 | FDQ3: 11 | FDR3: 11 | FDS3: 11 | FDT3: 11 | FDU3: 11 | FDV3: 11 | FDW3: 11 | FDX3: 11 | FDY3: 11 | FDZ3: 11 | FEA3: 11 | FEB3: 11 | FEC3: 11 | FED3: 11 | FEE3: 11 | FEF3: 11 | FEG3: 11 | FEH3: 11 | FEI3: 11 | FEJ3: 11 | FEK3: 11 | FEL3: 11 | FEM3: 11 | FEN3: 11 | FEO3: 11 | FEP3: 11 | FEQ3: 11 | FER3: 11 | FES3: 11 | FET3: 11 | FEU3: 11 | FEV3: 11 | FEW3: 11 | FEX3: 11 | FEY3: 11 | FEZ3: 11 | FFA3: 11 | FFB3: 11 | FFC3: 11 | FFD3: 11 | FFE3: 11 | FFF3: 11 | FFG3: 11 | FFH3: 11 | FFI3: 11 | FFJ3: 11 | FFK3: 11 | FFL3: 11 | FFM3: 11 | FFN3: 11 | FFO3: 11 | FFP3: 11 | FFQ3: 11 | FFR3: 11 | FFS3: 11 | FFT3: 11 | FFU3: 11 | FFV3: 11 | FFW3: 11 | FFX3: 11 | FFY3: 11 | FFZ3: 11 | FGA3: 11 | FGB3: 11 | FGC3: 11 | FGD3: 11 | FGE3: 11 | FGF3: 11 | FGG3: 11 | FGH3: 11 | FGI3: 11 | FGJ3: 11 | FGK3: 11 | FGL3: 11 | FGM3: 11 | FGN3: 11 | FGO3: 11 | FGP3: 11 | FGQ3: 11 | FGR3: 11 | FGS3: 11 | FGT3: 11 | FGU3: 11 | FGV3: 11 | FGW3: 11 | FGX3: 11 | FGY3: 11 | FGZ3: 11 | FHA3: 11 | FHB3: 11 | FHC3: 11 | FHD3: 11 | FHE3: 11 | FHF3: 11 | FHG3: 11 | FHH3: 11 | FHI3: 11 | FHJ3: 11 | FHK3: 11 | FHL3: 11 | FHM3: 11 | FHN3: 11 | FHO3: 11 | FHP3: 11 | FHQ3: 11 | FHR3: 11 | FHS3: 11 | FHT3: 11 | FHU3: 11 | FHV3: 11 | FHW3: 11 | FHX3: 11 | FHY3: 11 | FHZ3: 11 | FIA3: 11 | FIB3: 11 | FIC3: 11 | FID3: 11 | FIE3: 11 | FIF3: 11 | FIG3: 11 | FIH3: 11 | FII3: 11 | FIJ3: 11 | FIK3: 11 | FIL3: 11 | FIM3: 11 | FIN3: 11 | FIO3: 11 | FIP3: 11 | FIQ3: 11 | FIR3: 11 | FIS3: 11 | FIT3: 11 | FIU3: 11 | FIV3: 11 | FIW3: 11 | FIX3: 11 | FIY3: 11 | FIZ3: 11 | FJA3: 11 | FJB3: 11 | FJC3: 11 | FJD3: 11 | FJE3: 11 | FJF3: 11 | FJG3: 11 | FJH3: 11 | FJI3: 11 | FJJ3: 11 | FJK3: 11 | FJL3: 11 | FJM3: 11 | FJN3: 11 | FJO3: 11 | FJP3: 11 | FJQ3: 11 | FJR3: 11 | FJS3: 11 | FJT3: 11 | FJU3: 11 | FJV3: 11 | FJW3: 11 | FJX3: 11 | FJY3: 11 | FJZ3: 11 | FKA3: 11 | FKB3: 11 | FKC3: 11 | FKD3: 11 | FKE3: 11 | FKF3: 11 | FKG3: 11 | FKH3: 11 | FKI3: 11 | FKJ3: 11 | FKK3: 11 | FKL3: 11 | FKM3: 11 | FKN3: 11 | FKO3: 11 | FKP3: 11 | FKQ3: 11 | FKR3: 11 | FKS3: 11 | FKT3: 11 | FKU3: 11 | FKV3: 11 | FKW3: 11 | FKX3: 11 | FKY3: 11 | FKZ3: 11 | FLA3: 11 | FLB3: 11 | FLC3: 11 | FLD3: 11 | FLE3: 11 | FLF3: 11 | FLG3: 11 | FLH3: 11 | FLI3: 11 | FLJ3: 11 | FLK3: 11 | FLL3: 11 | FLM3: 11 | FLN3: 11 | FLO3: 11 | FLP3: 11 | FLQ3: 11 | FLR3: 11 | FLS3: 11 | FLT3: 11 | FLU3: 11 | FLV3: 11 | FLW3: 11 | FLX3: 11 | FLY3: 11 | FLZ3: 11 | FMA3: 11 | FMB3: 11 | FMC3: 11 | FMD3: 11 | FME3: 11 | FMF3: 11 | FMG3: 11 | FMH3: 11 | FMI3: 11 | FMJ3: 11 | FMK3: 11 | FML3: 11 | FMM3: 11 | FMN3: 11 | FMO3: 11 | FMP3: 11 | FMQ3: 11 | FMR3: 11 | FMS3: 11 | FMT3: 11 | FMU3: 11 | FMV3: 11 | FMW3: 11 | FMX3: 11 | FMY3: 11 | FMZ3: 11 | FNA3: 11 | FNB3: 11 | FNC3: 11 | FND3: 11 | FNE3: 11 | FNF3: 11 | FNG3: 11 | FNH3: 11 | FNI3: 11 | FNJ3: 11 | FNK3: 11 | FNL3: 11 | FNM3: 11 | FNN3: 11 | FNO3: 11 | FNP3: 11 | FNQ3: 11 | FNR3: 11 | FNS3: 11 | FNT3: 11 | FNU3: 11 | FNV3: 11 | FNW3: 11 | FNX3: 11 | FNY3: 11 | FNZ3: 11 | FOA3: 11 | FOB3: 11 | FOC3: 11 | FOD3: 11 | FOE3: 11 | FOF3: 11 | FOG3: 11 | FOH3: 11 | FOI3: 11 | FOJ3: 11 | FOK3: 11 | FOL3: 11 | FOM3: 11 | FON3: 11 | FOO3: 11 | FOP3: 11 | FOQ3: 11 | FOR3: 11 | FOS3: 11 | FOT3: 11 | FOU3: 11 | FOV3: 11 | FOW3: 11 | FOX3: 11 | FOY3: 11 | FOZ3: 11 | FPA3: 11 | FPB3: 11 | FPC3: 11 | FPD3: 11 | FPE3: 11 | FPF3: 11 | FPG3: 11 | FPH3: 11 | FPI3: 11 | FPJ3: 11 | FPK3: 11 | FPL3: 11 | FPM3: 11 | FPN3: 11 | FPO3: 11 | FPP3: 11 | FPQ3: 11 | FPR3: 11 | FPS3: 11 | FPT3: 11 | FPU3: 11 | FPV3: 11 | FPW3: 11 | FPX3: 11 | FPY3: 11 | FPZ3: 11 | FQA3: 11 | FQB3: 11 | FQC3: 11 | FQD3: 11 | FQE3: 11 | FQF3: 11 | FQG3: 11 | FQH3: 11 | FQI3: 11 | FQJ3: 11 | FQK3: 11 | FQL3: 11 | FQM3: 11 | FQN3: 11 | FQO3: 11 | FQP3: 11 | FQQ3: 11 | FQR3: 11 | FQS3: 11 | FQT3: 11 | FQU3: 11 | FQV3: 11 | FQW3: 11 | FQX3: 11 | FQY3: 11 | FQZ3: 11 | FRA3: 11 | FRB3: 11 | FRC3: 11 | FRD3: 11 | FRE3: 11 | FRF3: 11 | FRG3: 11 | FRH3: 11 | FRI3: 11 | FRJ3: 11 | FRK3: 11 | FRL3: 11 | FRM3: 11 | FRN3: 11 | FRO3: 11 | FRP3: 11 | FRQ3: 11 | FRR3: 11 | FRS3: 11 | FRT3: 11 | FRU3: 11 | FRV3: 11 | FRW3: 11 | FRX3: 11 | FRY3: 11 | FRZ3: 11 | FSA3: 11 | FSB3: 11 | FSC3: 11 | FSD3: 11 | FSE3: 11 | FSF3: 11 | FSG3: 11 | FSH3: 11 | FSI3: 11 | FSJ3: 11 | FSK3: 11 | FSL3: 11 | FSM3: 11 | FSN3: 11 | FSO3: 11 | FSP3: 11 | FSQ3: 11 | FSR3: 11 | FSS3: 11 | FST3: 11 | FSU3: 11 | FSV3: 11 | FSW3: 11 | FSX3: 11 | FSY3: 11 | FSZ3: 11 | FTA3: 11 | FTB3: 11 | FTC3: 11 | FTD3: 11 | FTE3: 11 | FTF3: 11 | FTG3: 11 | FTH3: 11 | FTI3: 11 | FTJ3: 11 | FTK3: 11 | FTL3: 11 | FTM3: 11 | FTN3: 11 | FTO3: 11 | FTP3: 11 | FTQ3: 11 | FTR3: 11 | FTS3: 11 | FTT3: 11 | FTU3: 11 | FTV3: 11 | FTW3: 11 | FTX3: 11 | FTY3: 11 | FTZ3: 11 | FUA3: 11 | FUB3: 11 | FUC3: 11 | FUD3: 11 | FUE3: 11 | FUF3: 11 | FUG3: 11 | FUH3: 11 | FUI3: 11 | FUJ3: 11 | FUK3: 11 | FUL3: 11 | FUM3: 11 | FUN3: 11 | FUO3: 11 | FUP3: 11 | FUQ3: 11 | FUR3: 11 | FUS3: 11 | FUT3: 11 | FUU3: 11 | FUV3: 11 | FUW3: 11 | FUX3: 11 | FUY3: 11 | FUZ3: 11 | FVA3: 11 | FVB3: 11 | FVC3: 11 | FVD3: 11 | FVE3: 11 | FVF3: 11 | FVG3: 11 | FVH3: 11 | FVI3: 11 | FVJ3: 11 | FVK3: 11 | FVL3: 11 | FVM3: 11 | FVN3: 11 | FVO3: 11 | FVP3: 11 | FVQ3: 11 | FVR3: 11 | FVS3: 11 | FVT3: 11 | FVU3: 11 | FVV3: 11 | FVW3: 11 | FVX3: 11 | FVY3: 11 | FVZ3: 11 | FWA3: 11 | FWB3: 11 | FWC3: 11 | FWD3: 11 | FWE3: 11 | FWF3: 11 | FWG3: 11 | FWH3: 11 | FWI3: 11 | FWJ3: 11 | FWK3: 11 | FWL3: 11 | FWM3: 11 | FWN3: 11 | FWO3: 11 | FWP3: 11 | FWQ3: 11 | FWR3: 11 | FWS3: 11 | FWT3: 11 | FWU3: 11 | FWV3: 11 | FWW3: 11 | FWX3: 11 | FWY3: 11 | FWZ3: 11 | FXA3: 11 | FXB3: 11 | FXC3: 11 | FXD3: 11 | FXE3: 11 | FXF3: 11 | FXG3: 11 | FXH3: 11 | FXI3: 11 | FXJ3: 11 | FXK3: 11 | FXL3: 11 | FXM3: 11 | FXN3: 11 | FXO3: 11 | FXP3: 11 | FXQ3: 11 | FXR3: 11 | FXS3: 11 | FXT3: 11 | FXU3: 11 | FXV3: 11 | FXW3: 11 | FXX3: 11 | FXY3: 11 | FXZ3: 11 | FYA3: 11 | FYB3: 11 | FYC3: 11 | FYD3: 11 | FYE3: 11 | FYF3: 11 | FYG3: 11 | FYH3: 11 | FYI3: 11 | FYJ3: 11 | FYK3: 11 | FYL3: 11 | FYM3: 11 | FYN3: 11 | FYO3: 11 | FYP3: 11 | FYQ3: 11 | FYR3: 11 | FYS3: 11 | FYT3: 11 | FYU3: 11 | FYV3: 11 | FYW3: 11 | FYX3: 11 | FYY3: 11 | FYZ3: 11 | FZA3: 11 | FZB3: 11 | FZC3: 11 | FZD3: 11 | FZE3: 11 | FZF3: 11 | FZG3: 11 | FZH3: 11 | FZI3: 11 | FZJ3: 11 | FZK3: 11 | FZL3: 11 | FZM3: 11 | FZN3: 11 | FZO3: 11 | FZP3: 11 | FZQ3: 11 | FZR3: 11 | FZS3: 11 | FZT3: 11 | FZU3: 11 | FZV3: 11 | FZW3: 11 | FZX3: 11 | FZY3: 11 | FZZ3: 11 | GAA3: 11 | GAB3: 11 | GAC3: 11 | GAD3: 11 | GAE3: 11 | GAF3: 11 | GAG3: 11 | GAH3: 11 | GAI3: 11 | GAJ3: 11 | GAK3: 11 | GAL3: 11 | GAM3: 11 | GAN3: 11 | GAO3: 11 | GAP3: 11 | GAQ3: 11 | GAR3: 11 | GAS3: 11 | GAT3: 11 | GAU3: 11 | GAV3: 11 | GAW3: 11 | GAX3: 11 | GAY3: 11 | GAZ3: 11 | GBA3: 11 | GBB3: 11 | GBC3: 11 | GBD3: 11 | GBE3: 11 | GBF3: 11 | GBG3: 11 | GBH3: 11 | GBI3: 11 | GBJ3: 11 | GBK3: 11 | GBL3: 11 | GBM3: 11 | GBN3: 11 | GBO3: 11 | GBP3: 11 | GBQ3: 11 | GBR3: 11 | GBS3: 11 | GBT3: 11 | GBU3: 11 | GBV3: 11 | GBW3: 11 | GBX3: 11 | GBY3: 11 | GBZ3: 11 | GCA3: 11 | GCB3: 11 | GCC3: 11 | GCD3: 11 | GCE3: 11 | GCF3: 11 | GCG3: 11 | GCH3: 11 | GCI3: 11 | GCJ3: 11 | GCK3: 11 | GCL3: 11 | GCM3: 11 | GCN3: 11 | GCO3: 11 | GCP3: 11 | GCQ3: 11 | GCR3: 11 | GCS3: 11 | GCT3: 11 | GCU3: 11 | GCV3: 11 | GCW3: 11 | GCX3: 11 | GCY3: 11 | GCZ3: 11 | GDA3: 11 | GDB3: 11 | GDC3: 11 | GDD3: 11 | GDE3: 11 | GDF3: 11 | GDG3: 11 | GDH3: 11 | GDI3: 11 | GDJ3: 11 | GDK3: 11 | GDL3: 11 | GDM3: 11 | GDN3: 11 | GDO3: 11 | GDP3: 11 | GDQ3: 11 | GDR3: 11 | GDS3: 11 | GDT3: 11 | GDU3: 11 | GDV3: 11 | GDW3: 11 | GDX3: 11 | GDY3: 11 | GDZ3: 11 | GEA3: 11 | GEB3: 11 | GEC3: 11 | GED3: 11 | GEE3: 11 | GEF3: 11 | GEG3: 11 | GEH3: 11 | GEI3: 11 | GEJ3: 11 | GEK3: 11 | GEL3: 11 | GEM3: 11 | GEN3: 11 | GEO3: 11 | GEP3: 11 | GEQ3: 11 | GER3: 11 | GES3: 11 | GET3: 11 | GEU3: 11 | GEV3: 11 | GEW3: 11 | GEX3: 11 | GEY3: 11 | GEZ3: 11 | GFA3: 11 | GFB3: 11 | GFC3: 11 | GFD3: 11 | GFE3: 11 | GFF3: 11 | GFG3: 11 | GFH3: 11 | GFI3: 11 | GFJ3: 11 | GFK3: 11 | GFL3: 11 | GFM3: 11 | GFN3: 11 | GFO3: 11 | GFP3: 11 | GFQ3: 11 | GFR3: 11 | GFS3: 11 | GFT3: 11 | GFU3: 11 | GFV3: 11 | GFW3: 11 | GFX3: 11 | GFY3: 11 | GFZ3: 11 | GGA3: 11 | GGB3: 11 | GGC3: 11 | GGD3: 11 | GGE3: 11 | GGF3: 11 | GGG3: 11 | GGH3: 11 | GGI3: 11 | GGJ3: 11 | GGK3: 11 | GGL3: 11 | GGM3: 11 | GGN3: 11 | GGO3: 11 | GGP3: 11 | GGQ3: 11 | GGR3: 11 | GGS3: 11 | GGT3: 11 | GGU3: 11 | GGV3: 11 | GGW3: 11 | GGX3: 11 | GGY3: 11 | GGZ3: 11 | GHA3: 11 | GHB3: 11 | GHC3: 11 | GHD3: 11 | GHE3: 11 | GHF3: 11 | GHG3: 11 | GHH3: 11 | GHI3: 11 | GHJ3: 11 | GHK3: 11 | GHL3: 11 | GHM3: 11 | GHN3: 11 | GHO3: 11 | GHP3: 11 | GHQ3: 11 | GHR3: 11 | GHS3: 11 | GHT3: 11 | GHU3: 11 | GHV3: 11 | GHW3: 11 | GHX3: 11 | GHY3: 11 | GHZ3: 11 | GIA3: 11 | GIB3: 11 | GIC3: 11 | GID3: 11 | GIE3: 11 | GIF3: 11 | GIG3: 11 | GIH3: 11 | GII3: 11 | GIJ3: 11 | GIK3: 11 | GIL3: 11 | GIM3: 11 | GIN3: 11 | GIO3: 11 | GIP3: 11 | GIQ3: 11 | GIR3: 11 | GIS3: 11 | GIT3: 11 | GIU3: 11 | GIV3: 11 | GIW3: 11 | GIX3: 11 | GIY3: 11 | GIZ3: 11 | GJA3: 11 | GJB3: 11 | GJC3: 11 | GJD3: 11 | GJE3: 11 | GJF3: 11 | GJG3: 11 | GJH3: 11 | GJI3: 11 | GJJ3: 11 | GJK3: 11 | GJL3: 11 | GJM3: 11 | GJN3: 11 | GJO3: 11 | GJP3: 11 | GJQ3: 11 | GJR3: 11 | GJS3: 11 | GJT3: 11 | GJU3: 11 | GJV3: 11 | GJW3: 11 | GJX3: 11 | GJY3: 11 | GJZ3: 11 | GKA3: 11 | GKB3: 11 | GKC3: 11 | GKD3: 11 | GKE3: 11 | GKF3: 11 | GKG3: 11 | GKH3: 11 | GKI3: 11 | GKJ3: 11 | GKK3: 11 | GKL3: 11 | GKM3: 11 | GKN3: 11 | GKO3: 11 | GKP3: 11 | GKQ3: 11 | GKR3: 11 | GKS3: 11 | GKT3: 11 | GKU3: 11 | GKV3: 11 | GKW3: 11 | GKX3: 11 | GKY3: 11 | GKZ3: 11 | GLA3: 11 | GLB3: 11 | GLC3: 11 | GLD3: 11 | GLE3: 11 | GLF3: 11 | GLG3: 11 | GLH3: 11 | GLI3: 11 | GLJ3: 11 | GLK3: 11 | GLL3: 11 | GLM3: 11 | GLN3: 11 | GLO3: 11 | GLP3: 11 | GLQ3: 11 | GLR3: 11 | GLS3: 11 | GLT3: 11 | GLU3: 11 | GLV3: 11 | GLW3: 11 | GLX3: 11 | GLY3: 11 | GLZ3: 11 | GMA3: 11 | GMB3: 11 | GMC3: 11 | GMD3: 11 | GME3: 11 | GMF3: 11 | GMG3: 11 | GMH3: 11 | GMI3: 11 | GMJ3: 11 | GMK3: 11 | GML3: 11 | GMM3: 11 | GMN3: 11 | GMO3: 11 | GMP3: 11 | GMQ3: 11 | GMR3: 11 | GMS3: 11 | GMT3: 11 | GMU3: 11 | GMV3: 11 | GMW3: 11 | GMX3: 11 | GMY3: 11 | GMZ3: 11 | GNA3: 11 | GNB3: 11 | GNC3: 11 | GND3: 11 | GNE3: 11 | GNF3: 11 | GNG3: 11 | GNH3: 11 | GNI3: 11 | GNJ3: 11 | GNK3: 11 | GNL3: 11 | GNM3: 11 | GNN3: 11 | GNO3: 11 | GNP3: 11 | GNQ3: 11 | GNR3: 11 | GNS3: 11 | GNT3: 11 | GNU3: 11 | GNV3: 11 | GNW3: 11 | GNX3: 11 | GNY3: 11 | GNZ3: 11 | GOA3: 11 | GOB3: 11 | GOC3: 11 | GOD3: 11 | GOE3: 11 | GOF3: 11 | GOG3: 11 | GOH3: 11 | GOI3: 11 | GOJ3: 11 | GOK3: 11 | GOL3: 11 | GOM3: 11 | GON3: 11 | GOO3: 11 | GOP3: 11 | GOQ3: 11 | GOR3: 11 | GOS3: 11 | GOT3: 11 | GOU3: 11 | GOV3: 11 | GOW3: 11 | GOX3: 11 | GOY3: 11 | GOZ3: 11 | GPA3: 11 | GPB3: 11 | GPC3: 11 | GPD3: 11 | GPE3: 11 | GPF3: 11 | GPG3: 11 | GPH3: 11 | GPI3: 11 | GPJ3: 11 | GPK3: 11 | GPL3: 11 | GPM3: 11 | GPN3: 11 | GPO3: 11 | GPP3: 11 | GPQ3: 11 | GPR3: 11 | GPS3: 11 | GPT3: 11 | GPU3: 11 | GPV3: 11 | GPW3: 11 | GPX3: 11 | GPY3: 11 | GPZ3: 11 | GQA3: 11 | GQB3: 11 | GQC3: 11 | GQD3: 11 | GQE3: 11 | GQF3: 11 | GQG3: 11 | GQH3: 11 | GQI3: 11 | GQJ3: 11 | GQK3: 11 | GQL3: 11 | GQM3: 11 | GQN3: 11 | GQO3: 11 | GQP3: 11 | GQQ3: 11 | GQR3: 11 | GQS3: 11 | GQT3: 11 | GQU3: 11 | GQV3: 11 | GQW3: 11 | GQX3: 11 | GQY3: 11 | GQZ3: 11 | GRA3: 11 | GRB3: 11 | GRC3: 11 | GRD3: 11 | GRE3: 11 | GRF3: 11 | GRG3: 11 | GRH3: 11 | GRI3: 11 | GRJ3: 11 | GRK3: 11 | GRL3: 11 | GRM3: 11 | GRN3: 11 | GRO3: 11 | GRP3: 11 | GRQ3: 11 | GRR3: 11 | GRS3: 11 | GRT3: 11 | GRU3: 11 | GRV3: 11 | GRW3: 11 | GRX3: 11 | GRY3: 11 | GRZ3: 11 | GSA3: 11 | GSB3: 11 | GSC3: 11 | GSD3: 11 | GSE3: 11 | GSF3: 11 | GSG3: 11 | GSH3: 11 | GSI3: 11 | GSJ3: 11 | GSK3: 11 | GSL3: 11 | GSM3: 11 | GSN3: 11 | GSO3: 11 | GSP3: 11 | GSQ3: 11 | GSR3: 11 | GSS3: 11 | GST3: 11 | GSU3: 11 | GSV3: 11 | GSW3: 11 | GSX3: 11 | GSY3: 11 | GSZ3: 11 | GTA3: 11 | GTB3: 11 | GTC3: 11 | GTD3: 11 | GTE3: 11 | GTF3: 11 | GTG3: 11 | GTH3: 11 | GTI3: 11 | GTJ3: 11 | GTK3: 11 | GTL3: 11 | GTM3: 11 | GTN3: 11 | GTO3: 11 | GTP3: 11 | GTQ3: 11 | GTR3: 11 | GTS3: 11 | GTT3: 11 | GTU3: 11 | GTV3: 11 | GTW3: 11 | GTX3: 11 | GTY3: 11 | GTZ3: 11 | GUA3: 11 | GUB3: 11 | GUC3: 11 | GUD3: 11 | GUE3: 11 | GUF3: 11 | GUG3: 11 | GUH3: 11 | GUI3: 11 | GUJ3: 11 | GUK3: 11 | GUL3: 11 | GUM3: 11 | GUN3: 11 | GUO3: 11 | GUP3: 11 | GUQ3: 11 | GUR3: 11 | GUS3: 11 | GUT3: 11 | GUU3: 11 | GUV3: 11 | GUW3: 11 | GUX3: 11 | GUY3: 11 | GUZ3: 11 | GVA3: 11 | GVB3: 11 | GVC3: 11 | GVD3: 11 | GVE3: 11 | GVF3: 11 | GVG3: 11 | GVH3: 11 | GVI3: 11 | GVJ3: 11 | GVK3: 11 | GVL3: 11 | GVM3: 11 | GVN3: 11 | GVO3: 11 | GVP3: 11 | GVQ3: 11 | GVR3: 11 | GVS3: 11 | GVT3: 11 | GVU3: 11 | GVV3: 11 | GVW3: 11 | GVX3: 11 | GVY3: 11 | GVZ3: 11 | GWA3: 11 | GWB3: 11 | GWC3: 11 | GWD3: 11 | GWE3: 11 | GWF3: 11 | GWG3: 11 | GWH3: 11 | GWI3: 11 | GWJ3: 11 | GWK3: 11 | GWL3: 11 | GWM3: 11 | GWN3: 11 | GWO3: 11 | GWP3: 11 | GWQ3: 11 | GWR3: 11 | GWS3: 11 | GWT3: 11 | GWU3: 11 | GWV3: 11 | GWW3: 11 | GWX3: 11 | GWY3: 11 | GWZ3: 11 | GXA3: 11 | GXB3: 11 | GXC3: 11 | GXD3: 11 | GXE3: 11 | GXF3: 11 | GXG3: 11 | GXH3: 11 | GXI3: 11 | GXJ3: 11 | GXK3: 11 | GXL3: 11 | GXM3: 11 | GXN3: 11 | GXO3: 11 | GXP3: 11 | GXQ3: 11 | GXR3: 11 | GXS3: 11 | GXT3: 11 | GXU3: 11 | GXV3: 11 | GXW3: 11 | GXX3: 11 | GXY3: 11 | GXZ3: 11 | GYA3: 11 | GYB3: 11 | GYC3: 11 | GYD3: 11 | GYE3: 11 | GYF3: 11 | GYG3: 11 | GYH3: 11 | GYI3: 11 | GYJ3: 11 | GYK3: 11 | GYL3: 11 | GYM3: 11 | GYN3: 11 | GYO3: 11 | GYP3: 11 | GYQ3: 11 | GYR3: 11 | GYS3: 11 | GYT3: 11 | GYU3: 11 | GYV3: 11 | GYW3: 11 | GYX3: 11 | GYY3: 11 | GYZ3: 11 | GZA3: 11 | GZB3: 11 | GZC3: 11 | GZD3: 11 | GZE3: 11 | GZF3: 11 | GZG3: 11 | GZH3: 11 | GZI3: 11 | GZJ3: 11 | GZK3: 11 | GZL3: 11 | GZM3: 11 | GZN3: 11 | GZO3: 11 | GZP3: 11 | GZQ3: 11 | GZR3: 11 | GZS3: 11 | GZT3: 11 | GZU3: 11 | GZV3: 11 | GZW3: 11 | GZX3: 11 | GZY3: 11 | GZZ3: 11 | HAA3: 11 | HAB3: 11 | HAC3: 11 | HAD3: 11 | HAE3: 11 | HAF3: 11 | HAG3: 11 | HAH3: 11 | HAI3: 11 | HAJ3: 11 | HAK3: 11 | HAL3: 11 | HAM3: 11 | HAN3: 11 | HAO3: 11 | HAP3: 11 | HAQ3: 11 | HAR3: 11 | HAS3: 11 | HAT3: 11 | HAU3: 11 | HAV3: 11 | HAW3: 11 | HAX3: 11 | HAY3: 11 | HAZ3: 11 | HBA3: 11 | HBB3: 11 | HBC3: 11 | HBD3: 11 | HBE3: 11 | HBF3: 11 | HBG3: 11 | HBH3: 11 | HBI3: 11 | HBJ3: 11 | HBK3: 11 | HBL3: 11 | HBM3: 11 | HBN3: 11 | HBO3: 11 | HBP3: 11 | HBQ3: 11 | HBR3: 11 | HBS3: 11 | HBT3: 11 | HBU3: 11 | HBV3: 11 | HBW3: 11 | HBX3: 11 | HBY3: 11 | HBZ3: 11 | HCA3: 11 | HCB3: 11 | HCC3: 11 | HCD3: 11 | HCE3: 11 | HCF3: 11 | HCG3: 11 | HCH3: 11 | HCI3: 11 | HCJ3: 11 | HCK3: 11 | HCL3: 11 | HCM3: 11 | HCN3: 11 | HCO3: 11 | HCP3: 11 | HCQ3: 11 | HCR3: 11 | HCS3: 11 | HCT3: 11 | HCU3: 11 | HCV3: 11 | HCW3: 11 | HCX3: 11 | HCY3: 11 | HCZ3: 11 | HDA3: 11 | HDB3: 11 | HDC3: 11 | HDD3: 11 | HDE3: 11 | HDF3: 11 | HDG3: 11 | HDH3: 11 | HDI3: 11 | HDJ3: 11 | HDK3: 11 | HDL3: 11 | HDM3: 11 | HDN3: 11 | HDO3: 11 | HDP3: 11 | HDQ3: 11 | HDR3: 11 | HDS3: 11 | HDT3: 11 | HDU3: 11 | HDV3: 11 | HDW3: 11 | HDX3: 11 | HDY3: 11 | HDZ3: 11 | HEA3: 11 | HEB3: 11 | HEC3: 11 | HED3: 11 | HEE3: 11 | HEF3: 11 | HEG3: 11 | HEH3: 11 | HEI3: 11 | HEJ3: 11 | HEK3: 11 | HEL3: 11 | HEM3: 11 | HEN3: 11 | HEO3: 11 | HEP3: 11 | HEQ3: 11 | HER3: 11 | HES3: 11 | HET3: 11 | HEU3: 11 | HEV3: 11 | HEW3: 11 | HEX3: 11 | HEY3: 11 | HEZ3: 11 | HFA3: 11 | HFB3: 11 | HFC3: 11 | HFD3: 11 | HFE3: 11 | HFF3: 11 | HFG3: 11 | HFH3: 11 | HFI3: 11 | HFJ3: 11 | HFK3: 11 | HFL3: 11 | HFM3: 11 | HFN3: 11 | HFO3: 11 | HFP3: 11 | HFQ3: 11 | HFR3: 11 | HFS3: 11 | HFT3: 11 | HFU3: 11 | HFV3: 11 | HFW3: 11 | HFX3: 11 | HFY3: 11 | HFZ3: 11 | HGA3: 11 | HGB3: 11 | HGC3: 11 | HGD3: 11 | HGE3: 11 | HGF3: 11 | HGG3: 11 | HGH3: 11 | HGI3: 11 | HGJ3: 11 | HGK3: 11 | HGL3: 11 | HGM3: 11 | HGN3: 11 | HGO3: 11 | HGP3: 11 | HGQ3: 11 | HGR3: 11 | HGS3: 11 | HGT3: 11 | HGU3: 11 | HGV3: 11 | HGW3: 11 | HGX3: 11 | HGY3: 11 | HGZ3: 11 | HHA3: 11 | HHB3: 11 | HHC3: 11 | HHD3: 11 | HHE3: 11 | HHF3: 11 | HHG3: 11 | HHH3: 11 | HHI3: 11 | HHJ3: 11 | HHK3: 11 | HHL3: 11 | HHM3: 11 | HHN3: 11 | HHO3: 11 | HHP3: 11 | HHQ3: 11 | HHR3: 11 | HHS3: 11 | HHT3: 11 | HHU3: 11 | HHV3: 11 | HHW3: 11 | HHX3: 11 | HHY3: 11 | HHZ3: 11 | HIA3: 11 | HIB3: 11 | HIC3: 11 | HID3: 11 | HIE3: 11 | HIF3: 11 | HIG3: 11 | HIH3: 11 | HII3: 11 | HIJ3: 11 | HIK3: 11 | HIL3: 11 | HIM3: 11 | HIN3: 11 | HIO3: 11 | HIP3: 11 | HIQ3: 11 | HIR3: 11 | HIS3: 11 | HIT3: 11 | HIU3: 11 | HIV3: 11 | HIW3: 11 | HIX3: 11 | HIY3: 11 | HIZ3: 11 | HJA3: 11 | HJB3: 11 | HJC3: 11 | HJD3: 11 | HJE3: 11 | HJF3: 11 | HJG3: 11 | HJH3: 11 | HJI3: 11 | HJJ3: 11 | HJK3: 11 | HJL3: 11 | HJM3: 11 | HJN3: 11 | HJO3: 11 | HJP3: 11 | HJQ3: 11 | HJR3: 11 | HJS3: 11 | HJT3: 11 | HJU3: 11 | HJV3: 11 | HJW3: 11 | HJX3: 11 | HJY3: 11 | HJZ3: 11 | HKA3: 11 | HKB3: 11 | HKC3: 11 | HKD3: 11 | HKE3: 11 | HKF3: 11 | HKG3: 11 | HKH3: 11 | HKI3: 11 | HKJ3: 11 | HKK3: 11 | HKL3: 11 | HKM3: 11 | HKN3: 11 | HKO3: 11 | HKP3: 11 | HKQ3: 11 | HKR3: 11 | HKS3: 11 | HKT3: 11 | HKU3: 11 | HKV3: 11 | HKW3: 11 | HKX3: 11 | HKY3: 11 | HKZ3: 11 | HLA3: 11 | HLB3: 11 | HLC3: 11 | HLD3: 11 | HLE3: 11 | HLF3: 11 | HLG3: 11 | HLH3: 11 | HLI3: 11 | HLJ3: 11 | HLK3: 11 | HLL3: 11 | HLM3: 11 | HLN3: 11 | HLO3: 11 | HLP3: 11 | HLQ3: 11 | HLR3: 11 | HLS3: 11 | HLT3: 11 | HLU3: 11 | HLV3: 11 | HLW3: 11 | HLX3: 11 | HLY3: 11 | HLZ3: 11 | HMA3: 11 | HMB3: 11 | HMC3: 11 | HMD3: 11 | HME3: 11 | HMF3: 11 | HMG3: 11 | HMH3: 11 | HMI3: 11 | HMJ3: 11 | HMK3: 11 | HML3: 11 | HMM3: 11 | HMN3: 11 | HMO3: 11 | HMP3: 11 | HMQ3: 11 | HMR3: 11 | HMS3: 11 | HMT3: 11 | HMU3: 11 | HMV3: 11 | HMW3: 11 | HMX3: 11 | HMY3: 11 | HMZ3: 11 | HNA3: 11 | HNB3: 11 | HNC3: 11 | HND3: 11 | HNE3: 11 | HNF3: 11 | HNG3: 11 | HNH3: 11 | HNI3: 11 | HNJ3: 11 | HNK3: 11 | HNL3: 11 | HNM3: 11 | HNN3: 11 | HNO3: 11 | HNP3: 11 | HNQ3: 11 | HNR3: 11 | HNS3: 11 | HNT3: 11 | HNU3: 11 | HNV3: 11 | HNW3: 11 | HNX3: 11 | HNY3: 11 | HNZ3: 11 | HOA3: 11 | HOB3: 11 | HOC3: 11 | HOD3: 11 | HOE3: 11 | HOF3: 11 | HOG3: 11 | HOH3: 11 | HOI3: 11 | HOJ3: 11 | HOK3: 11 | HOL3: 11 | HOM3: 11 | HON3: 11 | HOO3: 11 | HOP3: 11 | HOQ3: 11 | HOR3: 11 | HOS3: 11 | HOT3: 11 | HOU3: 11 | HOV3: 11 | HOW3: 11 | HOX3: 11 | HOY3: 11 | HOZ3: 11 | HPA3: 11 | HPB3: 11 | HPC3: 11 | HPD3: 11 | HPE3: 11 | HPF3: 11 | HPG3: 11 | HPH3: 11 | HPI3: 11 | HPJ3: 11 | HPK3: 11 | HPL3: 11 | HPM3: 11 | HPN3: 11 | HPO3: 11 | HPP3: 11 | HPQ3: 11 | HPR3: 11 | HPS3: 11 | HPT3: 11 | HPU3: 11 | HPV3: 11 | HPW3: 11 | HPX3: 11 | HPY3: 11 | HPZ3: 11 | HQA3: 11 | HQB3: 11 | HQC3: 11 | HQD3: 11 | HQE3: 11 | HQF3: 11 | HQG3: 11 | HQH3: 11 | HQI3: 11 | HQJ3: 11 | HQK3: 11 | HQL3: 11 | HQM3: 11 | HQN3: 11 | HQO3: 11 | HQP3: 11 | HQQ3: 11 | HQR3: 11 | HQS3: 11 | HQT3: 11 | HQU3: 11 | HQV3: 11 | HQW3: 11 | HQX3: 11 | HQY3: 11 | HQZ3: 11 | HRA3: 11 | HRB3: 11 | HRC3: 11 | HRD3: 11 | HRE3: 11 | HRF3: 11 | HRG3: 11 | HRH3: 11 | HRI3: 11 | HRJ3: 11 | HRK3: 11 | HRL3: 11 | HRM3: 11 | HRN3: 11 | HRO3: 11 | HRP3: 11 | HRQ3: 11 | HRR3: 11 | HRS3: 11 | HRT3: 11 | HRU3: 11 | HRV3: 11 | HRW3: 11 | HRX3: 11 | HRY3: 11 | HRZ3: 11 | HSA3: 11 | HSB3: 11 | HSC3: 11 | HSD3: 11 | HSE3: 11 | HSF3: 11 | HSG3: 11 | HSH3: 11 | HSI3: 11 | HSJ3: 11 | HSK3: 11 | HSL3: 11 | HSM3: 11 | HSN3: 11 | HSO3: 11 | HSP3: 11 | HSQ3: 11 | HSR3: 11 | HSS3: 11 | HST3: 11 | HSU3: 11 | HSV3: 11 | HSW3: 11 | HSX3: 11 | HSY3: 11 | HSZ3: 11 | HTA3: 11 | HTB3: 11 | HTC3: 11 | HTD3: 11 | HTE3: 11 | HTF3: 11 | HTG3: 11 | HTH3: 11 | HTI3: 11 | HTJ3: 11 | HTK3: 11 | HTL3: 11 | HTM3: 11 | HTN3: 11 | HTO3: 11 | HTP3: 11 | HTQ3: 11 | HTR3: 11 | HTS3: 11 | HTT3: 11 | HTU3: 11 | HTV3: 11 | HTW3: 11 | HTX3: 11 | HTY3: 11 | HTZ3: 11 | HUA3: 11 | HUB3: 11 | HUC3: 11 | HUD3: 11 | HUE3: 11 | HUF3: 11 | HUG3: 11 | HUH3: 11 | HUI3: 11 | HUJ3: 11 | HUK3: 11 | HUL3: 11 | HUM3: 11 | HUN3: 11 | HUO3: 11 | HUP3: 11 | HUQ3: 11 | HUR3: 11 | HUS3: 11 | HUT3: 11 | HUU3: 11 | HUV3: 11 | HUW3: 11 | HUX3: 11 | HUY3: 11 | HUZ3: 11 | HVA3: 11 | HVB3: 11 | HVC3: 11 | HVD3: 11 | HVE3: 11 | HVF3: 11 | HVG3: 11 | HVH3: 11 | HVI3: 11 | HVJ3: 11 | HVK3: 11 | HVL3: 11 | HVM3: 11 | HVN3: 11 | HVO3: 11 | HVP3: 11 | HVQ3: 11 | HVR3: 11 | HVS3: 11 | HVT3: 11 | HVU3: 11 | HVV3: 11 | HVW3: 11 | HVX3: 11 | HVY3: 11 | HVZ3: 11 | HWA3: 11 | HWB3: 11 | HWC3: 11 | HWD3: 11 | HWE3: 11 | HWF3: 11 | HWG3: 11 | HWH3: 11 | HWI3: 11 | HWJ3: 11 | HWK3: 11 | HWL3: 11 | HWM3: 11 | HWN3: 11 | HWO3: 11 | HWP3: 11 | HWQ3: 11 | HWR3: 11 | HWS3: 11 | HWT3: 11 | HWU3: 11 | HWV3: 11 | HWW3: 11 | HWX3: 11 | HWY3: 11 | HWZ3: 11 | HXA3: 11 | HXB3: 11 | HXC3: 11 | HXD3: 11 | HXE3: 11 | HXF3: 11 | HXG3: 11 | HXH3: 11 | HXI3: 11 | HXJ3: 11 | HXK3: 11 | HXL3: 11 | HXM3: 11 | HXN3: 11 | HXO3: 11 | HXP3: 11 | HXQ3: 11 | HXR3: 11 | HXS3: 11 | HXT3: 11 | HXU3: 11 | HXV3: 11 | HXW3: 11 | HXX3: 11 | HXY3: 11 | HXZ3: 11 | HYA3: 11 | HYB3: 11 | HYC3: 11 | HYD3: 11 | HYE3: 11 | HYF3: 11 | HYG3: 11 | HYH3: 11 | HYI3: 11 | HYJ3: 11 | HYK3: 11 | HYL3: 11 | HYM3: 11 | HYN3: 11 | HYO3: 11 | HYP3: 11 | HYQ3: 11 | HYR3: 11 | HYS3: 11 | HYT3: 11 | HYU3: 11 | HYV3: 11 | HYW3: 11 | HYX3: 11 | HYY3: 11 | HYZ3: 11 | HZA3: 11 | HZB3: 11 | HZC3: 11 | HZD3: 11 | HZE3: 11 | HZF3: 11 | HZG3: 11 | HZH3: 11 | HZI3: 11 | HZJ3: 11 | HZK3: 11 | HZL3: 11 | HZM3: 11 | HZN3: 11 | HZO3: 11 | HZP3: 11 | HZQ3: 11 | HZR3: 11 | HZS3: 11 | HZT3: 11 | HZU3: 11 | HZV3: 11 | HZW3: 11 | HZX3: 11 | HZY3: 11 | HZZ3: 11 | IAA3: 11 | IAB3: 11 | IAC3: 11 | IAD3: 11 | IAE3: 11 | IAF3: 11 | IAG3: 11 | IAH3: 11 | IAI3: 11 | IAJ3: 11 | IAK3: 11 | IAL3: 11 | IAM3: 11 | IAN3: 11 | IAO3: 11 | IAP3: 11 | IAQ3: 11 | IAR3: 11 | IAS3: 11 | IAT3: 11 | IAU3: 11 | IAV3: 11 | IAW3: 11 | IAX3: 11 | IAY3: 11 | IAZ3: 11 | IBA3: 11 | IBB3: 11 | IBC3: 11 | IBD3: 11 | IBE3: 11 | IBF3: 11 | IBG3: 11 | IBH3: 11 | IBI3: 11 | IBJ3: 11 | IBK3: 11 | IBL3: 11 | IBM3: 11 | IBN3: 11 | IBO3: 11 | IBP3: 11 | IBQ3: 11 | IBR3: 11 | IBS3: 11 | IBT3: 11 | IBU3: 11 | IBV3: 11 | IBW3: 11 | IBX3: 11 | IBY3: 11 | IBZ3: 11 | ICA3: 11 | ICB3: 11 | ICC3: 11 | ICD3: 11 | ICE3: 11 | ICF3: 11 | ICG3: 11 | ICH3: 11 | ICI3: 11 | ICJ3: 11 | ICK3: 11 | ICL3: 11 | ICM3: 11 | ICN3: 11 | ICO3: 11 | ICP3: 11 | ICQ3: 11 | ICR3: 11 | ICS3: 11 | ICT3: 11 | ICU3: 11 | ICV3: 11 | ICW3: 11 | ICX3: 11 | ICY3: 11 | ICZ3: 11 | IDA3: 11 | IDB3: 11 | IDC3: 11 | IDD3: 11 | IDE3: 11 | IDF3: 11 | IDG3: 11 | IDH3: 11 | IDI3: 11 | IDJ3: 11 | IDK3: 11 | IDL3: 11 | IDM3: 11 | IDN3: 11 | IDO3: 11 | IDP3: 11 | IDQ3: 11 | IDR3: 11 | IDS3: 11 | IDT3: 11 | IDU3: 11 | IDV3: 11 | IDW3: 11 | IDX3: 11 | IDY3: 11 | IDZ3: 11 | IEA3: 11 | IEB3: 11 | IEC3: 11 | IED3: 11 | IEE3: 11 | IEF3: 11 | IEG3: 11 | IEH3: 11 | IEI3: 11 | IEJ3: 11 | IEK3: 11 | IEL3: 11 | IEM3: 11 | IEN3: 11 | IEO3: 11 | IEP3: 11 | IEQ3: 11 | IER3: 11 | IES3: 11 | IET3: 11 | IEU3: 11 | IEV3: 11 | IEW3: 11 | IEX3: 11 | IEY3: 11 | IEZ3: 11 | IFA3: 11 | IFB3: 11 | IFC3: 11 | IFD3: 11 | IFE3: 11 | IFF3: 11 | IFG3: 11 | IFH3: 11 | IFI3: 11 | IFJ3: 11 | IFK3: 11 | IFL3: 11 | IFM3: 11 | IFN3: 11 | IFO3: 11 | IFP3: 11 | IFQ3: 11 | IFR3: 11 | IFS3: 11 | IFT3: 11 | IFU3: 11 | IFV3: 11 | IFW3: 11 | IFX3: 11 | IFY3: 11 | IFZ3: 11 | IGA3: 11 | IGB3: 11 | IGC3: 11 | IGD3: 11 | IGE3: 11 | IGF3: 11 | IGG3: 11 | IGH3: 11 | IGI3: 11 | IGJ3: 11 | IGK3: 11 | IGL3: 11 | IGM3: 11 | IGN3: 11 | IGO3: 11 | IGP3: 11 | IGQ3: 11 | IGR3: 11 | IGS3: 11 | IGT3: 11 | IGU3: 11 | IGV3: 11 | IGW3: 11 | IGX3: 11 | IGY3: 11 | IGZ3: 11 | IHA3: 11 | IHB3: 11 | IHC3: 11 | IHD3: 11 | IHE3: 11 | IHF3: 11 | IHG3: 11 | IHH3: 11 | IHI3: 11 | IHJ3: 11 | IHK3: 11 | IHL3: 11 | IHM3: 11 | IHN3: 11 | IHO3: 11 | IHP3: 11 | IHQ3: 11 | IHR3: 11 | IHS3: 11 | IHT3: 11 | IHU3: 11 | IHV3: 11 | IHW3: 11 | IHX3: 11 | IHY3: 11 | IHZ3: 11 | IIA3: 11 | IIB3: 11 | IIC3: 11 | IID3: 11 | IIE3: 11 | IIF3: 11 | IIG3: 11 | IIH3: 11 | III3: 11 | IIJ3: 11 | IIK3: 11 | IIL3: 11 | IIM3: 11 | IIN3: 11 | IIO3: 11 | IIP3: 11 | IIQ3: 11 | IIR3: 11 | IIS3: 11 | IIT3: 11 | IIU3: 11 | IIV3: 11 | IIW3: 11 | IIX3: 11 | IIY3: 11 | IIZ3: 11 | IJA3: 11 | IJB3: 11 | IJC3: 11 | IJD3: 11 | IJE3: 11 | IJF3: 11 | IJG3: 11 | IJH3: 11 | IJI3: 11 | IJJ3: 11 | IJK3: 11 | IJL3: 11 | IJM3: 11 | IJN3: 11 | IJO3: 11 | IJP3: 11 | IJQ3: 11 | IJR3: 11 | IJS3: 11 | IJT3: 11 | IJU3: 11 | IJV3: 11 | IJW3: 11 | IJX3: 11 | IJY3: 11 | IJZ3: 11 | IKA3: 11 | IKB3: 11 | IKC3: 11 | IKD3: 11 | IKE3: 11 | IKF3: 11 | IKG3: 11 | IKH3: 11 | IKI3: 11 | IKJ3: 11 | IKK3: 11 | IKL3: 11 | IKM3: 11 | IKN3: 11 | IKO3: 11 | IKP3: 11 | IKQ3: 11 | IKR3: 11 | IKS3: 11 | IKT3: 11 | IKU3: 11 | IKV3: 11 | IKW3: 11 | IKX3: 11 | IKY3: 11 | IKZ3: 11 | ILA3: 11 | ILB3: 11 | ILC3: 11 | ILD3: 11 | ILE3: 11 | ILF3: 11 | ILG3: 11 | ILH3: 11 | ILI3: 11 | ILJ3: 11 | ILK3: 11 | ILL3: 11 | ILM3: 11 | ILN3: 11 | ILO3: 11 | ILP3: 11 | ILQ3: 11 | ILR3: 11 | ILS3: 11 | ILT3: 11 | ILU3: 11 | ILV3: 11 | ILW3: 11 | ILX3: 11 | ILY3: 11 | ILZ3: 11 | IMA3: 11 | IMB3: 11 | IMC3: 11 | IMD3: 11 | IME3: 11 | IMF3: 11 | IMG3: 11 | IMH3: 11 | IMI3: 11 | IMJ3: 11 | IMK3: 11 | IML3: 11 | IMM3: 11 | IMN3: 11 | IMO3: 11 | IMP3: 11 | IMQ3: 11 | IMR3: 11 | IMS3: 11 | IMT3: 11 | IMU3: 11 | IMV3: 11 | IMW3: 11 | IMX3: 11 | IMY3: 11 | IMZ3: 11 | INA3: 11 | INB3: 11 | INC3: 11 | IND3: 11 | INE3: 11 | INF3: 11 | ING3: 11 | INH3: 11 | INI3: 11 | INJ3: 11 | INK3: 11 | INL3: 11 | INM3: 11 | INN3: 11 | INO3: 11 | INP3: 11 | INQ3: 11 | INR3: 11 | INS3: 11 | INT3: 11 | INU3: 11 | INV3: 11 | INW3: 11 | INX3: 11 | INY3: 11 | INZ3: 11 | IOA3: 11 | IOB3: 11 | IOC3: 11 | IOD3: 11 | IOE3: 11 | IOF3: 11 | IOG3: 11 | IOH3: 11 | IOI3: 11 | IOJ3: 11 | IOK3: 11 | IOL3: 11 | IOM3: 11 | ION3: 11 | IOO3: 11 | IOP3: 11 | IOQ3: 11 | IOR3: 11 | IOS3: 11 | IOT3: 11 | IOU3: 11 | IOV3: 11 | IOW3: 11 | IOX3: 11 | IOY3: 11 | IOZ3: 11 | IPA3: 11 | IPB3: 11 | IPC3: 11 | IPD3: 11 | IPE3: 11 | IPF3: 11 | IPG3: 11 | IPH3: 11 | IPI3: 11 | IPJ3: 11 | IPK3: 11 | IPL3: 11 | IPM3: 11 | IPN3: 11 | IPO3: 11 | IPP3: 11 | IPQ3: 11 | IPR3: 11 | IPS3: 11 | IPT3: 11 | IPU3: 11 | IPV3: 11 | IPW3: 11 | IPX3: 11 | IPY3: 11 | IPZ3: 11 | IQA3: 11 | IQB3: 11 | IQC3: 11 | IQD3: 11 | IQE3: 11 | IQF3: 11 | IQG3: 11 | IQH3: 11 | IQI3: 11 | IQJ3: 11 | IQK3: 11 | IQL3: 11 | IQM3: 11 | IQN3: 11 | IQO3: 11 | IQP3: 11 | IQQ3: 11 | IQR3: 11 | IQS3: 11 | IQT3: 11 | IQU3: 11 | IQV3: 11 | IQW3: 11 | IQX3: 11 | IQY3: 11 | IQZ3: 11 | IRA3: 11 | IRB3: 11 | IRC3: 11 | IRD3: 11 | IRE3: 11 | IRF3: 11 | IRG3: 11 | IRH3: 11 | IRI3: 11 | IRJ3: 11 | IRK3: 11 | IRL3: 11 | IRM3: 11 | IRN3: 11 | IRO3: 11 | IRP3: 11 | IRQ3: 11 | IRR3: 11 | IRS3: 11 | IRT3: 11 | IRU3: 11 | IRV3: 11 | IRW3: 11 | IRX3: 11 | IRY3: 11 | IRZ3: 11 | ISA3: 11 | ISB3: 11 | ISC3: 11 | ISD3: 11 | ISE3: 11 | ISF3: 11 | ISG3: 11 | ISH3: 11 | ISI3: 11 | ISJ3: 11 | ISK3: 11 | ISL3: 11 | ISM3: 11 | ISN3: 11 | ISO3: 11 | ISP3: 11 | ISQ3: 11 | ISR3: 11 | ISS3: 11 | IST3: 11 | ISU3: 11 | ISV3: 11 | ISW3: 11 | ISX3: 11 | ISY3: 11 | ISZ3: 11 | ITA3: 11 | ITB3: 11 | ITC3: 11 | ITD3: 11 | ITE3: 11 | ITF3: 11 | ITG3: 11 | ITH3: 11 | ITI3: 11 | ITJ3: 11 | ITK3: 11 | ITL3: 11 | ITM3: 11 | ITN3: 11 | ITO3: 11 | ITP3: 11 | ITQ3: 11 | ITR3: 11 | ITS3: 11 | ITT3: 11 | ITU3: 11 | ITV3: 11 | ITW3: 11 | ITX3: 11 | ITY3: 11 | ITZ3: 11 | IUA3: 11 | IUB3: 11 | IUC3: 11 | IUD3: 11 | IUE3: 11 | IUF3: 11 | IUG3: 11 | IUH3: 11 | IUI3: 11 | IUJ3: 11 | IUK3: 11 | IUL3: 11 | IUM3: 11 | IUN3: 11 | IUO3: 11 | IUP3: 11 | IUQ3: 11 | IUR3: 11 | IUS3: 11 | IUT3: 11 | IUU3: 11 | IUV3: 11 | IUW3: 11 | IUX3: 11 | IUY3: 11 | IUZ3: 11 | IVA3: 11 | IVB3: 11 | IVC3: 11 | IVD3: 11 | IVE3: 11 | IVF3: 11 | IVG3: 11 | IVH3: 11 | IVI3: 11 | IVJ3: 11 | IVK3: 11 | IVL3: 11 | IVM3: 11 | IVN3: 11 | IVO3: 11 | IVP3: 11 | IVQ3: 11 | IVR3: 11 | IVS3: 11 | IVT3: 11 | IVU3: 11 | IVV3: 11 | IVW3: 11 | IVX3: 11 | IVY3: 11 | IVZ3: 11 | IWA3: 11 | IWB3: 11 | IWC3: 11 | IWD3: 11 | IWE3: 11 | IWF3: 11 | IWG3: 11 | IWH3: 11 | IWI3: 11 | IWJ3: 11 | IWK3: 11 | IWL3: 11 | IWM3: 11 | IWN3: 11 | IWO3: 11 | IWP3: 11 | IWQ3: 11 | IWR3: 11 | IWS3: 11 | IWT3: 11 | IWU3: 11 | IWV3: 11 | IWW3: 11 | IWX3: 11 | IWY3: 11 | IWZ3: 11 | IXA3: 11 | IXB3: 11 | IXC3: 11 | IXD3: 11 | IXE3: 11 | IXF3: 11 | IXG3: 11 | IXH3: 11 | IXI3: 11 | IXJ3: 11 | IXK3: 11 | IXL3: 11 | IXM3: 11 | IXN3: 11 | IXO3: 11 | IXP3: 11 | IXQ3: 11 | IXR3: 11 | IXS3: 11 | IXT3: 11 | IXU3: 11 | IXV3: 11 | IXW3: 11 | IXX3: 11 | IXY3: 11 | IXZ3: 11 | IYA3: 11 | IYB3: 11 | IYC3: 11 | IYD3: 11 | IYE3: 11 | IYF3: 11 | IYG3: 11 | IYH3: 11 | IYI3: 11 | IYJ3: 11 | IYK3: 11 | IYL3: 11 | IYM3: 11 | IYN3: 11 | IYO3: 11 | IYP3: 11 | IYQ3: 11 | IYR3: 11 | IYS3: 11 | IYT3: 11 | IYU3: 11 | IYV3: 11 | IYW3: 11 | IYX3: 11 | IYY3: 11 | IYZ3: 11 | IZA3: 11 | IZB3: 11 | IZC3: 11 | IZD3: 11 | IZE3: 11 | IZF3: 11 | IZG3: 11 | IZH3: 11 | IZI3: 11 | IZJ3: 11 | IZK3: 11 | IZL3: 11 | IZM3: 11 | IZN3: 11 | IZO3: 11 | IZP3: 11 | IZQ3: 11 | IZR3: 11 | IZS3: 11 | IZT3: 11 | IZU3: 11 | IZV3: 11 | IZW3: 11 | IZX3: 11 | IZY3: 11 | IZZ3: 11 | JAA3: 11 | JAB3: 11 | JAC3: 11 | JAD3: 11 | JAE3: 11 | JAF3: 11 | JAG3: 11 | JAH3: 11 | JAI3: 11 | JAJ3: 11 | JAK3: 11 | JAL3: 11 | JAM3: 11 | JAN3: 11 | JAO3: 11 | JAP3: 11 | JAQ3: 11 | JAR3: 11 | JAS3: 11 | JAT3: 11 | JAU3: 11 | JAV3: 11 | JAW3: 11 | JAX3: 11 | JAY3: 11 | JAZ3: 11 | JBA3: 11 | JBB3: 11 | JBC3: 11 | JBD3: 11 | JBE3: 11 | JBF3: 11 | JBG3: 11 | JBH3: 11 | JBI3: 11 | JBJ3: 11 | JBK3: 11 | JBL3: 11 | JBM3: 11 | JBN3: 11 | JBO3: 11 | JBP3: 11 | JBQ3: 11 | JBR3: 11 | JBS3: 11 | JBT3: 11 | JBU3: 11 | JBV3: 11 | JBW3: 11 | JBX3: 11 | JBY3: 11 | JBZ3: 11 | JCA3: 11 | JCB3: 11 | JCC3: 11 | JCD3: 11 | JCE3: 11 | JCF3: 11 | JCG3: 11 | JCH3: 11 | JCI3: 11 | JCJ3: 11 | JCK3: 11 | JCL3: 11 | JCM3: 11 | JCN3: 11 | JCO3: 11 | JCP3: 11 | JCQ3: 11 | JCR3: 11 | JCS3: 11 | JCT3: 11 | JCU3: 11 | JCV3: 11 | JCW3: 11 | JCX3: 11 | JCY3: 11 | JCZ3: 11 | JDA3: 11 | JDB3: 11 | JDC3: 11 | JDD3: 11 | JDE3: 11 | JDF3: 11 | JDG3: 11 | JDH3: 11 | JDI3: 11 | JDJ3: 11 | JDK3: 11 | JDL3: 11 | JDM3: 11 | JDN3: 11 | JDO3: 11 | JDP3: 11 | JDQ3: 11 | JDR3: 11 | JDS3: 11 | JDT3: 11 | JDU3: 11 | JDV3: 11 | JDW3: 11 | JDX3: 11 | JDY3: 11 | JDZ3: 11 | JEA3: 11 | JEB3: 11 | JEC3: 11 | JED3: 11 | JEE3: 11 | JEF3: 11 | JEG3: 11 | JEH3: 11 | JEI3: 11 | JEJ3: 11 | JEK3: 11 | JEL3: 11 | JEM3: 11 | JEN3: 11 | JEO3: 11 | JEP3: 11 | JEQ3: 11 | JER3: 11 | JES3: 11 | JET3: 11 | JEU3: 11 | JEV3: 11 | JEW3: 11 | JEX3: 11 | JEY3: 11 | JEZ3: 11 | JFA3: 11 | JFB3: 11 | JFC3: 11 | JFD3: 11 | JFE3: 11 | JFF3: 11 | JFG3: 11 | JFH3: 11 | JFI3: 11 | JFJ3: 11 | JFK3: 11 | JFL3: 11 | JFM3: 11 | JFN3: 11 | JFO3: 11 | JFP3: 11 | JFQ3: 11 | JFR3: 11 | JFS3: 11 | JFT3: 11 | JFU3: 11 | JFV3: 11 | JFW3: 11 | JFX3: 11 | JFY3: 11 | JFZ3: 11 | JGA3: 11 | JGB3: 11 | JGC3: 11 | JGD3: 11 | JGE3: 11 | JGF3: 11 | JGG3: 11 | JGH3: 11 | JGI3: 11 | JGJ3: 11 | JGK3: 11 | JGL3: 11 | JGM3: 11 | JGN3: 11 | JGO3: 11 | JGP3: 11 | JGQ3: 11 | JGR3: 11 | JGS3: 11 | JGT3: 11 | JGU3: 11 | JGV3: 11 | JGW3: 11 | JGX3: 11 | JGY3: 11 | JGZ3: 11 | JHA3: 11 | JHB3: 11 | JHC3: 11 | JHD3: 11 | JHE3: 11 | JHF3: 11 | JHG3: 11 | JHH3: 11 | JHI3: 11 | JHJ3: 11 | JHK3: 11 | JHL3: 11 | JHM3: 11 | JHN3: 11 | JHO3: 11 | JHP3: 11 | JHQ3: 11 | JHR3: 11 | JHS3: 11 | JHT3: 11 | JHU3: 11 | JHV3: 11 | JHW3: 11 | JHX3: 11 | JHY3: 11 | JHZ3: 11 | JIA3: 11 | JIB3: 11 | JIC3: 11 | JID3: 11 | JIE3: 11 | JIF3: 11 | JIG3: 11 | JIH3: 11 | JII3: 11 | JIJ3: 11 | JIK3: 11 | JIL3: 11 | JIM3: 11 | JIN3: 11 | JIO3: 11 | JIP3: 11 | JIQ3: 11 | JIR3: 11 | JIS3: 11 | JIT3: 11 | JIU3: 11 | JIV3: 11 | JIW3: 11 | JIX3: 11 | JIY3: 11 | JIZ3: 11 | JJA3: 11 | JJB3: 11 | JJC3: 11 | JJD3: 11 | JJE3: 11 | JJF3: 11 | JJG3: 11 | JJH3: 11 | JJI3: 11 | JJJ3: 11 | JJK3: 11 | JJL3: 11 | JJM3: 11 | JJN3: 11 | JJO3: 11 | JJP3: 11 | JJQ3: 11 | JJR3: 11 | JJS3: 11 | JJT3: 11 | JJU3: 11 | JJV3: 11 | JJW3: 11 | JJX3: 11 | JJY3: 11 | JJZ3: 11 | JKA3: 11 | JKB3: 11 | JKC3: 11 | JKD3: 11 | JKE3: 11 | JKF3: 11 | JKG3: 11 | JKH3: 11 | JKI3: 11 | JKJ3: 11 | JKK3: 11 | JKL3: 11 | JKM3: 11 | JKN3: 11 | JKO3: 11 | JKP3: 11 | JKQ3: 11 | JKR3: 11 | JKS3: 11 | JKT3: 11 | JKU3: 11 | JKV3: 11 | JKW3: 11 | JKX3: 11 | JKY3: 11 | JKZ3: 11 | JLA3: 11 | JLB3: 11 | JLC3: 11 | JLD3: 11 | JLE3: 11 | JLF3: 11 | JLG3: 11 | JLH3: 11 | JLI3: 11 | JLJ3: 11 | JLK3: 11 | JLL3: 11 | JLM3: 11 | JLN3: 11 | JLO3: 11 | JLP3: 11 | JLQ3: 11 | JLR3: 11 | JLS3: 11 | JLT3: 11 | JLU3: 11 | JLV3: 11 | JLW3: 11 | JLX3: 11 | JLY3: 11 | JLZ3: 11 | JMA3: 11 | JMB3: 11 | JMC3: 11 | JMD3: 11 | JME3: 11 | JMF3: 11 | JMG3: 11 | JMH3: 11 | JMI3: 11 | JMJ3: 11 | JMK3: 11 | JML3: 11 | JMM3: 11 | JMN3: 11 | JMO3: 11 | JMP3: 11 | JMQ3: 11 | JMR3: 11 | JMS3: 11 | JMT3: 11 | JMU3: 11 | JMV3: 11 | JMW3: 11 | JMX3: 11 | JMY3: 11 | JMZ3: 11 | JNA3: 11 | JNB3: 11 | JNC3: 11 | JND3: 11 | JNE3: 11 | JNF3: 11 | JNG3: 11 | JNH3: 11 | JNI3: 11 | JNJ3: 11 | JNK3: 11 | JNL3: 11 | JNM3: 11 | JNN3: 11 | JNO3: 11 | JNP3: 11 | JNQ3: 11 | JNR3: 11 | JNS3: 11 | JNT3: 11 | JNU3: 11 | JNV3: 11 | JNW3: 11 | JNX3: 11 | JNY3: 11 | JNZ3: 11 | JOA3: 11 | JOB3: 11 | JOC3: 11 | JOD3: 11 | JOE3: 11 | JOF3: 11 | JOG3: 11 | JOH3: 11 | JOI3: 11 | JOJ3: 11 | JOK3: 11 | JOL3: 11 | JOM3: 11 | JON3: 11 | JOO3: 11 | JOP3: 11 | JOQ3: 11 | JOR3: 11 | JOS3: 11 | JOT3: 11 | JOU3: 11 | JOV3: 11 | JOW3: 11 | JOX3: 11 | JOY3: 11 | JOZ3: 11 | JPA3: 11 | JPB3: 11 | JPC3: 11 | JPD3: 11 | JPE3: 11 | JPF3: 11 | JPG3: 11 | JPH3: 11 | JPI3: 11 | JPJ3: 11 | JPK3: 11 | JPL3: 11 | JPM3: 11 | JPN3: 11 | JPO3: 11 | JPP3: 11 | JPQ3: 11 | JPR3: 11 | JPS3: 11 | JPT3: 11 | JPU3: 11 | JPV3: 11 | JPW3: 11 | JPX3: 11 | JPY3: 11 | JPZ3: 11 | JQA3: 11 | JQB3: 11 | JQC3: 11 | JQD3: 11 | JQE3: 11 | JQF3: 11 | JQG3: 11 | JQH3: 11 | JQI3: 11 | JQJ3: 11 | JQK3: 11 | JQL3: 11 | JQM3: 11 | JQN3: 11 | JQO3: 11 | JQP3: 11 | JQQ3: 11 | JQR3: 11 | JQS3: 11 | JQT3: 11 | JQU3: 11 | JQV3: 11 | JQW3: 11 | JQX3: 11 | JQY3: 11 | JQZ3: 11 | JRA3: 11 | JRB3: 11 | JRC3: 11 | JRD3: 11 | JRE3: 11 | JRF3: 11 | JRG3: 11 | JRH3: 11 | JRI3: 11 | JRJ3: 11 | JRK3: 11 | JRL3: 11 | JRM3: 11 | JRN3: 11 | JRO3: 11 | JRP3: 11 | JRQ3: 11 | JRR3: 11 | JRS3: 11 | JRT3: 11 | JRU3: 11 | JRV3: 11 | JRW3: 11 | JRX3: 11 | JRY3: 11 | JRZ3: 11 | JSA3: 11 | JSB3: 11 | JSC3: 11 | JSD3: 11 | JSE3: 11 | JSF3: 11 | JSG3: 11 | JSH3: 11 | JSI3: 11 | JSJ3: 11 | JSK3: 11 | JSL3: 11 | JSM3: 11 | JSN3: 11 | JSO3: 11 | JSP3: 11 | JSQ3: 11 | JSR3: 11 | JSS3: 11 | JST3: 11 | JSU3: 11 | JSV3: 11 | JSW3: 11 | JSX3: 11 | JSY3: 11 | JSZ3: 11 | JTA3: 11 | JTB3: 11 | JTC3: 11 | JTD3: 11 | JTE3: 11 | JTF3: 11 | JTG3: 11 | JTH3: 11 | JTI3: 11 | JTJ3: 11 | JTK3: 11 | JTL3: 11 | JTM3: 11 | JTN3: 11 | JTO3: 11 | JTP3: 11 | JTQ3: 11 | JTR3: 11 | JTS3: 11 | JTT3: 11 | JTU3: 11 | JTV3: 11 | JTW3: 11 | JTX3: 11 | JTY3: 11 | JTZ3: 11 | JUA3: 11 | JUB3: 11 | JUC3: 11 | JUD3: 11 | JUE3: 11 | JUF3: 11 | JUG3: 11 | JUH3: 11 | JUI3: 11 | JUJ3: 11 | JUK3: 11 | JUL3: 11 | JUM3: 11 | JUN3: 11 | JUO3: 11 | JUP3: 11 | JUQ3: 11 | JUR3: 11 | JUS3: 11 | JUT3: 11 | JUU3: 11 | JUV3: 11 | JUW3: 11 | JUX3: 11 | JUY3: 11 | JUZ3: 11 | JVA3: 11 | JVB3: 11 | JVC3: 11 | JVD3: 11 | JVE3: 11 | JVF3: 11 | JVG3: 11 | JVH3: 11 | JVI3: 11 | JVJ3: 11 | JVK3: 11 | JVL3: 11 | JVM3: 11 | JVN3: 11 | JVO3: 11 | JVP3: 11 | JVQ3: 11 | JVR3: 11 | JVS3: 11 | JVT3: 11 | JVU3: 11 | JVV3: 11 | JVW3: 11 | JVX3: 11 | JVY3: 11 | JVZ3: 11 | JWA3: 11 | JWB3: 11 | JWC3: 11 | JWD3: 11 | JWE3: 11 | JWF3: 11 | JWG3: 11 | JWH3: 11 | JWI3: 11 | JWJ3: 11 | JWK3: 11 | JWL3: 11 | JWM3: 11 | JWN3: 11 | JWO3: 11 | JWP3: 11 | JWQ3: 11 | JWR3: 11 | JWS3: 11 | JWT3: 11 | JWU3: 11 | JWV3: 11 | JWW3: 11 | JWX3: 11 | JWY3: 11 | JWZ3: 11 | JXA3: 11 | JXB3: 11 | JXC3: 11 | JXD3: 11 | JXE3: 11 | JXF3: 11 | JXG3: 11 | JXH3: 11 | JXI3: 11 | JXJ3: 11 | JXK3: 11 | JXL3: 11 | JXM3: 11 | JXN3: 11 | JXO3: 11 | JXP3: 11 | JXQ3: 11 | JXR3: 11 | JXS3: 11 | JXT3: 11 | JXU3: 11 | JXV3: 11 | JXW3: 11 | JXX3: 11 | JXY3: 11 | JXZ3: 11 | JYA3: 11 | JYB3: 11 | JYC3: 11 | JYD3: 11 | JYE3: 11 | JYF3: 11 | JYG3: 11 | JYH3: 11 | JYI3: 11 | JYJ3: 11 | JYK3: 11 | JYL3: 11 | JYM3: 11 | JYN3: 11 | JYO3: 11 | JYP3: 11 | JYQ3: 11 | JYR3: 11 | JYS3: 11 | JYT3: 11 | JYU3: 11 | JYV3: 11 | JYW3: 11 | JYX3: 11 | JYY3: 11 | JYZ3: 11 | JZA3: 11 | JZB3: 11 | JZC3: 11 | JZD3: 11 | JZE3: 11 | JZF3: 11 | JZG3: 11 | JZH3: 11 | JZI3: 11 | JZJ3: 11 | JZK3: 11 | JZL3: 11 | JZM3: 11 | JZN3: 11 | JZO3: 11 | JZP3: 11 | JZQ3: 11 | JZR3: 11 | JZS3: 11 | JZT3: 11 | JZU3: 11 | JZV3: 11 | JZW3: 11 | JZX3: 11 | JZY3: 11 | JZZ3: 11 | KAA3: 11 | KAB3: 11 | KAC3: 11 | KAD3: 11 | KAE3: 11 | KAF3: 11 | KAG3: 11 | KAH3: 11 | KAI3: 11 | KAJ3: 11 | KAK3: 11 | KAL3: 11 | KAM3: 11 | KAN3: 11 | KAO3: 11 | KAP3: 11 | KAQ3: 11 | KAR3: 11 | KAS3: 11 | KAT3: 11 | KAU3: 11 | KAV3: 11 | KAW3: 11 | KAX3: 11 | KAY3: 11 | KAZ3: 11 | KBA3: 11 | KBB3: 11 | KBC3: 11 | KBD3: 11 | KBE3: 11 | KBF3: 11 | KBG3: 11 | KBH3: 11 | KBI3: 11 | KBJ3: 11 | KBK3: 11 | KBL3: 11 | KBM3: 11 | KBN3: 11 | KBO3: 11 | KBP3: 11 | KBQ3: 11 | KBR3: 11 | KBS3: 11 | KBT3: 11 | KBU3: 11 | KBV3: 11 | KBW3: 11 | KBX3: 11 | KBY3: 11 | KBZ3: 11 | KCA3: 11 | KCB3: 11 | KCC3: 11 | KCD3: 11 | KCE3: 11 | KCF3: 11 | KCG3: 11 | KCH3: 11 | KCI3: 11 | KCJ3: 11 | KCK3: 11 | KCL3: 11 | KCM3: 11 | KCN3: 11 | KCO3: 11 | KCP3: 11 | KCQ3: 11 | KCR3: 11 | KCS3: 11 | KCT3: 11 | KCU3: 11 | KCV3: 11 | KCW3: 11 | KCX3: 11 | KCY3: 11 | KCZ3: 11 | KDA3: 11 | KDB3: 11 | KDC3: 11 | KDD3: 11 | KDE3: 11 | KDF3: 11 | KDG3: 11 | KDH3: 11 | KDI3: 11 | KDJ3: 11 | KDK3: 11 | KDL3: 11 | KDM3: 11 | KDN3: 11 | KDO3: 11 | KDP3: 11 | KDQ3: 11 | KDR3: 11 | KDS3: 11 | KDT3: 11 | KDU3: 11 | KDV3: 11 | KDW3: 11 | KDX3: 11 | KDY3: 11 | KDZ3: 11 | KEA3: 11 | KEB3: 11 | KEC3: 11 | KED3: 11 | KEE3: 11 | KEF3: 11 | KEG3: 11 | KEH3: 11 | KEI3: 11 | KEJ3: 11 | KEK3: 11 | KEL3: 11 | KEM3: 11 | KEN3: 11 | KEO3: 11 | KEP3: 11 | KEQ3: 11 | KER3: 11 | KES3: 11 | KET3: 11 | KEU3: 11 | KEV3: 11 | KEW3: 11 | KEX3: 11 | KEY3: 11 | KEZ3: 11 | KFA3: 11 | KFB3: 11 | KFC3: 11 | KFD3: 11 | KFE3: 11 | KFF3: 11 | KFG3: 11 | KFH3: 11 | KFI3: 11 | KFJ3: 11 | KFK3: 11 | KFL3: 11 | KFM3: 11 | KFN3: 11 | KFO3: 11 | KFP3: 11 | KFQ3: 11 | KFR3: 11 | KFS3: 11 | KFT3: 11 | KFU3: 11 | KFV3: 11 | KFW3: 11 | KFX3: 11 | KFY3: 11 | KFZ3: 11 | KGA3: 11 | KGB3: 11 | KGC3: 11 | KGD3: 11 | KGE3: 11 | KGF3: 11 | KGG3: 11 | KGH3: 11 | KGI3: 11 | KGJ3: 11 | KGK3: 11 | KGL3: 11 | KGM3: 11 | KGN3: 11 | KGO3: 11 | KGP3: 11 | KGQ3: 11 | KGR3: 11 | KGS3: 11 | KGT3: 11 | KGU3: 11 | KGV3: 11 | KGW3: 11 | KGX3: 11 | KGY3: 11 | KGZ3: 11 | KHA3: 11 | KHB3: 11 | KHC3: 11 | KHD3: 11 | KHE3: 11 | KHF3: 11 | KHG3: 11 | KHH3: 11 | KHI3: 11 | KHJ3: 11 | KHK3: 11 | KHL3: 11 | KHM3: 11 | KHN3: 11 | KHO3: 11 | KHP3: 11 | KHQ3: 11 | KHR3: 11 | KHS3: 11 | KHT3: 11 | KHU3: 11 | KHV3: 11 | KHW3: 11 | KHX3: 11 | KHY3: 11 | KHZ3: 11 | KIA3: 11 | KIB3: 11 | KIC3: 11 | KID3: 11 | KIE3: 11 | KIF3: 11 | KIG3: 11 | KIH3: 11 | KII3: 11 | KIJ3: 11 | KIK3: 11 | KIL3: 11 | KIM3: 11 | KIN3: 11 | KIO3: 11 | KIP3: 11 | KIQ3: 11 | KIR3: 11 | KIS3: 11 | KIT3: 11 | KIU3: 11 | KIV3: 11 | KIW3: 11 | KIX3: 11 | KIY3: 11 | KIZ3: 11 | KJA3: 11 | KJB3: 11 | KJC3: 11 | KJD3: 11 | KJE3: 11 | KJF3: 11 | KJG3: 11 | KJH3: 11 | KJI3: 11 | KJJ3: 11 | KJK3: 11 | KJL3: 11 | KJM3: 11 | KJN3: 11 | KJO3: 11 | KJP3: 11 | KJQ3: 11 | KJR3: 11 | KJS3: 11 | KJT3: 11 | KJU3: 11 | KJV3: 11 | KJW3: 11 | KJX3: 11 | KJY3: 11 | KJZ3: 11 | KKA3: 11 | KKB3: 11 | KKC3: 11 | KKD3: 11 | KKE3: 11 | KKF3: 11 | KKG3: 11 | KKH3: 11 | KKI3: 11 | KKJ3: 11 | KKK3: 11 | KKL3: 11 | KKM3: 11 | KKN3: 11 | KKO3: 11 | KKP3: 11 | KKQ3: 11 | KKR3: 11 | KKS3: 11 | KKT3: 11 | KKU3: 11 | KKV3: 11 | KKW3: 11 | KKX3: 11 | KKY3: 11 | KKZ3: 11 | KLA3: 11 | KLB3: 11 | KLC3: 11 | KLD3: 11 | KLE3: 11 | KLF3: 11 | KLG3: 11 | KLH3: 11 | KLI3: 11 | KLJ3: 11 | KLK3: 11 | KLL3: 11 | KLM3: 11 | KLN3: 11 | KLO3: 11 | KLP3: 11 | KLQ3: 11 | KLR3: 11 | KLS3: 11 | KLT3: 11 | KLU3: 11 | KLV3: 11 | KLW3: 11 | KLX3: 11 | KLY3: 11 | KLZ3: 11 | KMA3: 11 | KMB3: 11 | KMC3: 11 | KMD3: 11 | KME3: 11 | KMF3: 11 | KMG3: 11 | KMH3: 11 | KMI3: 11 | KMJ3: 11 | KMK3: 11 | KML3: 11 | KMM3: 11 | KMN3: 11 | KMO3: 11 | KMP3: 11 | KMQ3: 11 | KMR3: 11 | KMS3: 11 | KMT3: 11 | KMU3: 11 | KMV3: 11 | KMW3: 11 | KMX3: 11 | KMY3: 11 | KMZ3: 11 | KNA3: 11 | KNB3: 11 | KNC3: 11 | KND3: 11 | KNE3: 11 | KNF3: 11 | KNG3: 11 | KNH3: 11 | KNI3: 11 | KNJ3: 11 | KNK3: 11 | KNL3: 11 | KNM3: 11 | KNN3: 11 | KNO3: 11 | KNP3: 11 | KNQ3: 11 | KNR3: 11 | KNS3: 11 | KNT3: 11 | KNU3: 11 | KNV3: 11 | KNW3: 11 | KNX3: 11 | KNY3: 11 | KNZ3: 11 | KOA3: 11 | KOB3: 11 | KOC3: 11 | KOD3: 11 | KOE3: 11 | KOF3: 11 | KOG3: 11 | KOH3: 11 | KOI3: 11 | KOJ3: 11 | KOK3: 11 | KOL3: 11 | KOM3: 11 | KON3: 11 | KOO3: 11 | KOP3: 11 | KOQ3: 11 | KOR3: 11 | KOS3: 11 | KOT3: 11 | KOU3: 11 | KOV3: 11 | KOW3: 11 | KOX3: 11 | KOY3: 11 | KOZ3: 11 | KPA3: 11 | KPB3: 11 | KPC3: 11 | KPD3: 11 | KPE3: 11 | KPF3: 11 | KPG3: 11 | KPH3: 11 | KPI3: 11 | KPJ3: 11 | KPK3: 11 | KPL3: 11 | KPM3: 11 | KPN3: 11 | KPO3: 11 | KPP3: 11 | KPQ3: 11 | KPR3: 11 | KPS3: 11 | KPT3: 11 | KPU3: 11 | KPV3: 11 | KPW3: 11 | KPX3: 11 | KPY3: 11 | KPZ3: 11 | KQA3: 11 | KQB3: 11 | KQC3: 11 | KQD3: 11 | KQE3: 11 | KQF3: 11 | KQG3: 11 | KQH3: 11 | KQI3: 11 | KQJ3: 11 | KQK3: 11 | KQL3: 11 | KQM3: 11 | KQN3: 11 | KQO3: 11 | KQP3: 11 | KQQ3: 11 | KQR3: 11 | KQS3: 11 | KQT3: 11 | KQU3: 11 | KQV3: 11 | KQW3: 11 | KQX3: 11 | KQY3: 11 | KQZ3: 11 | KRA3: 11 | KRB3: 11 | KRC3: 11 | KRD3: 11 | KRE3: 11 | KRF3: 11 | KRG3: 11 | KRH3: 11 | KRI3: 11 | KRJ3: 11 | KRK3: 11 | KRL3: 11 | KRM3: 11 | KRN3: 11 | KRO3: 11 | KRP3: 11 | KRQ3: 11 | KRR3: 11 | KRS3: 11 | KRT3: 11 | KRU3: 11 | KRV3: 11 | KRW3: 11 | KRX3: 11 | KRY3: 11 | KRZ3: 11 | KSA3: 11 | KSB3: 11 | KSC3: 11 | KSD3: 11 | KSE3: 11 | KSF3: 11 | KSG3: 11 | KSH3: 11 | KSI3: 11 | KSJ3: 11 | KSK3: 11 | KSL3: 11 | KSM3: 11 | KSN3: 11 | KSO3: 11 | KSP3: 11 | KSQ3: 11 | KSR3: 11 | KSS3: 11 | KST3: 11 | KSU3: 11 | KSV3: 11 | KSW3: 11 | KSX3: 11 | KSY3: 11 | KSZ3: 11 | KTA3: 11 | KTB3: 11 | KTC3: 11 | KTD3: 11 | KTE3: 11 | KTF3: 11 | KTG3: 11 | KTH3: 11 | KTI3: 11 | KTJ3: 11 | KTK3: 11 | KTL3: 11 | KTM3: 11 | KTN3: 11 | KTO3: 11 | KTP3: 11 | KTQ3: 11 | KTR3: 11 | KTS3: 11 | KTT3: 11 | KTU3: 11 | KTV3: 11 | KTW3: 11 | KTX3: 11 | KTY3: 11 | KTZ3: 11 | KUA3: 11 | KUB3: 11 | KUC3: 11 | KUD3: 11 | KUE3: 11 | KUF3: 11 | KUG3: 11 | KUH3: 11 | KUI3: 11 | KUJ3: 11 | KUK3: 11 | KUL3: 11 | KUM3: 11 | KUN3: 11 | KUO3: 11 | KUP3: 11 | KUQ3: 11 | KUR3: 11 | KUS3: 11 | KUT3: 11 | KUU3: 11 | KUV3: 11 | KUW3: 11 | KUX3: 11 | KUY3: 11 | KUZ3: 11 | KVA3: 11 | KVB3: 11 | KVC3: 11 | KVD3: 11 | KVE3: 11 | KVF3: 11 | KVG3: 11 | KVH3: 11 | KVI3: 11 | KVJ3: 11 | KVK3: 11 | KVL3: 11 | KVM3: 11 | KVN3: 11 | KVO3: 11 | KVP3: 11 | KVQ3: 11 | KVR3: 11 | KVS3: 11 | KVT3: 11 | KVU3: 11 | KVV3: 11 | KVW3: 11 | KVX3: 11 | KVY3: 11 | KVZ3: 11 | KWA3: 11 | KWB3: 11 | KWC3: 11 | KWD3: 11 | KWE3: 11 | KWF3: 11 | KWG3: 11 | KWH3: 11 | KWI3: 11 | KWJ3: 11 | KWK3: 11 | KWL3: 11 | KWM3: 11 | KWN3: 11 | KWO3: 11 | KWP3: 11 | KWQ3: 11 | KWR3: 11 | KWS3: 11 | KWT3: 11 | KWU3: 11 | KWV3: 11 | KWW3: 11 | KWX3: 11 | KWY3: 11 | KWZ3: 11 | KXA3: 11 | KXB3: 11 | KXC3: 11 | KXD3: 11 | KXE3: 11 | KXF3: 11 | KXG3: 11 | KXH3: 11 | KXI3: 11 | KXJ3: 11 | KXK3: 11 | KXL3: 11 | KXM3: 11 | KXN3: 11 | KXO3: 11 | KXP3: 11 | KXQ3: 11 | KXR3: 11 | KXS3: 11 | KXT3: 11 | KXU3: 11 | KXV3: 11 | KXW3: 11 | KXX3: 11 | KXY3: 11 | KXZ3: 11 | KYA3: 11 | KYB3: 11 | KYC3: 11 | KYD3: 11 | KYE3: 11 | KYF3: 11 | KYG3: 11 | KYH3: 11 | KYI3: 11 | KYJ3: 11 | KYK3: 11 | KYL3: 11 | KYM3: 11 | KYN3: 11 | KYO3: 11 | KYP3: 11 | KYQ3: 11 | KYR3: 11 | KYS3: 11 | KYT3: 11 | KYU3: 11 | KYV3: 11 | KYW3: 11 | KYX3: 11 | KYY3: 11 | KYZ3: 11 | KZA3: 11 | KZB3: 11 | KZC3: 11 | KZD3: 11 | KZE3: 11 | KZF3: 11 | KZG3: 11 | KZH3: 11 | KZI3: 11 | KZJ3: 11 | KZK3: 11 | KZL3: 11 | KZM3: 11 | KZN3: 11 | KZO3: 11 | KZP3: 11 | KZQ3: 11 | KZR3: 11 | KZS3: 11 | KZT3: 11 | KZU3: 11 | KZV3: 11 | KZW3: 11 | KZX3: 11 | KZY3: 11 | KZZ3: 11 | LAA3: 11 | LAB3: 11 | LAC3: 11 | LAD3: 11 | LAE3: 11 | LAF3: 11 | LAG3: 11 | LAH3: 11 | LAI3: 11 | LAJ3: 11 | LAK3: 11 | LAL3: 11 | LAM3: 11 | LAN3: 11 | LAO3: 11 | LAP3: 11 | LAQ3: 11 | LAR3: 11 | LAS3: 11 | LAT3: 11 | LAU3: 11 | LAV3: 11 | LAW3: 11 | LAX3: 11 | LAY3: 11 | LAZ3: 11 | LBA3: 11 | LBB3: 11 | LBC3: 11 | LBD3: 11 | LBE3: 11 | LBF3: 11 | LBG3: 11 | LBH3: 11 | LBI3: 11 | LBJ3: 11 | LBK3: 11 | LBL3: 11 | LBM3: 11 | LBN3: 11 | LBO3: 11 | LBP3: 11 | LBQ3: 11 | LBR3: 11 | LBS3: 11 | LBT3: 11 | LBU3: 11 | LBV3: 11 | LBW3: 11 | LBX3: 11 | LBY3: 11 | LBZ3: 11 | LCA3: 11 | LCB3: 11 | LCC3: 11 | LCD3: 11 | LCE3: 11 | LCF3: 11 | LCG3: 11 | LCH3: 11 | LCI3: 11 | LCJ3: 11 | LCK3: 11 | LCL3: 11 | LCM3: 11 | LCN3: 11 | LCO3: 11 | LCP3: 11 | LCQ3: 11 | LCR3: 11 | LCS3: 11 | LCT3: 11 | LCU3: 11 | LCV3: 11 | LCW3: 11 | LCX3: 11 | LCY3: 11 | LCZ3: 11 | LDA3: 11 | LDB3: 11 | LDC3: 11 | LDD3: 11 | LDE3: 11 | LDF3: 11 | LDG3: 11 | LDH3: 11 | LDI3: 11 | LDJ3: 11 | LDK3: 11 | LDL3: 11 | LDM3: 11 | LDN3: 11 | LDO3: 11 | LDP3: 11 | LDQ3: 11 | LDR3: 11 | LDS3: 11 | LDT3: 11 | LDU3: 11 | LDV3: 11 | LDW3: 11 | LDX3: 11 | LDY3: 11 | LDZ3: 11 | LEA3: 11 | LEB3: 11 | LEC3: 11 | LED3: 11 | LEE3: 11 | LEF3: 11 | LEG3: 11 | LEH3: 11 | LEI3: 11 | LEJ3: 11 | LEK3: 11 | LEL3: 11 | LEM3: 11 | LEN3: 11 | LEO3: 11 | LEP3: 11 | LEQ3: 11 | LER3: 11 | LES3: 11 | LET3: 11 | LEU3: 11 | LEV3: 11 | LEW3: 11 | LEX3: 11 | LEY3: 11 | LEZ3: 11 | LFA3: 11 | LFB3: 11 | LFC3: 11 | LFD3: 11 | LFE3: 11 | LFF3: 11 | LFG3: 11 | LFH3: 11 | LFI3: 11 | LFJ3: 11 | LFK3: 11 | LFL3: 11 | LFM3: 11 | LFN3: 11 | LFO3: 11 | LFP3: 11 | LFQ3: 11 | LFR3: 11 | LFS3: 11 | LFT3: 11 | LFU3: 11 | LFV3: 11 | LFW3: 11 | LFX3: 11 | LFY3: 11 | LFZ3: 11 | LGA3: 11 | LGB3: 11 | LGC3: 11 | LGD3: 11 | LGE3: 11 | LGF3: 11 | LGG3: 11 | LGH3: 11 | LGI3: 11 | LGJ3: 11 | LGK3: 11 | LGL3: 11 | LGM3: 11 | LGN3: 11 | LGO3: 11 | LGP3: 11 | LGQ3: 11 | LGR3: 11 | LGS3: 11 | LGT3: 11 | LGU3: 11 | LGV3: 11 | LGW3: 11 | LGX3: 11 | LGY3: 11 | LGZ3: 11 | LHA3: 11 | LHB3: 11 | LHC3: 11 | LHD3: 11 | LHE3: 11 | LHF3: 11 | LHG3: 11 | LHH3: 11 | LHI3: 11 | LHJ3: 11 | LHK3: 11 | LHL3: 11 | LHM3: 11 | LHN3: 11 | LHO3: 11 | LHP3: 11 | LHQ3: 11 | LHR3: 11 | LHS3: 11 | LHT3: 11 | LHU3: 11 | LHV3: 11 | LHW3: 11 | LHX3: 11 | LHY3: 11 | LHZ3: 11 | LIA3: 11 | LIB3: 11 | LIC3: 11 | LID3: 11 | LIE3: 11 | LIF3: 11 | LIG3: 11 | LIH3: 11 | LII3: 11 | LIJ3: 11 | LIK3: 11 | LIL3: 11 | LIM3: 11 | LIN3: 11 | LIO3: 11 | LIP3: 11 | LIQ3: 11 | LIR3: 11 | LIS3: 11 | LIT3: 11 | LIU3: 11 | LIV3: 11 | LIW3: 11 | LIX3: 11 | LIY3: 11 | LIZ3: 11 | LJA3: 11 | LJB3: 11 | LJC3: 11 | LJD3: 11 | LJE3: 11 | LJF3: 11 | LJG3: 11 | LJH3: 11 | LJI3: 11 | LJJ3: 11 | LJK3: 11 | LJL3: 11 | LJM3: 11 | LJN3: 11 | LJO3: 11 | LJP3: 11 | LJQ3: 11 | LJR3: 11 | LJS3: 11 | LJT3: 11 | LJU3: 11 | LJV3: 11 | LJW3: 11 | LJX3: 11 | LJY3: 11 | LJZ3: 11 | LKA3: 11 | LKB3: 11 | LKC3: 11 | LKD3: 11 | LKE3: 11 | LKF3: 11 | LKG3: 11 | LKH3: 11 | LKI3: 11 | LKJ3: 11 | LKK3: 11 | LKL3: 11 | LKM3: 11 | LKN3: 11 | LKO3: 11 | LKP3: 11 | LKQ3: 11 | LKR3: 11 | LKS3: 11 | LKT3: 11 | LKU3: 11 | LKV3: 11 | LKW3: 11 | LKX3: 11 | LKY3: 11 | LKZ3: 11 | LLA3: 11 | LLB3: 11 | LLC3: 11 | LLD3: 11 | LLE3: 11 | LLF3: 11 | LLG3: 11 | LLH3: 11 | LLI3: 11 | LLJ3: 11 | LLK3: 11 | LLL3: 11 | LLM3: 11 | LLN3: 11 | LLO3: 11 | LLP3: 11 | LLQ3: 11 | LLR3: 11 | LLS3: 11 | LLT3: 11 | LLU3: 11 | LLV3: 11 | LLW3: 11 | LLX3: 11 | LLY3: 11 | LLZ3: 11 | LMA3: 11 | LMB3: 11 | LMC3: 11 | LMD3: 11 | LME3: 11 | LMF3: 11 | LMG3: 11 | LMH3: 11 | LMI3: 11 | LMJ3: 11 | LMK3: 11 | LML3: 11 | LMM3: 11 | LMN3: 11 | LMO3: 11 | LMP3: 11 | LMQ3: 11 | LMR3: 11 | LMS3: 11 | LMT3: 11 | LMU3: 11 | LMV3: 11 | LMW3: 11 | LMX3: 11 | LMY3: 11 | LMZ3: 11 | LNA3: 11 | LNB3: 11 | LNC3: 11 | LND3: 11 | LNE3: 11 | LNF3: 11 | LNG3: 11 | LNH3: 11 | LNI3: 11 | LNJ3: 11 | LNK3: 11 | LNL3: 11 | LNM3: 11 | LNN3: 11 | LNO3: 11 | LNP3: 11 | LNQ3: 11 | LNR3: 11 | LNS3: 11 | LNT3: 11 | LNU3: 11 | LNV3: 11 | LNW3: 11 | LNX3: 11 | LNY3: 11 | LNZ3: 11 | LOA3: 11 | LOB3: 11 | LOC3: 11 | LOD3: 11 | LOE3: 11 | LOF3: 11 | LOG3: 11 | LOH3: 11 | LOI3: 11 | LOJ3: 11 | LOK3: 11 | LOL3: 11 | LOM3: 11 | LON3: 11 | LOO3: 11 | LOP3: 11 | LOQ3: 11 | LOR3: 11 | LOS3: 11 | LOT3: 11 | LOU3: 11 | LOV3: 11 | LOW3: 11 | LOX3: 11 | LOY3: 11 | LOZ3: 11 | LPA3: 11 | LPB3: 11 | LPC3: 11 | LPD3: 11 | LPE3: 11 | LPF3: 11 | LPG3: 11 | LPH3: 11 | LPI3: 11 | LPJ3: 11 | LPK3: 11 | LPL3: 11 | LPM3: 11 | LPN3: 11 | LPO3: 11 | LPP3: 11 | LPQ3: 11 | LPR3: 11 | LPS3: 11 | LPT3: 11 | LPU3: 11 | LPV3: 11 | LPW3: 11 | LPX3: 11 | LPY3: 11 | LPZ3: 11 | LQA3: 11 | LQB3: 11 | LQC3: 11 | LQD3: 11 | LQE3: 11 | LQF3: 11 | LQG3: 11 | LQH3: 11 | LQI3: 11 | LQJ3: 11 | LQK3: 11 | LQL3: 11 | LQM3: 11 | LQN3: 11 | LQO3: 11 | LQP3: 11 | LQQ3: 11 | LQR3: 11 | LQS3: 11 | LQT3: 11 | LQU3: 11 | LQV3: 11 | LQW3: 11 | LQX3: 11 | LQY3: 11 | LQZ3: 11 | LRA3: 11 | LRB3: 11 | LRC3: 11 | LRD3: 11 | LRE3: 11 | LRF3: 11 | LRG3: 11 | LRH3: 11 | LRI3: 11 | LRJ3: 11 | LRK3: 11 | LRL3: 11 | LRM3: 11 | LRN3: 11 | LRO3: 11 | LRP3: 11 | LRQ3: 11 | LRR3: 11 | LRS3: 11 | LRT3: 11 | LRU3: 11 | LRV3: 11 | LRW3: 11 | LRX3: 11 | LRY3: 11 | LRZ3: 11 | LSA3: 11 | LSB3: 11 | LSC3: 11 | LSD3: 11 | LSE3: 11 | LSF3: 11 | LSG3: 11 | LSH3: 11 | LSI3: 11 | LSJ3: 11 | LSK3: 11 | LSL3: 11 | LSM3: 11 | LSN3: 11 | LSO3: 11 | LSP3: 11 | LSQ3: 11 | LSR3: 11 | LSS3: 11 | LST3: 11 | LSU3: 11 | LSV3: 11 | LSW3: 11 | LSX3: 11 | LSY3: 11 | LSZ3: 11 | LTA3: 11 | LTB3: 11 | LTC3: 11 | LTD3: 11 | LTE3: 11 | LTF3: 11 | LTG3: 11 | LTH3: 11 | LTI3: 11 | LTJ3: 11 | LTK3: 11 | LTL3: 11 | LTM3: 11 | LTN3: 11 | LTO3: 11 | LTP3: 11 | LTQ3: 11 | LTR3: 11 | LTS3: 11 | LTT3: 11 | LTU3: 11 | LTV3: 11 | LTW3: 11 | LTX3: 11 | LTY3: 11 | LTZ3: 11 | LUA3: 11 | LUB3: 11 | LUC3: 11 | LUD3: 11 | LUE3: 11 | LUF3: 11 | LUG3: 11 | LUH3: 11 | LUI3: 11 | LUJ3: 11 | LUK3: 11 | LUL3: 11 | LUM3: 11 | LUN3: 11 | LUO3: 11 | LUP3: 11 | LUQ3: 11 | LUR3: 11 | LUS3: 11 | LUT3: 11 | LUU3: 11 | LUV3: 11 | LUW3: 11 | LUX3: 11 | LUY3: 11 | LUZ3: 11 | LVA3: 11 | LVB3: 11 | LVC3: 11 | LVD3: 11 | LVE3: 11 | LVF3: 11 | LVG3: 11 | LVH3: 11 | LVI3: 11 | LVJ3: 11 | LVK3: 11 | LVL3: 11 | LVM3: 11 | LVN3: 11 | LVO3: 11 | LVP3: 11 | LVQ3: 11 | LVR3: 11 | LVS3: 11 | LVT3: 11 | LVU3: 11 | LVV3: 11 | LVW3: 11 | LVX3: 11 | LVY3: 11 | LVZ3: 11 | LWA3: 11 | LWB3: 11 | LWC3: 11 | LWD3: 11 | LWE3: 11 | LWF3: 11 | LWG3: 11 | LWH3: 11 | LWI3: 11 | LWJ3: 11 | LWK3: 11 | LWL3: 11 | LWM3: 11 | LWN3: 11 | LWO3: 11 | LWP3: 11 | LWQ3: 11 | LWR3: 11 | LWS3: 11 | LWT3: 11 | LWU3: 11 | LWV3: 11 | LWW3: 11 | LWX3: 11 | LWY3: 11 | LWZ3: 11 | LXA3: 11 | LXB3: 11 | LXC3: 11 | LXD3: 11 | LXE3: 11 | LXF3: 11 | LXG3: 11 | LXH3: 11 | LXI3: 11 | LXJ3: 11 | LXK3: 11 | LXL3: 11 | LXM3: 11 | LXN3: 11 | LXO3: 11 | LXP3: 11 | LXQ3: 11 | LXR3: 11 | LXS3: 11 | LXT3: 11 | LXU3: 11 | LXV3: 11 | LXW3: 11 | LXX3: 11 | LXY3: 11 | LXZ3: 11 | LYA3: 11 | LYB3: 11 | LYC3: 11 | LYD3: 11 | LYE3: 11 | LYF3: 11 | LYG3: 11 | LYH3: 11 | LYI3: 11 | LYJ3: 11 | LYK3: 11 | LYL3: 11 | LYM3: 11 | LYN3: 11 | LYO3: 11 | LYP3: 11 | LYQ3: 11 | LYR3: 11 | LYS3: 11 | LYT3: 11 | LYU3: 11 | LYV3: 11 | LYW3: 11 | LYX3: 11 | LYY3: 11 | LYZ3: 11 | LZA3: 11 | LZB3: 11 | LZC3: 11 | LZD3: 11 | LZE3: 11 | LZF3: 11 | LZG3: 11 | LZH3: 11 | LZI3: 11 | LZJ3: 11 | LZK3: 11 | LZL3: 11 | LZM3: 11 | LZN3: 11 | LZO3: 11 | LZP3: 11 | LZQ3: 11 | LZR3: 11 | LZS3: 11 | LZT3: 11 | LZU3: 11 | LZV3: 11 | LZW3: 11 | LZX3: 11 | LZY3: 11 | LZZ3: 11 | MAA3: 11 | MAB3: 11 | MAC3: 11 | MAD3: 11 | MAE3: 11 | MAF3: 11 | MAG3: 11 | MAH3: 11 | MAI3: 11 | MAJ3: 11 | MAK3: 11 | MAL3: 11 | MAM3: 11 | MAN3: 11 | MAO3: 11 | MAP3: 11 | MAQ3: 11 | MAR3: 11 | MAS3: 11 | MAT3: 11 | MAU3: 11 | MAV3: 11 | MAW3: 11 | MAX3: 11 | MAY3: 11 | MAZ3: 11 | MBA3: 11 | MBB3: 11 | MBC3: 11 | MBD3: 11 | MBE3: 11 | MBF3: 11 | MBG3: 11 | MBH3: 11 | MBI3: 11 | MBJ3: 11 | MBK3: 11 | MBL3: 11 | MBM3: 11 | MBN3: 11 | MBO3: 11 | MBP3: 11 | MBQ3: 11 | MBR3: 11 | MBS3: 11 | MBT3: 11 | MBU3: 11 | MBV3: 11 | MBW3: 11 | MBX3: 11 | MBY3: 11 | MBZ3: 11 | MCA3: 11 | MCB3: 11 | MCC3: 11 | MCD3: 11 | MCE3: 11 | MCF3: 11 | MCG3: 11 | MCH3: 11 | MCI3: 11 | MCJ3: 11 | MCK3: 11 | MCL3: 11 | MCM3: 11 | MCN3: 11 | MCO3: 11 | MCP3: 11 | MCQ3: 11 | MCR3: 11 | MCS3: 11 | MCT3: 11 | MCU3: 11 | MCV3: 11 | MCW3: 11 | MCX3: 11 | MCY3: 11 | MCZ3: 11 | MDA3: 11 | MDB3: 11 | MDC3: 11 | MDD3: 11 | MDE3: 11 | MDF3: 11 | MDG3: 11 | MDH3: 11 | MDI3: 11 | MDJ3: 11 | MDK3: 11 | MDL3: 11 | MDM3: 11 | MDN3: 11 | MDO3: 11 | MDP3: 11 | MDQ3: 11 | MDR3: 11 | MDS3: 11 | MDT3: 11 | MDU3: 11 | MDV3: 11 | MDW3: 11 | MDX3: 11 | MDY3: 11 | MDZ3: 11 | MEA3: 11 | MEB3: 11 | MEC3: 11 | MED3: 11 | MEE3: 11 | MEF3: 11 | MEG3: 11 | MEH3: 11 | MEI3: 11 | MEJ3: 11 | MEK3: 11 | MEL3: 11 | MEM3: 11 | MEN3: 11 | MEO3: 11 | MEP3: 11 | MEQ3: 11 | MER3: 11 | MES3: 11 | MET3: 11 | MEU3: 11 | MEV3: 11 | MEW3: 11 | MEX3: 11 | MEY3: 11 | MEZ3: 11 | MFA3: 11 | MFB3: 11 | MFC3: 11 | MFD3: 11 | MFE3: 11 | MFF3: 11 | MFG3: 11 | MFH3: 11 | MFI3: 11 | MFJ3: 11 | MFK3: 11 | MFL3: 11 | MFM3: 11 | MFN3: 11 | MFO3: 11 | MFP3: 11 | MFQ3: 11 | MFR3: 11 | MFS3: 11 | MFT3: 11 | MFU3: 11 | MFV3: 11 | MFW3: 11 | MFX3: 11 | MFY3: 11 | MFZ3: 11 | MGA3: 11 | MGB3: 11 | MGC3: 11 | MGD3: 11 | MGE3: 11 | MGF3: 11 | MGG3: 11 | MGH3: 11 | MGI3: 11 | MGJ3: 11 | MGK3: 11 | MGL3: 11 | MGM3: 11 | MGN3: 11 | MGO3: 11 | MGP3: 11 | MGQ3: 11 | MGR3: 11 | MGS3: 11 | MGT3: 11 | MGU3: 11 | MGV3: 11 | MGW3: 11 | MGX3: 11 | MGY3: 11 | MGZ3: 11 | MHA3: 11 | MHB3: 11 | MHC3: 11 | MHD3: 11 | MHE3: 11 | MHF3: 11 | MHG3: 11 | MHH3: 11 | MHI3: 11 | MHJ3: 11 | MHK3: 11 | MHL3: 11 | MHM3: 11 | MHN3: 11 | MHO3: 11 | MHP3: 11 | MHQ3: 11 | MHR3: 11 | MHS3: 11 | MHT3: 11 | MHU3: 11 | MHV3: 11 | MHW3: 11 | MHX3: 11 | MHY3: 11 | MHZ3: 11 | MIA3: 11 | MIB3: 11 | MIC3: 11 | MID3: 11 | MIE3: 11 | MIF3: 11 | MIG3: 11 | MIH3: 11 | MII3: 11 | MIJ3: 11 | MIK3: 11 | MIL3: 11 | MIM3: 11 | MIN3: 11 | MIO3: 11 | MIP3: 11 | MIQ3: 11 | MIR3: 11 | MIS3: 11 | MIT3: 11 | MIU3: 11 | MIV3: 11 | MIW3: 11 | MIX3: 11 | MIY3: 11 | MIZ3: 11 | MJA3: 11 | MJB3: 11 | MJC3: 11 | MJD3: 11 | MJE3: 11 | MJF3: 11 | MJG3: 11 | MJH3: 11 | MJI3: 11 | MJJ3: 11 | MJK3: 11 | MJL3: 11 | MJM3: 11 | MJN3: 11 | MJO3: 11 | MJP3: 11 | MJQ3: 11 | MJR3: 11 | MJS3: 11 | MJT3: 11 | MJU3: 11 | MJV3: 11 | MJW3: 11 | MJX3: 11 | MJY3: 11 | MJZ3: 11 | MKA3: 11 | MKB3: 11 | MKC3: 11 | MKD3: 11 | MKE3: 11 | MKF3: 11 | MKG3: 11 | MKH3: 11 | MKI3: 11 | MKJ3: 11 | MKK3: 11 | MKL3: 11 | MKM3: 11 | MKN3: 11 | MKO3: 11 | MKP3: 11 | MKQ3: 11 | MKR3: 11 | MKS3: 11 | MKT3: 11 | MKU3: 11 | MKV3: 11 | MKW3: 11 | MKX3: 11 | MKY3: 11 | MKZ3: 11 | MLA3: 11 | MLB3: 11 | MLC3: 11 | MLD3: 11 | MLE3: 11 | MLF3: 11 | MLG3: 11 | MLH3: 11 | MLI3: 11 | MLJ3: 11 | MLK3: 11 | MLL3: 11 | MLM3: 11 | MLN3: 11 | MLO3: 11 | MLP3: 11 | MLQ3: 11 | MLR3: 11 | MLS3: 11 | MLT3: 11 | MLU3: 11 | MLV3: 11 | MLW3: 11 | MLX3: 11 | MLY3: 11 | MLZ3: 11 | MMA3: 11 | MMB3: 11 | MMC3: 11 | MMD3: 11 | MME3: 11 | MMF3: 11 | MMG3: 11 | MMH3: 11 | MMI3: 11 | MMJ3: 11 | MMK3: 11 | MML3: 11 | MMM3: 11 | MMN3: 11 | MMO3: 11 | MMP3: 11 | MMQ3: 11 | MMR3: 11 | MMS3: 11 | MMT3: 11 | MMU3: 11 | MMV3: 11 | MMW3: 11 | MMX3: 11 | MMY3: 11 | MMZ3: 11 | MNA3: 11 | MNB3: 11 | MNC3: 11 | MND3: 11 | MNE3: 11 | MNF3: 11 | MNG3: 11 | MNH3: 11 | MNI3: 11 | MNJ3: 11 | MNK3: 11 | MNL3: 11 | MNM3: 11 | MNN3: 11 | MNO3: 11 | MNP3: 11 | MNQ3: 11 | MNR3: 11 | MNS3: 11 | MNT3: 11 | MNU3: 11 | MNV3: 11 | MNW3: 11 | MNX3: 11 | MNY3: 11 | MNZ3: 11 | MOA3: 11 | MOB3: 11 | MOC3: 11 | MOD3: 11 | MOE3: 11 | MOF3: 11 | MOG3: 11 | MOH3: 11 | MOI3: 11 | MOJ3: 11 | MOK3: 11 | MOL3: 11 | MOM3: 11 | MON3: 11 | MOO3: 11 | MOP3: 11 | MOQ3: 11 | MOR3: 11 | MOS3: 11 | MOT3: 11 | MOU3: 11 | MOV3: 11 | MOW3: 11 | MOX3: 11 | MOY3: 11 | MOZ3: 11 | MPA3: 11 | MPB3: 11 | MPC3: 11 | MPD3: 11 | MPE3: 11 | MPF3: 11 | MPG3: 11 | MPH3: 11 | MPI3: 11 | MPJ3: 11 | MPK3: 11 | MPL3: 11 | MPM3: 11 | MPN3: 11 | MPO3: 11 | MPP3: 11 | MPQ3: 11 | MPR3: 11 | MPS3: 11 | MPT3: 11 | MPU3: 11 | MPV3: 11 | MPW3: 11 | MPX3: 11 | MPY3: 11 | MPZ3: 11 | MQA3: 11 | MQB3: 11 | MQC3: 11 | MQD3: 11 | MQE3: 11 | MQF3: 11 | MQG3: 11 | MQH3: 11 | MQI3: 11 | MQJ3: 11 | MQK3: 11 | MQL3: 11 | MQM3: 11 | MQN3: 11 | MQO3: 11 | MQP3: 11 | MQQ3: 11 | MQR3: 11 | MQS3: 11 | MQT3: 11 | MQU3: 11 | MQV3: 11 | MQW3: 11 | MQX3: 11 | MQY3: 11 | MQZ3: 11 | MRA3: 11 | MRB3: 11 | MRC3: 11 | MRD3: 11 | MRE3: 11 | MRF3: 11 | MRG3: 11 | MRH3: 11 | MRI3: 11 | MRJ3: 11 | MRK3: 11 | MRL3: 11 | MRM3: 11 | MRN3: 11 | MRO3: 11 | MRP3: 11 | MRQ3: 11 | MRR3: 11 | MRS3: 11 | MRT3: 11 | MRU3: 11 | MRV3: 11 | MRW3: 11 | MRX3: 11 | MRY3: 11 | MRZ3: 11 | MSA3: 11 | MSB3: 11 | MSC3: 11 | MSD3: 11 | MSE3: 11 | MSF3: 11 | MSG3: 11 | MSH3: 11 | MSI3: 11 | MSJ3: 11 | MSK3: 11 | MSL3: 11 | MSM3: 11 | MSN3: 11 | MSO3: 11 | MSP3: 11 | MSQ3: 11 | MSR3: 11 | MSS3: 11 | MST3: 11 | MSU3: 11 | MSV3: 11 | MSW3: 11 | MSX3: 11 | MSY3: 11 | MSZ3: 11 | MTA3: 11 | MTB3: 11 | MTC3: 11 | MTD3: 11 | MTE3: 11 | MTF3: 11 | MTG3: 11 | MTH3: 11 | MTI3: 11 | MTJ3: 11 | MTK3: 11 | MTL3: 11 | MTM3: 11 | MTN3: 11 | MTO3: 11 | MTP3: 11 | MTQ3: 11 | MTR3: 11 | MTS3: 11 | MTT3: 11 | MTU3: 11 | MTV3: 11 | MTW3: 11 | MTX3: 11 | MTY3: 11 | MTZ3: 11 | MUA3: 11 | MUB3: 11 | MUC3: 11 | MUD3: 11 | MUE3: 11 | MUF3: 11 | MUG3: 11 | MUH3: 11 | MUI3: 11 | MUJ3: 11 | MUK3: 11 | MUL3: 11 | MUM3: 11 | MUN3: 11 | MUO3: 11 | MUP3: 11 | MUQ3: 11 | MUR3: 11 | MUS3: 11 | MUT3: 11 | MUU3: 11 | MUV3: 11 | MUW3: 11 | MUX3: 11 | MUY3: 11 | MUZ3: 11 | MVA3: 11 | MVB3: 11 | MVC3: 11 | MVD3: 11 | MVE3: 11 | MVF3: 11 | MVG3: 11 | MVH3: 11 | MVI3: 11 | MVJ3: 11 | MVK3: 11 | MVL3: 11 | MVM3: 11 | MVN3: 11 | MVO3: 11 | MVP3: 11 | MVQ3: 11 | MVR3: 11 | MVS3: 11 | MVT3: 11 | MVU3: 11 | MVV3: 11 | MVW3: 11 | MVX3: 11 | MVY3: 11 | MVZ3: 11 | MWA3: 11 | MWB3: 11 | MWC3: 11 | MWD3: 11 | MWE3: 11 | MWF3: 11 | MWG3: 11 | MWH3: 11 | MWI3: 11 | MWJ3: 11 | MWK3: 11 | MWL3: 11 | MWM3: 11 | MWN3: 11 | MWO3: 11 | MWP3: 11 | MWQ3: 11 | MWR3: 11 | MWS3: 11 | MWT3: 11 | MWU3: 11 | MWV3: 11 | MWW3: 11 | MWX3: 11 | MWY3: 11 | MWZ3: 11 | MXA3: 11 | MXB3: 11 | MXC3: 11 | MXD3: 11 | MXE3: 11 | MXF3: 11 | MXG3: 11 | MXH3: 11 | MXI3: 11 | MXJ3: 11 | MXK3: 11 | MXL3: 11 | MXM3: 11 | MXN3: 11 | MXO3: 11 | MXP3: 11 | MXQ3: 11 | MXR3: 11 | MXS3: 11 | MXT3: 11 | MXU3: 11 | MXV3: 11 | MXW3: 11 | MXX3: 11 | MXY3: 11 | MXZ3: 11 | MYA3: 11 | MYB3: 11 | MYC3: 11 | MYD3: 11 | MYE3: 11 | MYF3: 11 | MYG3: 11 | MYH3: 11 | MYI3: 11 | MYJ3: 11 | MYK3: 11 | MYL3: 11 | MYM3: 11 | MYN3: 11 | MYO3: 11 | MYP3: 11 | MYQ3: 11 | MYR3: 11 | MYS3: 11 | MYT3: 11 | MYU3: 11 | MYV3: 11 | MYW3: 11 | MYX3: 11 | MYY3: 11 | MYZ3: 11 | MZA3: 11 | MZB3: 11 | MZC3: 11 | MZD3: 11 | MZE3: 11 | MZF3: 11 | MZG3: 11 | MZH3: 11 | MZI3: 11 | MZJ3: 11 | MZK3: 11 | MZL3: 11 | MZM3: 11 | MZN3: 11 | MZO3: 11 | MZP3: 11 | MZQ3: 11 | MZR3: 11 | MZS3: 11 | MZT3: 11 | MZU3: 11 | MZV3: 11 | MZW3: 11 | MZX3: 11 | MZY3: 11 | MZZ3: 11 | NAA3: 11 | NAB3: 11 | NAC3: 11 | NAD3: 11 | NAE3: 11 | NAF3: 11 | NAG3: 11 | NAH3: 11 | NAI3: 11 | NAJ3: 11 | NAK3: 11 | NAL3: 11 | NAM3: 11 | NAN3: 11 | NAO3: 11 | NAP3: 11 | NAQ3: 11 | NAR3: 11 | NAS3: 11 | NAT3: 11 | NAU3: 11 | NAV3: 11 | NAW3: 11 | NAX3: 11 | NAY3: 11 | NAZ3: 11 | NBA3: 11 | NBB3: 11 | NBC3: 11 | NBD3: 11 | NBE3: 11 | NBF3: 11 | NBG3: 11 | NBH3: 11 | NBI3: 11 | NBJ3: 11 | NBK3: 11 | NBL3: 11 | NBM3: 11 | NBN3: 11 | NBO3: 11 | NBP3: 11 | NBQ3: 11 | NBR3: 11 | NBS3: 11 | NBT3: 11 | NBU3: 11 | NBV3: 11 | NBW3: 11 | NBX3: 11 | NBY3: 11 | NBZ3: 11 | NCA3: 11 | NCB3: 11 | NCC3: 11 | NCD3: 11 | NCE3: 11 | NCF3: 11 | NCG3: 11 | NCH3: 11 | NCI3: 11 | NCJ3: 11 | NCK3: 11 | NCL3: 11 | NCM3: 11 | NCN3: 11 | NCO3: 11 | NCP3: 11 | NCQ3: 11 | NCR3: 11 | NCS3: 11 | NCT3: 11 | NCU3: 11 | NCV3: 11 | NCW3: 11 | NCX3: 11 | NCY3: 11 | NCZ3: 11 | NDA3: 11 | NDB3: 11 | NDC3: 11 | NDD3: 11 | NDE3: 11 | NDF3: 11 | NDG3: 11 | NDH3: 11 | NDI3: 11 | NDJ3: 11 | NDK3: 11 | NDL3: 11 | NDM3: 11 | NDN3: 11 | NDO3: 11 | NDP3: 11 | NDQ3: 11 | NDR3: 11 | NDS3: 11 | NDT3: 11 | NDU3: 11 | NDV3: 11 | NDW3: 11 | NDX3: 11 | NDY3: 11 | NDZ3: 11 | NEA3: 11 | NEB3: 11 | NEC3: 11 | NED3: 11 | NEE3: 11 | NEF3: 11 | NEG3: 11 | NEH3: 11 | NEI3: 11 | NEJ3: 11 | NEK3: 11 | NEL3: 11 | NEM3: 11 | NEN3: 11 | NEO3: 11 | NEP3: 11 | NEQ3: 11 | NER3: 11 | NES3: 11 | NET3: 11 | NEU3: 11 | NEV3: 11 | NEW3: 11 | NEX3: 11 | NEY3: 11 | NEZ3: 11 | NFA3: 11 | NFB3: 11 | NFC3: 11 | NFD3: 11 | NFE3: 11 | NFF3: 11 | NFG3: 11 | NFH3: 11 | NFI3: 11 | NFJ3: 11 | NFK3: 11 | NFL3: 11 | NFM3: 11 | NFN3: 11 | NFO3: 11 | NFP3: 11 | NFQ3: 11 | NFR3: 11 | NFS3: 11 | NFT3: 11 | NFU3: 11 | NFV3: 11 | NFW3: 11 | NFX3: 11 | NFY3: 11 | NFZ3: 11 | NGA3: 11 | NGB3: 11 | NGC3: 11 | NGD3: 11 | NGE3: 11 | NGF3: 11 | NGG3: 11 | NGH3: 11 | NGI3: 11 | NGJ3: 11 | NGK3: 11 | NGL3: 11 | NGM3: 11 | NGN3: 11 | NGO3: 11 | NGP3: 11 | NGQ3: 11 | NGR3: 11 | NGS3: 11 | NGT3: 11 | NGU3: 11 | NGV3: 11 | NGW3: 11 | NGX3: 11 | NGY3: 11 | NGZ3: 11 | NHA3: 11 | NHB3: 11 | NHC3: 11 | NHD3: 11 | NHE3: 11 | NHF3: 11 | NHG3: 11 | NHH3: 11 | NHI3: 11 | NHJ3: 11 | NHK3: 11 | NHL3: 11 | NHM3: 11 | NHN3: 11 | NHO3: 11 | NHP3: 11 | NHQ3: 11 | NHR3: 11 | NHS3: 11 | NHT3: 11 | NHU3: 11 | NHV3: 11 | NHW3: 11 | NHX3: 11 | NHY3: 11 | NHZ3: 11 | NIA3: 11 | NIB3: 11 | NIC3: 11 | NID3: 11 | NIE3: 11 | NIF3: 11 | NIG3: 11 | NIH3: 11 | NII3: 11 | NIJ3: 11 | NIK3: 11 | NIL3: 11 | NIM3: 11 | NIN3: 11 | NIO3: 11 | NIP3: 11 | NIQ3: 11 | NIR3: 11 | NIS3: 11 | NIT3: 11 | NIU3: 11 | NIV3: 11 | NIW3: 11 | NIX3: 11 | NIY3: 11 | NIZ3: 11 | NJA3: 11 | NJB3: 11 | NJC3: 11 | NJD3: 11 | NJE3: 11 | NJF3: 11 | NJG3: 11 | NJH3: 11 | NJI3: 11 | NJJ3: 11 | NJK3: 11 | NJL3: 11 | NJM3: 11 | NJN3: 11 | NJO3: 11 | NJP3: 11 | NJQ3: 11 | NJR3: 11 | NJS3: 11 | NJT3: 11 | NJU3: 11 | NJV3: 11 | NJW3: 11 | NJX3: 11 | NJY3: 11 | NJZ3: 11 | NKA3: 11 | NKB3: 11 | NKC3: 11 | NKD3: 11 | NKE3: 11 | NKF3: 11 | NKG3: 11 | NKH3: 11 | NKI3: 11 | NKJ3: 11 | NKK3: 11 | NKL3: 11 | NKM3: 11 | NKN3: 11 | NKO3: 11 | NKP3: 11 | NKQ3: 11 | NKR3: 11 | NKS3: 11 | NKT3: 11 | NKU3: 11 | NKV3: 11 | NKW3: 11 | NKX3: 11 | NKY3: 11 | NKZ3: 11 | NLA3: 11 | NLB3: 11 | NLC3: 11 | NLD3: 11 | NLE3: 11 | NLF3: 11 | NLG3: 11 | NLH3: 11 | NLI3: 11 | NLJ3: 11 | NLK3: 11 | NLL3: 11 | NLM3: 11 | NLN3: 11 | NLO3: 11 | NLP3: 11 | NLQ3: 11 | NLR3: 11 | NLS3: 11 | NLT3: 11 | NLU3: 11 | NLV3: 11 | NLW3: 11 | NLX3: 11 | NLY3: 11 | NLZ3: 11 | NMA3: 11 | NMB3: 11 | NMC3: 11 | NMD3: 11 | NME3: 11 | NMF3: 11 | NMG3: 11 | NMH3: 11 | NMI3: 11 | NMJ3: 11 | NMK3: 11 | NML3: 11 | NMM3: 11 | NMN3: 11 | NMO3: 11 | NMP3: 11 | NMQ3: 11 | NMR3: 11 | NMS3: 11 | NMT3: 11 | NMU3: 11 | NMV3: 11 | NMW3: 11 | NMX3: 11 | NMY3: 11 | NMZ3: 11 | NNA3: 11 | NNB3: 11 | NNC3: 11 | NND3: 11 | NNE3: 11 | NNF3: 11 | NNG3: 11 | NNH3: 11 | NNI3: 11 | NNJ3: 11 | NNK3: 11 | NNL3: 11 | NNM3: 11 | NNN3: 11 | NNO3: 11 | NNP3: 11 | NNQ3: 11 | NNR3: 11 | NNS3: 11 | NNT3: 11 | NNU3: 11 | NNV3: 11 | NNW3: 11 | NNX3: 11 | NNY3: 11 | NNZ3: 11 | NOA3: 11 | NOB3: 11 | NOC3: 11 | NOD3: 11 | NOE3: 11 | NOF3: 11 | NOG3: 11 | NOH3: 11 | NOI3: 11 | NOJ3: 11 | NOK3: 11 | NOL3: 11 | NOM3: 11 | NON3: 11 | NOO3: 11 | NOP3: 11 | NOQ3: 11 | NOR3: 11 | NOS3: 11 | NOT3: 11 | NOU3: 11 | NOV3: 11 | NOW3: 11 | NOX3: 11 | NOY3: 11 | NOZ3: 11 | NPA3: 11 | NPB3: 11 | NPC3: 11 | NPD3: 11 | NPE3: 11 | NPF3: 11 | NPG3: 11 | NPH3: 11 | NPI3: 11 | NPJ3: 11 | NPK3: 11 | NPL3: 11 | NPM3: 11 | NPN3: 11 | NPO3: 11 | NPP3: 11 | NPQ3: 11 | NPR3: 11 | NPS3: 11 | NPT3: 11 | NPU3: 11 | NPV3: 11 | NPW3: 11 | NPX3: 11 | NPY3: 11 | NPZ3: 11 | NQA3: 11 | NQB3: 11 | NQC3: 11 | NQD3: 11 | NQE3: 11 | NQF3: 11 | NQG3: 11 | NQH3: 11 | NQI3: 11 | NQJ3: 11 | NQK3: 11 | NQL3: 11 | NQM3: 11 | NQN3: 11 | NQO3: 11 | NQP3: 11 | NQQ3: 11 | NQR3: 11 | NQS3: 11 | NQT3: 11 | NQU3: 11 | NQV3: 11 | NQW3: 11 | NQX3: 11 | NQY3: 11 | NQZ3: 11 | NRA3: 11 | NRB3: 11 | NRC3: 11 | NRD3: 11 | NRE3: 11 | NRF3: 11 | NRG3: 11 | NRH3: 11 | NRI3: 11 | NRJ3: 11 | NRK3: 11 | NRL3: 11 | NRM3: 11 | NRN3: 11 | NRO3: 11 | NRP3: 11 | NRQ3: 11 | NRR3: 11 | NRS3: 11 | NRT3: 11 | NRU3: 11 | NRV3: 11 | NRW3: 11 | NRX3: 11 | NRY3: 11 | NRZ3: 11 | NSA3: 11 | NSB3: 11 | NSC3: 11 | NSD3: 11 | NSE3: 11 | NSF3: 11 | NSG3: 11 | NSH3: 11 | NSI3: 11 | NSJ3: 11 | NSK3: 11 | NSL3: 11 | NSM3: 11 | NSN3: 11 | NSO3: 11 | NSP3: 11 | NSQ3: 11 | NSR3: 11 | NSS3: 11 | NST3: 11 | NSU3: 11 | NSV3: 11 | NSW3: 11 | NSX3: 11 | NSY3: 11 | NSZ3: 11 | NTA3: 11 | NTB3: 11 | NTC3: 11 | NTD3: 11 | NTE3: 11 | NTF3: 11 | NTG3: 11 | NTH3: 11 | NTI3: 11 | NTJ3: 11 | NTK3: 11 | NTL3: 11 | NTM3: 11 | NTN3: 11 | NTO3: 11 | NTP3: 11 | NTQ3: 11 | NTR3: 11 | NTS3: 11 | NTT3: 11 | NTU3: 11 | NTV3: 11 | NTW3: 11 | NTX3: 11 | NTY3: 11 | NTZ3: 11 | NUA3: 11 | NUB3: 11 | NUC3: 11 | NUD3: 11 | NUE3: 11 | NUF3: 11 | NUG3: 11 | NUH3: 11 | NUI3: 11 | NUJ3: 11 | NUK3: 11 | NUL3: 11 | NUM3: 11 | NUN3: 11 | NUO3: 11 | NUP3: 11 | NUQ3: 11 | NUR3: 11 | NUS3: 11 | NUT3: 11 | NUU3: 11 | NUV3: 11 | NUW3: 11 | NUX3: 11 | NUY3: 11 | NUZ3: 11 | NVA3: 11 | NVB3: 11 | NVC3: 11 | NVD3: 11 | NVE3: 11 | NVF3: 11 | NVG3: 11 | NVH3: 11 | NVI3: 11 | NVJ3: 11 | NVK3: 11 | NVL3: 11 | NVM3: 11 | NVN3: 11 | NVO3: 11 | NVP3: 11 | NVQ3: 11 | NVR3: 11 | NVS3: 11 | NVT3: 11 | NVU3: 11 | NVV3: 11 | NVW3: 11 | NVX3: 11 | NVY3: 11 | NVZ3: 11 | NWA3: 11 | NWB3: 11 | NWC3: 11 | NWD3: 11 | NWE3: 11 | NWF3: 11 | NWG3: 11 | NWH3: 11 | NWI3: 11 | NWJ3: 11 | NWK3: 11 | NWL3: 11 | NWM3: 11 | NWN3: 11 | NWO3: 11 | NWP3: 11 | NWQ3: 11 | NWR3: 11 | NWS3: 11 | NWT3: 11 | NWU3: 11 | NWV3: 11 | NWW3: 11 | NWX3: 11 | NWY3: 11 | NWZ3: 11 | NXA3: 11 | NXB3: 11 | NXC3: 11 | NXD3: 11 | NXE3: 11 | NXF3: 11 | NXG3: 11 | NXH3: 11 | NXI3: 11 | NXJ3: 11 | NXK3: 11 | NXL3: 11 | NXM3: 11 | NXN3: 11 | NXO3: 11 | NXP3: 11 | NXQ3: 11 | NXR3: 11 | NXS3: 11 | NXT3: 11 | NXU3: 11 | NXV3: 11 | NXW3: 11 | NXX3: 11 | NXY3: 11 | NXZ3: 11 | NYA3: 11 | NYB3: 11 | NYC3: 11 | NYD3: 11 | NYE3: 11 | NYF3: 11 | NYG3: 11 | NYH3: 11 | NYI3: 11 | NYJ3: 11 | NYK3: 11 | NYL3: 11 | NYM3: 11 | NYN3: 11 | NYO3: 11 | NYP3: 11 | NYQ3: 11 | NYR3: 11 | NYS3: 11 | NYT3: 11 | NYU3: 11 | NYV3: 11 | NYW3: 11 | NYX3: 11 | NYY3: 11 | NYZ3: 11 | NZA3: 11 | NZB3: 11 | NZC3: 11 | NZD3: 11 | NZE3: 11 | NZF3: 11 | NZG3: 11 | NZH3: 11 | NZI3: 11 | NZJ3: 11 | NZK3: 11 | NZL3: 11 | NZM3: 11 | NZN3: 11 | NZO3: 11 | NZP3: 11 | NZQ3: 11 | NZR3: 11 | NZS3: 11 | NZT3: 11 | NZU3: 11 | NZV3: 11 | NZW3: 11 | NZX3: 11 | NZY3: 11 | NZZ3: 11 | OAA3: 11 | OAB3: 11 | OAC3: 11 | OAD3: 11 | OAE3: 11 | OAF3: 11 | OAG3: 11 | OAH3: 11 | OAI3: 11 | OAJ3: 11 | OAK3: 11 | OAL3: 11 | OAM3: 11 | OAN3: 11 | OAO3: 11 | OAP3: 11 | OAQ3: 11 | OAR3: 11 | OAS3: 11 | OAT3: 11 | OAU3: 11 | OAV3: 11 | OAW3: 11 | OAX3: 11 | OAY3: 11 | OAZ3: 11 | OBA3: 11 | OBB3: 11 | OBC3: 11 | OBD3: 11 | OBE3: 11 | OBF3: 11 | OBG3: 11 | OBH3: 11 | OBI3: 11 | OBJ3: 11 | OBK3: 11 | OBL3: 11 | OBM3: 11 | OBN3: 11 | OBO3: 11 | OBP3: 11 | OBQ3: 11 | OBR3: 11 | OBS3: 11 | OBT3: 11 | OBU3: 11 | OBV3: 11 | OBW3: 11 | OBX3: 11 | OBY3: 11 | OBZ3: 11 | OCA3: 11 | OCB3: 11 | OCC3: 11 | OCD3: 11 | OCE3: 11 | OCF3: 11 | OCG3: 11 | OCH3: 11 | OCI3: 11 | OCJ3: 11 | OCK3: 11 | OCL3: 11 | OCM3: 11 | OCN3: 11 | OCO3: 11 | OCP3: 11 | OCQ3: 11 | OCR3: 11 | OCS3: 11 | OCT3: 11 | OCU3: 11 | OCV3: 11 | OCW3: 11 | OCX3: 11 | OCY3: 11 | OCZ3: 11 | ODA3: 11 | ODB3: 11 | ODC3: 11 | ODD3: 11 | ODE3: 11 | ODF3: 11 | ODG3: 11 | ODH3: 11 | ODI3: 11 | ODJ3: 11 | ODK3: 11 | ODL3: 11 | ODM3: 11 | ODN3: 11 | ODO3: 11 | ODP3: 11 | ODQ3: 11 | ODR3: 11 | ODS3: 11 | ODT3: 11 | ODU3: 11 | ODV3: 11 | ODW3: 11 | ODX3: 11 | ODY3: 11 | ODZ3: 11 | OEA3: 11 | OEB3: 11 | OEC3: 11 | OED3: 11 | OEE3: 11 | OEF3: 11 | OEG3: 11 | OEH3: 11 | OEI3: 11 | OEJ3: 11 | OEK3: 11 | OEL3: 11 | OEM3: 11 | OEN3: 11 | OEO3: 11 | OEP3: 11 | OEQ3: 11 | OER3: 11 | OES3: 11 | OET3: 11 | OEU3: 11 | OEV3: 11 | OEW3: 11 | OEX3: 11 | OEY3: 11 | OEZ3: 11 | OFA3: 11 | OFB3: 11 | OFC3: 11 | OFD3: 11 | OFE3: 11 | OFF3: 11 | OFG3: 11 | OFH3: 11 | OFI3: 11 | OFJ3: 11 | OFK3: 11 | OFL3: 11 | OFM3: 11 | OFN3: 11 | OFO3: 11 | OFP3: 11 | OFQ3: 11 | OFR3: 11 | OFS3: 11 | OFT3: 11 | OFU3: 11 | OFV3: 11 | OFW3: 11 | OFX3: 11 | OFY3: 11 | OFZ3: 11 | OGA3: 11 | OGB3: 11 | OGC3: 11 | OGD3: 11 | OGE3: 11 | OGF3: 11 | OGG3: 11 | OGH3: 11 | OGI3: 11 | OGJ3: 11 | OGK3: 11 | OGL3: 11 | OGM3: 11 | OGN3: 11 | OGO3: 11 | OGP3: 11 | OGQ3: 11 | OGR3: 11 | OGS3: 11 | OGT3: 11 | OGU3: 11 | OGV3: 11 | OGW3: 11 | OGX3: 11 | OGY3: 11 | OGZ3: 11 | OHA3: 11 | OHB3: 11 | OHC3: 11 | OHD3: 11 | OHE3: 11 | OHF3: 11 | OHG3: 11 | OHH3: 11 | OHI3: 11 | OHJ3: 11 | OHK3: 11 | OHL3: 11 | OHM3: 11 | OHN3: 11 | OHO3: 11 | OHP3: 11 | OHQ3: 11 | OHR3: 11 | OHS3: 11 | OHT3: 11 | OHU3: 11 | OHV3: 11 | OHW3: 11 | OHX3: 11 | OHY3: 11 | OHZ3: 11 | OIA3: 11 | OIB3: 11 | OIC3: 11 | OID3: 11 | OIE3: 11 | OIF3: 11 | OIG3: 11 | OIH3: 11 | OII3: 11 | OIJ3: 11 | OIK3: 11 | OIL3: 11 | OIM3: 11 | OIN3: 11 | OIO3: 11 | OIP3: 11 | OIQ3: 11 | OIR3: 11 | OIS3: 11 | OIT3: 11 | OIU3: 11 | OIV3: 11 | OIW3: 11 | OIX3: 11 | OIY3: 11 | OIZ3: 11 | OJA3: 11 | OJB3: 11 | OJC3: 11 | OJD3: 11 | OJE3: 11 | OJF3: 11 | OJG3: 11 | OJH3: 11 | OJI3: 11 | OJJ3: 11 | OJK3: 11 | OJL3: 11 | OJM3: 11 | OJN3: 11 | OJO3: 11 | OJP3: 11 | OJQ3: 11 | OJR3: 11 | OJS3: 11 | OJT3: 11 | OJU3: 11 | OJV3: 11 | OJW3: 11 | OJX3: 11 | OJY3: 11 | OJZ3: 11 | OKA3: 11 | OKB3: 11 | OKC3: 11 | OKD3: 11 | OKE3: 11 | OKF3: 11 | OKG3: 11 | OKH3: 11 | OKI3: 11 | OKJ3: 11 | OKK3: 11 | OKL3: 11 | OKM3: 11 | OKN3: 11 | OKO3: 11 | OKP3: 11 | OKQ3: 11 | OKR3: 11 | OKS3: 11 | OKT3: 11 | OKU3: 11 | OKV3: 11 | OKW3: 11 | OKX3: 11 | OKY3: 11 | OKZ3: 11 | OLA3: 11 | OLB3: 11 | OLC3: 11 | OLD3: 11 | OLE3: 11 | OLF3: 11 | OLG3: 11 | OLH3: 11 | OLI3: 11 | OLJ3: 11 | OLK3: 11 | OLL3: 11 | OLM3: 11 | OLN3: 11 | OLO3: 11 | OLP3: 11 | OLQ3: 11 | OLR3: 11 | OLS3: 11 | OLT3: 11 | OLU3: 11 | OLV3: 11 | OLW3: 11 | OLX3: 11 | OLY3: 11 | OLZ3: 11 | OMA3: 11 | OMB3: 11 | OMC3: 11 | OMD3: 11 | OME3: 11 | OMF3: 11 | OMG3: 11 | OMH3: 11 | OMI3: 11 | OMJ3: 11 | OMK3: 11 | OML3: 11 | OMM3: 11 | OMN3: 11 | OMO3: 11 | OMP3: 11 | OMQ3: 11 | OMR3: 11 | OMS3: 11 | OMT3: 11 | OMU3: 11 | OMV3: 11 | OMW3: 11 | OMX3: 11 | OMY3: 11 | OMZ3: 11 | ONA3: 11 | ONB3: 11 | ONC3: 11 | OND3: 11 | ONE3: 11 | ONF3: 11 | ONG3: 11 | ONH3: 11 | ONI3: 11 | ONJ3: 11 | ONK3: 11 | ONL3: 11 | ONM3: 11 | ONN3: 11 | ONO3: 11 | ONP3: 11 | ONQ3: 11 | ONR3: 11 | ONS3: 11 | ONT3: 11 | ONU3: 11 | ONV3: 11 | ONW3: 11 | ONX3: 11 | ONY3: 11 | ONZ3: 11 | OOA3: 11 | OOB3: 11 | OOC3: 11 | OOD3: 11 | OOE3: 11 | OOF3: 11 | OOG3: 11 | OOH3: 11 | OOI3: 11 | OOJ3: 11 | OOK3: 11 | OOL3: 11 | OOM3: 11 | OON3: 11 | OOO3: 11 | OOP3: 11 | OOQ3: 11 | OOR3: 11 | OOS3: 11 | OOT3: 11 | OOU3: 11 | OOV3: 11 | OOW3: 11 | OOX3: 11 | OOY3: 11 | OOZ3: 11 | OPA3: 11 | OPB3: 11 | OPC3: 11 | OPD3: 11 | OPE3: 11 | OPF3: 11 | OPG3: 11 | OPH3: 11 | OPI3: 11 | OPJ3: 11 | OPK3: 11 | OPL3: 11 | OPM3: 11 | OPN3: 11 | OPO3: 11 | OPP3: 11 | OPQ3: 11 | OPR3: 11 | OPS3: 11 | OPT3: 11 | OPU3: 11 | OPV3: 11 | OPW3: 11 | OPX3: 11 | OPY3: 11 | OPZ3: 11 | OQA3: 11 | OQB3: 11 | OQC3: 11 | OQD3: 11 | OQE3: 11 | OQF3: 11 | OQG3: 11 | OQH3: 11 | OQI3: 11 | OQJ3: 11 | OQK3: 11 | OQL3: 11 | OQM3: 11 | OQN3: 11 | OQO3: 11 | OQP3: 11 | OQQ3: 11 | OQR3: 11 | OQS3: 11 | OQT3: 11 | OQU3: 11 | OQV3: 11 | OQW3: 11 | OQX3: 11 | OQY3: 11 | OQZ3: 11 | ORA3: 11 | ORB3: 11 | ORC3: 11 | ORD3: 11 | ORE3: 11 | ORF3: 11 | ORG3: 11 | ORH3: 11 | ORI3: 11 | ORJ3: 11 | ORK3: 11 | ORL3: 11 | ORM3: 11 | ORN3: 11 | ORO3: 11 | ORP3: 11 | ORQ3: 11 | ORR3: 11 | ORS3: 11 | ORT3: 11 | ORU3: 11 | ORV3: 11 | ORW3: 11 | ORX3: 11 | ORY3: 11 | ORZ3: 11 | OSA3: 11 | OSB3: 11 | OSC3: 11 | OSD3: 11 | OSE3: 11 | OSF3: 11 | OSG3: 11 | OSH3: 11 | OSI3: 11 | OSJ3: 11 | OSK3: 11 | OSL3: 11 | OSM3: 11 | OSN3: 11 | OSO3: 11 | OSP3: 11 | OSQ3: 11 | OSR3: 11 | OSS3: 11 | OST3: 11 | OSU3: 11 | OSV3: 11 | OSW3: 11 | OSX3: 11 | OSY3: 11 | OSZ3: 11 | OTA3: 11 | OTB3: 11 | OTC3: 11 | OTD3: 11 | OTE3: 11 | OTF3: 11 | OTG3: 11 | OTH3: 11 | OTI3: 11 | OTJ3: 11 | OTK3: 11 | OTL3: 11 | OTM3: 11 | OTN3: 11 | OTO3: 11 | OTP3: 11 | OTQ3: 11 | OTR3: 11 | OTS3: 11 | OTT3: 11 | OTU3: 11 | OTV3: 11 | OTW3: 11 | OTX3: 11 | OTY3: 11 | OTZ3: 11 | OUA3: 11 | OUB3: 11 | OUC3: 11 | OUD3: 11 | OUE3: 11 | OUF3: 11 | OUG3: 11 | OUH3: 11 | OUI3: 11 | OUJ3: 11 | OUK3: 11 | OUL3: 11 | OUM3: 11 | OUN3: 11 | OUO3: 11 | OUP3: 11 | OUQ3: 11 | OUR3: 11 | OUS3: 11 | OUT3: 11 | OUU3: 11 | OUV3: 11 | OUW3: 11 | OUX3: 11 | OUY3: 11 | OUZ3: 11 | OVA3: 11 | OVB3: 11 | OVC3: 11 | OVD3: 11 | OVE3: 11 | OVF3: 11 | OVG3: 11 | OVH3: 11 | OVI3: 11 | OVJ3: 11 | OVK3: 11 | OVL3: 11 | OVM3: 11 | OVN3: 11 | OVO3: 11 | OVP3: 11 | OVQ3: 11 | OVR3: 11 | OVS3: 11 | OVT3: 11 | OVU3: 11 | OVV3: 11 | OVW3: 11 | OVX3: 11 | OVY3: 11 | OVZ3: 11 | OWA3: 11 | OWB3: 11 | OWC3: 11 | OWD3: 11 | OWE3: 11 | OWF3: 11 | OWG3: 11 | OWH3: 11 | OWI3: 11 | OWJ3: 11 | OWK3: 11 | OWL3: 11 | OWM3: 11 | OWN3: 11 | OWO3: 11 | OWP3: 11 | OWQ3: 11 | OWR3: 11 | OWS3: 11 | OWT3: 11 | OWU3: 11 | OWV3: 11 | OWW3: 11 | OWX3: 11 | OWY3: 11 | OWZ3: 11 | OXA3: 11 | OXB3: 11 | OXC3: 11 | OXD3: 11 | OXE3: 11 | OXF3: 11 | OXG3: 11 | OXH3: 11 | OXI3: 11 | OXJ3: 11 | OXK3: 11 | OXL3: 11 | OXM3: 11 | OXN3: 11 | OXO3: 11 | OXP3: 11 | OXQ3: 11 | OXR3: 11 | OXS3: 11 | OXT3: 11 | OXU3: 11 | OXV3: 11 | OXW3: 11 | OXX3: 11 | OXY3: 11 | OXZ3: 11 | OYA3: 11 | OYB3: 11 | OYC3: 11 | OYD3: 11 | OYE3: 11 | OYF3: 11 | OYG3: 11 | OYH3: 11 | OYI3: 11 | OYJ3: 11 | OYK3: 11 | OYL3: 11 | OYM3: 11 | OYN3: 11 | OYO3: 11 | OYP3: 11 | OYQ3: 11 | OYR3: 11 | OYS3: 11 | OYT3: 11 | OYU3: 11 | OYV3: 11 | OYW3: 11 | OYX3: 11 | OYY3: 11 | OYZ3: 11 | OZA3: 11 | OZB3: 11 | OZC3: 11 | OZD3: 11 | OZE3: 11 | OZF3: 11 | OZG3: 11 | OZH3: 11 | OZI3: 11 | OZJ3: 11 | OZK3: 11 | OZL3: 11 | OZM3: 11 | OZN3: 11 | OZO3: 11 | OZP3: 11 | OZQ3: 11 | OZR3: 11 | OZS3: 11 | OZT3: 11 | OZU3: 11 | OZV3: 11 | OZW3: 11 | OZX3: 11 | OZY3: 11 | OZZ3: 11 | PAA3: 11 | PAB3: 11 | PAC3: 11 | PAD3: 11 | PAE3: 11 | PAF3: 11 | PAG3: 11 | PAH3: 11 | PAI3: 11 | PAJ3: 11 | PAK3: 11 | PAL3: 11 | PAM3: 11 | PAN3: 11 | PAO3: 11 | PAP3: 11 | PAQ3: 11 | PAR3: 11 | PAS3: 11 | PAT3: 11 | PAU3: 11 | PAV3: 11 | PAW3: 11 | PAX3: 11 | PAY3: 11 | PAZ3: 11 | PBA3: 11 | PBB3: 11 | PBC3: 11 | PBD3: 11 | PBE3: 11 | PBF3: 11 | PBG3: 11 | PBH3: 11 | PBI3: 11 | PBJ3: 11 | PBK3: 11 | PBL3: 11 | PBM3: 11 | PBN3: 11 | PBO3: 11 | PBP3: 11 | PBQ3: 11 | PBR3: 11 | PBS3: 11 | PBT3: 11 | PBU3: 11 | PBV3: 11 | PBW3: 11 | PBX3: 11 | PBY3: 11 | PBZ3: 11 | PCA3: 11 | PCB3: 11 | PCC3: 11 | PCD3: 11 | PCE3: 11 | PCF3: 11 | PCG3: 11 | PCH3: 11 | PCI3: 11 | PCJ3: 11 | PCK3: 11 | PCL3: 11 | PCM3: 11 | PCN3: 11 | PCO3: 11 | PCP3: 11 | PCQ3: 11 | PCR3: 11 | PCS3: 11 | PCT3: 11 | PCU3: 11 | PCV3: 11 | PCW3: 11 | PCX3: 11 | PCY3: 11 | PCZ3: 11 | PDA3: 11 | PDB3: 11 | PDC3: 11 | PDD3: 11 | PDE3: 11 | PDF3: 11 | PDG3: 11 | PDH3: 11 | PDI3: 11 | PDJ3: 11 | PDK3: 11 | PDL3: 11 | PDM3: 11 | PDN3: 11 | PDO3: 11 | PDP3: 11 | PDQ3: 11 | PDR3: 11 | PDS3: 11 | PDT3: 11 | PDU3: 11 | PDV3: 11 | PDW3: 11 | PDX3: 11 | PDY3: 11 | PDZ3: 11 | PEA3: 11 | PEB3: 11 | PEC3: 11 | PED3: 11 | PEE3: 11 | PEF3: 11 | PEG3: 11 | PEH3: 11 | PEI3: 11 | PEJ3: 11 | PEK3: 11 | PEL3: 11 | PEM3: 11 | PEN3: 11 | PEO3: 11 | PEP3: 11 | PEQ3: 11 | PER3: 11 | PES3: 11 | PET3: 11 | PEU3: 11 | PEV3: 11 | PEW3: 11 | PEX3: 11 | PEY3: 11 | PEZ3: 11 | PFA3: 11 | PFB3: 11 | PFC3: 11 | PFD3: 11 | PFE3: 11 | PFF3: 11 | PFG3: 11 | PFH3: 11 | PFI3: 11 | PFJ3: 11 | PFK3: 11 | PFL3: 11 | PFM3: 11 | PFN3: 11 | PFO3: 11 | PFP3: 11 | PFQ3: 11 | PFR3: 11 | PFS3: 11 | PFT3: 11 | PFU3: 11 | PFV3: 11 | PFW3: 11 | PFX3: 11 | PFY3: 11 | PFZ3: 11 | PGA3: 11 | PGB3: 11 | PGC3: 11 | PGD3: 11 | PGE3: 11 | PGF3: 11 | PGG3: 11 | PGH3: 11 | PGI3: 11 | PGJ3: 11 | PGK3: 11 | PGL3: 11 | PGM3: 11 | PGN3: 11 | PGO3: 11 | PGP3: 11 | PGQ3: 11 | PGR3: 11 | PGS3: 11 | PGT3: 11 | PGU3: 11 | PGV3: 11 | PGW3: 11 | PGX3: 11 | PGY3: 11 | PGZ3: 11 | PHA3: 11 | PHB3: 11 | PHC3: 11 | PHD3: 11 | PHE3: 11 | PHF3: 11 | PHG3: 11 | PHH3: 11 | PHI3: 11 | PHJ3: 11 | PHK3: 11 | PHL3: 11 | PHM3: 11 | PHN3: 11 | PHO3: 11 | PHP3: 11 | PHQ3: 11 | PHR3: 11 | PHS3: 11 | PHT3: 11 | PHU3: 11 | PHV3: 11 | PHW3: 11 | PHX3: 11 | PHY3: 11 | PHZ3: 11 | PIA3: 11 | PIB3: 11 | PIC3: 11 | PID3: 11 | PIE3: 11 | PIF3: 11 | PIG3: 11 | PIH3: 11 | PII3: 11 | PIJ3: 11 | PIK3: 11 | PIL3: 11 | PIM3: 11 | PIN3: 11 | PIO3: 11 | PIP3: 11 | PIQ3: 11 | PIR3: 11 | PIS3: 11 | PIT3: 11 | PIU3: 11 | PIV3: 11 | PIW3: 11 | PIX3: 11 | PIY3: 11 | PIZ3: 11 | PJA3: 11 | PJB3: 11 | PJC3: 11 | PJD3: 11 | PJE3: 11 | PJF3: 11 | PJG3: 11 | PJH3: 11 | PJI3: 11 | PJJ3: 11 | PJK3: 11 | PJL3: 11 | PJM3: 11 | PJN3: 11 | PJO3: 11 | PJP3: 11 | PJQ3: 11 | PJR3: 11 | PJS3: 11 | PJT3: 11 | PJU3: 11 | PJV3: 11 | PJW3: 11 | PJX3: 11 | PJY3: 11 | PJZ3: 11 | PKA3: 11 | PKB3: 11 | PKC3: 11 | PKD3: 11 | PKE3: 11 | PKF3: 11 | PKG3: 11 | PKH3: 11 | PKI3: 11 | PKJ3: 11 | PKK3: 11 | PKL3: 11 | PKM3: 11 | PKN3: 11 | PKO3: 11 | PKP3: 11 | PKQ3: 11 | PKR3: 11 | PKS3: 11 | PKT3: 11 | PKU3: 11 | PKV3: 11 | PKW3: 11 | PKX3: 11 | PKY3: 11 | PKZ3: 11 | PLA3: 11 | PLB3: 11 | PLC3: 11 | PLD3: 11 | PLE3: 11 | PLF3: 11 | PLG3: 11 | PLH3: 11 | PLI3: 11 | PLJ3: 11 | PLK3: 11 | PLL3: 11 | PLM3: 11 | PLN3: 11 | PLO3: 11 | PLP3: 11 | PLQ3: 11 | PLR3: 11 | PLS3: 11 | PLT3: 11 | PLU3: 11 | PLV3: 11 | PLW3: 11 | PLX3: 11 | PLY3: 11 | PLZ3: 11 | PMA3: 11 | PMB3: 11 | PMC3: 11 | PMD3: 11 | PME3: 11 | PMF3: 11 | PMG3: 11 | PMH3: 11 | PMI3: 11 | PMJ3: 11 | PMK3: 11 | PML3: 11 | PMM3: 11 | PMN3: 11 | PMO3: 11 | PMP3: 11 | PMQ3: 11 | PMR3: 11 | PMS3: 11 | PMT3: 11 | PMU3: 11 | PMV3: 11 | PMW3: 11 | PMX3: 11 | PMY3: 11 | PMZ3: 11 | PNA3: 11 | PNB3: 11 | PNC3: 11 | PND3: 11 | PNE3: 11 | PNF3: 11 | PNG3: 11 | PNH3: 11 | PNI3: 11 | PNJ3: 11 | PNK3: 11 | PNL3: 11 | PNM3: 11 | PNN3: 11 | PNO3: 11 | PNP3: 11 | PNQ3: 11 | PNR3: 11 | PNS3: 11 | PNT3: 11 | PNU3: 11 | PNV3: 11 | PNW3: 11 | PNX3: 11 | PNY3: 11 | PNZ3: 11 | POA3: 11 | POB3: 11 | POC3: 11 | POD3: 11 | POE3: 11 | POF3: 11 | POG3: 11 | POH3: 11 | POI3: 11 | POJ3: 11 | POK3: 11 | POL3: 11 | POM3: 11 | PON3: 11 | POO3: 11 | POP3: 11 | POQ3: 11 | POR3: 11 | POS3: 11 | POT3: 11 | POU3: 11 | POV3: 11 | POW3: 11 | POX3: 11 | POY3: 11 | POZ3: 11 | PPA3: 11 | PPB3: 11 | PPC3: 11 | PPD3: 11 | PPE3: 11 | PPF3: 11 | PPG3: 11 | PPH3: 11 | PPI3: 11 | PPJ3: 11 | PPK3: 11 | PPL3: 11 | PPM3: 11 | PPN3: 11 | PPO3: 11 | PPP3: 11 | PPQ3: 11 | PPR3: 11 | PPS3: 11 | PPT3: 11 | PPU3: 11 | PPV3: 11 | PPW3: 11 | PPX3: 11 | PPY3: 11 | PPZ3: 11 | PQA3: 11 | PQB3: 11 | PQC3: 11 | PQD3: 11 | PQE3: 11 | PQF3: 11 | PQG3: 11 | PQH3: 11 | PQI3: 11 | PQJ3: 11 | PQK3: 11 | PQL3: 11 | PQM3: 11 | PQN3: 11 | PQO3: 11 | PQP3: 11 | PQQ3: 11 | PQR3: 11 | PQS3: 11 | PQT3: 11 | PQU3: 11 | PQV3: 11 | PQW3: 11 | PQX3: 11 | PQY3: 11 | PQZ3: 11 | PRA3: 11 | PRB3: 11 | PRC3: 11 | PRD3: 11 | PRE3: 11 | PRF3: 11 | PRG3: 11 | PRH3: 11 | PRI3: 11 | PRJ3: 11 | PRK3: 11 | PRL3: 11 | PRM3: 11 | PRN3: 11 | PRO3: 11 | PRP3: 11 | PRQ3: 11 | PRR3: 11 | PRS3: 11 | PRT3: 11 | PRU3: 11 | PRV3: 11 | PRW3: 11 | PRX3: 11 | PRY3: 11 | PRZ3: 11 | PSA3: 11 | PSB3: 11 | PSC3: 11 | PSD3: 11 | PSE3: 11 | PSF3: 11 | PSG3: 11 | PSH3: 11 | PSI3: 11 | PSJ3: 11 | PSK3: 11 | PSL3: 11 | PSM3: 11 | PSN3: 11 | PSO3: 11 | PSP3: 11 | PSQ3: 11 | PSR3: 11 | PSS3: 11 | PST3: 11 | PSU3: 11 | PSV3: 11 | PSW3: 11 | PSX3: 11 | PSY3: 11 | PSZ3: 11 | PTA3: 11 | PTB3: 11 | PTC3: 11 | PTD3: 11 | PTE3: 11 | PTF3: 11 | PTG3: 11 | PTH3: 11 | PTI3: 11 | PTJ3: 11 | PTK3: 11 | PTL3: 11 | PTM3: 11 | PTN3: 11 | PTO3: 11 | PTP3: 11 | PTQ3: 11 | PTR3: 11 | PTS3: 11 | PTT3: 11 | PTU3: 11 | PTV3: 11 | PTW3: 11 | PTX3: 11 | PTY3: 11 | PTZ3: 11 | PUA3: 11 | PUB3: 11 | PUC3: 11 | PUD3: 11 | PUE3: 11 | PUF3: 11 | PUG3: 11 | PUH3: 11 | PUI3: 11 | PUJ3: 11 | PUK3: 11 | PUL3: 11 | PUM3: 11 | PUN3: 11 | PUO3: 11 | PUP3: 11 | PUQ3: 11 | PUR3: 11 | PUS3: 11 | PUT3: 11 | PUU3: 11 | PUV3: 11 | PUW3: 11 | PUX3: 11 | PUY3: 11 | PUZ3: 11 | PVA3: 11 | PVB3: 11 | PVC3: 11 | PVD3: 11 | PVE3: 11 | PVF3: 11 | PVG3: 11 | PVH3: 11 | PVI3: 11 | PVJ3: 11 | PVK3: 11 | PVL3: 11 | PVM3: 11 | PVN3: 11 | PVO3: 11 | PVP3: 11 | PVQ3: 11 | PVR3: 11 | PVS3: 11 | PVT3: 11 | PVU3: 11 | PVV3: 11 | PVW3: 11 | PVX3: 11 | PVY3: 11 | PVZ3: 11 | PWA3: 11 | PWB3: 11 | PWC3: 11 | PWD3: 11 | PWE3: 11 | PWF3: 11 | PWG3: 11 | PWH3: 11 | PWI3: 11 | PWJ3: 11 | PWK3: 11 | PWL3: 11 | PWM3: 11 | PWN3: 11 | PWO3: 11 | PWP3: 11 | PWQ3: 11 | PWR3: 11 | PWS3: 11 | PWT3: 11 | PWU3: 11 | PWV3: 11 | PWW3: 11 | PWX3: 11 | PWY3: 11 | PWZ3: 11 | PXA3: 11 | PXB3: 11 | PXC3: 11 | PXD3: 11 | PXE3: 11 | PXF3: 11 | PXG3: 11 | PXH3: 11 | PXI3: 11 | PXJ3: 11 | PXK3: 11 | PXL3: 11 | PXM3: 11 | PXN3: 11 | PXO3: 11 | PXP3: 11 | PXQ3: 11 | PXR3: 11 | PXS3: 11 | PXT3: 11 | PXU3: 11 | PXV3: 11 | PXW3: 11 | PXX3: 11 | PXY3: 11 | PXZ3: 11 | PYA3: 11 | PYB3: 11 | PYC3: 11 | PYD3: 11 | PYE3: 11 | PYF3: 11 | PYG3: 11 | PYH3: 11 | PYI3: 11 | PYJ3: 11 | PYK3: 11 | PYL3: 11 | PYM3: 11 | PYN3: 11 | PYO3: 11 | PYP3: 11 | PYQ3: 11 | PYR3: 11 | PYS3: 11 | PYT3: 11 | PYU3: 11 | PYV3: 11 | PYW3: 11 | PYX3: 11 | PYY3: 11 | PYZ3: 11 | PZA3: 11 | PZB3: 11 | PZC3: 11 | PZD3: 11 | PZE3: 11 | PZF3: 11 | PZG3: 11 | PZH3: 11 | PZI3: 11 | PZJ3: 11 | PZK3: 11 | PZL3: 11 | PZM3: 11 | PZN3: 11 | PZO3: 11 | PZP3: 11 | PZQ3: 11 | PZR3: 11 | PZS3: 11 | PZT3: 11 | PZU3: 11 | PZV3: 11 | PZW3: 11 | PZX3: 11 | PZY3: 11 | PZZ3: 11 | QAA3: 11 | QAB3: 11 | QAC3: 11 | QAD3: 11 | QAE3: 11 | QAF3: 11 | QAG3: 11 | QAH3: 11 | QAI3: 11 | QAJ3: 11 | QAK3: 11 | QAL3: 11 | QAM3: 11 | QAN3: 11 | QAO3: 11 | QAP3: 11 | QAQ3: 11 | QAR3: 11 | QAS3: 11 | QAT3: 11 | QAU3: 11 | QAV3: 11 | QAW3: 11 | QAX3: 11 | QAY3: 11 | QAZ3: 11 | QBA3: 11 | QBB3: 11 | QBC3: 11 | QBD3: 11 | QBE3: 11 | QBF3: 11 | QBG3: 11 | QBH3: 11 | QBI3: 11 | QBJ3: 11 | QBK3: 11 | QBL3: 11 | QBM3: 11 | QBN3: 11 | QBO3: 11 | QBP3: 11 | QBQ3: 11 | QBR3: 11 | QBS3: 11 | QBT3: 11 | QBU3: 11 | QBV3: 11 | QBW3: 11 | QBX3: 11 | QBY3: 11 | QBZ3: 11 | QCA3: 11 | QCB3: 11 | QCC3: 11 | QCD3: 11 | QCE3: 11 | QCF3: 11 | QCG3: 11 | QCH3: 11 | QCI3: 11 | QCJ3: 11 | QCK3: 11 | QCL3: 11 | QCM3: 11 | QCN3: 11 | QCO3: 11 | QCP3: 11 | QCQ3: 11 | QCR3: 11 | QCS3: 11 | QCT3: 11 | QCU3: 11 | QCV3: 11 | QCW3: 11 | QCX3: 11 | QCY3: 11 | QCZ3: 11 | QDA3: 11 | QDB3: 11 | QDC3: 11 | QDD3: 11 | QDE3: 11 | QDF3: 11 | QDG3: 11 | QDH3: 11 | QDI3: 11 | QDJ3: 11 | QDK3: 11 | QDL3: 11 | QDM3: 11 | QDN3: 11 | QDO3: 11 | QDP3: 11 | QDQ3: 11 | QDR3: 11 | QDS3: 11 | QDT3: 11 | QDU3: 11 | QDV3: 11 | QDW3: 11 | QDX3: 11 | QDY3: 11 | QDZ3: 11 | QEA3: 11 | QEB3: 11 | QEC3: 11 | QED3: 11 | QEE3: 11 | QEF3: 11 | QEG3: 11 | QEH3: 11 | QEI3: 11 | QEJ3: 11 | QEK3: 11 | QEL3: 11 | QEM3: 11 | QEN3: 11 | QEO3: 11 | QEP3: 11 | QEQ3: 11 | QER3: 11 | QES3: 11 | QET3: 11 | QEU3: 11 | QEV3: 11 | QEW3: 11 | QEX3: 11 | QEY3: 11 | QEZ3: 11 | QFA3: 11 | QFB3: 11 | QFC3: 11 | QFD3: 11 | QFE3: 11 | QFF3: 11 | QFG3: 11 | QFH3: 11 | QFI3: 11 | QFJ3: 11 | QFK3: 11 | QFL3: 11 | QFM3: 11 | QFN3: 11 | QFO3: 11 | QFP3: 11 | QFQ3: 11 | QFR3: 11 | QFS3: 11 | QFT3: 11 | QFU3: 11 | QFV3: 11 | QFW3: 11 | QFX3: 11 | QFY3: 11 | QFZ3: 11 | QGA3: 11 | QGB3: 11 | QGC3: 11 | QGD3: 11 | QGE3: 11 | QGF3: 11 | QGG3: 11 | QGH3: 11 | QGI3: 11 | QGJ3: 11 | QGK3: 11 | QGL3: 11 | QGM3: 11 | QGN3: 11 | QGO3: 11 | QGP3: 11 | QGQ3: 11 | QGR3: 11 | QGS3: 11 | QGT3: 11 | QGU3: 11 | QGV3: 11 | QGW3: 11 | QGX3: 11 | QGY3: 11 | QGZ3: 11 | QHA3: 11 | QHB3: 11 | QHC3: 11 | QHD3: 11 | QHE3: 11 | QHF3: 11 | QHG3: 11 | QHH3: 11 | QHI3: 11 | QHJ3: 11 | QHK3: 11 | QHL3: 11 | QHM3: 11 | QHN3: 11 | QHO3: 11 | QHP3: 11 | QHQ3: 11 | QHR3: 11 | QHS3: 11 | QHT3: 11 | QHU3: 11 | QHV3: 11 | QHW3: 11 | QHX3: 11 | QHY3: 11 | QHZ3: 11 | QIA3: 11 | QIB3: 11 | QIC3: 11 | QID3: 11 | QIE3: 11 | QIF3: 11 | QIG3: 11 | QIH3: 11 | QII3: 11 | QIJ3: 11 | QIK3: 11 | QIL3: 11 | QIM3: 11 | QIN3: 11 | QIO3: 11 | QIP3: 11 | QIQ3: 11 | QIR3: 11 | QIS3: 11 | QIT3: 11 | QIU3: 11 | QIV3: 11 | QIW3: 11 | QIX3: 11 | QIY3: 11 | QIZ3: 11 | QJA3: 11 | QJB3: 11 | QJC3: 11 | QJD3: 11 | QJE3: 11 | QJF3: 11 | QJG3: 11 | QJH3: 11 | QJI3: 11 | QJJ3: 11 | QJK3: 11 | QJL3: 11 | QJM3: 11 | QJN3: 11 | QJO3: 11 | QJP3: 11 | QJQ3: 11 | QJR3: 11 | QJS3: 11 | QJT3: 11 | QJU3: 11 | QJV3: 11 | QJW3: 11 | QJX3: 11 | QJY3: 11 | QJZ3: 11 | QKA3: 11 | QKB3: 11 | QKC3: 11 | QKD3: 11 | QKE3: 11 | QKF3: 11 | QKG3: 11 | QKH3: 11 | QKI3: 11 | QKJ3: 11 | QKK3: 11 | QKL3: 11 | QKM3: 11 | QKN3: 11 | QKO3: 11 | QKP3: 11 | QKQ3: 11 | QKR3: 11 | QKS3: 11 | QKT3: 11 | QKU3: 11 | QKV3: 11 | QKW3: 11 | QKX3: 11 | QKY3: 11 | QKZ3: 11 | QLA3: 11 | QLB3: 11 | QLC3: 11 | QLD3: 11 | QLE3: 11 | QLF3: 11 | QLG3: 11 | QLH3: 11 | QLI3: 11 | QLJ3: 11 | QLK3: 11 | QLL3: 11 | QLM3: 11 | QLN3: 11 | QLO3: 11 | QLP3: 11 | QLQ3: 11 | QLR3: 11 | QLS3: 11 | QLT3: 11 | QLU3: 11 | QLV3: 11 | QLW3: 11 | QLX3: 11 | QLY3: 11 | QLZ3: 11 | QMA3: 11 | QMB3: 11 | QMC3: 11 | QMD3: 11 | QME3: 11 | QMF3: 11 | QMG3: 11 | QMH3: 11 | QMI3: 11 | QMJ3: 11 | QMK3: 11 | QML3: 11 | QMM3: 11 | QMN3: 11 | QMO3: 11 | QMP3: 11 | QMQ3: 11 | QMR3: 11 | QMS3: 11 | QMT3: 11 | QMU3: 11 | QMV3: 11 | QMW3: 11 | QMX3: 11 | QMY3: 11 | QMZ3: 11 | QNA3: 11 | QNB3: 11 | QNC3: 11 | QND3: 11 | QNE3: 11 | QNF3: 11 | QNG3: 11 | QNH3: 11 | QNI3: 11 | QNJ3: 11 | QNK3: 11 | QNL3: 11 | QNM3: 11 | QNN3: 11 | QNO3: 11 | QNP3: 11 | QNQ3: 11 | QNR3: 11 | QNS3: 11 | QNT3: 11 | QNU3: 11 | QNV3: 11 | QNW3: 11 | QNX3: 11 | QNY3: 11 | QNZ3: 11 | QOA3: 11 | QOB3: 11 | QOC3: 11 | QOD3: 11 | QOE3: 11 | QOF3: 11 | QOG3: 11 | QOH3: 11 | QOI3: 11 | QOJ3: 11 | QOK3: 11 | QOL3: 11 | QOM3: 11 | QON3: 11 | QOO3: 11 | QOP3: 11 | QOQ3: 11 | QOR3: 11 | QOS3: 11 | QOT3: 11 | QOU3: 11 | QOV3: 11 | QOW3: 11 | QOX3: 11 | QOY3: 11 | QOZ3: 11 | QPA3: 11 | QPB3: 11 | QPC3: 11 | QPD3: 11 | QPE3: 11 | QPF3: 11 | QPG3: 11 | QPH3: 11 | QPI3: 11 | QPJ3: 11 | QPK3: 11 | QPL3: 11 | QPM3: 11 | QPN3: 11 | QPO3: 11 | QPP3: 11 | QPQ3: 11 | QPR3: 11 | QPS3: 11 | QPT3: 11 | QPU3: 11 | QPV3: 11 | QPW3: 11 | QPX3: 11 | QPY3: 11 | QPZ3: 11 | QQA3: 11 | QQB3: 11 | QQC3: 11 | QQD3: 11 | QQE3: 11 | QQF3: 11 | QQG3: 11 | QQH3: 11 | QQI3: 11 | QQJ3: 11 | QQK3: 11 | QQL3: 11 | QQM3: 11 | QQN3: 11 | QQO3: 11 | QQP3: 11 | QQQ3: 11 | QQR3: 11 | QQS3: 11 | QQT3: 11 | QQU3: 11 | QQV3: 11 | QQW3: 11 | QQX3: 11 | QQY3: 11 | QQZ3: 11 | QRA3: 11 | QRB3: 11 | QRC3: 11 | QRD3: 11 | QRE3: 11 | QRF3: 11 | QRG3: 11 | QRH3: 11 | QRI3: 11 | QRJ3: 11 | QRK3: 11 | QRL3: 11 | QRM3: 11 | QRN3: 11 | QRO3: 11 | QRP3: 11 | QRQ3: 11 | QRR3: 11 | QRS3: 11 | QRT3: 11 | QRU3: 11 | QRV3: 11 | QRW3: 11 | QRX3: 11 | QRY3: 11 | QRZ3: 11 | QSA3: 11 | QSB3: 11 | QSC3: 11 | QSD3: 11 | QSE3: 11 | QSF3: 11 | QSG3: 11 | QSH3: 11 | QSI3: 11 | QSJ3: 11 | QSK3: 11 | QSL3: 11 | QSM3: 11 | QSN3: 11 | QSO3: 11 | QSP3: 11 | QSQ3: 11 | QSR3: 11 | QSS3: 11 | QST3: 11 | QSU3: 11 | QSV3: 11 | QSW3: 11 | QSX3: 11 | QSY3: 11 | QSZ3: 11 | QTA3: 11 | QTB3: 11 | QTC3: 11 | QTD3: 11 | QTE3: 11 | QTF3: 11 | QTG3: 11 | QTH3: 11 | QTI3: 11 | QTJ3: 11 | QTK3: 11 | QTL3: 11 | QTM3: 11 | QTN3: 11 | QTO3: 11 | QTP3: 11 | QTQ3: 11 | QTR3: 11 | QTS3: 11 | QTT3: 11 | QTU3: 11 | QTV3: 11 | QTW3: 11 | QTX3: 11 | QTY3: 11 | QTZ3: 11 | QUA3: 11 | QUB3: 11 | QUC3: 11 | QUD3: 11 | QUE3: 11 | QUF3: 11 | QUG3: 11 | QUH3: 11 | QUI3: 11 | QUJ3: 11 | QUK3: 11 | QUL3: 11 | QUM3: 11 | QUN3: 11 | QUO3: 11 | QUP3: 11 | QUQ3: 11 | QUR3: 11 | QUS3: 11 | QUT3: 11 | QUU3: 11 | QUV3: 11 | QUW3: 11 | QUX3: 11 | QUY3: 11 | QUZ3: 11 | QVA3: 11 | QVB3: 11 | QVC3: 11 | QVD3: 11 | QVE3: 11 | QVF3: 11 | QVG3: 11 | QVH3: 11 | QVI3: 11 | QVJ3: 11 | QVK3: 11 | QVL3: 11 | QVM3: 11 | QVN3: 11 | QVO3: 11 | QVP3: 11 | QVQ3: 11 | QVR3: 11 | QVS3: 11 | QVT3: 11 | QVU3: 11 | QVV3: 11 | QVW3: 11 | QVX3: 11 | QVY3: 11 | QVZ3: 11 | QWA3: 11 | QWB3: 11 | QWC3: 11 | QWD3: 11 | QWE3: 11 | QWF3: 11 | QWG3: 11 | QWH3: 11 | QWI3: 11 | QWJ3: 11 | QWK3: 11 | QWL3: 11 | QWM3: 11 | QWN3: 11 | QWO3: 11 | QWP3: 11 | QWQ3: 11 | QWR3: 11 | QWS3: 11 | QWT3: 11 | QWU3: 11 | QWV3: 11 | QWW3: 11 | QWX3: 11 | QWY3: 11 | QWZ3: 11 | QXA3: 11 | QXB3: 11 | QXC3: 11 | QXD3: 11 | QXE3: 11 | QXF3: 11 | QXG3: 11 | QXH3: 11 | QXI3: 11 | QXJ3: 11 | QXK3: 11 | QXL3: 11 | QXM3: 11 | QXN3: 11 | QXO3: 11 | QXP3: 11 | QXQ3: 11 | QXR3: 11 | QXS3: 11 | QXT3: 11 | QXU3: 11 | QXV3: 11 | QXW3: 11 | QXX3: 11 | QXY3: 11 | QXZ3: 11 | QYA3: 11 | QYB3: 11 | QYC3: 11 | QYD3: 11 | QYE3: 11 | QYF3: 11 | QYG3: 11 | QYH3: 11 | QYI3: 11 | QYJ3: 11 | QYK3: 11 | QYL3: 11 | QYM3: 11 | QYN3: 11 | QYO3: 11 | QYP3: 11 | QYQ3: 11 | QYR3: 11 | QYS3: 11 | QYT3: 11 | QYU3: 11 | QYV3: 11 | QYW3: 11 | QYX3: 11 | QYY3: 11 | QYZ3: 11 | QZA3: 11 | QZB3: 11 | QZC3: 11 | QZD3: 11 | QZE3: 11 | QZF3: 11 | QZG3: 11 | QZH3: 11 | QZI3: 11 | QZJ3: 11 | QZK3: 11 | QZL3: 11 | QZM3: 11 | QZN3: 11 | QZO3: 11 | QZP3: 11 | QZQ3: 11 | QZR3: 11 | QZS3: 11 | QZT3: 11 | QZU3: 11 | QZV3: 11 | QZW3: 11 | QZX3: 11 | QZY3: 11 | QZZ3: 11 | RAA3: 11 | RAB3: 11 | RAC3: 11 | RAD3: 11 | RAE3: 11 | RAF3: 11 | RAG3: 11 | RAH3: 11 | RAI3: 11 | RAJ3: 11 | RAK3: 11 | RAL3: 11 | RAM3: 11 | RAN3: 11 | RAO3: 11 | RAP3: 11 | RAQ3: 11 | RAR3: 11 | RAS3: 11 | RAT3: 11 | RAU3: 11 | RAV3: 11 | RAW3: 11 | RAX3: 11 | RAY3: 11 | RAZ3: 11 | RBA3: 11 | RBB3: 11 | RBC3: 11 | RBD3: 11 | RBE3: 11 | RBF3: 11 | RBG3: 11 | RBH3: 11 | RBI3: 11 | RBJ3: 11 | RBK3: 11 | RBL3: 11 | RBM3: 11 | RBN3: 11 | RBO3: 11 | RBP3: 11 | RBQ3: 11 | RBR3: 11 | RBS3: 11 | RBT3: 11 | RBU3: 11 | RBV3: 11 | RBW3: 11 | RBX3: 11 | RBY3: 11 | RBZ3: 11 | RCA3: 11 | RCB3: 11 | RCC3: 11 | RCD3: 11 | RCE3: 11 | RCF3: 11 | RCG3: 11 | RCH3: 11 | RCI3: 11 | RCJ3: 11 | RCK3: 11 | RCL3: 11 | RCM3: 11 | RCN3: 11 | RCO3: 11 | RCP3: 11 | RCQ3: 11 | RCR3: 11 | RCS3: 11 | RCT3: 11 | RCU3: 11 | RCV3: 11 | RCW3: 11 | RCX3: 11 | RCY3: 11 | RCZ3: 11 | RDA3: 11 | RDB3: 11 | RDC3: 11 | RDD3: 11 | RDE3: 11 | RDF3: 11 | RDG3: 11 | RDH3: 11 | RDI3: 11 | RDJ3: 11 | RDK3: 11 | RDL3: 11 | RDM3: 11 | RDN3: 11 | RDO3: 11 | RDP3: 11 | RDQ3: 11 | RDR3: 11 | RDS3: 11 | RDT3: 11 | RDU3: 11 | RDV3: 11 | RDW3: 11 | RDX3: 11 | RDY3: 11 | RDZ3: 11 | REA3: 11 | REB3: 11 | REC3: 11 | RED3: 11 | REE3: 11 | REF3: 11 | REG3: 11 | REH3: 11 | REI3: 11 | REJ3: 11 | REK3: 11 | REL3: 11 | REM3: 11 | REN3: 11 | REO3: 11 | REP3: 11 | REQ3: 11 | RER3: 11 | RES3: 11 | RET3: 11 | REU3: 11 | REV3: 11 | REW3: 11 | REX3: 11 | REY3: 11 | REZ3: 11 | RFA3: 11 | RFB3: 11 | RFC3: 11 | RFD3: 11 | RFE3: 11 | RFF3: 11 | RFG3: 11 | RFH3: 11 | RFI3: 11 | RFJ3: 11 | RFK3: 11 | RFL3: 11 | RFM3: 11 | RFN3: 11 | RFO3: 11 | RFP3: 11 | RFQ3: 11 | RFR3: 11 | RFS3: 11 | RFT3: 11 | RFU3: 11 | RFV3: 11 | RFW3: 11 | RFX3: 11 | RFY3: 11 | RFZ3: 11 | RGA3: 11 | RGB3: 11 | RGC3: 11 | RGD3: 11 | RGE3: 11 | RGF3: 11 | RGG3: 11 | RGH3: 11 | RGI3: 11 | RGJ3: 11 | RGK3: 11 | RGL3: 11 | RGM3: 11 | RGN3: 11 | RGO3: 11 | RGP3: 11 | RGQ3: 11 | RGR3: 11 | RGS3: 11 | RGT3: 11 | RGU3: 11 | RGV3: 11 | RGW3: 11 | RGX3: 11 | RGY3: 11 | RGZ3: 11 | RHA3: 11 | RHB3: 11 | RHC3: 11 | RHD3: 11 | RHE3: 11 | RHF3: 11 | RHG3: 11 | RHH3: 11 | RHI3: 11 | RHJ3: 11 | RHK3: 11 | RHL3: 11 | RHM3: 11 | RHN3: 11 | RHO3: 11 | RHP3: 11 | RHQ3: 11 | RHR3: 11 | RHS3: 11 | RHT3: 11 | RHU3: 11 | RHV3: 11 | RHW3: 11 | RHX3: 11 | RHY3: 11 | RHZ3: 11 | RIA3: 11 | RIB3: 11 | RIC3: 11 | RID3: 11 | RIE3: 11 | RIF3: 11 | RIG3: 11 | RIH3: 11 | RII3: 11 | RIJ3: 11 | RIK3: 11 | RIL3: 11 | RIM3: 11 | RIN3: 11 | RIO3: 11 | RIP3: 11 | RIQ3: 11 | RIR3: 11 | RIS3: 11 | RIT3: 11 | RIU3: 11 | RIV3: 11 | RIW3: 11 | RIX3: 11 | RIY3: 11 | RIZ3: 11 | RJA3: 11 | RJB3: 11 | RJC3: 11 | RJD3: 11 | RJE3: 11 | RJF3: 11 | RJG3: 11 | RJH3: 11 | RJI3: 11 | RJJ3: 11 | RJK3: 11 | RJL3: 11 | RJM3: 11 | RJN3: 11 | RJO3: 11 | RJP3: 11 | RJQ3: 11 | RJR3: 11 | RJS3: 11 | RJT3: 11 | RJU3: 11 | RJV3: 11 | RJW3: 11 | RJX3: 11 | RJY3: 11 | RJZ3: 11 | RKA3: 11 | RKB3: 11 | RKC3: 11 | RKD3: 11 | RKE3: 11 | RKF3: 11 | RKG3: 11 | RKH3: 11 | RKI3: 11 | RKJ3: 11 | RKK3: 11 | RKL3: 11 | RKM3: 11 | RKN3: 11 | RKO3: 11 | RKP3: 11 | RKQ3: 11 | RKR3: 11 | RKS3: 11 | RKT3: 11 | RKU3: 11 | RKV3: 11 | RKW3: 11 | RKX3: 11 | RKY3: 11 | RKZ3: 11 | RLA3: 11 | RLB3: 11 | RLC3: 11 | RLD3: 11 | RLE3: 11 | RLF3: 11 | RLG3: 11 | RLH3: 11 | RLI3: 11 | RLJ3: 11 | RLK3: 11 | RLL3: 11 | RLM3: 11 | RLN3: 11 | RLO3: 11 | RLP3: 11 | RLQ3: 11 | RLR3: 11 | RLS3: 11 | RLT3: 11 | RLU3: 11 | RLV3: 11 | RLW3: 11 | RLX3: 11 | RLY3: 11 | RLZ3: 11 | RMA3: 11 | RMB3: 11 | RMC3: 11 | RMD3: 11 | RME3: 11 | RMF3: 11 | RMG3: 11 | RMH3: 11 | RMI3: 11 | RMJ3: 11 | RMK3: 11 | RML3: 11 | RMM3: 11 | RMN3: 11 | RMO3: 11 | RMP3: 11 | RMQ3: 11 | RMR3: 11 | RMS3: 11 | RMT3: 11 | RMU3: 11 | RMV3: 11 | RMW3: 11 | RMX3: 11 | RMY3: 11 | RMZ3: 11 | RNA3: 11 | RNB3: 11 | RNC3: 11 | RND3: 11 | RNE3: 11 | RNF3: 11 | RNG3: 11 | RNH3: 11 | RNI3: 11 | RNJ3: 11 | RNK3: 11 | RNL3: 11 | RNM3: 11 | RNN3: 11 | RNO3: 11 | RNP3: 11 | RNQ3: 11 | RNR3: 11 | RNS3: 11 | RNT3: 11 | RNU3: 11 | RNV3: 11 | RNW3: 11 | RNX3: 11 | RNY3: 11 | RNZ3: 11 | ROA3: 11 | ROB3: 11 | ROC3: 11 | ROD3: 11 | ROE3: 11 | ROF3: 11 | ROG3: 11 | ROH3: 11 | ROI3: 11 | ROJ3: 11 | ROK3: 11 | ROL3: 11 | ROM3: 11 | RON3: 11 | ROO3: 11 | ROP3: 11 | ROQ3: 11 | ROR3: 11 | ROS3: 11 | ROT3: 11 | ROU3: 11 | ROV3: 11 | ROW3: 11 | ROX3: 11 | ROY3: 11 | ROZ3: 11 | RPA3: 11 | RPB3: 11 | RPC3: 11 | RPD3: 11 | RPE3: 11 | RPF3: 11 | RPG3: 11 | RPH3: 11 | RPI3: 11 | RPJ3: 11 | RPK3: 11 | RPL3: 11 | RPM3: 11 | RPN3: 11 | RPO3: 11 | RPP3: 11 | RPQ3: 11 | RPR3: 11 | RPS3: 11 | RPT3: 11 | RPU3: 11 | RPV3: 11 | RPW3: 11 | RPX3: 11 | RPY3: 11 | RPZ3: 11 | RQA3: 11 | RQB3: 11 | RQC3: 11 | RQD3: 11 | RQE3: 11 | RQF3: 11 | RQG3: 11 | RQH3: 11 | RQI3: 11 | RQJ3: 11 | RQK3: 11 | RQL3: 11 | RQM3: 11 | RQN3: 11 | RQO3: 11 | RQP3: 11 | RQQ3: 11 | RQR3: 11 | RQS3: 11 | RQT3: 11 | RQU3: 11 | RQV3: 11 | RQW3: 11 | RQX3: 11 | RQY3: 11 | RQZ3: 11 | RRA3: 11 | RRB3: 11 | RRC3: 11 | RRD3: 11 | RRE3: 11 | RRF3: 11 | RRG3: 11 | RRH3: 11 | RRI3: 11 | RRJ3: 11 | RRK3: 11 | RRL3: 11 | RRM3: 11 | RRN3: 11 | RRO3: 11 | RRP3: 11 | RRQ3: 11 | RRR3: 11 | RRS3: 11 | RRT3: 11 | RRU3: 11 | RRV3: 11 | RRW3: 11 | RRX3: 11 | RRY3: 11 | RRZ3: 11 | RSA3: 11 | RSB3: 11 | RSC3: 11 | RSD3: 11 | RSE3: 11 | RSF3: 11 | RSG3: 11 | RSH3: 11 | RSI3: 11 | RSJ3: 11 | RSK3: 11 | RSL3: 11 | RSM3: 11 | RSN3: 11 | RSO3: 11 | RSP3: 11 | RSQ3: 11 | RSR3: 11 | RSS3: 11 | RST3: 11 | RSU3: 11 | RSV3: 11 | RSW3: 11 | RSX3: 11 | RSY3: 11 | RSZ3: 11 | RTA3: 11 | RTB3: 11 | RTC3: 11 | RTD3: 11 | RTE3: 11 | RTF3: 11 | RTG3: 11 | RTH3: 11 | RTI3: 11 | RTJ3: 11 | RTK3: 11 | RTL3: 11 | RTM3: 11 | RTN3: 11 | RTO3: 11 | RTP3: 11 | RTQ3: 11 | RTR3: 11 | RTS3: 11 | RTT3: 11 | RTU3: 11 | RTV3: 11 | RTW3: 11 | RTX3: 11 | RTY3: 11 | RTZ3: 11 | RUA3: 11 | RUB3: 11 | RUC3: 11 | RUD3: 11 | RUE3: 11 | RUF3: 11 | RUG3: 11 | RUH3: 11 | RUI3: 11 | RUJ3: 11 | RUK3: 11 | RUL3: 11 | RUM3: 11 | RUN3: 11 | RUO3: 11 | RUP3: 11 | RUQ3: 11 | RUR3: 11 | RUS3: 11 | RUT3: 11 | RUU3: 11 | RUV3: 11 | RUW3: 11 | RUX3: 11 | RUY3: 11 | RUZ3: 11 | RVA3: 11 | RVB3: 11 | RVC3: 11 | RVD3: 11 | RVE3: 11 | RVF3: 11 | RVG3: 11 | RVH3: 11 | RVI3: 11 | RVJ3: 11 | RVK3: 11 | RVL3: 11 | RVM3: 11 | RVN3: 11 | RVO3: 11 | RVP3: 11 | RVQ3: 11 | RVR3: 11 | RVS3: 11 | RVT3: 11 | RVU3: 11 | RVV3: 11 | RVW3: 11 | RVX3: 11 | RVY3: 11 | RVZ3: 11 | RWA3: 11 | RWB3: 11 | RWC3: 11 | RWD3: 11 | RWE3: 11 | RWF3: 11 | RWG3: 11 | RWH3: 11 | RWI3: 11 | RWJ3: 11 | RWK3: 11 | RWL3: 11 | RWM3: 11 | RWN3: 11 | RWO3: 11 | RWP3: 11 | RWQ3: 11 | RWR3: 11 | RWS3: 11 | RWT3: 11 | RWU3: 11 | RWV3: 11 | RWW3: 11 | RWX3: 11 | RWY3: 11 | RWZ3: 11 | RXA3: 11 | RXB3: 11 | RXC3: 11 | RXD3: 11 | RXE3: 11 | RXF3: 11 | RXG3: 11 | RXH3: 11 | RXI3: 11 | RXJ3: 11 | RXK3: 11 | RXL3: 11 | RXM3: 11 | RXN3: 11 | RXO3: 11 | RXP3: 11 | RXQ3: 11 | RXR3: 11 | RXS3: 11 | RXT3: 11 | RXU3: 11 | RXV3: 11 | RXW3: 11 | RXX3: 11 | RXY3: 11 | RXZ3: 11 | RYA3: 11 | RYB3: 11 | RYC3: 11 | RYD3: 11 | RYE3: 11 | RYF3: 11 | RYG3: 11 | RYH3: 11 | RYI3: 11 | RYJ3: 11 | RYK3: 11 | RYL3: 11 | RYM3: 11 | RYN3: 11 | RYO3: 11 | RYP3: 11 | RYQ3: 11 | RYR3: 11 | RYS3: 11 | RYT3: 11 | RYU3: 11 | RYV3: 11 | RYW3: 11 | RYX3: 11 | RYY3: 11 | RYZ3: 11 | RZA3: 11 | RZB3: 11 | RZC3: 11 | RZD3: 11 | RZE3: 11 | RZF3: 11 | RZG3: 11 | RZH3: 11 | RZI3: 11 | RZJ3: 11 | RZK3: 11 | RZL3: 11 | RZM3: 11 | RZN3: 11 | RZO3: 11 | RZP3: 11 | RZQ3: 11 | RZR3: 11 | RZS3: 11 | RZT3: 11 | RZU3: 11 | RZV3: 11 | RZW3: 11 | RZX3: 11 | RZY3: 11 | RZZ3: 11 | SAA3: 11 | SAB3: 11 | SAC3: 11 | SAD3: 11 | SAE3: 11 | SAF3: 11 | SAG3: 11 | SAH3: 11 | SAI3: 11 | SAJ3: 11 | SAK3: 11 | SAL3: 11 | SAM3: 11 | SAN3: 11 | SAO3: 11 | SAP3: 11 | SAQ3: 11 | SAR3: 11 | SAS3: 11 | SAT3: 11 | SAU3: 11 | SAV3: 11 | SAW3: 11 | SAX3: 11 | SAY3: 11 | SAZ3: 11 | SBA3: 11 | SBB3: 11 | SBC3: 11 | SBD3: 11 | SBE3: 11 | SBF3: 11 | SBG3: 11 | SBH3: 11 | SBI3: 11 | SBJ3: 11 | SBK3: 11 | SBL3: 11 | SBM3: 11 | SBN3: 11 | SBO3: 11 | SBP3: 11 | SBQ3: 11 | SBR3: 11 | SBS3: 11 | SBT3: 11 | SBU3: 11 | SBV3: 11 | SBW3: 11 | SBX3: 11 | SBY3: 11 | SBZ3: 11 | SCA3: 11 | SCB3: 11 | SCC3: 11 | SCD3: 11 | SCE3: 11 | SCF3: 11 | SCG3: 11 | SCH3: 11 | SCI3: 11 | SCJ3: 11 | SCK3: 11 | SCL3: 11 | SCM3: 11 | SCN3: 11 | SCO3: 11 | SCP3: 11 | SCQ3: 11 | SCR3: 11 | SCS3: 11 | SCT3: 11 | SCU3: 11 | SCV3: 11 | SCW3: 11 | SCX3: 11 | SCY3: 11 | SCZ3: 11 | SDA3: 11 | SDB3: 11 | SDC3: 11 | SDD3: 11 | SDE3: 11 | SDF3: 11 | SDG3: 11 | SDH3: 11 | SDI3: 11 | SDJ3: 11 | SDK3: 11 | SDL3: 11 | SDM3: 11 | SDN3: 11 | SDO3: 11 | SDP3: 11 | SDQ3: 11 | SDR3: 11 | SDS3: 11 | SDT3: 11 | SDU3: 11 | SDV3: 11 | SDW3: 11 | SDX3: 11 | SDY3: 11 | SDZ3: 11 | SEA3: 11 | SEB3: 11 | SEC3: 11 | SED3: 11 | SEE3: 11 | SEF3: 11 | SEG3: 11 | SEH3: 11 | SEI3: 11 | SEJ3: 11 | SEK3: 11 | SEL3: 11 | SEM3: 11 | SEN3: 11 | SEO3: 11 | SEP3: 11 | SEQ3: 11 | SER3: 11 | SES3: 11 | SET3: 11 | SEU3: 11 | SEV3: 11 | SEW3: 11 | SEX3: 11 | SEY3: 11 | SEZ3: 11 | SFA3: 11 | SFB3: 11 | SFC3: 11 | SFD3: 11 | SFE3: 11 | SFF3: 11 | SFG3: 11 | SFH3: 11 | SFI3: 11 | SFJ3: 11 | SFK3: 11 | SFL3: 11 | SFM3: 11 | SFN3: 11 | SFO3: 11 | SFP3: 11 | SFQ3: 11 | SFR3: 11 | SFS3: 11 | SFT3: 11 | SFU3: 11 | SFV3: 11 | SFW3: 11 | SFX3: 11 | SFY3: 11 | SFZ3: 11 | SGA3: 11 | SGB3: 11 | SGC3: 11 | SGD3: 11 | SGE3: 11 | SGF3: 11 | SGG3: 11 | SGH3: 11 | SGI3: 11 | SGJ3: 11 | SGK3: 11 | SGL3: 11 | SGM3: 11 | SGN3: 11 | SGO3: 11 | SGP3: 11 | SGQ3: 11 | SGR3: 11 | SGS3: 11 | SGT3: 11 | SGU3: 11 | SGV3: 11 | SGW3: 11 | SGX3: 11 | SGY3: 11 | SGZ3: 11 | SHA3: 11 | SHB3: 11 | SHC3: 11 | SHD3: 11 | SHE3: 11 | SHF3: 11 | SHG3: 11 | SHH3: 11 | SHI3: 11 | SHJ3: 11 | SHK3: 11 | SHL3: 11 | SHM3: 11 | SHN3: 11 | SHO3: 11 | SHP3: 11 | SHQ3: 11 | SHR3: 11 | SHS3: 11 | SHT3: 11 | SHU3: 11 | SHV3: 11 | SHW3: 11 | SHX3: 11 | SHY3: 11 | SHZ3: 11 | SIA3: 11 | SIB3: 11 | SIC3: 11 | SID3: 11 | SIE3: 11 | SIF3: 11 | SIG3: 11 | SIH3: 11 | SII3: 11 | SIJ3: 11 | SIK3: 11 | SIL3: 11 | SIM3: 11 | SIN3: 11 | SIO3: 11 | SIP3: 11 | SIQ3: 11 | SIR3: 11 | SIS3: 11 | SIT3: 11 | SIU3: 11 | SIV3: 11 | SIW3: 11 | SIX3: 11 | SIY3: 11 | SIZ3: 11 | SJA3: 11 | SJB3: 11 | SJC3: 11 | SJD3: 11 | SJE3: 11 | SJF3: 11 | SJG3: 11 | SJH3: 11 | SJI3: 11 | SJJ3: 11 | SJK3: 11 | SJL3: 11 | SJM3: 11 | SJN3: 11 | SJO3: 11 | SJP3: 11 | SJQ3: 11 | SJR3: 11 | SJS3: 11 | SJT3: 11 | SJU3: 11 | SJV3: 11 | SJW3: 11 | SJX3: 11 | SJY3: 11 | SJZ3: 11 | SKA3: 11 | SKB3: 11 | SKC3: 11 | SKD3: 11 | SKE3: 11 | SKF3: 11 | SKG3: 11 | SKH3: 11 | SKI3: 11 | SKJ3: 11 | SKK3: 11 | SKL3: 11 | SKM3: 11 | SKN3: 11 | SKO3: 11 | SKP3: 11 | SKQ3: 11 | SKR3: 11 | SKS3: 11 | SKT3: 11 | SKU3: 11 | SKV3: 11 | SKW3: 11 | SKX3: 11 | SKY3: 11 | SKZ3: 11 | SLA3: 11 | SLB3: 11 | SLC3: 11 | SLD3: 11 | SLE3: 11 | SLF3: 11 | SLG3: 11 | SLH3: 11 | SLI3: 11 | SLJ3: 11 | SLK3: 11 | SLL3: 11 | SLM3: 11 | SLN3: 11 | SLO3: 11 | SLP3: 11 | SLQ3: 11 | SLR3: 11 | SLS3: 11 | SLT3: 11 | SLU3: 11 | SLV3: 11 | SLW3: 11 | SLX3: 11 | SLY3: 11 | SLZ3: 11 | SMA3: 11 | SMB3: 11 | SMC3: 11 | SMD3: 11 | SME3: 11 | SMF3: 11 | SMG3: 11 | SMH3: 11 | SMI3: 11 | SMJ3: 11 | SMK3: 11 | SML3: 11 | SMM3: 11 | SMN3: 11 | SMO3: 11 | SMP3: 11 | SMQ3: 11 | SMR3: 11 | SMS3: 11 | SMT3: 11 | SMU3: 11 | SMV3: 11 | SMW3: 11 | SMX3: 11 | SMY3: 11 | SMZ3: 11 | SNA3: 11 | SNB3: 11 | SNC3: 11 | SND3: 11 | SNE3: 11 | SNF3: 11 | SNG3: 11 | SNH3: 11 | SNI3: 11 | SNJ3: 11 | SNK3: 11 | SNL3: 11 | SNM3: 11 | SNN3: 11 | SNO3: 11 | SNP3: 11 | SNQ3: 11 | SNR3: 11 | SNS3: 11 | SNT3: 11 | SNU3: 11 | SNV3: 11 | SNW3: 11 | SNX3: 11 | SNY3: 11 | SNZ3: 11 | SOA3: 11 | SOB3: 11 | SOC3: 11 | SOD3: 11 | SOE3: 11 | SOF3: 11 | SOG3: 11 | SOH3: 11 | SOI3: 11 | SOJ3: 11 | SOK3: 11 | SOL3: 11 | SOM3: 11 | SON3: 11 | SOO3: 11 | SOP3: 11 | SOQ3: 11 | SOR3: 11 | SOS3: 11 | SOT3: 11 | SOU3: 11 | SOV3: 11 | SOW3: 11 | SOX3: 11 | SOY3: 11 | SOZ3: 11 | SPA3: 11 | SPB3: 11 | SPC3: 11 | SPD3: 11 | SPE3: 11 | SPF3: 11 | SPG3: 11 | SPH3: 11 | SPI3: 11 | SPJ3: 11 | SPK3: 11 | SPL3: 11 | SPM3: 11 | SPN3: 11 | SPO3: 11 | SPP3: 11 | SPQ3: 11 | SPR3: 11 | SPS3: 11 | SPT3: 11 | SPU3: 11 | SPV3: 11 | SPW3: 11 | SPX3: 11 | SPY3: 11 | SPZ3: 11 | SQA3: 11 | SQB3: 11 | SQC3: 11 | SQD3: 11 | SQE3: 11 | SQF3: 11 | SQG3: 11 | SQH3: 11 | SQI3: 11 | SQJ3: 11 | SQK3: 11 | SQL3: 11 | SQM3: 11 | SQN3: 11 | SQO3: 11 | SQP3: 11 | SQQ3: 11 | SQR3: 11 | SQS3: 11 | SQT3: 11 | SQU3: 11 | SQV3: 11 | SQW3: 11 | SQX3: 11 | SQY3: 11 | SQZ3: 11 | SRA3: 11 | SRB3: 11 | SRC3: 11 | SRD3: 11 | SRE3: 11 | SRF3: 11 | SRG3: 11 | SRH3: 11 | SRI3: 11 | SRJ3: 11 | SRK3: 11 | SRL3: 11 | SRM3: 11 | SRN3: 11 | SRO3: 11 | SRP3: 11 | SRQ3: 11 | SRR3: 11 | SRS3: 11 | SRT3: 11 | SRU3: 11 | SRV3: 11 | SRW3: 11 | SRX3: 11 | SRY3: 11 | SRZ3: 11 | SSA3: 11 | SSB3: 11 | SSC3: 11 | SSD3: 11 | SSE3: 11 | SSF3: 11 | SSG3: 11 | SSH3: 11 | SSI3: 11 | SSJ3: 11 | SSK3: 11 | SSL3: 11 | SSM3: 11 | SSN3: 11 | SSO3: 11 | SSP3: 11 | SSQ3: 11 | SSR3: 11 | SSS3: 11 | SST3: 11 | SSU3: 11 | SSV3: 11 | SSW3: 11 | SSX3: 11 | SSY3: 11 | SSZ3: 11 | STA3: 11 | STB3: 11 | STC3: 11 | STD3: 11 | STE3: 11 | STF3: 11 | STG3: 11 | STH3: 11 | STI3: 11 | STJ3: 11 | STK3: 11 | STL3: 11 | STM3: 11 | STN3: 11 | STO3: 11 | STP3: 11 | STQ3: 11 | STR3: 11 | STS3: 11 | STT3: 11 | STU3: 11 | STV3: 11 | STW3: 11 | STX3: 11 | STY3: 11 | STZ3: 11 | SUA3: 11 | SUB3: 11 | SUC3: 11 | SUD3: 11 | SUE3: 11 | SUF3: 11 | SUG3: 11 | SUH3: 11 | SUI3: 11 | SUJ3: 11 | SUK3: 11 | SUL3: 11 | SUM3: 11 | SUN3: 11 | SUO3: 11 | SUP3: 11 | SUQ3: 11 | SUR3: 11 | SUS3: 11 | SUT3: 11 | SUU3: 11 | SUV3: 11 | SUW3: 11 | SUX3: 11 | SUY3: 11 | SUZ3: 11 | SVA3: 11 | SVB3: 11 | SVC3: 11 | SVD3: 11 | SVE3: 11 | SVF3: 11 | SVG3: 11 | SVH3: 11 | SVI3: 11 | SVJ3: 11 | SVK3: 11 | SVL3: 11 | SVM3: 11 | SVN3: 11 | SVO3: 11 | SVP3: 11 | SVQ3: 11 | SVR3: 11 | SVS3: 11 | SVT3: 11 | SVU3: 11 | SVV3: 11 | SVW3: 11 | SVX3: 11 | SVY3: 11 | SVZ3: 11 | SWA3: 11 | SWB3: 11 | SWC3: 11 | SWD3: 11 | SWE3: 11 | SWF3: 11 | SWG3: 11 | SWH3: 11 | SWI3: 11 | SWJ3: 11 | SWK3: 11 | SWL3: 11 | SWM3: 11 | SWN3: 11 | SWO3: 11 | SWP3: 11 | SWQ3: 11 | SWR3: 11 | SWS3: 11 | SWT3: 11 | SWU3: 11 | SWV3: 11 | SWW3: 11 | SWX3: 11 | SWY3: 11 | SWZ3: 11 | SXA3: 11 | SXB3: 11 | SXC3: 11 | SXD3: 11 | SXE3: 11 | SXF3: 11 | SXG3: 11 | SXH3: 11 | SXI3: 11 | SXJ3: 11 | SXK3: 11 | SXL3: 11 | SXM3: 11 | SXN3: 11 | SXO3: 11 | SXP3: 11 | SXQ3: 11 | SXR3: 11 | SXS3: 11 | SXT3: 11 | SXU3: 11 | SXV3: 11 | SXW3: 11 | SXX3: 11 | SXY3: 11 | SXZ3: 11 | SYA3: 11 | SYB3: 11 | SYC3: 11 | SYD3: 11 | SYE3: 11 | SYF3: 11 | SYG3: 11 | SYH3: 11 | SYI3: 11 | SYJ3: 11 | SYK3: 11 | SYL3: 11 | SYM3: 11 | SYN3: 11 | SYO3: 11 | SYP3: 11 | SYQ3: 11 | SYR3: 11 | SYS3: 11 | SYT3: 11 | SYU3: 11 | SYV3: 11 | SYW3: 11 | SYX3: 11 | SYY3: 11 | SYZ3: 11 | SZA3: 11 | SZB3: 11 | SZC3: 11 | SZD3: 11 | SZE3: 11 | SZF3: 11 | SZG3: 11 | SZH3: 11 | SZI3: 11 | SZJ3: 11 | SZK3: 11 | SZL3: 11 | SZM3: 11 | SZN3: 11 | SZO3: 11 | SZP3: 11 | SZQ3: 11 | SZR3: 11 | SZS3: 11 | SZT3: 11 | SZU3: 11 | SZV3: 11 | SZW3: 11 | SZX3: 11 | SZY3: 11 | SZZ3: 11 | TAA3: 11 | TAB3: 11 | TAC3: 11 | TAD3: 11 | TAE3: 11 | TAF3: 11 | TAG3: 11 | TAH3: 11 | TAI3: 11 | TAJ3: 11 | TAK3: 11 | TAL3: 11 | TAM3: 11 | TAN3: 11 | TAO3: 11 | TAP3: 11 | TAQ3: 11 | TAR3: 11 | TAS3: 11 | TAT3: 11 | TAU3: 11 | TAV3: 11 | TAW3: 11 | TAX3: 11 | TAY3: 11 | TAZ3: 11 | TBA3: 11 | TBB3: 11 | TBC3: 11 | TBD3: 11 | TBE3: 11 | TBF3: 11 | TBG3: 11 | TBH3: 11 | TBI3: 11 | TBJ3: 11 | TBK3: 11 | TBL3: 11 | TBM3: 11 | TBN3: 11 | TBO3: 11 | TBP3: 11 | TBQ3: 11 | TBR3: 11 | TBS3: 11 | TBT3: 11 | TBU3: 11 | TBV3: 11 | TBW3: 11 | TBX3: 11 | TBY3: 11 | TBZ3: 11 | TCA3: 11 | TCB3: 11 | TCC3: 11 | TCD3: 11 | TCE3: 11 | TCF3: 11 | TCG3: 11 | TCH3: 11 | TCI3: 11 | TCJ3: 11 | TCK3: 11 | TCL3: 11 | TCM3: 11 | TCN3: 11 | TCO3: 11 | TCP3: 11 | TCQ3: 11 | TCR3: 11 | TCS3: 11 | TCT3: 11 | TCU3: 11 | TCV3: 11 | TCW3: 11 | TCX3: 11 | TCY3: 11 | TCZ3: 11 | TDA3: 11 | TDB3: 11 | TDC3: 11 | TDD3: 11 | TDE3: 11 | TDF3: 11 | TDG3: 11 | TDH3: 11 | TDI3: 11 | TDJ3: 11 | TDK3: 11 | TDL3: 11 | TDM3: 11 | TDN3: 11 | TDO3: 11 | TDP3: 11 | TDQ3: 11 | TDR3: 11 | TDS3: 11 | TDT3: 11 | TDU3: 11 | TDV3: 11 | TDW3: 11 | TDX3: 11 | TDY3: 11 | TDZ3: 11 | TEA3: 11 | TEB3: 11 | TEC3: 11 | TED3: 11 | TEE3: 11 | TEF3: 11 | TEG3: 11 | TEH3: 11 | TEI3: 11 | TEJ3: 11 | TEK3: 11 | TEL3: 11 | TEM3: 11 | TEN3: 11 | TEO3: 11 | TEP3: 11 | TEQ3: 11 | TER3: 11 | TES3: 11 | TET3: 11 | TEU3: 11 | TEV3: 11 | TEW3: 11 | TEX3: 11 | TEY3: 11 | TEZ3: 11 | TFA3: 11 | TFB3: 11 | TFC3: 11 | TFD3: 11 | TFE3: 11 | TFF3: 11 | TFG3: 11 | TFH3: 11 | TFI3: 11 | TFJ3: 11 | TFK3: 11 | TFL3: 11 | TFM3: 11 | TFN3: 11 | TFO3: 11 | TFP3: 11 | TFQ3: 11 | TFR3: 11 | TFS3: 11 | TFT3: 11 | TFU3: 11 | TFV3: 11 | TFW3: 11 | TFX3: 11 | TFY3: 11 | TFZ3: 11 | TGA3: 11 | TGB3: 11 | TGC3: 11 | TGD3: 11 | TGE3: 11 | TGF3: 11 | TGG3: 11 | TGH3: 11 | TGI3: 11 | TGJ3: 11 | TGK3: 11 | TGL3: 11 | TGM3: 11 | TGN3: 11 | TGO3: 11 | TGP3: 11 | TGQ3: 11 | TGR3: 11 | TGS3: 11 | TGT3: 11 | TGU3: 11 | TGV3: 11 | TGW3: 11 | TGX3: 11 | TGY3: 11 | TGZ3: 11 | THA3: 11 | THB3: 11 | THC3: 11 | THD3: 11 | THE3: 11 | THF3: 11 | THG3: 11 | THH3: 11 | THI3: 11 | THJ3: 11 | THK3: 11 | THL3: 11 | THM3: 11 | THN3: 11 | THO3: 11 | THP3: 11 | THQ3: 11 | THR3: 11 | THS3: 11 | THT3: 11 | THU3: 11 | THV3: 11 | THW3: 11 | THX3: 11 | THY3: 11 | THZ3: 11 | TIA3: 11 | TIB3: 11 | TIC3: 11 | TID3: 11 | TIE3: 11 | TIF3: 11 | TIG3: 11 | TIH3: 11 | TII3: 11 | TIJ3: 11 | TIK3: 11 | TIL3: 11 | TIM3: 11 | TIN3: 11 | TIO3: 11 | TIP3: 11 | TIQ3: 11 | TIR3: 11 | TIS3: 11 | TIT3: 11 | TIU3: 11 | TIV3: 11 | TIW3: 11 | TIX3: 11 | TIY3: 11 | TIZ3: 11 | TJA3: 11 | TJB3: 11 | TJC3: 11 | TJD3: 11 | TJE3: 11 | TJF3: 11 | TJG3: 11 | TJH3: 11 | TJI3: 11 | TJJ3: 11 | TJK3: 11 | TJL3: 11 | TJM3: 11 | TJN3: 11 | TJO3: 11 | TJP3: 11 | TJQ3: 11 | TJR3: 11 | TJS3: 11 | TJT3: 11 | TJU3: 11 | TJV3: 11 | TJW3: 11 | TJX3: 11 | TJY3: 11 | TJZ3: 11 | TKA3: 11 | TKB3: 11 | TKC3: 11 | TKD3: 11 | TKE3: 11 | TKF3: 11 | TKG3: 11 | TKH3: 11 | TKI3: 11 | TKJ3: 11 | TKK3: 11 | TKL3: 11 | TKM3: 11 | TKN3: 11 | TKO3: 11 | TKP3: 11 | TKQ3: 11 | TKR3: 11 | TKS3: 11 | TKT3: 11 | TKU3: 11 | TKV3: 11 | TKW3: 11 | TKX3: 11 | TKY3: 11 | TKZ3: 11 | TLA3: 11 | TLB3: 11 | TLC3: 11 | TLD3: 11 | TLE3: 11 | TLF3: 11 | TLG3: 11 | TLH3: 11 | TLI3: 11 | TLJ3: 11 | TLK3: 11 | TLL3: 11 | TLM3: 11 | TLN3: 11 | TLO3: 11 | TLP3: 11 | TLQ3: 11 | TLR3: 11 | TLS3: 11 | TLT3: 11 | TLU3: 11 | TLV3: 11 | TLW3: 11 | TLX3: 11 | TLY3: 11 | TLZ3: 11 | TMA3: 11 | TMB3: 11 | TMC3: 11 | TMD3: 11 | TME3: 11 | TMF3: 11 | TMG3: 11 | TMH3: 11 | TMI3: 11 | TMJ3: 11 | TMK3: 11 | TML3: 11 | TMM3: 11 | TMN3: 11 | TMO3: 11 | TMP3: 11 | TMQ3: 11 | TMR3: 11 | TMS3: 11 | TMT3: 11 | TMU3: 11 | TMV3: 11 | TMW3: 11 | TMX3: 11 | TMY3: 11 | TMZ3: 11 | TNA3: 11 | TNB3: 11 | TNC3: 11 | TND3: 11 | TNE3: 11 | TNF3: 11 | TNG3: 11 | TNH3: 11 | TNI3: 11 | TNJ3: 11 | TNK3: 11 | TNL3: 11 | TNM3: 11 | TNN3: 11 | TNO3: 11 | TNP3: 11 | TNQ3: 11 | TNR3: 11 | TNS3: 11 | TNT3: 11 | TNU3: 11 | TNV3: 11 | TNW3: 11 | TNX3: 11 | TNY3: 11 | TNZ3: 11 | TOA3: 11 | TOB3: 11 | TOC3: 11 | TOD3: 11 | TOE3: 11 | TOF3: 11 | TOG3: 11 | TOH3: 11 | TOI3: 11 | TOJ3: 11 | TOK3: 11 | TOL3: 11 | TOM3: 11 | TON3: 11 | TOO3: 11 | TOP3: 11 | TOQ3: 11 | TOR3: 11 | TOS3: 11 | TOT3: 11 | TOU3: 11 | TOV3: 11 | TOW3: 11 | TOX3: 11 | TOY3: 11 | TOZ3: 11 | TPA3: 11 | TPB3: 11 | TPC3: 11 | TPD3: 11 | TPE3: 11 | TPF3: 11 | TPG3: 11 | TPH3: 11 | TPI3: 11 | TPJ3: 11 | TPK3: 11 | TPL3: 11 | TPM3: 11 | TPN3: 11 | TPO3: 11 | TPP3: 11 | TPQ3: 11 | TPR3: 11 | TPS3: 11 | TPT3: 11 | TPU3: 11 | TPV3: 11 | TPW3: 11 | TPX3: 11 | TPY3: 11 | TPZ3: 11 | TQA3: 11 | TQB3: 11 | TQC3: 11 | TQD3: 11 | TQE3: 11 | TQF3: 11 | TQG3: 11 | TQH3: 11 | TQI3: 11 | TQJ3: 11 | TQK3: 11 | TQL3: 11 | TQM3: 11 | TQN3: 11 | TQO3: 11 | TQP3: 11 | TQQ3: 11 | TQR3: 11 | TQS3: 11 | TQT3: 11 | TQU3: 11 | TQV3: 11 | TQW3: 11 | TQX3: 11 | TQY3: 11 | TQZ3: 11 | TRA3: 11 | TRB3: 11 | TRC3: 11 | TRD3: 11 | TRE3: 11 | TRF3: 11 | TRG3: 11 | TRH3: 11 | TRI3: 11 | TRJ3: 11 | TRK3: 11 | TRL3: 11 | TRM3: 11 | TRN3: 11 | TRO3: 11 | TRP3: 11 | TRQ3: 11 | TRR3: 11 | TRS3: 11 | TRT3: 11 | TRU3: 11 | TRV3: 11 | TRW3: 11 | TRX3: 11 | TRY3: 11 | TRZ3: 11 | TSA3: 11 | TSB3: 11 | TSC3: 11 | TSD3: 11 | TSE3: 11 | TSF3: 11 | TSG3: 11 | TSH3: 11 | TSI3: 11 | TSJ3: 11 | TSK3: 11 | TSL3: 11 | TSM3: 11 | TSN3: 11 | TSO3: 11 | TSP3: 11 | TSQ3: 11 | TSR3: 11 | TSS3: 11 | TST3: 11 | TSU3: 11 | TSV3: 11 | TSW3: 11 | TSX3: 11 | TSY3: 11 | TSZ3: 11 | TTA3: 11 | TTB3: 11 | TTC3: 11 | TTD3: 11 | TTE3: 11 | TTF3: 11 | TTG3: 11 | TTH3: 11 | TTI3: 11 | TTJ3: 11 | TTK3: 11 | TTL3: 11 | TTM3: 11 | TTN3: 11 | TTO3: 11 | TTP3: 11 | TTQ3: 11 | TTR3: 11 | TTS3: 11 | TTT3: 11 | TTU3: 11 | TTV3: 11 | TTW3: 11 | TTX3: 11 | TTY3: 11 | TTZ3: 11 | TUA3: 11 | TUB3: 11 | TUC3: 11 | TUD3: 11 | TUE3: 11 | TUF3: 11 | TUG3: 11 | TUH3: 11 | TUI3: 11 | TUJ3: 11 | TUK3: 11 | TUL3: 11 | TUM3: 11 | TUN3: 11 | TUO3: 11 | TUP3: 11 | TUQ3: 11 | TUR3: 11 | TUS3: 11 | TUT3: 11 | TUU3: 11 | TUV3: 11 | TUW3: 11 | TUX3: 11 | TUY3: 11 | TUZ3: 11 | TVA3: 11 | TVB3: 11 | TVC3: 11 | TVD3: 11 | TVE3: 11 | TVF3: 11 | TVG3: 11 | TVH3: 11 | TVI3: 11 | TVJ3: 11 | TVK3: 11 | TVL3: 11 | TVM3: 11 | TVN3: 11 | TVO3: 11 | TVP3: 11 | TVQ3: 11 | TVR3: 11 | TVS3: 11 | TVT3: 11 | TVU3: 11 | TVV3: 11 | TVW3: 11 | TVX3: 11 | TVY3: 11 | TVZ3: 11 | TWA3: 11 | TWB3: 11 | TWC3: 11 | TWD3: 11 | TWE3: 11 | TWF3: 11 | TWG3: 11 | TWH3: 11 | TWI3: 11 | TWJ3: 11 | TWK3: 11 | TWL3: 11 | TWM3: 11 | TWN3: 11 | TWO3: 11 | TWP3: 11 | TWQ3: 11 | TWR3: 11 | TWS3: 11 | TWT3: 11 | TWU3: 11 | TWV3: 11 | TWW3: 11 | TWX3: 11 | TWY3: 11 | TWZ3: 11 | TXA3: 11 | TXB3: 11 | TXC3: 11 | TXD3: 11 | TXE3: 11 | TXF3: 11 | TXG3: 11 | TXH3: 11 | TXI3: 11 | TXJ3: 11 | TXK3: 11 | TXL3: 11 | TXM3: 11 | TXN3: 11 | TXO3: 11 | TXP3: 11 | TXQ3: 11 | TXR3: 11 | TXS3: 11 | TXT3: 11 | TXU3: 11 | TXV3: 11 | TXW3: 11 | TXX3: 11 | TXY3: 11 | TXZ3: 11 | TYA3: 11 | TYB3: 11 | TYC3: 11 | TYD3: 11 | TYE3: 11 | TYF3: 11 | TYG3: 11 | TYH3: 11 | TYI3: 11 | TYJ3: 11 | TYK3: 11 | TYL3: 11 | TYM3: 11 | TYN3: 11 | TYO3: 11 | TYP3: 11 | TYQ3: 11 | TYR3: 11 | TYS3: 11 | TYT3: 11 | TYU3: 11 | TYV3: 11 | TYW3: 11 | TYX3: 11 | TYY3: 11 | TYZ3: 11 | TZA3: 11 | TZB3: 11 | TZC3: 11 | TZD3: 11 | TZE3: 11 | TZF3: 11 | TZG3: 11 | TZH3: 11 | TZI3: 11 | TZJ3: 11 | TZK3: 11 | TZL3: 11 | TZM3: 11 | TZN3: 11 | TZO3: 11 | TZP3: 11 | TZQ3: 11 | TZR3: 11 | TZS3: 11 | TZT3: 11 | TZU3: 11 | TZV3: 11 | TZW3: 11 | TZX3: 11 | TZY3: 11 | TZZ3: 11 | UAA3: 11 | UAB3: 11 | UAC3: 11 | UAD3: 11 | UAE3: 11 | UAF3: 11 | UAG3: 11 | UAH3: 11 | UAI3: 11 | UAJ3: 11 | UAK3: 11 | UAL3: 11 | UAM3: 11 | UAN3: 11 | UAO3: 11 | UAP3: 11 | UAQ3: 11 | UAR3: 11 | UAS3: 11 | UAT3: 11 | UAU3: 11 | UAV3: 11 | UAW3: 11 | UAX3: 11 | UAY3: 11 | UAZ3: 11 | UBA3: 11 | UBB3: 11 | UBC3: 11 | UBD3: 11 | UBE3: 11 | UBF3: 11 | UBG3: 11 | UBH3: 11 | UBI3: 11 | UBJ3: 11 | UBK3: 11 | UBL3: 11 | UBM3: 11 | UBN3: 11 | UBO3: 11 | UBP3: 11 | UBQ3: 11 | UBR3: 11 | UBS3: 11 | UBT3: 11 | UBU3: 11 | UBV3: 11 | UBW3: 11 | UBX3: 11 | UBY3: 11 | UBZ3: 11 | UCA3: 11 | UCB3: 11 | UCC3: 11 | UCD3: 11 | UCE3: 11 | UCF3: 11 | UCG3: 11 | UCH3: 11 | UCI3: 11 | UCJ3: 11 | UCK3: 11 | UCL3: 11 | UCM3: 11 | UCN3: 11 | UCO3: 11 | UCP3: 11 | UCQ3: 11 | UCR3: 11 | UCS3: 11 | UCT3: 11 | UCU3: 11 | UCV3: 11 | UCW3: 11 | UCX3: 11 | UCY3: 11 | UCZ3: 11 | UDA3: 11 | UDB3: 11 | UDC3: 11 | UDD3: 11 | UDE3: 11 | UDF3: 11 | UDG3: 11 | UDH3: 11 | UDI3: 11 | UDJ3: 11 | UDK3: 11 | UDL3: 11 | UDM3: 11 | UDN3: 11 | UDO3: 11 | UDP3: 11 | UDQ3: 11 | UDR3: 11 | UDS3: 11 | UDT3: 11 | UDU3: 11 | UDV3: 11 | UDW3: 11 | UDX3: 11 | UDY3: 11 | UDZ3: 11 | UEA3: 11 | UEB3: 11 | UEC3: 11 | UED3: 11 | UEE3: 11 | UEF3: 11 | UEG3: 11 | UEH3: 11 | UEI3: 11 | UEJ3: 11 | UEK3: 11 | UEL3: 11 | UEM3: 11 | UEN3: 11 | UEO3: 11 | UEP3: 11 | UEQ3: 11 | UER3: 11 | UES3: 11 | UET3: 11 | UEU3: 11 | UEV3: 11 | UEW3: 11 | UEX3: 11 | UEY3: 11 | UEZ3: 11 | UFA3: 11 | UFB3: 11 | UFC3: 11 | UFD3: 11 | UFE3: 11 | UFF3: 11 | UFG3: 11 | UFH3: 11 | UFI3: 11 | UFJ3: 11 | UFK3: 11 | UFL3: 11 | UFM3: 11 | UFN3: 11 | UFO3: 11 | UFP3: 11 | UFQ3: 11 | UFR3: 11 | UFS3: 11 | UFT3: 11 | UFU3: 11 | UFV3: 11 | UFW3: 11 | UFX3: 11 | UFY3: 11 | UFZ3: 11 | UGA3: 11 | UGB3: 11 | UGC3: 11 | UGD3: 11 | UGE3: 11 | UGF3: 11 | UGG3: 11 | UGH3: 11 | UGI3: 11 | UGJ3: 11 | UGK3: 11 | UGL3: 11 | UGM3: 11 | UGN3: 11 | UGO3: 11 | UGP3: 11 | UGQ3: 11 | UGR3: 11 | UGS3: 11 | UGT3: 11 | UGU3: 11 | UGV3: 11 | UGW3: 11 | UGX3: 11 | UGY3: 11 | UGZ3: 11 | UHA3: 11 | UHB3: 11 | UHC3: 11 | UHD3: 11 | UHE3: 11 | UHF3: 11 | UHG3: 11 | UHH3: 11 | UHI3: 11 | UHJ3: 11 | UHK3: 11 | UHL3: 11 | UHM3: 11 | UHN3: 11 | UHO3: 11 | UHP3: 11 | UHQ3: 11 | UHR3: 11 | UHS3: 11 | UHT3: 11 | UHU3: 11 | UHV3: 11 | UHW3: 11 | UHX3: 11 | UHY3: 11 | UHZ3: 11 | UIA3: 11 | UIB3: 11 | UIC3: 11 | UID3: 11 | UIE3: 11 | UIF3: 11 | UIG3: 11 | UIH3: 11 | UII3: 11 | UIJ3: 11 | UIK3: 11 | UIL3: 11 | UIM3: 11 | UIN3: 11 | UIO3: 11 | UIP3: 11 | UIQ3: 11 | UIR3: 11 | UIS3: 11 | UIT3: 11 | UIU3: 11 | UIV3: 11 | UIW3: 11 | UIX3: 11 | UIY3: 11 | UIZ3: 11 | UJA3: 11 | UJB3: 11 | UJC3: 11 | UJD3: 11 | UJE3: 11 | UJF3: 11 | UJG3: 11 | UJH3: 11 | UJI3: 11 | UJJ3: 11 | UJK3: 11 | UJL3: 11 | UJM3: 11 | UJN3: 11 | UJO3: 11 | UJP3: 11 | UJQ3: 11 | UJR3: 11 | UJS3: 11 | UJT3: 11 | UJU3: 11 | UJV3: 11 | UJW3: 11 | UJX3: 11 | UJY3: 11 | UJZ3: 11 | UKA3: 11 | UKB3: 11 | UKC3: 11 | UKD3: 11 | UKE3: 11 | UKF3: 11 | UKG3: 11 | UKH3: 11 | UKI3: 11 | UKJ3: 11 | UKK3: 11 | UKL3: 11 | UKM3: 11 | UKN3: 11 | UKO3: 11 | UKP3: 11 | UKQ3: 11 | UKR3: 11 | UKS3: 11 | UKT3: 11 | UKU3: 11 | UKV3: 11 | UKW3: 11 | UKX3: 11 | UKY3: 11 | UKZ3: 11 | ULA3: 11 | ULB3: 11 | ULC3: 11 | ULD3: 11 | ULE3: 11 | ULF3: 11 | ULG3: 11 | ULH3: 11 | ULI3: 11 | ULJ3: 11 | ULK3: 11 | ULL3: 11 | ULM3: 11 | ULN3: 11 | ULO3: 11 | ULP3: 11 | ULQ3: 11 | ULR3: 11 | ULS3: 11 | ULT3: 11 | ULU3: 11 | ULV3: 11 | ULW3: 11 | ULX3: 11 | ULY3: 11 | ULZ3: 11 | UMA3: 11 | UMB3: 11 | UMC3: 11 | UMD3: 11 | UME3: 11 | UMF3: 11 | UMG3: 11 | UMH3: 11 | UMI3: 11 | UMJ3: 11 | UMK3: 11 | UML3: 11 | UMM3: 11 | UMN3: 11 | UMO3: 11 | UMP3: 11 | UMQ3: 11 | UMR3: 11 | UMS3: 11 | UMT3: 11 | UMU3: 11 | UMV3: 11 | UMW3: 11 | UMX3: 11 | UMY3: 11 | UMZ3: 11 | UNA3: 11 | UNB3: 11 | UNC3: 11 | UND3: 11 | UNE3: 11 | UNF3: 11 | UNG3: 11 | UNH3: 11 | UNI3: 11 | UNJ3: 11 | UNK3: 11 | UNL3: 11 | UNM3: 11 | UNN3: 11 | UNO3: 11 | UNP3: 11 | UNQ3: 11 | UNR3: 11 | UNS3: 11 | UNT3: 11 | UNU3: 11 | UNV3: 11 | UNW3: 11 | UNX3: 11 | UNY3: 11 | UNZ3: 11 | UOA3: 11 | UOB3: 11 | UOC3: 11 | UOD3: 11 | UOE3: 11 | UOF3: 11 | UOG3: 11 | UOH3: 11 | UOI3: 11 | UOJ3: 11 | UOK3: 11 | UOL3: 11 | UOM3: 11 | UON3: 11 | UOO3: 11 | UOP3: 11 | UOQ3: 11 | UOR3: 11 | UOS3: 11 | UOT3: 11 | UOU3: 11 | UOV3: 11 | UOW3: 11 | UOX3: 11 | UOY3: 11 | UOZ3: 11 | UPA3: 11 | UPB3: 11 | UPC3: 11 | UPD3: 11 | UPE3: 11 | UPF3: 11 | UPG3: 11 | UPH3: 11 | UPI3: 11 | UPJ3: 11 | UPK3: 11 | UPL3: 11 | UPM3: 11 | UPN3: 11 | UPO3: 11 | UPP3: 11 | UPQ3: 11 | UPR3: 11 | UPS3: 11 | UPT3: 11 | UPU3: 11 | UPV3: 11 | UPW3: 11 | UPX3: 11 | UPY3: 11 | UPZ3: 11 | UQA3: 11 | UQB3: 11 | UQC3: 11 | UQD3: 11 | UQE3: 11 | UQF3: 11 | UQG3: 11 | UQH3: 11 | UQI3: 11 | UQJ3: 11 | UQK3: 11 | UQL3: 11 | UQM3: 11 | UQN3: 11 | UQO3: 11 | UQP3: 11 | UQQ3: 11 | UQR3: 11 | UQS3: 11 | UQT3: 11 | UQU3: 11 | UQV3: 11 | UQW3: 11 | UQX3: 11 | UQY3: 11 | UQZ3: 11 | URA3: 11 | URB3: 11 | URC3: 11 | URD3: 11 | URE3: 11 | URF3: 11 | URG3: 11 | URH3: 11 | URI3: 11 | URJ3: 11 | URK3: 11 | URL3: 11 | URM3: 11 | URN3: 11 | URO3: 11 | URP3: 11 | URQ3: 11 | URR3: 11 | URS3: 11 | URT3: 11 | URU3: 11 | URV3: 11 | URW3: 11 | URX3: 11 | URY3: 11 | URZ3: 11 | USA3: 11 | USB3: 11 | USC3: 11 | USD3: 11 | USE3: 11 | USF3: 11 | USG3: 11 | USH3: 11 | USI3: 11 | USJ3: 11 | USK3: 11 | USL3: 11 | USM3: 11 | USN3: 11 | USO3: 11 | USP3: 11 | USQ3: 11 | USR3: 11 | USS3: 11 | UST3: 11 | USU3: 11 | USV3: 11 | USW3: 11 | USX3: 11 | USY3: 11 | USZ3: 11 | UTA3: 11 | UTB3: 11 | UTC3: 11 | UTD3: 11 | UTE3: 11 | UTF3: 11 | UTG3: 11 | UTH3: 11 | UTI3: 11 | UTJ3: 11 | UTK3: 11 | UTL3: 11 | UTM3: 11 | UTN3: 11 | UTO3: 11 | UTP3: 11 | UTQ3: 11 | UTR3: 11 | UTS3: 11 | UTT3: 11 | UTU3: 11 | UTV3: 11 | UTW3: 11 | UTX3: 11 | UTY3: 11 | UTZ3: 11 | UUA3: 11 | UUB3: 11 | UUC3: 11 | UUD3: 11 | UUE3: 11 | UUF3: 11 | UUG3: 11 | UUH3: 11 | UUI3: 11 | UUJ3: 11 | UUK3: 11 | UUL3: 11 | UUM3: 11 | UUN3: 11 | UUO3: 11 | UUP3: 11 | UUQ3: 11 | UUR3: 11 | UUS3: 11 | UUT3: 11 | UUU3: 11 | UUV3: 11 | UUW3: 11 | UUX3: 11 | UUY3: 11 | UUZ3: 11 | UVA3: 11 | UVB3: 11 | UVC3: 11 | UVD3: 11 | UVE3: 11 | UVF3: 11 | UVG3: 11 | UVH3: 11 | UVI3: 11 | UVJ3: 11 | UVK3: 11 | UVL3: 11 | UVM3: 11 | UVN3: 11 | UVO3: 11 | UVP3: 11 | UVQ3: 11 | UVR3: 11 | UVS3: 11 | UVT3: 11 | UVU3: 11 | UVV3: 11 | UVW3: 11 | UVX3: 11 | UVY3: 11 | UVZ3: 11 | UWA3: 11 | UWB3: 11 | UWC3: 11 | UWD3: 11 | UWE3: 11 | UWF3: 11 | UWG3: 11 | UWH3: 11 | UWI3: 11 | UWJ3: 11 | UWK3: 11 | UWL3: 11 | UWM3: 11 | UWN3: 11 | UWO3: 11 | UWP3: 11 | UWQ3: 11 | UWR3: 11 | UWS3: 11 | UWT3: 11 | UWU3: 11 | UWV3: 11 | UWW3: 11 | UWX3: 11 | UWY3: 11 | UWZ3: 11 | UXA3: 11 | UXB3: 11 | UXC3: 11 | UXD3: 11 | UXE3: 11 | UXF3: 11 | UXG3: 11 | UXH3: 11 | UXI3: 11 | UXJ3: 11 | UXK3: 11 | UXL3: 11 | UXM3: 11 | UXN3: 11 | UXO3: 11 | UXP3: 11 | UXQ3: 11 | UXR3: 11 | UXS3: 11 | UXT3: 11 | UXU3: 11 | UXV3: 11 | UXW3: 11 | UXX3: 11 | UXY3: 11 | UXZ3: 11 | UYA3: 11 | UYB3: 11 | UYC3: 11 | UYD3: 11 | UYE3: 11 | UYF3: 11 | UYG3: 11 | UYH3: 11 | UYI3: 11 | UYJ3: 11 | UYK3: 11 | UYL3: 11 | UYM3: 11 | UYN3: 11 | UYO3: 11 | UYP3: 11 | UYQ3: 11 | UYR3: 11 | UYS3: 11 | UYT3: 11 | UYU3: 11 | UYV3: 11 | UYW3: 11 | UYX3: 11 | UYY3: 11 | UYZ3: 11 | UZA3: 11 | UZB3: 11 | UZC3: 11 | UZD3: 11 | UZE3: 11 | UZF3: 11 | UZG3: 11 | UZH3: 11 | UZI3: 11 | UZJ3: 11 | UZK3: 11 | UZL3: 11 | UZM3: 11 | UZN3: 11 | UZO3: 11 | UZP3: 11 | UZQ3: 11 | UZR3: 11 | UZS3: 11 | UZT3: 11 | UZU3: 11 | UZV3: 11 | UZW3: 11 | UZX3: 11 | UZY3: 11 | UZZ3: 11 | VAA3: 11 | VAB3: 11 | VAC3: 11 | VAD3: 11 | VAE3: 11 | VAF3: 11 | VAG3: 11 | VAH3: 11 | VAI3: 11 | VAJ3: 11 | VAK3: 11 | VAL3: 11 | VAM3: 11 | VAN3: 11 | VAO3: 11 | VAP3: 11 | VAQ3: 11 | VAR3: 11 | VAS3: 11 | VAT3: 11 | VAU3: 11 | VAV3: 11 | VAW3: 11 | VAX3: 11 | VAY3: 11 | VAZ3: 11 | VBA3: 11 | VBB3: 11 | VBC3: 11 | VBD3: 11 | VBE3: 11 | VBF3: 11 | VBG3: 11 | VBH3: 11 | VBI3: 11 | VBJ3: 11 | VBK3: 11 | VBL3: 11 | VBM3: 11 | VBN3: 11 | VBO3: 11 | VBP3: 11 | VBQ3: 11 | VBR3: 11 | VBS3: 11 | VBT3: 11 | VBU3: 11 | VBV3: 11 | VBW3: 11 | VBX3: 11 | VBY3: 11 | VBZ3: 11 | VCA3: 11 | VCB3: 11 | VCC3: 11 | VCD3: 11 | VCE3: 11 | VCF3: 11 | VCG3: 11 | VCH3: 11 | VCI3: 11 | VCJ3: 11 | VCK3: 11 | VCL3: 11 | VCM3: 11 | VCN3: 11 | VCO3: 11 | VCP3: 11 | VCQ3: 11 | VCR3: 11 | VCS3: 11 | VCT3: 11 | VCU3: 11 | VCV3: 11 | VCW3: 11 | VCX3: 11 | VCY3: 11 | VCZ3: 11 | VDA3: 11 | VDB3: 11 | VDC3: 11 | VDD3: 11 | VDE3: 11 | VDF3: 11 | VDG3: 11 | VDH3: 11 | VDI3: 11 | VDJ3: 11 | VDK3: 11 | VDL3: 11 | VDM3: 11 | VDN3: 11 | VDO3: 11 | VDP3: 11 | VDQ3: 11 | VDR3: 11 | VDS3: 11 | VDT3: 11 | VDU3: 11 | VDV3: 11 | VDW3: 11 | VDX3: 11 | VDY3: 11 | VDZ3: 11 | VEA3: 11 | VEB3: 11 | VEC3: 11 | VED3: 11 | VEE3: 11 | VEF3: 11 | VEG3: 11 | VEH3: 11 | VEI3: 11 | VEJ3: 11 | VEK3: 11 | VEL3: 11 | VEM3: 11 | VEN3: 11 | VEO3: 11 | VEP3: 11 | VEQ3: 11 | VER3: 11 | VES3: 11 | VET3: 11 | VEU3: 11 | VEV3: 11 | VEW3: 11 | VEX3: 11 | VEY3: 11 | VEZ3: 11 | VFA3: 11 | VFB3: 11 | VFC3: 11 | VFD3: 11 | VFE3: 11 | VFF3: 11 | VFG3: 11 | VFH3: 11 | VFI3: 11 | VFJ3: 11 | VFK3: 11 | VFL3: 11 | VFM3: 11 | VFN3: 11 | VFO3: 11 | VFP3: 11 | VFQ3: 11 | VFR3: 11 | VFS3: 11 | VFT3: 11 | VFU3: 11 | VFV3: 11 | VFW3: 11 | VFX3: 11 | VFY3: 11 | VFZ3: 11 | VGA3: 11 | VGB3: 11 | VGC3: 11 | VGD3: 11 | VGE3: 11 | VGF3: 11 | VGG3: 11 | VGH3: 11 | VGI3: 11 | VGJ3: 11 | VGK3: 11 | VGL3: 11 | VGM3: 11 | VGN3: 11 | VGO3: 11 | VGP3: 11 | VGQ3: 11 | VGR3: 11 | VGS3: 11 | VGT3: 11 | VGU3: 11 | VGV3: 11 | VGW3: 11 | VGX3: 11 | VGY3: 11 | VGZ3: 11 | VHA3: 11 | VHB3: 11 | VHC3: 11 | VHD3: 11 | VHE3: 11 | VHF3: 11 | VHG3: 11 | VHH3: 11 | VHI3: 11 | VHJ3: 11 | VHK3: 11 | VHL3: 11 | VHM3: 11 | VHN3: 11 | VHO3: 11 | VHP3: 11 | VHQ3: 11 | VHR3: 11 | VHS3: 11 | VHT3: 11 | VHU3: 11 | VHV3: 11 | VHW3: 11 | VHX3: 11 | VHY3: 11 | VHZ3: 11 | VIA3: 11 | VIB3: 11 | VIC3: 11 | VID3: 11 | VIE3: 11 | VIF3: 11 | VIG3: 11 | VIH3: 11 | VII3: 11 | VIJ3: 11 | VIK3: 11 | VIL3: 11 | VIM3: 11 | VIN3: 11 | VIO3: 11 | VIP3: 11 | VIQ3: 11 | VIR3: 11 | VIS3: 11 | VIT3: 11 | VIU3: 11 | VIV3: 11 | VIW3: 11 | VIX3: 11 | VIY3: 11 | VIZ3: 11 | VJA3: 11 | VJB3: 11 | VJC3: 11 | VJD3: 11 | VJE3: 11 | VJF3: 11 | VJG3: 11 | VJH3: 11 | VJI3: 11 | VJJ3: 11 | VJK3: 11 | VJL3: 11 | VJM3: 11 | VJN3: 11 | VJO3: 11 | VJP3: 11 | VJQ3: 11 | VJR3: 11 | VJS3: 11 | VJT3: 11 | VJU3: 11 | VJV3: 11 | VJW3: 11 | VJX3: 11 | VJY3: 11 | VJZ3: 11 | VKA3: 11 | VKB3: 11 | VKC3: 11 | VKD3: 11 | VKE3: 11 | VKF3: 11 | VKG3: 11 | VKH3: 11 | VKI3: 11 | VKJ3: 11 | VKK3: 11 | VKL3: 11 | VKM3: 11 | VKN3: 11 | VKO3: 11 | VKP3: 11 | VKQ3: 11 | VKR3: 11 | VKS3: 11 | VKT3: 11 | VKU3: 11 | VKV3: 11 | VKW3: 11 | VKX3: 11 | VKY3: 11 | VKZ3: 11 | VLA3: 11 | VLB3: 11 | VLC3: 11 | VLD3: 11 | VLE3: 11 | VLF3: 11 | VLG3: 11 | VLH3: 11 | VLI3: 11 | VLJ3: 11 | VLK3: 11 | VLL3: 11 | VLM3: 11 | VLN3: 11 | VLO3: 11 | VLP3: 11 | VLQ3: 11 | VLR3: 11 | VLS3: 11 | VLT3: 11 | VLU3: 11 | VLV3: 11 | VLW3: 11 | VLX3: 11 | VLY3: 11 | VLZ3: 11 | VMA3: 11 | VMB3: 11 | VMC3: 11 | VMD3: 11 | VME3: 11 | VMF3: 11 | VMG3: 11 | VMH3: 11 | VMI3: 11 | VMJ3: 11 | VMK3: 11 | VML3: 11 | VMM3: 11 | VMN3: 11 | VMO3: 11 | VMP3: 11 | VMQ3: 11 | VMR3: 11 | VMS3: 11 | VMT3: 11 | VMU3: 11 | VMV3: 11 | VMW3: 11 | VMX3: 11 | VMY3: 11 | VMZ3: 11 | VNA3: 11 | VNB3: 11 | VNC3: 11 | VND3: 11 | VNE3: 11 | VNF3: 11 | VNG3: 11 | VNH3: 11 | VNI3: 11 | VNJ3: 11 | VNK3: 11 | VNL3: 11 | VNM3: 11 | VNN3: 11 | VNO3: 11 | VNP3: 11 | VNQ3: 11 | VNR3: 11 | VNS3: 11 | VNT3: 11 | VNU3: 11 | VNV3: 11 | VNW3: 11 | VNX3: 11 | VNY3: 11 | VNZ3: 11 | VOA3: 11 | VOB3: 11 | VOC3: 11 | VOD3: 11 | VOE3: 11 | VOF3: 11 | VOG3: 11 | VOH3: 11 | VOI3: 11 | VOJ3: 11 | VOK3: 11 | VOL3: 11 | VOM3: 11 | VON3: 11 | VOO3: 11 | VOP3: 11 | VOQ3: 11 | VOR3: 11 | VOS3: 11 | VOT3: 11 | VOU3: 11 | VOV3: 11 | VOW3: 11 | VOX3: 11 | VOY3: 11 | VOZ3: 11 | VPA3: 11 | VPB3: 11 | VPC3: 11 | VPD3: 11 | VPE3: 11 | VPF3: 11 | VPG3: 11 | VPH3: 11 | VPI3: 11 | VPJ3: 11 | VPK3: 11 | VPL3: 11 | VPM3: 11 | VPN3: 11 | VPO3: 11 | VPP3: 11 | VPQ3: 11 | VPR3: 11 | VPS3: 11 | VPT3: 11 | VPU3: 11 | VPV3: 11 | VPW3: 11 | VPX3: 11 | VPY3: 11 | VPZ3: 11 | VQA3: 11 | VQB3: 11 | VQC3: 11 | VQD3: 11 | VQE3: 11 | VQF3: 11 | VQG3: 11 | VQH3: 11 | VQI3: 11 | VQJ3: 11 | VQK3: 11 | VQL3: 11 | VQM3: 11 | VQN3: 11 | VQO3: 11 | VQP3: 11 | VQQ3: 11 | VQR3: 11 | VQS3: 11 | VQT3: 11 | VQU3: 11 | VQV3: 11 | VQW3: 11 | VQX3: 11 | VQY3: 11 | VQZ3: 11 | VRA3: 11 | VRB3: 11 | VRC3: 11 | VRD3: 11 | VRE3: 11 | VRF3: 11 | VRG3: 11 | VRH3: 11 | VRI3: 11 | VRJ3: 11 | VRK3: 11 | VRL3: 11 | VRM3: 11 | VRN3: 11 | VRO3: 11 | VRP3: 11 | VRQ3: 11 | VRR3: 11 | VRS3: 11 | VRT3: 11 | VRU3: 11 | VRV3: 11 | VRW3: 11 | VRX3: 11 | VRY3: 11 | VRZ3: 11 | VSA3: 11 | VSB3: 11 | VSC3: 11 | VSD3: 11 | VSE3: 11 | VSF3: 11 | VSG3: 11 | VSH3: 11 | VSI3: 11 | VSJ3: 11 | VSK3: 11 | VSL3: 11 | VSM3: 11 | VSN3: 11 | VSO3: 11 | VSP3: 11 | VSQ3: 11 | VSR3: 11 | VSS3: 11 | VST3: 11 | VSU3: 11 | VSV3: 11 | VSW3: 11 | VSX3: 11 | VSY3: 11 | VSZ3: 11 | VTA3: 11 | VTB3: 11 | VTC3: 11 | VTD3: 11 | VTE3: 11 | VTF3: 11 | VTG3: 11 | VTH3: 11 | VTI3: 11 | VTJ3: 11 | VTK3: 11 | VTL3: 11 | VTM3: 11 | VTN3: 11 | VTO3: 11 | VTP3: 11 | VTQ3: 11 | VTR3: 11 | VTS3: 11 | VTT3: 11 | VTU3: 11 | VTV3: 11 | VTW3: 11 | VTX3: 11 | VTY3: 11 | VTZ3: 11 | VUA3: 11 | VUB3: 11 | VUC3: 11 | VUD3: 11 | VUE3: 11 | VUF3: 11 | VUG3: 11 | VUH3: 11 | VUI3: 11 | VUJ3: 11 | VUK3: 11 | VUL3: 11 | VUM3: 11 | VUN3: 11 | VUO3: 11 | VUP3: 11 | VUQ3: 11 | VUR3: 11 | VUS3: 11 | VUT3: 11 | VUU3: 11 | VUV3: 11 | VUW3: 11 | VUX3: 11 | VUY3: 11 | VUZ3: 11 | VVA3: 11 | VVB3: 11 | VVC3: 11 | VVD3: 11 | VVE3: 11 | VVF3: 11 | VVG3: 11 | VVH3: 11 | VVI3: 11 | VVJ3: 11 | VVK3: 11 | VVL3: 11 | VVM3: 11 | VVN3: 11 | VVO3: 11 | VVP3: 11 | VVQ3: 11 | VVR3: 11 | VVS3: 11 | VVT3: 11 | VVU3: 11 | VVV3: 11 | VVW3: 11 | VVX3: 11 | VVY3: 11 | VVZ3: 11 | VWA3: 11 | VWB3: 11 | VWC3: 11 | VWD3: 11 | VWE3: 11 | VWF3: 11 | VWG3: 11 | VWH3: 11 | VWI3: 11 | VWJ3: 11 | VWK3: 11 | VWL3: 11 | VWM3: 11 | VWN3: 11 | VWO3: 11 | VWP3: 11 | VWQ3: 11 | VWR3: 11 | VWS3: 11 | VWT3: 11 | VWU3: 11 | VWV3: 11 | VWW3: 11 | VWX3: 11 | VWY3: 11 | VWZ3: 11 | VXA3: 11 | VXB3: 11 | VXC3: 11 | VXD3: 11 | VXE3: 11 | VXF3: 11 | VXG3: 11 | VXH3: 11 | VXI3: 11 | VXJ3: 11 | VXK3: 11 | VXL3: 11 | VXM3: 11 | VXN3: 11 | VXO3: 11 | VXP3: 11 | VXQ3: 11 | VXR3: 11 | VXS3: 11 | VXT3: 11 | VXU3: 11 | VXV3: 11 | VXW3: 11 | VXX3: 11 | VXY3: 11 | VXZ3: 11 | VYA3: 11 | VYB3: 11 | VYC3: 11 | VYD3: 11 | VYE3: 11 | VYF3: 11 | VYG3: 11 | VYH3: 11 | VYI3: 11 | VYJ3: 11 | VYK3: 11 | VYL3: 11 | VYM3: 11 | VYN3: 11 | VYO3: 11 | VYP3: 11 | VYQ3: 11 | VYR3: 11 | VYS3: 11 | VYT3: 11 | VYU3: 11 | VYV3: 11 | VYW3: 11 | VYX3: 11 | VYY3: 11 | VYZ3: 11 | VZA3: 11 | VZB3: 11 | VZC3: 11 | VZD3: 11 | VZE3: 11 | VZF3: 11 | VZG3: 11 | VZH3: 11 | VZI3: 11 | VZJ3: 11 | VZK3: 11 | VZL3: 11 | VZM3: 11 | VZN3: 11 | VZO3: 11 | VZP3: 11 | VZQ3: 11 | VZR3: 11 | VZS3: 11 | VZT3: 11 | VZU3: 11 | VZV3: 11 | VZW3: 11 | VZX3: 11 | VZY3: 11 | VZZ3: 11 | WAA3: 11 | WAB3: 11 | WAC3: 11 | WAD3: 11 | WAE3: 11 | WAF3: 11 | WAG3: 11 | WAH3: 11 | WAI3: 11 | WAJ3: 11 | WAK3: 11 | WAL3: 11 | WAM3: 11 | WAN3: 11 | WAO3: 11 | WAP3: 11 | WAQ3: 11 | WAR3: 11 | WAS3: 11 | WAT3: 11 | WAU3: 11 | WAV3: 11 | WAW3: 11 | WAX3: 11 | WAY3: 11 | WAZ3: 11 | WBA3: 11 | WBB3: 11 | WBC3: 11 | WBD3: 11 | WBE3: 11 | WBF3: 11 | WBG3: 11 | WBH3: 11 | WBI3: 11 | WBJ3: 11 | WBK3: 11 | WBL3: 11 | WBM3: 11 | WBN3: 11 | WBO3: 11 | WBP3: 11 | WBQ3: 11 | WBR3: 11 | WBS3: 11 | WBT3: 11 | WBU3: 11 | WBV3: 11 | WBW3: 11 | WBX3: 11 | WBY3: 11 | WBZ3: 11 | WCA3: 11 | WCB3: 11 | WCC3: 11 | WCD3: 11 | WCE3: 11 | WCF3: 11 | WCG3: 11 | WCH3: 11 | WCI3: 11 | WCJ3: 11 | WCK3: 11 | WCL3: 11 | WCM3: 11 | WCN3: 11 | WCO3: 11 | WCP3: 11 | WCQ3: 11 | WCR3: 11 | WCS3: 11 | WCT3: 11 | WCU3: 11 | WCV3: 11 | WCW3: 11 | WCX3: 11 | WCY3: 11 | WCZ3: 11 | WDA3: 11 | WDB3: 11 | WDC3: 11 | WDD3: 11 | WDE3: 11 | WDF3: 11 | WDG3: 11 | WDH3: 11 | WDI3: 11 | WDJ3: 11 | WDK3: 11 | WDL3: 11 | WDM3: 11 | WDN3: 11 | WDO3: 11 | WDP3: 11 | WDQ3: 11 | WDR3: 11 | WDS3: 11 | WDT3: 11 | WDU3: 11 | WDV3: 11 | WDW3: 11 | WDX3: 11 | WDY3: 11 | WDZ3: 11 | WEA3: 11 | WEB3: 11 | WEC3: 11 | WED3: 11 | WEE3: 11 | WEF3: 11 | WEG3: 11 | WEH3: 11 | WEI3: 11 | WEJ3: 11 | WEK3: 11 | WEL3: 11 | WEM3: 11 | WEN3: 11 | WEO3: 11 | WEP3: 11 | WEQ3: 11 | WER3: 11 | WES3: 11 | WET3: 11 | WEU3: 11 | WEV3: 11 | WEW3: 11 | WEX3: 11 | WEY3: 11 | WEZ3: 11 | WFA3: 11 | WFB3: 11 | WFC3: 11 | WFD3: 11 | WFE3: 11 | WFF3: 11 | WFG3: 11 | WFH3: 11 | WFI3: 11 | WFJ3: 11 | WFK3: 11 | WFL3: 11 | WFM3: 11 | WFN3: 11 | WFO3: 11 | WFP3: 11 | WFQ3: 11 | WFR3: 11 | WFS3: 11 | WFT3: 11 | WFU3: 11 | WFV3: 11 | WFW3: 11 | WFX3: 11 | WFY3: 11 | WFZ3: 11 | WGA3: 11 | WGB3: 11 | WGC3: 11 | WGD3: 11 | WGE3: 11 | WGF3: 11 | WGG3: 11 | WGH3: 11 | WGI3: 11 | WGJ3: 11 | WGK3: 11 | WGL3: 11 | WGM3: 11 | WGN3: 11 | WGO3: 11 | WGP3: 11 | WGQ3: 11 | WGR3: 11 | WGS3: 11 | WGT3: 11 | WGU3: 11 | WGV3: 11 | WGW3: 11 | WGX3: 11 | WGY3: 11 | WGZ3: 11 | WHA3: 11 | WHB3: 11 | WHC3: 11 | WHD3: 11 | WHE3: 11 | WHF3: 11 | WHG3: 11 | WHH3: 11 | WHI3: 11 | WHJ3: 11 | WHK3: 11 | WHL3: 11 | WHM3: 11 | WHN3: 11 | WHO3: 11 | WHP3: 11 | WHQ3: 11 | WHR3: 11 | WHS3: 11 | WHT3: 11 | WHU3: 11 | WHV3: 11 | WHW3: 11 | WHX3: 11 | WHY3: 11 | WHZ3: 11 | WIA3: 11 | WIB3: 11 | WIC3: 11 | WID3: 11 | WIE3: 11 | WIF3: 11 | WIG3: 11 | WIH3: 11 | WII3: 11 | WIJ3: 11 | WIK3: 11 | WIL3: 11 | WIM3: 11 | WIN3: 11 | WIO3: 11 | WIP3: 11 | WIQ3: 11 | WIR3: 11 | WIS3: 11 | WIT3: 11 | WIU3: 11 | WIV3: 11 | WIW3: 11 | WIX3: 11 | WIY3: 11 | WIZ3: 11 | WJA3: 11 | WJB3: 11 | WJC3: 11 | WJD3: 11 | WJE3: 11 | WJF3: 11 | WJG3: 11 | WJH3: 11 | WJI3: 11 | WJJ3: 11 | WJK3: 11 | WJL3: 11 | WJM3: 11 | WJN3: 11 | WJO3: 11 | WJP3: 11 | WJQ3: 11 | WJR3: 11 | WJS3: 11 | WJT3: 11 | WJU3: 11 | WJV3: 11 | WJW3: 11 | WJX3: 11 | WJY3: 11 | WJZ3: 11 | WKA3: 11 | WKB3: 11 | WKC3: 11 | WKD3: 11 | WKE3: 11 | WKF3: 11 | WKG3: 11 | WKH3: 11 | WKI3: 11 | WKJ3: 11 | WKK3: 11 | WKL3: 11 | WKM3: 11 | WKN3: 11 | WKO3: 11 | WKP3: 11 | WKQ3: 11 | WKR3: 11 | WKS3: 11 | WKT3: 11 | WKU3: 11 | WKV3: 11 | WKW3: 11 | WKX3: 11 | WKY3: 11 | WKZ3: 11 | WLA3: 11 | WLB3: 11 | WLC3: 11 | WLD3: 11 | WLE3: 11 | WLF3: 11 | WLG3: 11 | WLH3: 11 | WLI3: 11 | WLJ3: 11 | WLK3: 11 | WLL3: 11 | WLM3: 11 | WLN3: 11 | WLO3: 11 | WLP3: 11 | WLQ3: 11 | WLR3: 11 | WLS3: 11 | WLT3: 11 | WLU3: 11 | WLV3: 11 | WLW3: 11 | WLX3: 11 | WLY3: 11 | WLZ3: 11 | WMA3: 11 | WMB3: 11 | WMC3: 11 | WMD3: 11 | WME3: 11 | WMF3: 11 | WMG3: 11 | WMH3: 11 | WMI3: 11 | WMJ3: 11 | WMK3: 11 | WML3: 11 | WMM3: 11 | WMN3: 11 | WMO3: 11 | WMP3: 11 | WMQ3: 11 | WMR3: 11 | WMS3: 11 | WMT3: 11 | WMU3: 11 | WMV3: 11 | WMW3: 11 | WMX3: 11 | WMY3: 11 | WMZ3: 11 | WNA3: 11 | WNB3: 11 | WNC3: 11 | WND3: 11 | WNE3: 11 | WNF3: 11 | WNG3: 11 | WNH3: 11 | WNI3: 11 | WNJ3: 11 | WNK3: 11 | WNL3: 11 | WNM3: 11 | WNN3: 11 | WNO3: 11 | WNP3: 11 | WNQ3: 11 | WNR3: 11 | WNS3: 11 | WNT3: 11 | WNU3: 11 | WNV3: 11 | WNW3: 11 | WNX3: 11 | WNY3: 11 | WNZ3: 11 | WOA3: 11 | WOB3: 11 | WOC3: 11 | WOD3: 11 | WOE3: 11 | WOF3: 11 | WOG3: 11 | WOH3: 11 | WOI3: 11 | WOJ3: 11 | WOK3: 11 | WOL3: 11 | WOM3: 11 | WON3: 11 | WOO3: 11 | WOP3: 11 | WOQ3: 11 | WOR3: 11 | WOS3: 11 | WOT3: 11 | WOU3: 11 | WOV3: 11 | WOW3: 11 | WOX3: 11 | WOY3: 11 | WOZ3: 11 | WPA3: 11 | WPB3: 11 | WPC3: 11 | WPD3: 11 | WPE3: 11 | WPF3: 11 | WPG3: 11 | WPH3: 11 | WPI3: 11 | WPJ3: 11 | WPK3: 11 | WPL3: 11 | WPM3: 11 | WPN3: 11 | WPO3: 11 | WPP3: 11 | WPQ3: 11 | WPR3: 11 | WPS3: 11 | WPT3: 11 | WPU3: 11 | WPV3: 11 | WPW3: 11 | WPX3: 11 | WPY3: 11 | WPZ3: 11 | WQA3: 11 | WQB3: 11 | WQC3: 11 | WQD3: 11 | WQE3: 11 | WQF3: 11 | WQG3: 11 | WQH3: 11 | WQI3: 11 | WQJ3: 11 | WQK3: 11 | WQL3: 11 | WQM3: 11 | WQN3: 11 | WQO3: 11 | WQP3: 11 | WQQ3: 11 | WQR3: 11 | WQS3: 11 | WQT3: 11 | WQU3: 11 | WQV3: 11 | WQW3: 11 | WQX3: 11 | WQY3: 11 | WQZ3: 11 | WRA3: 11 | WRB3: 11 | WRC3: 11 | WRD3: 11 | WRE3: 11 | WRF3: 11 | WRG3: 11 | WRH3: 11 | WRI3: 11 | WRJ3: 11 | WRK3: 11 | WRL3: 11 | WRM3: 11 | WRN3: 11 | WRO3: 11 | WRP3: 11 | WRQ3: 11 | WRR3: 11 | WRS3: 11 | WRT3: 11 | WRU3: 11 | WRV3: 11 | WRW3: 11 | WRX3: 11 | WRY3: 11 | WRZ3: 11 | WSA3: 11 | WSB3: 11 | WSC3: 11 | WSD3: 11 | WSE3: 11 | WSF3: 11 | WSG3: 11 | WSH3: 11 | WSI3: 11 | WSJ3: 11 | WSK3: 11 | WSL3: 11 | WSM3: 11 | WSN3: 11 | WSO3: 11 | WSP3: 11 | WSQ3: 11 | WSR3: 11 | WSS3: 11 | WST3: 11 | WSU3: 11 | WSV3: 11 | WSW3: 11 | WSX3: 11 | WSY3: 11 | WSZ3: 11 | WTA3: 11 | WTB3: 11 | WTC3: 11 | WTD3: 11 | WTE3: 11 | WTF3: 11 | WTG3: 11 | WTH3: 11 | WTI3: 11 | WTJ3: 11 | WTK3: 11 | WTL3: 11 | WTM3: 11 | WTN3: 11 | WTO3: 11 | WTP3: 11 | WTQ3: 11 | WTR3: 11 | WTS3: 11 | WTT3: 11 | WTU3: 11 | WTV3: 11 | WTW3: 11 | WTX3: 11 | WTY3: 11 | WTZ3: 11 | WUA3: 11 | WUB3: 11 | WUC3: 11 | WUD3: 11 | WUE3: 11 | WUF3: 11 | WUG3: 11 | WUH3: 11 | WUI3: 11 | WUJ3: 11 | WUK3: 11 | WUL3: 11 | WUM3: 11 | WUN3: 11 | WUO3: 11 | WUP3: 11 | WUQ3: 11 | WUR3: 11 | WUS3: 11 | WUT3: 11 | WUU3: 11 | WUV3: 11 | WUW3: 11 | WUX3: 11 | WUY3: 11 | WUZ3: 11 | WVA3: 11 | WVB3: 11 | WVC3: 11 | WVD3: 11 | WVE3: 11 | WVF3: 11 | WVG3: 11 | WVH3: 11 | WVI3: 11 | WVJ3: 11 | WVK3: 11 | WVL3: 11 | WVM3: 11 | WVN3: 11 | WVO3: 11 | WVP3: 11 | WVQ3: 11 | WVR3: 11 | WVS3: 11 | WVT3: 11 | WVU3: 11 | WVV3: 11 | WVW3: 11 | WVX3: 11 | WVY3: 11 | WVZ3: 11 | WWA3: 11 | WWB3: 11 | WWC3: 11 | WWD3: 11 | WWE3: 11 | WWF3: 11 | WWG3: 11 | WWH3: 11 | WWI3: 11 | WWJ3: 11 | WWK3: 11 | WWL3: 11 | WWM3: 11 | WWN3: 11 | WWO3: 11 | WWP3: 11 | WWQ3: 11 | WWR3: 11 | WWS3: 11 | WWT3: 11 | WWU3: 11 | WWV3: 11 | WWW3: 11 | WWX3: 11 | WWY3: 11 | WWZ3: 11 | WXA3: 11 | WXB3: 11 | WXC3: 11 | WXD3: 11 | WXE3: 11 | WXF3: 11 | WXG3: 11 | WXH3: 11 | WXI3: 11 | WXJ3: 11 | WXK3: 11 | WXL3: 11 | WXM3: 11 | WXN3: 11 | WXO3: 11 | WXP3: 11 | WXQ3: 11 | WXR3: 11 | WXS3: 11 | WXT3: 11 | WXU3: 11 | WXV3: 11 | WXW3: 11 | WXX3: 11 | WXY3: 11 | WXZ3: 11 | WYA3: 11 | WYB3: 11 | WYC3: 11 | WYD3: 11 | WYE3: 11 | WYF3: 11 | WYG3: 11 | WYH3: 11 | WYI3: 11 | WYJ3: 11 | WYK3: 11 | WYL3: 11 | WYM3: 11 | WYN3: 11 | WYO3: 11 | WYP3: 11 | WYQ3: 11 | WYR3: 11 | WYS3: 11 | WYT3: 11 | WYU3: 11 | WYV3: 11 | WYW3: 11 | WYX3: 11 | WYY3: 11 | WYZ3: 11 | WZA3: 11 | WZB3: 11 | WZC3: 11 | WZD3: 11 | WZE3: 11 | WZF3: 11 | WZG3: 11 | WZH3: 11 | WZI3: 11 | WZJ3: 11 | WZK3: 11 | WZL3: 11 | WZM3: 11 | WZN3: 11 | WZO3: 11 | WZP3: 11 | WZQ3: 11 | WZR3: 11 | WZS3: 11 | WZT3: 11 | WZU3: 11 | WZV3: 11 | WZW3: 11 | WZX3: 11 | WZY3: 11 | WZZ3: 11 | XAA3: 11 | XAB3: 11 | XAC3: 11 | XAD3: 11 | XAE3: 11 | XAF3: 11 | XAG3: 11 | XAH3: 11 | XAI3: 11 | XAJ3: 11 | XAK3: 11 | XAL3: 11 | XAM3: 11 | XAN3: 11 | XAO3: 11 | XAP3: 11 | XAQ3: 11 | XAR3: 11 | XAS3: 11 | XAT3: 11 | XAU3: 11 | XAV3: 11 | XAW3: 11 | XAX3: 11 | XAY3: 11 | XAZ3: 11 | XBA3: 11 | XBB3: 11 | XBC3: 11 | XBD3: 11 | XBE3: 11 | XBF3: 11 | XBG3: 11 | XBH3: 11 | XBI3: 11 | XBJ3: 11 | XBK3: 11 | XBL3: 11 | XBM3: 11 | XBN3: 11 | XBO3: 11 | XBP3: 11 | XBQ3: 11 | XBR3: 11 | XBS3: 11 | XBT3: 11 | XBU3: 11 | XBV3: 11 | XBW3: 11 | XBX3: 11 | XBY3: 11 | XBZ3: 11 | XCA3: 11 | XCB3: 11 | XCC3: 11 | XCD3: 11 | XCE3: 11 | XCF3: 11 | XCG3: 11 | XCH3: 11 | XCI3: 11 | XCJ3: 11 | XCK3: 11 | XCL3: 11 | XCM3: 11 | XCN3: 11 | XCO3: 11 | XCP3: 11 | XCQ3: 11 | XCR3: 11 | XCS3: 11 | XCT3: 11 | XCU3: 11 | XCV3: 11 | XCW3: 11 | XCX3: 11 | XCY3: 11 | XCZ3: 11 | XDA3: 11 | XDB3: 11 | XDC3: 11 | XDD3: 11 | XDE3: 11 | XDF3: 11 | XDG3: 11 | XDH3: 11 | XDI3: 11 | XDJ3: 11 | XDK3: 11 | XDL3: 11 | XDM3: 11 | XDN3: 11 | XDO3: 11 | XDP3: 11 | XDQ3: 11 | XDR3: 11 | XDS3: 11 | XDT3: 11 | XDU3: 11 | XDV3: 11 | XDW3: 11 | XDX3: 11 | XDY3: 11 | XDZ3: 11 | XEA3: 11 | XEB3: 11 | XEC3: 11 | XED3: 11 | XEE3: 11 | XEF3: 11 | XEG3: 11 | XEH3: 11 | XEI3: 11 | XEJ3: 11 | XEK3: 11 | XEL3: 11
A4: 1 | B4: 1.1 | C4: 16.1 Plano de Trabalho | D4: mês | E4: =SUM(F4:Q4) -> 1 | F4: 1
A5: 1 | B5: 1.2 | C5: 16.3.1. Relatório de Programação de Atividades/16.3.2. Relatório Fotográfico e de Levantamento de Dados, Estudos e Projetos de Engenharia existentes | D5: mês | E5: 1 | F5: 1
A6: 1 | B6: 1.3 | C6: 16.3.3. Relatórios Preliminares de Estudo (conforme Anexo III) | D6: mês | E6: 4 | G6: 1 | H6: 1 | I6: 1 | J6: 1
A7: 1 | B7: 1.4 | C7: Minuta da Memória Justificativa (conforme Anexo IV) | D7: mês | E7: 1 | J7: 1
A8: 1 | B8: 1.5 | C8: Minuta do Relatório de Custos (conforme Anexo IV) | D8: mês | E8: 1 | J8: 1
A9: 1 | B9: 1.6 | C9: 16.3.4. Versão Preliminar do Relatório Final (Minuta) | D9: mês | E9: 1 | K9: 1
A10: 1 | B10: 1.7 | C10: 16.3.5. Versão Definitiva do Relatório Final | D10: mês | E10: 1 | L10: 1
A11: 1 | B11: 1.8 | C11: 16.3.6. Síntese do Relatório Final | D11: mês | E11: 1 | L11: 1
A12: 1 | B12: 1 | C12: Estudo de Viabilidade Técnica, Econômica e Ambiental | D12: mês | E12: 7 | F12: =SUBTOTAL(4,F5:F11) -> 1 | G12: 1 | H12: 1 | I12: 1 | J12: 1 | K12: 1 | L12: 1 | M12: 0 | N12: 0 | O12: 0 | P12: 0 | Q12: 0
A13: 2 | B13: 2.1 | C13: 16.3.3. Relatórios Preliminares de Estudo (conforme Anexo III) | D13: mês | E13: 3 | M13: 1 | N13: 1 | O13: 1
A14: 2 | B14: 2.2 | C14: Plano de implantação das obras por trechos | D14: mês | E14: 1 | O14: 1
A15: 2 | B15: 2.3 | C15: Matriz de Risco | D15: mês | E15: 1 | O15: 1
A16: 2 | B16: 2.4 | C16: Divulgação, Apresentação, Sketchup | D16: mês | E16: 1 | O16: 1
A17: 1 | B17: 2.5 | C17: Minuta da Memória Justificativa (conforme Anexo IV) | D17: mês | E17: 1 | O17: 1
A18: 1 | B18: 2.6 | C18: Minuta do Relatório de Custos (conforme Anexo IV) | D18: mês | E18: 1 | O18: 1
A19: 1 | B19: 2.7 | C19: 16.3.4. Versão Preliminar do Relatório Final (Minuta) | D19: mês | E19: 1 | P19: 1
A20: 1 | B20: 2.8 | C20: 16.3.5. Versão Definitiva do Relatório Final | D20: mês | E20: 1 | Q20: 1
A21: 1 | B21: 2.9 | C21: 16.3.6. Síntese do Relatório Final | D21: mês | E21: 1 | Q21: 1
A22: 2 | B22: 2 | C22: Anteprojeto | D22: mês | E22: 3 | F22: =SUBTOTAL(4,F13:F16) -> 0 | G22: 0 | H22: 0 | I22: 0 | J22: 0 | K22: 0 | L22: 0 | M22: 1 | N22: 1 | O22: 1 | P22: =SUBTOTAL(4,P13:P13) -> 0 | Q22: =SUBTOTAL(4,Q13:Q16) -> 0
A23: Total | B23: Total | C23: Balanço Temporal | D23: mês | E23: 12 | F23: =SUBTOTAL(4,F5:F22) -> 1 | G23: 1 | H23: 1 | I23: 1 | J23: 1 | K23: 1 | L23: 1 | M23: 1 | N23: 1 | O23: 1 | P23: 1 | Q23: 1
A24: Cod1 | B24: Cod2 | C24: Insumos | D24: Uni | E24: Qde | F24: 1 | G24: 2 | H24: 3 | I24: 4 | J24: 5 | K24: 6 | L24: 7 | M24: 8 | N24: 9 | O24: 10 | P24: 11 | Q24: 12
A25: 1 | B25: P0 | C25: Engenheiro Sênior (Coordenador) | D25: mês | E25: =SUM(F25:Q25) -> 5 | G25: 1 | H25: 1 | I25: 1 | J25: 1 | K25: 1
A26: 1 | B26: C | C26: Consultor | D26: mês | E26: 1 | J26: 1
A27: 1 | B27: P1 | C27: Engenheiro Sênior | D27: mês | E27: 7 | H27: 1 | I27: 2 | J27: 2 | K27: 2
A28: 1 | B28: P2 | C28: Engenheiro Pleno | D28: mês | E28: 8 | H28: 1 | I28: 2 | J28: 2 | K28: 2 | L28: 1
A29: 1 | B29: P3 | C29: Engenheiro Júnior | D29: mês | E29: 2 | H29: 1 | J29: 1
A30: 1 | B30: T1 | C30: Técnico Sênior | D30: mês | E30: 5 | H30: 1 | I30: 1 | J30: 1 | K30: 1 | L30: 1
A31: 1 | B31: T2 | C31: Técnico Pleno | D31: mês | E31: 5 | H31: 1 | I31: 1 | J31: 1 | K31: 1 | L31: 1
A32: 1 | B32: T3 | C32: Técnico Junior | D32: mês | E32: 5 | H32: 1 | I32: 1 | J32: 1 | K32: 1 | L32: 1
A33: 1 | B33: A1 | C33: Administrativo (Secretariado) | D33: mês | E33: 0
A34: 1 | B34: V1 | C34: Diárias | D34: dia | E34: 27 | G34: =SUM(G25,G27,G28) -> 1 | H34: 7 | I34: 7 | J34: 7 | K34: =SUM(K25,K27,K28) -> 5
A35: 1 | B35: V2 | C35: Aluguel Hatch 1.6 flex s/ Motorista | D35: mês | E35: 1 | H35: 1
A36: 1 | B36: V4 | C36: Passagens Aéreas (ida e volta) | D36: un | E36: 6 | G36: 1 | H36: 1 | I36: 1 | J36: 1 | K36: 1 | L36: 1
A37: 1 | B37: M1 | C37: Pen Drive 16 Gb | D37: un | E37: 1 | H37: 1
A38: 1 | B38: M2 | C38: HD Externo 2 Tb | D38: un | E38: 1 | L38: 1
A39: 1 | B39: M3 | C39: Relatório Parcial | D39: un | E39: 15 | H39: 3 | I39: 4 | J39: 4 | K39: 4
A40: 1 | B40: M4 | C40: Relatório Final | D40: un | E40: 1 | L40: 1
A41: 1 | C41: EVTEA | F41: =SUBTOTAL(9,F25:F33) -> 0 | G41: =SUBTOTAL(9,G25:G33) -> 1 | H41: 7 | I41: 8 | J41: 10 | K41: 8 | L41: 4 | M41: 0 | N41: 0 | O41: 0 | P41: 0 | Q41: 0
A42: 2 | B42: P0 | C42: Engenheiro Sênior (Coordenador) | D42: mês | E42: =SUM(F42:Q42) -> 3 | M42: 1 | N42: 1 | O42: 1
A43: 2 | B43: C | C43: Consultor | D43: mês | E43: 0
A44: 2 | B44: P1 | C44: Engenheiro Sênior | D44: mês | E44: 5 | N44: 1 | O44: 2 | P44: 2
A45: 2 | B45: P2 | C45: Engenheiro Pleno | D45: mês | E45: 4 | M45: 1 | N45: 1 | O45: 1 | P45: 1
A46: 2 | B46: P3 | C46: Engenheiro Júnior | D46: mês | E46: 1 | N46: 1
A47: 2 | B47: T1 | C47: Técnico Sênior | D47: mês | E47: 4 | M47: 1 | N47: 1 | O47: 1 | P47: 1
A48: 2 | B48: T2 | C48: Técnico Pleno | D48: mês | E48: 4 | M48: 1 | N48: 1 | O48: 1 | P48: 1
A49: 2 | B49: T3 | C49: Técnico Junior | D49: mês | E49: 4 | M49: 1 | N49: 1 | O49: 1 | P49: 1
A50: 2 | B50: A1 | C50: Administrativo (Secretariado) | D50: mês | E50: 0
A51: 2 | B51: V1 | C51: Diárias | D51: dia | E51: 13 | M51: 3 | N51: =SUM(N42,N44,N45) -> 3 | O51: =SUM(O42,O44,O45) -> 4 | P51: =SUM(P42,P44,P45) -> 3
A52: 2 | B52: V2 | C52: Aluguel Hatch 1.6 flex s/ Motorista | D52: mês | E52: 1 | N52: 1
A53: 2 | B53: V4 | C53: Passagens Aéreas (ida e volta) | D53: un | E53: 2 | N53: 1 | P53: 1
A54: 2 | B54: M1 | C54: Pen Drive 16 Gb | D54: un | E54: 1 | N54: 1
A55: 2 | B55: M2 | C55: HD Externo 2 Tb | D55: un | E55: 1 | Q55: 1
A56: 2 | B56: M3 | C56: Relatório Parcial | D56: un | E56: 10 | M56: 3 | N56: 3 | O56: 2 | P56: 2
A57: 2 | B57: M4 | C57: Relatório Final | D57: un | E57: 1 | Q57: 1
A58: 2 | B58: TP | C58: Total Serviços Cartográficos | D58: un | E58: 0
A59: 2 | B59: GT | C59: Total Serviços Geotécnicos | D59: un | E59: 0
A60: 2 | C60: Anteprojeto | F60: =SUBTOTAL(9,F42:F50) -> 0 | G60: 0 | H60: 0 | I60: 0 | J60: 0 | K60: 0 | L60: =SUBTOTAL(9,L42:L53) -> 0 | M60: =SUBTOTAL(9,M42:M53) -> 8 | N60: =SUBTOTAL(9,M42:M53) -> 8 | O60: =SUBTOTAL(9,N42:N54) -> 13 | P60: =SUBTOTAL(9,O42:O53) -> 11 | Q60: =SUBTOTAL(9,P42:P55) -> 10
A61: Total | C61: Balanço de Insumos | F61: =SUBTOTAL(2,F25:F60) -> 0 | G61: 3 | H61: 12 | I61: 9 | J61: 11 | K61: 9 | L61: 7 | M61: 7 | N61: 12 | O61: 8 | P61: 8 | Q61: 2
